Workbook

Sheet Cover
B6: Official Statistics Release
B7: Policy area: | C7: Maintained schools inspections and outcomes
B8: Theme: | C8: Education, children's services and skills
B9: Published on: | C9: 27 November 2012
B10: Coverage: | C10: England
B11: Period covered: | C11: 1 September 2011 to 31 August 2012
B12: Status: | C12: Final
B13: Issued by: | C13: Office for Standards in Education, Children’s Services and Skills (Ofsted) 125 Kingsway London WC2B 6SE
B17: Responsible director: | C17: Susan Gregory
B18: Statistician: | C18: Anita Patel
B19: Public enquiries: | C19: enquiries@ofsted.gov.uk
B20: Press enquiries: | C20: pressenquiries@ofsted.gov.uk
B21: Link to official statistics release web page: | C21: www.ofsted.gov.uk/resources/official-statistics-maintained-school-inspections-and-outcomes
B22: Publication medium: | C22: Ofsted website
B23: Publication frequency: | C23: Quarterly
B24: Next publication date: | C24: 4 September 2012
B27: © Crown copyright 2012
B29: You may use and re-use this information (not including logos) free of charge in any format or medium,
B30: under the terms of the Open Government Licence.
B31: To view this licence, visit:
B32: http://www.nationalarchives.gov.uk/doc/open-government-licence/
B33: Or write to the Information Policy Team, The National Archives, Kew, London, TW9 4DU
B34: Or email:
B35: psi@nationalarchives.gsi.gov.uk

Sheet Contents
B2: Contents
B4: Tables
B6: Table 1: Number of maintained schools inspections between 1 September 2011 and 31 August 2012, by inspection type (final)
B8: Table 2: Inspection outcomes of maintained schools inspected between 1 September 2011 and 31 August 2012 (final)
B10: Table 2a: Inspection outcomes of nursery schools inspected between 1 September 2011 and 31 August 2012 (final)
B12: Table 2b: Inspection outcomes of primary schools inspected between 1 September 2011 and 31 August 2012 (final)
B14: Table 2c: Inspection outcomes of secondary schools inspected between 1 September 2011 and 31 August 2012 (final)
B16: Table 2d: Inspection outcomes of special schools inspected between 1 September 2011 and 31 August 2012 (final)
B18: Table 2e: Inspection outcomes of pupil referral units inspected between 1 September 2011 and 31 August 2012 (final)
B20: Table 3: Inspection outcomes for selected judgements of maintained schools at their most recent inspection at 31 August 2012 (final)
B22: Table 4: Most recent overall effectiveness outcome of maintained schools that closed between 1 April 2012 and 30 June 2012 (final)
B24: Table 4: Number of maintained schools placed into, coming out of and closing while in a category of concern between 1 September 2011 and 31 August 2012 (final)
B26: Table 4a: Maintained schools in special measures at 31 August 2012 (final)
C27: Table 3: Number of maintained schools inspection outcomes for select judgements at their most recent inspection as at FALSE (provisional) | D27: Table 3: Number of maintained schools inspection outcomes for select judgements at their most recent inspection as at FALSE (provisional) | E27: Table 3: Number of maintained schools inspection outcomes for select judgements at their most recent inspection as at FALSE (provisional) | F27: Table 3: Number of maintained schools inspection outcomes for select judgements at their most recent inspection as at FALSE (provisional)
B28: Table 4b: Maintained schools in notice to improve at 31 August 2012 (final)
C29: Table 3: Number of maintained schools inspection outcomes for select judgements at their most recent inspection as at FALSE (provisional) | D29: Table 3: Number of maintained schools inspection outcomes for select judgements at their most recent inspection as at FALSE (provisional) | E29: Table 3: Number of maintained schools inspection outcomes for select judgements at their most recent inspection as at FALSE (provisional) | F29: Table 3: Number of maintained schools inspection outcomes for select judgements at their most recent inspection as at FALSE (provisional)
B30: Table 4c: Maintained schools removed from special measures between 1 September 2011 and 31 August 2012 (final)
C31: Table 3: Number of maintained schools inspection outcomes for select judgements at their most recent inspection as at FALSE (provisional) | D31: Table 3: Number of maintained schools inspection outcomes for select judgements at their most recent inspection as at FALSE (provisional) | E31: Table 3: Number of maintained schools inspection outcomes for select judgements at their most recent inspection as at FALSE (provisional) | F31: Table 3: Number of maintained schools inspection outcomes for select judgements at their most recent inspection as at FALSE (provisional)
B32: Table 4d: Maintained schools removed from notice to improve between 1 September 2011 and 31 August 2012 (final)
C33: Table 3: Number of maintained schools inspection outcomes for select judgements at their most recent inspection as at FALSE (provisional) | D33: Table 3: Number of maintained schools inspection outcomes for select judgements at their most recent inspection as at FALSE (provisional) | E33: Table 3: Number of maintained schools inspection outcomes for select judgements at their most recent inspection as at FALSE (provisional) | F33: Table 3: Number of maintained schools inspection outcomes for select judgements at their most recent inspection as at FALSE (provisional)
B34: Table 5: Most recent overall effectiveness for schools inspected at 31 August 2012 by local authority and government office region (final)
B36: Charts
B38: Chart 1: Overall effectiveness of maintained schools inspected between 1 September 2005 and 31 August 2012 (final)
B40: Chart 2: Overall effectiveness of maintained schools inspected between 1 September 2011 and 31 August 2012, by phase (final)
B42: Chart 3: Key inspections judgements for maintained schools inspected between 1 September 2011 and 31 August 2012 (final)
B44: Chart 4: Most recent overall effectiveness of schools inspected under section 5 at 31 August 2012 (final)
B46: Chart 5: Most recent overall effectiveness of schools inspected at 31 August 2012 compared to the most recent overall effectiveness at 31 August 2011, 31 August 2010 and 31 August 2009 (final)

Sheet Dates (hidden)
E3: 1 September 2011 and 31 August 2012
E4: 1 September 2011 and 31 December 2011 | F4: 1 September 2011 | G4: 31 December 2011
E5: 1 January 2012 and 31 August 2012 | F5: 1 January 2012 | G5: 31 August 2012
G6: 31 August 2012
B9: 1 September 2011 | C9: 30 September 2011
B10: 1 October 2011 | C10: 31 October 2011
B11: 1 November 2011 | C11: 30 November 2011
B12: 1 December 2011 | C12: 31 December 2011
B13: 1 January 2012 | C13: 31 January 2012
B14: 1 February 2012 | C14: 28 February 2012
B15: 1 March 2012 | C15: 31 March 2012
B16: 1 April 2012 | C16: 30 April 2012
B17: 1 May 2012 | C17: 31 May 2012
B18: 1 June 2012 | C18: 30 June 2012
B19: 1 July 2012 | C19: 31 July 2012
B20: 1 August 2012 | C20: 31 August 2012
B21: 1 September 2012 | C21: 30 September 2012

Sheet DataPack (hidden)
B1: Quarter | I1: Previous Framework | P1: New Framework
B2: Total | C2: Nursery | D2: Primary | E2: Secondary | F2: Special | G2: PRU | I2: Total | J2: Nursery | K2: Primary | L2: Secondary | M2: Special | N2: PRU | P2: Total | Q2: Nursery | R2: Primary | S2: Secondary | T2: Special | U2: PRU
A3: Section 5 inspection | B3: 5951 | C3: 141 | D3: 4489 | E3: 896 | F3: 275 | G3: 150 | H3: Section 5 inspection | I3: 2175 | J3: 51 | K3: 1631 | L3: 327 | M3: 101 | N3: 65 | O3: Section 5 inspection | P3: 3776 | Q3: 90 | R3: 2858 | S3: 569 | T3: 174 | U3: 85
A4: Section 8 deemed section 5 inspection | B4: 188 | C4: 2 | D4: 147 | E4: 30 | F4: 7 | G4: 2 | H4: Section 8 deemed section 5 inspection | I4: 61 | J4: 1 | K4: 49 | L4: 9 | M4: 1 | N4: 1 | O4: Section 8 deemed section 5 inspection | P4: 127 | Q4: 1 | R4: 98 | S4: 21 | T4: 6 | U4: 1
A5: Special measures monitoring visit | B5: 594 | C5: 3 | D5: 461 | E5: 94 | F5: 27 | G5: 9 | H5: Special measures monitoring visit | I5: 198 | J5: 1 | K5: 154 | L5: 31 | M5: 9 | N5: 3 | O5: Special measures monitoring visit | P5: 396 | Q5: 2 | R5: 307 | S5: 63 | T5: 18 | U5: 6
A6: Notice to improve monitoring visit | B6: 139 | C6: 0 | D6: 102 | E6: 28 | F6: 5 | G6: 4 | H6: Notice to improve monitoring visit | I6: 55 | J6: 0 | K6: 41 | L6: 12 | M6: 2 | N6: 0 | O6: Notice to improve monitoring visit | P6: 84 | Q6: 0 | R6: 61 | S6: 16 | T6: 3 | U6: 4
A7: Grade 3 monitoring visit | B7: 384 | C7: 0 | D7: 272 | E7: 94 | F7: 10 | G7: 8 | H7: Grade 3 monitoring visit | I7: 263 | J7: 0 | K7: 186 | L7: 67 | M7: 6 | N7: 4 | O7: Grade 3 monitoring visit | P7: 121 | Q7: 0 | R7: 86 | S7: 27 | T7: 4 | U7: 4
A8: Academy monitoring visit | B8: 73 | C8: 0 | D8: 0 | E8: 73 | F8: 0 | G8: 0 | H8: Academy monitoring visit | I8: 26 | J8: 0 | K8: 0 | L8: 26 | M8: 0 | N8: 0 | O8: Academy monitoring visit | P8: 47 | Q8: 0 | R8: 0 | S8: 47 | T8: 0 | U8: 0
A9: S8 No Formal Designation Visit | B9: 1 | C9: 0 | D9: 0 | E9: 1 | F9: 0 | G9: 0 | H9: S8 No Formal Designation Visit | I9: 0 | J9: 0 | K9: 0 | L9: 0 | M9: 0 | O9: S8 No Formal Designation Visit | P9: 1 | Q9: 0 | R9: 0 | S9: 1 | T9: 0 | U9: 0
A10: Emergency inspection | B10: 0 | C10: 0 | D10: 0 | E10: 0 | F10: 0 | G10: 0 | H10: Emergency inspection | I10: 0 | J10: 0 | K10: 0 | L10: 0 | M10: 0 | N10: 0 | O10: Emergency inspection | P10: 0 | Q10: 0 | R10: 0 | S10: 0 | T10: 0 | U10: 0
A11: Progress monitoring inspection | B11: 2 | C11: 0 | D11: 0 | E11: 0 | F11: 2 | G11: 0 | H11: Progress monitoring inspection | I11: 1 | J11: 0 | K11: 0 | L11: 0 | M11: 1 | N11: 0 | O11: Progress monitoring inspection | P11: 1 | Q11: 0 | R11: 0 | S11: 0 | T11: 1 | U11: 0
A13: Table2
A14: Quarter | B14: All Phases | C14: Outstanding | D14: Outstanding% | E14: Good | F14: Good% | G14: Satisfactory | H14: Satisfactory% | I14: Inadequate | J14: Indadequate% | K14: Pre | L14: All Phases | M14: Outstanding | N14: Outstanding% | O14: Good | P14: Good% | Q14: Satisfactory | R14: Satisfactory% | S14: Inadequate | T14: Indadequate% | U14: New framework | V14: All Phases | W14: Outstanding | X14: Outstanding% | Y14: Good | Z14: Good% | AA14: Satisfactory | AB14: Satisfactory% | AC14: Inadequate | AD14: Indadequate%
A15: Overall effectiveness: how good is the school | B15: 6139 | C15: 719 | D15: 12 | E15: 3036 | F15: 49 | G15: 1877 | H15: 31 | I15: 507 | J15: 8 | K15: Overall effectiveness: how good is the school | L15: 2236 | M15: 366 | N15: 16 | O15: 1048 | P15: 47 | Q15: 684 | R15: 31 | S15: 138 | T15: 6 | U15: Overall effectiveness: how good is the school | V15: 3903 | W15: 353 | X15: 9 | Y15: 1988 | Z15: 51 | AA15: 1193 | AB15: 31 | AC15: 369 | AD15: 9
A16: Pupils' achievement and the extent to which they enjoy their learning | B16: 6139 | C16: 695 | D16: 11 | E16: 3068 | F16: 50 | G16: 1923 | H16: 31 | I16: 453 | J16: 7 | K16: Pupils' achievement and the extent to which they enjoy their learning | L16: 2236 | M16: 338 | N16: 15 | O16: 1080 | P16: 48 | Q16: 688 | R16: 31 | S16: 130 | T16: 6 | U16: Pupils' achievement and the extent to which they enjoy their learning | V16: 3903 | W16: 357 | X16: 9 | Y16: 1988 | Z16: 51 | AA16: 1235 | AB16: 32 | AC16: 323 | AD16: 8
A17: Pupils' behaviour | B17: 6139 | C17: 1409 | D17: 23 | E17: 3670 | F17: 60 | G17: 957 | H17: 16 | I17: 103 | J17: 2 | K17: Pupils' behaviour | L17: 2236 | M17: 548 | N17: 25 | O17: 1446 | P17: 65 | Q17: 231 | R17: 10 | S17: 11 | T17: 0 | U17: Pupils' behaviour | V17: 3903 | W17: 861 | X17: 22 | Y17: 2224 | Z17: 57 | AA17: 726 | AB17: 19 | AC17: 92 | AD17: 2
A18: The quality of teaching | B18: 6139 | C18: 572 | D18: 9 | E18: 3252 | F18: 53 | G18: 1979 | H18: 32 | I18: 336 | J18: 5 | K18: The quality of teaching | L18: 2236 | M18: 220 | N18: 10 | O18: 1240 | P18: 55 | Q18: 691 | R18: 31 | S18: 85 | T18: 4 | U18: The quality of teaching | V18: 3903 | W18: 352 | X18: 9 | Y18: 2012 | Z18: 52 | AA18: 1288 | AB18: 33 | AC18: 251 | AD18: 6
A19: The effectiveness of leadership and management in embedding ambition and driving improvement | B19: 6139 | C19: 852 | D19: 14 | E19: 3297 | F19: 54 | G19: 1641 | H19: 27 | I19: 349 | J19: 6 | K19: The effectiveness of leadership and management in embedding ambition and driving improvement | L19: 2236 | M19: 413 | N19: 18 | O19: 1170 | P19: 52 | Q19: 565 | R19: 25 | S19: 88 | T19: 4 | U19: The effectiveness of leadership and management in embedding ambition and driving improvement | V19: 3903 | W19: 439 | X19: 11 | Y19: 2127 | Z19: 54 | AA19: 1076 | AB19: 28 | AC19: 261 | AD19: 7
A20: The effectiveness of the boarding experience | B20: 18 | C20: 9 | D20: =C20/$B20*100 -> 50 | E20: 4 | F20: =E20/$B20*100 -> 22.22222222 | G20: 3 | H20: =G20/$B20*100 -> 16.66666667 | I20: 2 | J20: =I20/$B20*100 -> 11.11111111 | K20: The effectiveness of the boarding experience | L20: 4 | M20: 2 | N20: =M20/$L20*100 -> 50 | O20: 0 | P20: =O20/$L20*100 -> 0 | Q20: 1 | R20: =Q20/$L20*100 -> 25 | S20: 1 | T20: =S20/$L20*100 -> 25 | U20: The effectiveness of the boarding experience | V20: 14 | W20: 7 | X20: =W20/$V20*100 -> 50 | Y20: 4 | Z20: =Y20/$V20*100 -> 28.57142857 | AA20: 2 | AB20: =AA20/$V20*100 -> 14.28571429 | AC20: 1 | AD20: =AC20/$V20*100 -> 7.142857143
A21: Outcomes for boarding pupils | B21: 18 | C21: 11 | D21: =C21/$B21*100 -> 61.11111111 | E21: 7 | F21: =E21/$B21*100 -> 38.88888889 | G21: 0 | H21: =G21/$B21*100 -> 0 | I21: 0 | J21: =I21/$B21*100 -> 0 | K21: Outcomes for boarding pupils | L21: 4 | M21: 2 | N21: =M21/$L21*100 -> 50 | O21: 2 | P21: =O21/$L21*100 -> 50 | Q21: 0 | R21: =Q21/$L21*100 -> 0 | S21: 0 | T21: =S21/$L21*100 -> 0 | U21: Outcomes for boarding pupils | V21: 14 | W21: 9 | X21: =W21/$V21*100 -> 64.28571429 | Y21: 5 | Z21: 35.71428571 | AA21: 0 | AB21: =AA21/$V21*100 -> 0 | AC21: 0 | AD21: =AC21/$V21*100 -> 0
A22: The quality of boarding provision and care | B22: 18 | C22: 9 | D22: =C22/$B22*100 -> 50 | E22: 7 | F22: =E22/$B22*100 -> 38.88888889 | G22: 2 | H22: =G22/$B22*100 -> 11.11111111 | I22: 0 | J22: =I22/$B22*100 -> 0 | K22: The quality of boarding provision and care | L22: 4 | M22: 1 | N22: =M22/$L22*100 -> 25 | O22: 1 | P22: =O22/$L22*100 -> 25 | Q22: 2 | R22: =Q22/$L22*100 -> 50 | S22: 0 | T22: =S22/$L22*100 -> 0 | U22: The quality of boarding provision and care | V22: 14 | W22: 8 | X22: 57.14285714 | Y22: 6 | Z22: 42.85714286 | AA22: 0 | AB22: =AA22/$V22*100 -> 0 | AC22: 0 | AD22: =AC22/$V22*100 -> 0
A23: The boarding pupils' safety | B23: 18 | C23: 10 | D23: =C23/$B23*100 -> 55.55555556 | E23: 3 | F23: =E23/$B23*100 -> 16.66666667 | G23: 4 | H23: =G23/$B23*100 -> 22.22222222 | I23: 1 | J23: =I23/$B23*100 -> 5.555555556 | K23: The boarding pupils' safety | L23: 4 | M23: 2 | N23: =M23/$L23*100 -> 50 | O23: 0 | P23: =O23/$L23*100 -> 0 | Q23: 1 | R23: =Q23/$L23*100 -> 25 | S23: 1 | T23: =S23/$L23*100 -> 25 | U23: The boarding pupils' safety | V23: 14 | W23: 8 | X23: 57.14285714 | Y23: 3 | Z23: 21.42857143 | AA23: 3 | AB23: =AA23/$V23*100 -> 21.42857143 | AC23: 0 | AD23: =AC23/$V23*100 -> 0
A24: Leadership and management of the boarding provision | B24: 18 | C24: 8 | D24: =C24/$B24*100 -> 44.44444444 | E24: 5 | F24: =E24/$B24*100 -> 27.77777778 | G24: 3 | H24: =G24/$B24*100 -> 16.66666667 | I24: 2 | J24: =I24/$B24*100 -> 11.11111111 | K24: Leadership and management of the boarding provision | L24: 4 | M24: 1 | N24: =M24/$L24*100 -> 25 | O24: 1 | P24: =O24/$L24*100 -> 25 | Q24: 1 | R24: =Q24/$L24*100 -> 25 | S24: 1 | T24: =S24/$L24*100 -> 25 | U24: Leadership and management of the boarding provision | V24: 14 | W24: 7 | X24: 50 | Y24: 4 | Z24: 28.57142857 | AA24: 2 | AB24: =AA24/$V24*100 -> 14.28571429 | AC24: 1 | AD24: =AC24/$V24*100 -> 7.142857143
A26: Quarter | B26: Nursery | C26: Outstanding | D26: Outstanding% | E26: Good | F26: Good% | G26: Satisfactory | H26: Satisfactory% | I26: Inadequate | J26: Indadequate% | K26: Pre | L26: Nursery | M26: Outstanding | N26: Outstanding% | O26: Good | P26: Good% | Q26: Satisfactory | R26: Satisfactory% | S26: Inadequate | T26: Indadequate% | U26: New framework | V26: Nursery | W26: Outstanding | X26: Outstanding% | Y26: Good | Z26: Good% | AA26: Satisfactory | AB26: Satisfactory% | AC26: Inadequate | AD26: Indadequate%
A27: Overall effectiveness: how good is the school | B27: 143 | C27: 79 | D27: 55 | E27: 58 | F27: 41 | G27: 5 | H27: 3 | I27: 1 | J27: 1 | K27: Overall effectiveness: how good is the school | L27: 52 | M27: 28 | N27: 54 | O27: 22 | P27: 42 | Q27: 1 | R27: 2 | S27: 1 | T27: 2 | U27: Overall effectiveness: how good is the school | V27: 91 | W27: 51 | X27: 56 | Y27: 36 | Z27: 40 | AA27: 4 | AB27: 4 | AC27: 0 | AD27: 0
A28: Pupils' achievement and the extent to which they enjoy their learning | B28: 143 | C28: 75 | D28: 52 | E28: 62 | F28: 43 | G28: 6 | H28: 4 | I28: 0 | J28: 0 | K28: Pupils' achievement and the extent to which they enjoy their learning | L28: 52 | M28: 24 | N28: 46 | O28: 26 | P28: 50 | Q28: 2 | R28: 4 | S28: 0 | T28: 0 | U28: Pupils' achievement and the extent to which they enjoy their learning | V28: 91 | W28: 51 | X28: 56 | Y28: 36 | Z28: 40 | AA28: 4 | AB28: 4 | AC28: 0 | AD28: 0
A29: Pupils' behaviour | B29: 143 | C29: 101 | D29: 71 | E29: 41 | F29: 29 | G29: 1 | H29: 1 | I29: 0 | J29: 0 | K29: Pupils' behaviour | L29: 52 | M29: 35 | N29: 67 | O29: 17 | P29: 33 | Q29: 0 | R29: 0 | S29: 0 | T29: 0 | U29: Pupils' behaviour | V29: 91 | W29: 66 | X29: 73 | Y29: 24 | Z29: 26 | AA29: 1 | AB29: 1 | AC29: 0 | AD29: 0
A30: The quality of teaching | B30: 143 | C30: 78 | D30: 55 | E30: 59 | F30: 41 | G30: 6 | H30: 4 | I30: 0 | J30: 0 | K30: The quality of teaching | L30: 52 | M30: 27 | N30: 52 | O30: 23 | P30: 44 | Q30: 2 | R30: 4 | S30: 0 | T30: 0 | U30: The quality of teaching | V30: 91 | W30: 51 | X30: 56 | Y30: 36 | Z30: 40 | AA30: 4 | AB30: 4 | AC30: 0 | AD30: 0
A31: The effectiveness of leadership and management in embedding ambition and driving improvement | B31: 143 | C31: 80 | D31: 56 | E31: 57 | F31: 40 | G31: 5 | H31: 3 | I31: 1 | J31: 1 | K31: The effectiveness of leadership and management in embedding ambition and driving improvement | L31: 52 | M31: 29 | N31: 56 | O31: 20 | P31: 38 | Q31: 2 | R31: 4 | S31: 1 | T31: 2 | U31: The effectiveness of leadership and management in embedding ambition and driving improvement | V31: 91 | W31: 51 | X31: 56 | Y31: 37 | Z31: 41 | AA31: 3 | AB31: 3 | AC31: 0 | AD31: 0
A32: The effectiveness of the boarding experience | B32: 0 | C32: 0 | D32: 0 | E32: 0 | F32: 0 | G32: 0 | H32: 0 | I32: 0 | J32: 0 | K32: The effectiveness of the boarding experience | L32: 0 | M32: 0 | N32: 0 | O32: 0 | P32: 0 | Q32: 0 | R32: 0 | S32: 0 | T32: 0 | U32: The effectiveness of the boarding experience | V32: 0 | W32: 0 | X32: 0 | Y32: 0 | Z32: 0 | AA32: 0 | AB32: 0 | AC32: 0 | AD32: 0
A33: Outcomes for boarding pupils | B33: 0 | C33: 0 | D33: 0 | E33: 0 | F33: 0 | G33: 0 | H33: 0 | I33: 0 | J33: 0 | K33: Outcomes for boarding pupils | L33: 0 | M33: 0 | N33: 0 | O33: 0 | P33: 0 | Q33: 0 | R33: 0 | S33: 0 | T33: 0 | U33: Outcomes for boarding pupils | V33: 0 | W33: 0 | X33: 0 | Y33: 0 | Z33: 0 | AA33: 0 | AB33: 0 | AC33: 0 | AD33: 0
A34: The quality of boarding provision and care | B34: 0 | C34: 0 | D34: 0 | E34: 0 | F34: 0 | G34: 0 | H34: 0 | I34: 0 | J34: 0 | K34: The quality of boarding provision and care | L34: 0 | M34: 0 | N34: 0 | O34: 0 | P34: 0 | Q34: 0 | R34: 0 | S34: 0 | T34: 0 | U34: The quality of boarding provision and care | V34: 0 | W34: 0 | X34: 0 | Y34: 0 | Z34: 0 | AA34: 0 | AB34: 0 | AC34: 0 | AD34: 0
A35: The boarding pupils' safety | B35: 0 | C35: 0 | D35: 0 | E35: 0 | F35: 0 | G35: 0 | H35: 0 | I35: 0 | J35: 0 | K35: The boarding pupils' safety | L35: 0 | M35: 0 | N35: 0 | O35: 0 | P35: 0 | Q35: 0 | R35: 0 | S35: 0 | T35: 0 | U35: The boarding pupils' safety | V35: 0 | W35: 0 | X35: 0 | Y35: 0 | Z35: 0 | AA35: 0 | AB35: 0 | AC35: 0 | AD35: 0
A36: Leadership and management of the boarding provision | B36: 0 | C36: 0 | D36: 0 | E36: 0 | F36: 0 | G36: 0 | H36: 0 | I36: 0 | J36: 0 | K36: Leadership and management of the boarding provision | L36: 0 | M36: 0 | N36: 0 | O36: 0 | P36: 0 | Q36: 0 | R36: 0 | S36: 0 | T36: 0 | U36: Leadership and management of the boarding provision | V36: 0 | W36: 0 | X36: 0 | Y36: 0 | Z36: 0 | AA36: 0 | AB36: 0 | AC36: 0 | AD36: 0
A38: Quarter | B38: Primary | C38: Outstanding | D38: Outstanding% | E38: Good | F38: Good% | G38: Satisfactory | H38: Satisfactory% | I38: Inadequate | J38: Indadequate% | K38: Pre | L38: Primary | M38: Outstanding | N38: Outstanding% | O38: Good | P38: Good% | Q38: Satisfactory | R38: Satisfactory% | S38: Inadequate | T38: Indadequate% | U38: New framework | V38: Primary | W38: Outstanding | X38: Outstanding% | Y38: Good | Z38: Good% | AA38: Satisfactory | AB38: Satisfactory% | AC38: Inadequate | AD38: Indadequate%
A39: Overall effectiveness: how good is the school | B39: 4636 | C39: 428 | D39: 9 | E39: 2367 | F39: 51 | G39: 1469 | H39: 32 | I39: 372 | J39: 8 | K39: Overall effectiveness: how good is the school | L39: 1680 | M39: 233 | N39: 14 | O39: 815 | P39: 49 | Q39: 533 | R39: 32 | S39: 99 | T39: 6 | U39: Overall effectiveness: how good is the school | V39: 2956 | W39: 195 | X39: 7 | Y39: 1552 | Z39: 53 | AA39: 936 | AB39: 32 | AC39: 273 | AD39: 9
A40: Pupils' achievement and the extent to which they enjoy their learning | B40: 4636 | C40: 420 | D40: 9 | E40: 2380 | F40: 51 | G40: 1504 | H40: 32 | I40: 332 | J40: 7 | K40: Pupils' achievement and the extent to which they enjoy their learning | L40: 1680 | M40: 227 | N40: 14 | O40: 823 | P40: 49 | Q40: 535 | R40: 32 | S40: 95 | T40: 6 | U40: Pupils' achievement and the extent to which they enjoy their learning | V40: 2956 | W40: 193 | X40: 7 | Y40: 1557 | Z40: 53 | AA40: 969 | AB40: 33 | AC40: 237 | AD40: 8
A41: Pupils' behaviour | B41: 4636 | C41: 999 | D41: 22 | E41: 2917 | F41: 63 | G41: 675 | H41: 15 | I41: 45 | J41: 1 | K41: Pupils' behaviour | L41: 1680 | M41: 405 | N41: 24 | O41: 1120 | P41: 67 | Q41: 154 | R41: 9 | S41: 1 | T41: 0 | U41: Pupils' behaviour | V41: 2956 | W41: 594 | X41: 20 | Y41: 1797 | Z41: 61 | AA41: 521 | AB41: 18 | AC41: 44 | AD41: 1
A42: The quality of teaching | B42: 4636 | C42: 333 | D42: 7 | E42: 2512 | F42: 54 | G42: 1535 | H42: 33 | I42: 256 | J42: 6 | K42: The quality of teaching | L42: 1680 | M42: 138 | N42: 8 | O42: 942 | P42: 56 | Q42: 538 | R42: 32 | S42: 62 | T42: 4 | U42: The quality of teaching | V42: 2956 | W42: 195 | X42: 7 | Y42: 1570 | Z42: 53 | AA42: 997 | AB42: 34 | AC42: 194 | AD42: 7
A43: The effectiveness of leadership and management in embedding ambition and driving improvement | B43: 4636 | C43: 503 | D43: 11 | E43: 2557 | F43: 55 | G43: 1304 | H43: 28 | I43: 272 | J43: 6 | K43: The effectiveness of leadership and management in embedding ambition and driving improvement | L43: 1680 | M43: 254 | N43: 15 | O43: 910 | P43: 54 | Q43: 451 | R43: 27 | S43: 65 | T43: 4 | U43: The effectiveness of leadership and management in embedding ambition and driving improvement | V43: 2956 | W43: 249 | X43: 8 | Y43: 1647 | Z43: 56 | AA43: 853 | AB43: 29 | AC43: 207 | AD43: 7
A44: The effectiveness of the boarding experience | B44: 0 | C44: 0 | D44: 0 | E44: 0 | F44: 0 | G44: 0 | H44: 0 | I44: 0 | J44: 0 | K44: The effectiveness of the boarding experience | L44: 0 | M44: 0 | N44: 0 | O44: 0 | P44: 0 | Q44: 0 | R44: 0 | S44: 0 | T44: 0 | U44: The effectiveness of the boarding experience | V44: 0 | W44: 0 | X44: 0 | Y44: 0 | Z44: 0 | AA44: 0 | AB44: 0 | AC44: 0 | AD44: 0
A45: Outcomes for boarding pupils | B45: 0 | C45: 0 | D45: 0 | E45: 0 | F45: 0 | G45: 0 | H45: 0 | I45: 0 | J45: 0 | K45: Outcomes for boarding pupils | L45: 0 | M45: 0 | N45: 0 | O45: 0 | P45: 0 | Q45: 0 | R45: 0 | S45: 0 | T45: 0 | U45: Outcomes for boarding pupils | V45: 0 | W45: 0 | X45: 0 | Y45: 0 | Z45: 0 | AA45: 0 | AB45: 0 | AC45: 0 | AD45: 0
A46: The quality of boarding provision and care | B46: 0 | C46: 0 | D46: 0 | E46: 0 | F46: 0 | G46: 0 | H46: 0 | I46: 0 | J46: 0 | K46: The quality of boarding provision and care | L46: 0 | M46: 0 | N46: 0 | O46: 0 | P46: 0 | Q46: 0 | R46: 0 | S46: 0 | T46: 0 | U46: The quality of boarding provision and care | V46: 0 | W46: 0 | X46: 0 | Y46: 0 | Z46: 0 | AA46: 0 | AB46: 0 | AC46: 0 | AD46: 0
A47: The boarding pupils' safety | B47: 0 | C47: 0 | D47: 0 | E47: 0 | F47: 0 | G47: 0 | H47: 0 | I47: 0 | J47: 0 | K47: The boarding pupils' safety | L47: 0 | M47: 0 | N47: 0 | O47: 0 | P47: 0 | Q47: 0 | R47: 0 | S47: 0 | T47: 0 | U47: The boarding pupils' safety | V47: 0 | W47: 0 | X47: 0 | Y47: 0 | Z47: 0 | AA47: 0 | AB47: 0 | AC47: 0 | AD47: 0
A48: Leadership and management of the boarding provision | B48: 0 | C48: 0 | D48: 0 | E48: 0 | F48: 0 | G48: 0 | H48: 0 | I48: 0 | J48: 0 | K48: Leadership and management of the boarding provision | L48: 0 | M48: 0 | N48: 0 | O48: 0 | P48: 0 | Q48: 0 | R48: 0 | S48: 0 | T48: 0 | U48: Leadership and management of the boarding provision | V48: 0 | W48: 0 | X48: 0 | Y48: 0 | Z48: 0 | AA48: 0 | AB48: 0 | AC48: 0 | AD48: 0
A50: Quarter | B50: Secondary | C50: Outstanding | D50: Outstanding% | E50: Good | F50: Good% | G50: Satisfactory | H50: Satisfactory% | I50: Inadequate | J50: Indadequate% | K50: Pre | L50: Secondary | M50: Outstanding | N50: Outstanding% | O50: Good | P50: Good% | Q50: Satisfactory | R50: Satisfactory% | S50: Inadequate | T50: Indadequate% | U50: New framework | V50: Secondary | W50: Outstanding | X50: Outstanding% | Y50: Good | Z50: Good% | AA50: Satisfactory | AB50: Satisfactory% | AC50: Inadequate | AD50: Indadequate%
A51: Overall effectiveness: how good is the school | B51: 926 | C51: 126 | D51: 14 | E51: 382 | F51: 41 | G51: 313 | H51: 34 | I51: 105 | J51: 11 | K51: Overall effectiveness: how good is the school | L51: 336 | M51: 66 | N51: 20 | O51: 130 | P51: 39 | Q51: 112 | R51: 33 | S51: 28 | T51: 8 | U51: Overall effectiveness: how good is the school | V51: 590 | W51: 60 | X51: 10 | Y51: 252 | Z51: 43 | AA51: 201 | AB51: 34 | AC51: 77 | AD51: 13
A52: Pupils' achievement and the extent to which they enjoy their learning | B52: 926 | C52: 128 | D52: 14 | E52: 381 | F52: 41 | G52: 321 | H52: 35 | I52: 96 | J52: 10 | K52: Pupils' achievement and the extent to which they enjoy their learning | L52: 336 | M52: 64 | N52: 19 | O52: 132 | P52: 39 | Q52: 112 | R52: 33 | S52: 28 | T52: 8 | U52: Pupils' achievement and the extent to which they enjoy their learning | V52: 590 | W52: 64 | X52: 11 | Y52: 249 | Z52: 42 | AA52: 209 | AB52: 35 | AC52: 68 | AD52: 12
A53: Pupils' behaviour | B53: 926 | C53: 163 | D53: 18 | E53: 500 | F53: 54 | G53: 222 | H53: 24 | I53: 41 | J53: 4 | K53: Pupils' behaviour | L53: 336 | M53: 56 | N53: 17 | O53: 218 | P53: 65 | Q53: 56 | R53: 17 | S53: 6 | T53: 2 | U53: Pupils' behaviour | V53: 590 | W53: 107 | X53: 18 | Y53: 282 | Z53: 48 | AA53: 166 | AB53: 28 | AC53: 35 | AD53: 6
A54: The quality of teaching | B54: 926 | C54: 88 | D54: 10 | E54: 437 | F54: 47 | G54: 343 | H54: 37 | I54: 58 | J54: 6 | K54: The quality of teaching | L54: 336 | M54: 30 | N54: 9 | O54: 178 | P54: 53 | Q54: 110 | R54: 33 | S54: 18 | T54: 5 | U54: The quality of teaching | V54: 590 | W54: 58 | X54: 10 | Y54: 259 | Z54: 44 | AA54: 233 | AB54: 39 | AC54: 40 | AD54: 7
A55: The effectiveness of leadership and management in embedding ambition and driving improvement | B55: 926 | C55: 172 | D55: 19 | E55: 449 | F55: 48 | G55: 251 | H55: 27 | I55: 54 | J55: 6 | K55: The effectiveness of leadership and management in embedding ambition and driving improvement | L55: 336 | M55: 86 | N55: 26 | O55: 156 | P55: 46 | Q55: 78 | R55: 23 | S55: 16 | T55: 5 | U55: The effectiveness of leadership and management in embedding ambition and driving improvement | V55: 590 | W55: 86 | X55: 15 | Y55: 293 | Z55: 50 | AA55: 173 | AB55: 29 | AC55: 38 | AD55: 6
A56: The effectiveness of the boarding experience | B56: 2 | C56: 1 | D56: =C56/$B56*100 -> 50 | E56: 1 | F56: =E56/$B56*100 -> 50 | G56: 0 | H56: =G56/$B56*100 -> 0 | I56: 0 | J56: =I56/$B56*100 -> 0 | K56: The effectiveness of the boarding experience | L56: 0 | M56: 0 | N56: 0 | O56: 0 | P56: 0 | Q56: 0 | R56: 0 | S56: 0 | T56: 0 | U56: The effectiveness of the boarding experience | V56: 2 | W56: 1 | X56: =W56/$V56*100 -> 50 | Y56: 1 | Z56: =Y56/$V56*100 -> 50 | AA56: 0 | AB56: =AA56/$V56*100 -> 0 | AC56: 0 | AD56: =AC56/$V56*100 -> 0
A57: Outcomes for boarding pupils | B57: 2 | C57: 1 | D57: =C57/$B57*100 -> 50 | E57: 1 | F57: =E57/$B57*100 -> 50 | G57: 0 | H57: =G57/$B57*100 -> 0 | I57: 0 | J57: 0 | K57: Outcomes for boarding pupils | L57: 0 | M57: 0 | N57: 0 | O57: 0 | P57: 0 | Q57: 0 | R57: 0 | S57: 0 | T57: 0 | U57: Outcomes for boarding pupils | V57: 2 | W57: 1 | X57: =W57/$V57*100 -> 50 | Y57: 1 | Z57: =Y57/$V57*100 -> 50 | AA57: 0 | AB57: =AA57/$V57*100 -> 0 | AC57: 0 | AD57: =AC57/$V57*100 -> 0
A58: The quality of boarding provision and care | B58: 2 | C58: 1 | D58: =C58/$B58*100 -> 50 | E58: 1 | F58: =E58/$B58*100 -> 50 | G58: 0 | H58: 0 | I58: 0 | J58: 0 | K58: The quality of boarding provision and care | L58: 0 | M58: 0 | N58: 0 | O58: 0 | P58: 0 | Q58: 0 | R58: 0 | S58: 0 | T58: 0 | U58: The quality of boarding provision and care | V58: 2 | W58: 1 | X58: =W58/$V58*100 -> 50 | Y58: 1 | Z58: =Y58/$V58*100 -> 50 | AA58: 0 | AB58: =AA58/$V58*100 -> 0 | AC58: 0 | AD58: =AC58/$V58*100 -> 0
A59: The boarding pupils' safety | B59: 2 | C59: 1 | D59: =C59/$B59*100 -> 50 | E59: 1 | F59: =E59/$B59*100 -> 50 | G59: 0 | H59: 0 | I59: 0 | J59: 0 | K59: The boarding pupils' safety | L59: 0 | M59: 0 | N59: 0 | O59: 0 | P59: 0 | Q59: 0 | R59: 0 | S59: 0 | T59: 0 | U59: The boarding pupils' safety | V59: 2 | W59: 1 | X59: =W59/$V59*100 -> 50 | Y59: 1 | Z59: =Y59/$V59*100 -> 50 | AA59: 0 | AB59: =AA59/$V59*100 -> 0 | AC59: 0 | AD59: =AC59/$V59*100 -> 0
A60: Leadership and management of the boarding provision | B60: 2 | C60: 1 | D60: =C60/$B60*100 -> 50 | E60: 1 | F60: =E60/$B60*100 -> 50 | G60: 0 | H60: 0 | I60: 0 | J60: 0 | K60: Leadership and management of the boarding provision | L60: 0 | M60: 0 | N60: 0 | O60: 0 | P60: 0 | Q60: 0 | R60: 0 | S60: 0 | T60: 0 | U60: Leadership and management of the boarding provision | V60: 2 | W60: 1 | X60: =W60/$V60*100 -> 50 | Y60: 1 | Z60: =Y60/$V60*100 -> 50 | AA60: 0 | AB60: =AA60/$V60*100 -> 0 | AC60: 0 | AD60: =AC60/$V60*100 -> 0
A62: Quarter | B62: Special | C62: Outstanding | D62: Outstanding% | E62: Good | F62: Good% | G62: Satisfactory | H62: Satisfactory% | I62: Inadequate | J62: Indadequate% | K62: Pre | L62: Special | M62: Outstanding | N62: Outstanding% | O62: Good | P62: Good% | Q62: Satisfactory | R62: Satisfactory% | S62: Inadequate | T62: Indadequate% | U62: New framework | V62: Special | W62: Outstanding | X62: Outstanding% | Y62: Good | Z62: Good% | AA62: Satisfactory | AB62: Satisfactory% | AC62: Inadequate | AD62: Indadequate%
A63: Overall effectiveness: how good is the school | B63: 282 | C63: 78 | D63: 28 | E63: 141 | F63: 50 | G63: 47 | H63: 17 | I63: 16 | J63: 6 | K63: Overall effectiveness: how good is the school | L63: 102 | M63: 33 | N63: 32 | O63: 45 | P63: 44 | Q63: 20 | R63: 20 | S63: 4 | T63: 4 | U63: Overall effectiveness: how good is the school | V63: 180 | W63: 45 | X63: 25 | Y63: 96 | Z63: 53 | AA63: 27 | AB63: 15 | AC63: 12 | AD63: 7
A64: Pupils' achievement and the extent to which they enjoy their learning | B64: 282 | C64: 67 | D64: 24 | E64: 154 | F64: 55 | G64: 46 | H64: 16 | I64: 15 | J64: 5 | K64: Pupils' achievement and the extent to which they enjoy their learning | L64: 102 | M64: 20 | N64: 20 | O64: 60 | P64: 59 | Q64: 19 | R64: 19 | S64: 3 | T64: 3 | U64: Pupils' achievement and the extent to which they enjoy their learning | V64: 180 | W64: 47 | X64: 26 | Y64: 94 | Z64: 52 | AA64: 27 | AB64: 15 | AC64: 12 | AD64: 7
A65: Pupils' behaviour | B65: 282 | C65: 121 | D65: 43 | E65: 125 | F65: 44 | G65: 28 | H65: 10 | I65: 8 | J65: 3 | K65: Pupils' behaviour | L65: 102 | M65: 37 | N65: 36 | O65: 57 | P65: 56 | Q65: 6 | R65: 6 | S65: 2 | T65: 2 | U65: Pupils' behaviour | V65: 180 | W65: 84 | X65: 47 | Y65: 68 | Z65: 38 | AA65: 22 | AB65: 12 | AC65: 6 | AD65: 3
A66: The quality of teaching | B66: 282 | C66: 68 | D66: 24 | E66: 154 | F66: 55 | G66: 46 | H66: 16 | I66: 14 | J66: 5 | K66: The quality of teaching | L66: 102 | M66: 22 | N66: 22 | O66: 58 | P66: 57 | Q66: 19 | R66: 19 | S66: 3 | T66: 3 | U66: The quality of teaching | V66: 180 | W66: 46 | X66: 26 | Y66: 96 | Z66: 53 | AA66: 27 | AB66: 15 | AC66: 11 | AD66: 6
A67: The effectiveness of leadership and management in embedding ambition and driving improvement | B67: 282 | C67: 85 | D67: 30 | E67: 143 | F67: 51 | G67: 43 | H67: 15 | I67: 11 | J67: 4 | K67: The effectiveness of leadership and management in embedding ambition and driving improvement | L67: 102 | M67: 37 | N67: 36 | O67: 44 | P67: 43 | Q67: 19 | R67: 19 | S67: 2 | T67: 2 | U67: The effectiveness of leadership and management in embedding ambition and driving improvement | V67: 180 | W67: 48 | X67: 27 | Y67: 99 | Z67: 55 | AA67: 24 | AB67: 13 | AC67: 9 | AD67: 5
A68: The effectiveness of the boarding experience | B68: 16 | C68: 8 | D68: =C68/$B68*100 -> 50 | E68: 3 | F68: =E68/$B68*100 -> 18.75 | G68: 3 | H68: =G68/$B68*100 -> 18.75 | I68: 2 | J68: =I68/$B68*100 -> 12.5 | K68: The effectiveness of the boarding experience | L68: 4 | M68: 2 | N68: =M68/$L68*100 -> 50 | O68: 0 | P68: =O68/$L68*100 -> 0 | Q68: 1 | R68: =Q68/$L68*100 -> 25 | S68: 1 | T68: =S68/$L68*100 -> 25 | U68: The effectiveness of the boarding experience | V68: 12 | W68: 6 | X68: =W68/$V68*100 -> 50 | Y68: 3 | Z68: =Y68/$V68*100 -> 25 | AA68: 2 | AB68: =AA68/$V68*100 -> 16.66666667 | AC68: 1 | AD68: =AC68/$V68*100 -> 8.333333333
A69: Outcomes for boarding pupils | B69: 16 | C69: 10 | D69: =C69/$B69*100 -> 62.5 | E69: 6 | F69: =E69/$B69*100 -> 37.5 | G69: 0 | H69: =G69/$B69*100 -> 0 | I69: 0 | J69: =I69/$B69*100 -> 0 | K69: Outcomes for boarding pupils | L69: 4 | M69: 2 | N69: =M69/$L69*100 -> 50 | O69: 2 | P69: 50 | Q69: 0 | R69: =Q69/$L69*100 -> 0 | S69: 0 | T69: =S69/$L69*100 -> 0 | U69: Outcomes for boarding pupils | V69: 12 | W69: 8 | X69: =W69/$V69*100 -> 66.66666667 | Y69: 4 | Z69: 33.33333333 | AA69: 0 | AB69: =AA69/$V69*100 -> 0 | AC69: 0 | AD69: =AC69/$V69*100 -> 0
A70: The quality of boarding provision and care | B70: 16 | C70: 8 | D70: =C70/$B70*100 -> 50 | E70: 6 | F70: =E70/$B70*100 -> 37.5 | G70: 2 | H70: =G70/$B70*100 -> 12.5 | I70: 0 | J70: =I70/$B70*100 -> 0 | K70: The quality of boarding provision and care | L70: 4 | M70: 1 | N70: 25 | O70: 1 | P70: 25 | Q70: 2 | R70: =Q70/$L70*100 -> 50 | S70: 0 | T70: =S70/$L70*100 -> 0 | U70: The quality of boarding provision and care | V70: 12 | W70: 7 | X70: 58.33333333 | Y70: 5 | Z70: 41.66666667 | AA70: 0 | AB70: =AA70/$V70*100 -> 0 | AC70: 0 | AD70: =AC70/$V70*100 -> 0
A71: The boarding pupils' safety | B71: 16 | C71: 9 | D71: =C71/$B71*100 -> 56.25 | E71: 2 | F71: =E71/$B71*100 -> 12.5 | G71: 4 | H71: =G71/$B71*100 -> 25 | I71: 1 | J71: =I71/$B71*100 -> 6.25 | K71: The boarding pupils' safety | L71: 4 | M71: 2 | N71: 50 | O71: 0 | P71: 0 | Q71: 1 | R71: =Q71/$L71*100 -> 25 | S71: 1 | T71: =S71/$L71*100 -> 25 | U71: The boarding pupils' safety | V71: 12 | W71: 7 | X71: 58.33333333 | Y71: 2 | Z71: 16.66666667 | AA71: 3 | AB71: =AA71/$V71*100 -> 25 | AC71: 0 | AD71: =AC71/$V71*100 -> 0
A72: Leadership and management of the boarding provision | B72: 16 | C72: 7 | D72: =C72/$B72*100 -> 43.75 | E72: 4 | F72: =E72/$B72*100 -> 25 | G72: 3 | H72: =G72/$B72*100 -> 18.75 | I72: 2 | J72: =I72/$B72*100 -> 12.5 | K72: Leadership and management of the boarding provision | L72: 4 | M72: 1 | N72: 25 | O72: 1 | P72: 25 | Q72: 1 | R72: =Q72/$L72*100 -> 25 | S72: 1 | T72: =S72/$L72*100 -> 25 | U72: Leadership and management of the boarding provision | V72: 12 | W72: 6 | X72: 50 | Y72: 3 | Z72: 25 | AA72: 2 | AB72: =AA72/$V72*100 -> 16.66666667 | AC72: 1 | AD72: =AC72/$V72*100 -> 8.333333333
A74: Quarter | B74: Pupil referral unit | C74: Outstanding | D74: Outstanding% | E74: Good | F74: Good% | G74: Satisfactory | H74: Satisfactory% | I74: Inadequate | J74: Indadequate% | K74: Pre | L74: Pupil referral unit | M74: Outstanding | N74: Outstanding% | O74: Good | P74: Good% | Q74: Satisfactory | R74: Satisfactory% | S74: Inadequate | T74: Indadequate% | U74: New framework | V74: Pupil referral unit | W74: Outstanding | X74: Outstanding% | Y74: Good | Z74: Good% | AA74: Satisfactory | AB74: Satisfactory% | AC74: Inadequate | AD74: Indadequate%
A75: Overall effectiveness: how good is the school | B75: 152 | C75: 8 | D75: 5 | E75: 88 | F75: 58 | G75: 43 | H75: 28 | I75: 13 | J75: 9 | K75: Overall effectiveness: how good is the school | L75: 66 | M75: 6 | N75: 9 | O75: 36 | P75: 55 | Q75: 18 | R75: 27 | S75: 6 | T75: 9 | U75: Overall effectiveness: how good is the school | V75: 86 | W75: 2 | X75: 2 | Y75: 52 | Z75: 60 | AA75: 25 | AB75: 29 | AC75: 7 | AD75: 8
A76: Pupils' achievement and the extent to which they enjoy their learning | B76: 152 | C76: 5 | D76: 3 | E76: 91 | F76: 60 | G76: 46 | H76: 30 | I76: 10 | J76: 7 | K76: Pupils' achievement and the extent to which they enjoy their learning | L76: 66 | M76: 3 | N76: 5 | O76: 39 | P76: 59 | Q76: 20 | R76: 30 | S76: 4 | T76: 6 | U76: Pupils' achievement and the extent to which they enjoy their learning | V76: 86 | W76: 2 | X76: 2 | Y76: 52 | Z76: 60 | AA76: 26 | AB76: 30 | AC76: 6 | AD76: 7
A77: Pupils' behaviour | B77: 152 | C77: 25 | D77: 16 | E77: 87 | F77: 57 | G77: 31 | H77: 20 | I77: 9 | J77: 6 | K77: Pupils' behaviour | L77: 66 | M77: 15 | N77: 23 | O77: 34 | P77: 52 | Q77: 15 | R77: 23 | S77: 2 | T77: 3 | U77: Pupils' behaviour | V77: 86 | W77: 10 | X77: 12 | Y77: 53 | Z77: 62 | AA77: 16 | AB77: 19 | AC77: 7 | AD77: 8
A78: The quality of teaching | B78: 152 | C78: 5 | D78: 3 | E78: 90 | F78: 59 | G78: 49 | H78: 32 | I78: 8 | J78: 5 | K78: The quality of teaching | L78: 66 | M78: 3 | N78: 5 | O78: 39 | P78: 59 | Q78: 22 | R78: 33 | S78: 2 | T78: 3 | U78: The quality of teaching | V78: 86 | W78: 2 | X78: 2 | Y78: 51 | Z78: 59 | AA78: 27 | AB78: 31 | AC78: 6 | AD78: 7
A79: The effectiveness of leadership and management in embedding ambition and driving improvement | B79: 152 | C79: 12 | D79: 8 | E79: 91 | F79: 60 | G79: 38 | H79: 25 | I79: 11 | J79: 7 | K79: The effectiveness of leadership and management in embedding ambition and driving improvement | L79: 66 | M79: 7 | N79: 11 | O79: 40 | P79: 61 | Q79: 15 | R79: 23 | S79: 4 | T79: 6 | U79: The effectiveness of leadership and management in embedding ambition and driving improvement | V79: 86 | W79: 5 | X79: 6 | Y79: 51 | Z79: 59 | AA79: 23 | AB79: 27 | AC79: 7 | AD79: 8
A80: The effectiveness of the boarding experience | B80: 0 | C80: 0 | D80: 0 | E80: 0 | F80: 0 | G80: 0 | H80: 0 | I80: 0 | J80: 0 | K80: The effectiveness of the boarding experience | L80: 0 | M80: 0 | N80: 0 | O80: 0 | P80: 0 | Q80: 0 | R80: 0 | S80: 0 | T80: 0 | U80: The effectiveness of the boarding experience | V80: 0 | W80: 0 | X80: 0 | Y80: 0 | Z80: 0 | AA80: 0 | AB80: 0 | AC80: 0 | AD80: 0
A81: Outcomes for boarding pupils | B81: 0 | C81: 0 | D81: 0 | E81: 0 | F81: 0 | G81: 0 | H81: 0 | I81: 0 | J81: 0 | K81: Outcomes for boarding pupils | L81: 0 | M81: 0 | N81: 0 | O81: 0 | P81: 0 | Q81: 0 | R81: 0 | S81: 0 | T81: 0 | U81: Outcomes for boarding pupils | V81: 0 | W81: 0 | X81: 0 | Y81: 0 | Z81: 0 | AA81: 0 | AB81: 0 | AC81: 0 | AD81: 0
A82: The quality of boarding provision and care | B82: 0 | C82: 0 | D82: 0 | E82: 0 | F82: 0 | G82: 0 | H82: 0 | I82: 0 | J82: 0 | K82: The quality of boarding provision and care | L82: 0 | M82: 0 | N82: 0 | O82: 0 | P82: 0 | Q82: 0 | R82: 0 | S82: 0 | T82: 0 | U82: The quality of boarding provision and care | V82: 0 | W82: 0 | X82: 0 | Y82: 0 | Z82: 0 | AA82: 0 | AB82: 0 | AC82: 0 | AD82: 0
A83: The boarding pupils' safety | B83: 0 | C83: 0 | D83: 0 | E83: 0 | F83: 0 | G83: 0 | H83: 0 | I83: 0 | J83: 0 | K83: The boarding pupils' safety | L83: 0 | M83: 0 | N83: 0 | O83: 0 | P83: 0 | Q83: 0 | R83: 0 | S83: 0 | T83: 0 | U83: The boarding pupils' safety | V83: 0 | W83: 0 | X83: 0 | Y83: 0 | Z83: 0 | AA83: 0 | AB83: 0 | AC83: 0 | AD83: 0
A84: Leadership and management of the boarding provision | B84: 0 | C84: 0 | D84: 0 | E84: 0 | F84: 0 | G84: 0 | H84: 0 | I84: 0 | J84: 0 | K84: Leadership and management of the boarding provision | L84: 0 | M84: 0 | N84: 0 | O84: 0 | P84: 0 | Q84: 0 | R84: 0 | S84: 0 | T84: 0 | U84: Leadership and management of the boarding provision | V84: 0 | W84: 0 | X84: 0 | Y84: 0 | Z84: 0 | AA84: 0 | AB84: 0 | AC84: 0 | AD84: 0
A86: Aug | B86: Outcome | C86: All | D86: All% | E86: Nursery | F86: Nursery% | G86: Primary | H86: Primary% | I86: Secondary | J86: Secondary% | K86: Special | L86: Special% | M86: PRU | N86: PRU%
A87: Overall effectiveness: how good is the school | B87: Outstanding | C87: 4442 | D87: 21 | E87: 229 | F87: 55 | G87: 2964 | H87: 18 | I87: 798 | J87: 26 | K87: 385 | L87: 37 | M87: 66 | N87: 17
A88: Overall effectiveness: how good is the school | B88: Good | C88: 10534 | D88: 49 | E88: 171 | F88: 41 | G88: 8478 | H88: 51 | I88: 1237 | J88: 40 | K88: 456 | L88: 44 | M88: 192 | N88: 51
A89: Overall effectiveness: how good is the school | B89: Satisfactory | C89: 6024 | D89: 28 | E89: 19 | F89: 5 | G89: 4795 | H89: 29 | I89: 933 | J89: 30 | K89: 171 | L89: 17 | M89: 106 | N89: 28
A90: Overall effectiveness: how good is the school | B90: Inadequate | C90: 548 | D90: 3 | E90: 1 | F90: 0 | G90: 406 | H90: 2 | I90: 107 | J90: 3 | K90: 19 | L90: 2 | M90: 15 | N90: 4
A91: Overall effectiveness: how good is the school | B91: Total | C91: 21548 | D91: 100 | E91: 420 | F91: 100 | G91: 16643 | H91: 100 | I91: 3075 | J91: 100 | K91: 1031 | L91: 100 | M91: 379 | N91: 100
A93: Pupils' achievement and the extent to which they enjoy their learning | B93: Outstanding | C93: 1887 | D93: 11 | E93: 192 | F93: 46 | G93: 1121 | H93: 9 | I93: 345 | J93: 14 | K93: 217 | L93: 23 | M93: 12 | N93: 3
A94: Pupils' achievement and the extent to which they enjoy their learning | B94: Good | C94: 8618 | D94: 51 | E94: 210 | F94: 50 | G94: 6552 | H94: 51 | I94: 1082 | J94: 44 | K94: 540 | L94: 58 | M94: 234 | N94: 64
A95: Pupils' achievement and the extent to which they enjoy their learning | B95: Satisfactory | C95: 6017 | D95: 35 | E95: 18 | F95: 4 | G95: 4803 | H95: 37 | I95: 922 | J95: 38 | K95: 165 | L95: 18 | M95: 109 | N95: 30
A96: Pupils' achievement and the extent to which they enjoy their learning | B96: Inadequate | C96: 485 | D96: 3 | E96: 0 | F96: 0 | G96: 360 | H96: 3 | I96: 97 | J96: 4 | K96: 16 | L96: 2 | M96: 12 | N96: 3
A97: Pupils' achievement and the extent to which they enjoy their learning | B97: Total | C97: 17007 | D97: 100 | E97: 420 | F97: 100 | G97: 12836 | H97: 100 | I97: 2446 | J97: 100 | K97: 938 | L97: 100 | M97: 367 | N97: 100
A99: How well do learners achieve? | B99: Outstanding | C99: 2187 | D99: 48 | E99: 0 | F99: 0 | G99: 1703 | H99: 45 | I99: 387 | J99: 62 | K99: 86 | L99: 92 | M99: 11 | N99: 92
A100: How well do learners achieve? | B100: Good | C100: 2341 | D100: 52 | E100: 0 | F100: 0 | G100: 2101 | H100: 55 | I100: 235 | J100: 37 | K100: 5 | L100: 5 | M100: 0 | N100: 0
A101: How well do learners achieve? | B101: Satisfactory | C101: 13 | D101: 0 | E101: 0 | F101: 0 | G101: 3 | H101: 0 | I101: 7 | J101: 1 | K101: 2 | L101: 2 | M101: 1 | N101: 8
A102: How well do learners achieve? | B102: Inadequate | C102: 0 | D102: 0 | E102: 0 | F102: 0 | G102: 0 | H102: 0 | I102: 0 | J102: 0 | K102: 0 | L102: 0 | M102: 0 | N102: 0
A103: How well do learners achieve? | B103: Total | C103: 4541 | D103: 100 | E103: 0 | F103: 0 | G103: 3807 | H103: 100 | I103: 629 | J103: 100 | K103: 93 | L103: 100 | M103: 12 | N103: 100
A105: Aggregate achievement | B105: Outstanding | C105: 4074 | D105: 19 | E105: 192 | F105: 46 | G105: 2824 | H105: 17 | I105: 732 | J105: 24 | K105: 303 | L105: 29 | M105: 23 | N105: 6
A106: Aggregate achievement | B106: Good | C106: 10959 | D106: 51 | E106: 210 | F106: 50 | G106: 8653 | H106: 52 | I106: 1317 | J106: 43 | K106: 545 | L106: 53 | M106: 234 | N106: 62
A107: Aggregate achievement | B107: Satisfactory | C107: 6030 | D107: 28 | E107: 18 | F107: 4 | G107: 4806 | H107: 29 | I107: 929 | J107: 30 | K107: 167 | L107: 16 | M107: 110 | N107: 29
A108: Aggregate achievement | B108: Inadequate | C108: 485 | D108: 2 | E108: 0 | F108: 0 | G108: 360 | H108: 2 | I108: 97 | J108: 3 | K108: 16 | L108: 2 | M108: 12 | N108: 3
A109: Aggregate achievement | B109: Total | C109: 21548 | D109: 100 | E109: 420 | F109: 100 | G109: 16643 | H109: 100 | I109: 3075 | J109: 100 | K109: 1031 | L109: 100 | M109: 379 | N109: 100
A111: The quality of teaching | B111: Outstanding | C111: 3400 | D111: 16 | E111: 216 | F111: 51 | G111: 2408 | H111: 14 | I111: 434 | J111: 14 | K111: 297 | L111: 29 | M111: 45 | N111: 12
A112: The quality of teaching | B112: Good | C112: 11956 | D112: 55 | E112: 185 | F112: 44 | G112: 9348 | H112: 56 | I112: 1644 | J112: 53 | K112: 548 | L112: 53 | M112: 231 | N112: 61
A113: The quality of teaching | B113: Satisfactory | C113: 5828 | D113: 27 | E113: 19 | F113: 5 | G113: 4605 | H113: 28 | I113: 939 | J113: 31 | K113: 171 | L113: 17 | M113: 94 | N113: 25
A114: The quality of teaching | B114: Inadequate | C114: 364 | D114: 2 | E114: 0 | F114: 0 | G114: 282 | H114: 2 | I114: 58 | J114: 2 | K114: 15 | L114: 1 | M114: 9 | N114: 2
A115: The quality of teaching | B115: Total | C115: 21548 | D115: 100 | E115: 420 | F115: 100 | G115: 16643 | H115: 100 | I115: 3075 | J115: 100 | K115: 1031 | L115: 100 | M115: 379 | N115: 100
A117: Pupils' behaviour | B117: Outstanding | C117: 7412 | D117: 34 | E117: 291 | F117: 69 | G117: 5687 | H117: 34 | I117: 839 | J117: 27 | K117: 510 | L117: 49 | M117: 85 | N117: 22
A118: Pupils' behaviour | B118: Good | C118: 12116 | D118: 56 | E118: 127 | F118: 30 | G118: 9639 | H118: 58 | I118: 1690 | J118: 55 | K118: 439 | L118: 43 | M118: 221 | N118: 58
A119: Pupils' behaviour | B119: Satisfactory | C119: 1897 | D119: 9 | E119: 2 | F119: 0 | G119: 1257 | H119: 8 | I119: 501 | J119: 16 | K119: 74 | L119: 7 | M119: 63 | N119: 17
A120: Pupils' behaviour | B120: Inadequate | C120: 111 | D120: 1 | E120: 0 | F120: 0 | G120: 50 | H120: 0 | I120: 43 | J120: 1 | K120: 8 | L120: 1 | M120: 10 | N120: 3
A121: Pupils' behaviour | B121: Total | C121: 21536 | D121: 100 | E121: 420 | F121: 100 | G121: 16633 | H121: 100 | I121: 3073 | J121: 100 | K121: 1031 | L121: 100 | M121: 379 | N121: 100
A123: The effectiveness of leadership and management in embedding ambition and driving improvement | B123: Outstanding | C123: 4971 | D123: 23 | E123: 236 | F123: 56 | G123: 3310 | H123: 20 | I123: 931 | J123: 30 | K123: 416 | L123: 40 | M123: 78 | N123: 21
A124: The effectiveness of leadership and management in embedding ambition and driving improvement | B124: Good | C124: 11422 | D124: 53 | E124: 165 | F124: 39 | G124: 9091 | H124: 55 | I124: 1493 | J124: 49 | K124: 463 | L124: 45 | M124: 210 | N124: 55
A125: The effectiveness of leadership and management in embedding ambition and driving improvement | B125: Satisfactory | C125: 4770 | D125: 22 | E125: 18 | F125: 4 | G125: 3937 | H125: 24 | I125: 598 | J125: 19 | K125: 139 | L125: 13 | M125: 78 | N125: 21
A126: The effectiveness of leadership and management in embedding ambition and driving improvement | B126: Inadequate | C126: 385 | D126: 2 | E126: 1 | F126: 0 | G126: 305 | H126: 2 | I126: 53 | J126: 2 | K126: 13 | L126: 1 | M126: 13 | N126: 3
A127: The effectiveness of leadership and management in embedding ambition and driving improvement | B127: Total | C127: 21548 | D127: 100 | E127: 420 | F127: 100 | G127: 16643 | H127: 100 | I127: 3075 | J127: 100 | K127: 1031 | L127: 100 | M127: 379 | N127: 100
A129: Table 4 | D129: Annual | I129: PRE | O129: New Framework
C130: Grand Total | D130: Nursery | E130: Primary | F130: Secondary | G130: Special | H130: PRU | I130: Grand Total | J130: Nursery | K130: Primary | L130: Secondary | M130: Special | N130: PRU | O130: Grand Total | P130: Nursery | Q130: Primary | R130: Secondary | S130: Special | T130: PRU
A131: OE | B131: Outstanding | C131: 7 | D131: 1 | E131: 4 | F131: 0 | G131: 1 | H131: 1 | I131: 2 | J131: 1 | K131: 1 | L131: 0 | M131: 0 | N131: 0 | O131: 5 | P131: 0 | Q131: 3 | R131: 0 | S131: 1 | T131: 1
B132: Good | C132: 48 | D132: 3 | E132: 22 | F132: 9 | G132: 2 | H132: 12 | I132: 15 | J132: 1 | K132: 3 | L132: 4 | M132: 1 | N132: 6 | O132: 33 | P132: 2 | Q132: 19 | R132: 5 | S132: 1 | T132: 6
B133: Satisfactory | C133: 120 | D133: 0 | E133: 68 | F133: 44 | G133: 1 | H133: 7 | I133: 21 | J133: 0 | K133: 5 | L133: 11 | M133: 0 | N133: 5 | O133: 99 | P133: 0 | Q133: 63 | R133: 33 | S133: 1 | T133: 2
B134: Inadequate | C134: 48 | D134: 0 | E134: 29 | F134: 15 | G134: 3 | H134: 1 | I134: 7 | J134: 0 | K134: 4 | L134: 3 | M134: 0 | N134: 0 | O134: 41 | P134: 0 | Q134: 25 | R134: 12 | S134: 3 | T134: 1
B135: Total | C135: 223 | D135: 4 | E135: 123 | F135: 68 | G135: 7 | H135: 21 | I135: 45 | J135: 2 | K135: 13 | L135: 18 | M135: 1 | N135: 11 | O135: 178 | P135: 2 | Q135: 110 | R135: 50 | S135: 6 | T135: 10
A137: Table 5
A138: Academic Year | G138: Dec | M138: August
B139: SM Start | C139: SM In | D139: SM Out | E139: SM Close | F139: SM End | H139: SM Start | I139: SM In | J139: SM Out | K139: SM Close | L139: SM End | N139: SM Start | O139: SM In | P139: SM Out | Q139: SM Close | R139: SM End
A140: Nursery | B140: 2 | C140: 1 | D140: 2 | E140: 0 | F140: 1 | G140: Nursery | H140: 2 | I140: 0 | J140: 1 | K140: 0 | L140: 2 | M140: Nursery | N140: 2 | O140: 1 | P140: 1 | Q140: 0 | R140: 1
A141: Primary | B141: 205 | C141: 224 | D141: 163 | E141: 18 | F141: 259 | G141: Primary | H141: 205 | I141: 79 | J141: 57 | K141: 3 | L141: 214 | M141: Primary | N141: 214 | O141: 145 | P141: 106 | Q141: 15 | R141: 259
A142: Secondary | B142: 39 | C142: 48 | D142: 32 | E142: 10 | F142: 50 | G142: Secondary | H142: 39 | I142: 20 | J142: 14 | K142: 2 | L142: 46 | M142: Secondary | N142: 46 | O142: 28 | P142: 18 | Q142: 8 | R142: 50
A143: Special | B143: 10 | C143: 11 | D143: 6 | E143: 3 | F143: 12 | G143: Special | H143: 10 | I143: 3 | J143: 2 | K143: 0 | L143: 11 | M143: Special | N143: 11 | O143: 8 | P143: 4 | Q143: 3 | R143: 12
A144: PRU | B144: 5 | C144: 8 | D144: 2 | E144: 1 | F144: 10 | G144: PRU | H144: 5 | I144: 3 | J144: 0 | K144: 0 | L144: 6 | M144: PRU | N144: 6 | O144: 5 | P144: 2 | Q144: 1 | R144: 10
A145: Total | B145: 261 | C145: 292 | D145: 205 | E145: 32 | F145: 332 | G145: Total | H145: 261 | I145: 105 | J145: 74 | K145: 5 | L145: 279 | M145: Total | N145: 279 | O145: 187 | P145: 131 | Q145: 27 | R145: 332
A147: Academic Year | G147: Dec | M147: August
B148: NTI Start | C148: NTI In | D148: NTI Out | E148: NTI Close | F148: NTI End | H148: NTI Start | I148: NTI In | J148: NTI Out | K148: NTI Close | L148: NTI End | N148: NTI Start | O148: NTI In | P148: NTI Out | Q148: NTI Close | R148: NTI End
A149: Nursery | B149: 0 | C149: 0 | D149: 0 | E149: 0 | F149: 0 | G149: Nursery | H149: 0 | I149: 0 | J149: 0 | K149: 0 | L149: 0 | M149: Nursery | N149: 0 | O149: 0 | P149: 0 | Q149: 0 | R149: 0
A150: Primary | B150: 112 | C150: 142 | D150: 99 | E150: 11 | F150: 147 | G150: Primary | H150: 112 | I150: 49 | J150: 31 | K150: 1 | L150: 117 | M150: Primary | N150: 117 | O150: 93 | P150: 68 | Q150: 10 | R150: 147
A151: Secondary | B151: 42 | C151: 55 | D151: 37 | E151: 5 | F151: 57 | G151: Secondary | H151: 42 | I151: 22 | J151: 11 | K151: 1 | L151: 39 | M151: Secondary | N151: 39 | O151: 33 | P151: 26 | Q151: 4 | R151: 57
A152: Special | B152: 7 | C152: 5 | D152: 5 | E152: 0 | F152: 7 | G152: Special | H152: 7 | I152: 4 | J152: 2 | K152: 0 | L152: 6 | M152: Special | N152: 6 | O152: 1 | P152: 3 | Q152: 0 | R152: 7
A153: PRU | B153: 4 | C153: 5 | D153: 4 | E153: 0 | F153: 5 | G153: PRU | H153: 4 | I153: 2 | J153: 2 | K153: 0 | L153: 5 | M153: PRU | N153: 5 | O153: 3 | P153: 2 | Q153: 0 | R153: 5
A154: Total | B154: 165 | C154: 207 | D154: 145 | E154: 16 | F154: 216 | G154: Total | H154: 165 | I154: 77 | J154: 46 | K154: 2 | L154: 167 | M154: Total | N154: 167 | O154: 130 | P154: 99 | Q154: 14 | R154: 216
A156: Table 5a | M156: 5b | Y156: 5c | AQ156: 5d
A157: DEC | G157: AUGUST | M157: Dec | S157: Aug | Y157: Academic year | AE157: Dec | AK157: Aug | AQ157: Academic Year | AW157: Dec | BC157: Aug
A158: urn | B158: schoolname | C158: la_name | D158: phase | E158: toe_desc | F158: latest_date | G158: urn | H158: schoolname | I158: la_name | J158: phase | K158: toe_desc | L158: latest_date | M158: URN | N158: School Name | O158: LA | P158: Phase | Q158: Type of education | R158: Date Placed into category | S158: URN | T158: School Name | U158: LA | V158: Phase | W158: Type of education | X158: Date Placed into category | Y158: URN | Z158: School name | AA158: LA | AB158: Phase | AC158: Type of education | AD158: Date Out | AE158: URN | AF158: School name | AG158: LA | AH158: Phase | AI158: Type of education | AJ158: Date Out | AK158: URN | AL158: School name | AM158: LA | AN158: Phase | AO158: Type of education | AP158: Date Out | AQ158: URN | AR158: School name | AS158: LA | AT158: Phase | AU158: Type of education | AV158: Date Out | AW158: URN | AX158: School name | AY158: LA | AZ158: Phase | BA158: Type of education | BB158: Date Out | BC158: URN | BD158: School name | BE158: LA | BF158: Phase | BG158: Type of education | BH158: Date Out
A159: 110195 | B159: Henry Allen Nursery School | C159: Buckinghamshire | D159: Nursery | E159: LA Nursery School | F159: 2011-09-20 | G159: 110195 | H159: Henry Allen Nursery School | I159: Buckinghamshire | J159: Nursery | K159: LA Nursery School | L159: 2011-09-20 | M159: 135892 | N159: Carlton Community College | O159: Barnsley | P159: Secondary | Q159: Community School | R159: 2010-09-30 | S159: 2233-03-15 | T159: Brayton High School | U159: North Yorkshire | V159: Secondary | W159: Community School | X159: 2011-05-19 | Y159: 106397 | Z159: Hindley Surestart Nursery | AA159: Wigan | AB159: Nursery | AC159: LA Nursery School | AD159: 2012-01-26 | AE159: 113050 | AF159: The Chestnut Centre | AG159: Devon | AH159: Nursery | AI159: LA Nursery School | AJ159: 2011-11-16 | AK159: 106397 | AL159: Hindley Surestart Nursery | AM159: Wigan | AN159: Nursery | AO159: LA Nursery School | AP159: 2012-01-26 | AQ159: 108830 | AR159: Bernard Gilpin Primary School | AS159: Sunderland | AT159: Primary | AU159: Community School | AV159: 2012-07-12 | AW159: 118322 | AX159: Oaklands Infant School | AY159: Medway | AZ159: Primary | BA159: Community School | BB159: 2011-12-08 | BC159: 108830 | BD159: Bernard Gilpin Primary School | BE159: Sunderland | BF159: Primary | BG159: Community School | BH159: 2012-07-12
A160: 106397 | B160: Hindley Surestart Nursery | C160: Wigan | D160: Nursery | E160: LA Nursery School | F160: 2010-05-07 | G160: 136478 | H160: West Grantham Academy Spitalgate | I160: Lincolnshire | J160: Primary | K160: Academy Converters | L160: 2012-05-17 | M160: 124635 | N160: Fen Park Community Primary School | O160: Suffolk | P160: Primary | Q160: Community School | R160: 2010-10-08 | S160: 2196-01-16 | T160: Elmete Wood - BESD SILC (Behaviour, Emotional, Social Difficulties Specialist Learning Centre) | U160: Leeds | V160: Special | W160: Community Special School | X160: 2011-05-26 | Y160: 113050 | Z160: The Chestnut Centre | AA160: Devon | AB160: Nursery | AC160: LA Nursery School | AD160: 2011-11-16 | AE160: 106573 | AF160: Darfield Valley Primary School | AG160: Barnsley | AH160: Primary | AI160: Community School | AJ160: 2011-12-14 | AK160: 125961 | AL160: Chesswood Middle School | AM160: West Sussex | AN160: Primary | AO160: Community School | AP160: 2012-07-12 | AQ160: 120994 | AR160: Admirals' Junior School | AS160: Norfolk | AT160: Primary | AU160: Community School | AV160: 2012-07-11 | AW160: 122445 | AX160: Windmill Primary & Nursery School | AY160: Nottingham | AZ160: Primary | BA160: Community School | BB160: 2011-12-07 | BC160: 120994 | BD160: Admirals' Junior School | BE160: Norfolk | BF160: Primary | BG160: Community School | BH160: 2012-07-11
A161: 135903 | B161: Riverside Primary School | C161: Essex | D161: Primary | E161: Community School | F161: 2011-11-03 | G161: 136179 | H161: Willow Primary School | I161: Slough | J161: Primary | K161: Community School | L161: 2012-05-11 | M161: 124733 | N161: Crawford's Church of England Voluntary Controlled Primary School | O161: Suffolk | P161: Primary | Q161: Voluntary Controlled School | R161: 2010-10-21 | S161: 2188-05-18 | T161: Radcliffe Hall Church of England/Methodist Controlled Primary School | U161: Bury | V161: Primary | W161: Voluntary Controlled School | X161: 2011-06-09 | Y161: 125961 | Z161: Chesswood Middle School | AA161: West Sussex | AB161: Primary | AC161: Community School | AD161: 2012-07-12 | AE161: 105002 | AF161: Castleway Primary School | AG161: Wirral | AH161: Primary | AI161: Community School | AJ161: 2011-12-09 | AK161: 107541 | AL161: Luddenden Dene CofE (VC) Junior Infant and Nursery School | AM161: Calderdale | AN161: Primary | AO161: Voluntary Controlled School | AP161: 2012-07-12 | AQ161: 131240 | AR161: Watergall Primary School | AS161: Peterborough | AT161: Primary | AU161: Community School | AV161: 2012-07-11 | AW161: 112702 | AX161: Sandiacre Cloudside Junior School | AY161: Derbyshire | AZ161: Primary | BA161: Community School | BB161: 2011-12-07 | BC161: 131240 | BD161: Watergall Primary School | BE161: Peterborough | BF161: Primary | BG161: Community School | BH161: 2012-07-11
A162: 135812 | B162: Crowlands Primary School | C162: Havering | D162: Primary | E162: Community School | F162: 2010-05-28 | G162: 136073 | H162: Churchfield CofE VC Primary School | I162: Somerset | J162: Primary | K162: Voluntary Controlled School | L162: 2012-01-26 | M162: 112944 | N162: Sinfin Community School | O162: Derby | P162: Secondary | Q162: Foundation School | R162: 2010-10-21 | S162: 2201-05-12 | T162: Easthampstead Park Community School | U162: Bracknell Forest | V162: Secondary | W162: Community School | X162: 2011-06-09 | Y162: 107541 | Z162: Luddenden Dene CofE (VC) Junior Infant and Nursery School | AA162: Calderdale | AB162: Primary | AC162: Voluntary Controlled School | AD162: 2012-07-12 | AE162: 123660 | AF162: Shepton Mallet Community Infants' School & Nursery | AG162: Somerset | AH162: Primary | AI162: Community School | AJ162: 2011-12-08 | AK162: 115296 | AL162: Heybridge Primary School | AM162: Essex | AN162: Primary | AO162: Foundation School | AP162: 2012-07-11 | AQ162: 104302 | AR162: Graiseley Primary School | AS162: Wolverhampton | AT162: Primary | AU162: Community School | AV162: 2012-07-11 | AW162: 109553 | AX162: Stopsley Community Primary School | AY162: Luton | AZ162: Primary | BA162: Community School | BB162: 2011-12-07 | BC162: 104302 | BD162: Graiseley Primary School | BE162: Wolverhampton | BF162: Primary | BG162: Community School | BH162: 2012-07-11
A163: 135700 | B163: Hilderthorpe Primary School | C163: East Riding of Yorkshire | D163: Primary | E163: Community School | F163: 2011-05-10 | G163: 136049 | H163: Pontefract De Lacy Primary School | I163: Wakefield | J163: Primary | K163: Community School | L163: 2012-02-08 | M163: 113867 | N163: Ashdown Technology College | O163: Poole | P163: Secondary | Q163: Community School | R163: 2010-11-04 | S163: 2273-11-25 | T163: Ecclesbourne Primary School | U163: Croydon | V163: Primary | W163: Academy Converters | X163: 2011-06-10 | Y163: 115296 | Z163: Heybridge Primary School | AA163: Essex | AB163: Primary | AC163: Foundation School | AD163: 2012-07-11 | AE163: 122816 | AF163: St Patrick's Catholic Primary School | AG163: Nottinghamshire | AH163: Primary | AI163: Voluntary Aided School | AJ163: 2011-12-08 | AK163: 120068 | AL163: Linden Primary School | AM163: Leicester | AN163: Primary | AO163: Community School | AP163: 2012-07-11 | AQ163: 119550 | AR163: Kirkham St Michael's Church of England Primary School | AS163: Lancashire | AT163: Primary | AU163: Voluntary Aided School | AV163: 2012-07-04 | AW163: 102086 | AX163: Coleraine Park Primary School | AY163: Haringey | AZ163: Primary | BA163: Community School | BB163: 2011-12-07 | BC163: 119550 | BD163: Kirkham St Michael's Church of England Primary School | BE163: Lancashire | BF163: Primary | BG163: Voluntary Aided School | BH163: 2012-07-04
A164: 135099 | B164: Iqra Slough Islamic Primary School | C164: Slough | D164: Primary | E164: Voluntary Aided School | F164: 2010-03-17 | G164: 135903 | H164: Riverside Primary School | I164: Essex | J164: Primary | K164: Community School | L164: 2011-11-03 | M164: 108666 | N164: Alternative Education Service - St Mary's Centre | O164: South Tyneside | P164: PRU | Q164: Pupil Referral Unit | R164: 2010-11-04 | S164: 2223-09-11 | T164: Medina House School | U164: Isle of Wight | V164: Special | W164: Community Special School | X164: 2011-06-17 | Y164: 120068 | Z164: Linden Primary School | AA164: Leicester | AB164: Primary | AC164: Community School | AD164: 2012-07-11 | AE164: 105535 | AF164: St Patrick's RC Primary School | AG164: Manchester | AH164: Primary | AI164: Voluntary Aided School | AJ164: 2011-12-08 | AK164: 107627 | AL164: Ashbrow Junior School | AM164: Kirklees | AN164: Primary | AO164: Community School | AP164: 2012-07-11 | AQ164: 101632 | AR164: Gray's Farm Primary School | AS164: Bromley | AT164: Primary | AU164: Community School | AV164: 2012-06-28 | AW164: 108251 | AX164: Flanshaw St Michaels CofE (Voluntary Controlled) Primary (NIJ) School | AY164: Wakefield | AZ164: Primary | BA164: Voluntary Controlled School | BB164: 2011-12-02 | BC164: 101632 | BD164: Gray's Farm Primary School | BE164: Bromley | BF164: Primary | BG164: Community School | BH164: 2012-06-28
A165: 135078 | B165: Hallgate Primary School Cottingham | C165: East Riding of Yorkshire | D165: Primary | E165: Community School | F165: 2009-12-11 | G165: 135812 | H165: Crowlands Primary School | I165: Havering | J165: Primary | K165: Community School | L165: 2010-05-28 | M165: 115508 | N165: Brockworth Primary School | O165: Gloucestershire | P165: Primary | Q165: Community School | R165: 2010-11-11 | S165: 2218-10-26 | T165: Fernhill School | U165: Hampshire | V165: Secondary | W165: Community School | X165: 2011-06-22 | Y165: 107627 | Z165: Ashbrow Junior School | AA165: Kirklees | AB165: Primary | AC165: Community School | AD165: 2012-07-11 | AE165: 115710 | AF165: St Thomas More Catholic Primary School | AG165: Gloucestershire | AH165: Primary | AI165: Voluntary Aided School | AJ165: 2011-12-07 | AK165: 106625 | AL165: Darfield, All Saints, Church of England (Voluntary Controlled) Primary School | AM165: Barnsley | AN165: Primary | AO165: Voluntary Controlled School | AP165: 2012-07-11 | AQ165: 103186 | AR165: Colmers Farm Junior School | AS165: Birmingham | AT165: Primary | AU165: Community School | AV165: 2012-06-28 | AW165: 112033 | AX165: St Martin's CofE VA School | AY165: Cornwall | AZ165: Primary | BA165: Voluntary Aided School | BB165: 2011-11-24 | BC165: 103186 | BD165: Colmers Farm Junior School | BE165: Birmingham | BF165: Primary | BG165: Community School | BH165: 2012-06-28
A166: 135075 | B166: Sutton Park Community Primary School | C166: Worcestershire | D166: Primary | E166: Community School | F166: 2011-03-31 | G166: 135781 | H166: Long Cross Primary and Nursery School | I166: Bristol City of | J166: Primary | K166: Community School | L166: 2012-05-31 | M166: 107397 | N166: Aire Valley School | O166: Bradford | P166: Secondary | Q166: Foundation School | R166: 2010-11-11 | S166: 2201-10-27 | T166: The Iver Village Junior School | U166: Buckinghamshire | V166: Primary | W166: Community School | X166: 2011-06-24 | Y166: 106625 | Z166: Darfield, All Saints, Church of England (Voluntary Controlled) Primary School | AA166: Barnsley | AB166: Primary | AC166: Voluntary Controlled School | AD166: 2012-07-11 | AE166: 117991 | AF166: Sigglesthorne Church of England Voluntary Controlled Primary School | AG166: East Riding of Yorkshire | AH166: Primary | AI166: Voluntary Controlled School | AJ166: 2011-12-02 | AK166: 131576 | AL166: Willow Brook Primary School | AM166: Waltham Forest | AN166: Primary | AO166: Community School | AP166: 2012-07-11 | AQ166: 104324 | AR166: Stow Heath Junior School | AS166: Wolverhampton | AT166: Primary | AU166: Community School | AV166: 2012-06-21 | AW166: 114859 | AX166: Greensted Junior School | AY166: Essex | AZ166: Primary | BA166: Community School | BB166: 2011-11-24 | BC166: 104324 | BD166: Stow Heath Junior School | BE166: Wolverhampton | BF166: Primary | BG166: Community School | BH166: 2012-06-21
A167: 135017 | B167: Woodland Community Primary School | C167: Rochdale | D167: Primary | E167: Community School | F167: 2011-03-31 | G167: 135700 | H167: Hilderthorpe Primary School | I167: East Riding of Yorkshire | J167: Primary | K167: Community School | L167: 2011-05-10 | M167: 107776 | N167: Earlsheaton Technology College | O167: Kirklees | P167: Secondary | Q167: Community School | R167: 2010-11-11 | S167: 2193-04-12 | T167: Emmanuel Anglican/Methodist Junior School | U167: Sheffield | V167: Primary | W167: Voluntary Aided School | X167: 2011-06-28 | Y167: 131576 | Z167: Willow Brook Primary School | AA167: Waltham Forest | AB167: Primary | AC167: Community School | AD167: 2012-07-11 | AE167: 112712 | AF167: Allenton Community Primary School | AG167: Derby | AH167: Primary | AI167: Community School | AJ167: 2011-11-29 | AK167: 117827 | AL167: Beverley St Nicholas Community Primary School | AM167: East Riding of Yorkshire | AN167: Primary | AO167: Community School | AP167: 2012-07-10 | AQ167: 100730 | AR167: St Mary's Lewisham Church of England Primary School | AS167: Lewisham | AT167: Primary | AU167: Voluntary Aided School | AV167: 2012-06-20 | AW167: 110772 | AX167: Stukeley Meadows Primary School | AY167: Cambridgeshire | AZ167: Primary | BA167: Community School | BB167: 2011-11-24 | BC167: 100730 | BD167: St Mary's Lewisham Church of England Primary School | BE167: Lewisham | BF167: Primary | BG167: Voluntary Aided School | BH167: 2012-06-20
A168: 134922 | B168: Perry Wood Primary and Nursery School | C168: Worcestershire | D168: Primary | E168: Community School | F168: 2010-11-25 | G168: 135529 | H168: Woodcroft Primary | I168: Hampshire | J168: Primary | K168: Community School | L168: 2011-07-07 | M168: 117936 | N168: Kingsway Primary School | O168: East Riding of Yorkshire | P168: Primary | Q168: Community School | R168: 2010-11-16 | S168: 2265-10-10 | T168: Woodview Primary School | U168: Birmingham | V168: Primary | W168: Community School | X168: 2011-06-29 | Y168: 117827 | Z168: Beverley St Nicholas Community Primary School | AA168: East Riding of Yorkshire | AB168: Primary | AC168: Community School | AD168: 2012-07-10 | AE168: 110088 | AF168: Cippenham Primary School | AG168: Slough | AH168: Primary | AI168: Foundation School | AJ168: 2011-11-29 | AK168: 119913 | AL168: Belvoirdale Community Primary School | AM168: Leicestershire | AN168: Primary | AO168: Community School | AP168: 2012-07-06 | AQ168: 120692 | AR168: North Somercotes CofE Primary School | AS168: Lincolnshire | AT168: Primary | AU168: Foundation School | AV168: 2012-06-14 | AW168: 123045 | AX168: Cutteslowe Primary School | AY168: Oxfordshire | AZ168: Primary | BA168: Community School | BB168: 2011-11-23 | BC168: 120692 | BD168: North Somercotes CofE Primary School | BE168: Lincolnshire | BF168: Primary | BG168: Foundation School | BH168: 2012-06-14
A169: 134860 | B169: Eastwood Primary School & Nursery | C169: Southend-on-Sea | D169: Primary | E169: Foundation School | F169: 2010-07-01 | G169: 135455 | H169: Cranberry Primary School | I169: Cheshire East | J169: Primary | K169: Foundation School | L169: 2011-11-29 | M169: 101485 | N169: Woodside School | O169: Bexley | P169: Special | Q169: Community Special School | R169: 2010-11-17 | S169: 2270-11-29 | T169: Christ The King Catholic and Church of England (VA) Centre for Learning | U169: Knowsley | V169: Secondary | W169: Voluntary Aided School | X169: 2011-06-30 | Y169: 119913 | Z169: Belvoirdale Community Primary School | AA169: Leicestershire | AB169: Primary | AC169: Community School | AD169: 2012-07-06 | AE169: 104313 | AF169: Field View Primary School | AG169: Wolverhampton | AH169: Primary | AI169: Community School | AJ169: 2011-11-29 | AK169: 135505 | AL169: St Saviours Catholic Primary School | AM169: Cheshire West and Chester | AN169: Primary | AO169: Voluntary Aided School | AP169: 2012-07-05 | AQ169: 123707 | AR169: Halcon Community Primary School | AS169: Somerset | AT169: Primary | AU169: Community School | AV169: 2012-06-14 | AW169: 123398 | AX169: Stokesay Primary School | AY169: Shropshire | AZ169: Primary | BA169: Community School | BB169: 2011-11-23 | BC169: 123707 | BD169: Halcon Community Primary School | BE169: Somerset | BF169: Primary | BG169: Community School | BH169: 2012-06-14
A170: 134828 | B170: Loseley Fields Primary School | C170: Surrey | D170: Primary | E170: Foundation School | F170: 2010-06-24 | G170: 135304 | H170: Eastbrook Primary School | I170: West Sussex | J170: Primary | K170: Community School | L170: 2012-03-22 | M170: 132829 | N170: St Nicholas Church of England (Controlled) Primary School | O170: Kent | P170: Primary | Q170: Voluntary Controlled School | R170: 2010-11-18 | S170: 2197-10-17 | T170: Southwick Primary School | U170: Sunderland | V170: Primary | W170: Community School | X170: 2011-07-06 | Y170: 135505 | Z170: St Saviours Catholic Primary School | AA170: Cheshire West and Chester | AB170: Primary | AC170: Voluntary Aided School | AD170: 2012-07-05 | AE170: 103800 | AF170: Wollescote Primary School | AG170: Dudley | AH170: Primary | AI170: Community School | AJ170: 2011-11-29 | AK170: 113269 | AL170: Weston Mill Community Primary School | AM170: Plymouth | AN170: Primary | AO170: Community School | AP170: 2012-07-05 | AQ170: 134021 | AR170: The Phoenix Primary School | AS170: Essex | AT170: Primary | AU170: Community School | AV170: 2012-06-14 | AW170: 126374 | AX170: Warminster Sambourne Church of England Voluntary Controlled Primary School | AY170: Wiltshire | AZ170: Primary | BA170: Voluntary Controlled School | BB170: 2011-11-23 | BC170: 134021 | BD170: The Phoenix Primary School | BE170: Essex | BF170: Primary | BG170: Community School | BH170: 2012-06-14
A171: 134802 | B171: Ernesettle Community School | C171: Plymouth | D171: Primary | E171: Community School | F171: 2010-05-12 | G171: 135288 | H171: Galton Valley Primary School | I171: Sandwell | J171: Primary | K171: Community School | L171: 2012-03-01 | M171: 118300 | N171: Molehill Copse Primary School | O171: Kent | P171: Primary | Q171: Community School | R171: 2010-11-18 | S171: 2214-04-30 | T171: Pitsea Junior School | U171: Essex | V171: Primary | W171: Community School | X171: 2011-07-07 | Y171: 113269 | Z171: Weston Mill Community Primary School | AA171: Plymouth | AB171: Primary | AC171: Community School | AD171: 2012-07-05 | AE171: 125934 | AF171: Heyworth Primary School | AG171: West Sussex | AH171: Primary | AI171: Community School | AJ171: 2011-11-24 | AK171: 117338 | AL171: Roselands Primary School | AM171: Hertfordshire | AN171: Primary | AO171: Community School | AP171: 2012-07-04 | AQ171: 124305 | AR171: Manifold CofE (VC) Primary School | AS171: Staffordshire | AT171: Primary | AU171: Voluntary Controlled School | AV171: 2012-06-14 | AW171: 101276 | AX171: Edgware Junior School | AY171: Barnet | AZ171: Primary | BA171: Community School | BB171: 2011-11-23 | BC171: 124305 | BD171: Manifold CofE (VC) Primary School | BE171: Staffordshire | BF171: Primary | BG171: Voluntary Controlled School | BH171: 2012-06-14
A172: 134178 | B172: Larkswood Primary School | C172: Waltham Forest | D172: Primary | E172: Community School | F172: 2011-10-13 | G172: 135268 | H172: Southminster Church of England (Controlled) Primary School | I172: Essex | J172: Primary | K172: Voluntary Controlled School | L172: 2012-05-18 | M172: 126401 | N172: The Trinity Church of England Voluntary Aided Primary School, Devizes | O172: Wiltshire | P172: Primary | Q172: Voluntary Aided School | R172: 2010-11-19 | S172: 2179-11-07 | T172: Weald Infant and Nursery School | U172: Harrow | V172: Primary | W172: Community School | X172: 2011-07-07 | Y172: 117338 | Z172: Roselands Primary School | AA172: Hertfordshire | AB172: Primary | AC172: Community School | AD172: 2012-07-04 | AE172: 113150 | AF172: Great Torrington Junior School | AG172: Devon | AH172: Primary | AI172: Community School | AJ172: 2011-11-24 | AK172: 121965 | AL172: Cottingham Church of England School | AM172: Northamptonshire | AN172: Primary | AO172: Voluntary Controlled School | AP172: 2012-07-04 | AQ172: 133573 | AR172: Felmore Primary School | AS172: Essex | AT172: Primary | AU172: Community School | AV172: 2012-05-31 | AW172: 109872 | AX172: Fir Tree Primary School and Nursery | AY172: West Berkshire | AZ172: Primary | BA172: Community School | BB172: 2011-11-18 | BC172: 133573 | BD172: Felmore Primary School | BE172: Essex | BF172: Primary | BG172: Community School | BH172: 2012-05-31
A173: 134139 | B173: North Wingfield Primary and Nursery School | C173: Derbyshire | D173: Primary | E173: Community School | F173: 2011-04-07 | G173: 135165 | H173: Rosebrook Primary School | I173: Nottinghamshire | J173: Primary | K173: Community School | L173: 2012-06-28 | M173: 107959 | N173: Hugh Gaitskell Primary School | O173: Leeds | P173: Primary | Q173: Foundation School | R173: 2010-11-25 | S173: 2204-04-22 | T173: Dean Valley Community Primary School | U173: Cheshire East | V173: Primary | W173: Community School | X173: 2011-07-08 | Y173: 121965 | Z173: Cottingham Church of England School | AA173: Northamptonshire | AB173: Primary | AC173: Voluntary Controlled School | AD173: 2012-07-04 | AE173: 109976 | AF173: Shinfield St Mary's CofE Junior School | AG173: Wokingham | AH173: Primary | AI173: Voluntary Aided School | AJ173: 2011-11-24 | AK173: 125031 | AL173: The Pilgrims' Way School | AM173: Surrey | AN173: Primary | AO173: Community School | AP173: 2012-07-04 | AQ173: 112147 | AR173: Ashfield Junior School | AS173: Cumbria | AT173: Primary | AU173: Community School | AV173: 2012-05-30 | AW173: 122736 | AX173: Glenbrook Primary and Nursery School | AY173: Nottingham | AZ173: Primary | BA173: Community School | BB173: 2011-11-17 | BC173: 112147 | BD173: Ashfield Junior School | BE173: Cumbria | BF173: Primary | BG173: Community School | BH173: 2012-05-30
A174: 134133 | B174: Whitesheet CofE VA Primary School | C174: Wiltshire | D174: Primary | E174: Voluntary Aided School | F174: 2011-12-02 | G174: 135075 | H174: Sutton Park Community Primary School | I174: Worcestershire | J174: Primary | K174: Community School | L174: 2011-03-31 | M174: 122066 | N174: The Latimer Arts College | O174: Northamptonshire | P174: Secondary | Q174: Foundation School | R174: 2010-11-25 | S174: 2207-08-03 | T174: Beckermet CofE School | U174: Cumbria | V174: Primary | W174: Voluntary Aided School | X174: 2011-07-15 | Y174: 125031 | Z174: The Pilgrims' Way School | AA174: Surrey | AB174: Primary | AC174: Community School | AD174: 2012-07-04 | AE174: 103089 | AF174: St.Saviour's Church of England Primary School | AG174: Waltham Forest | AH174: Primary | AI174: Voluntary Aided School | AJ174: 2011-11-24 | AK174: 124591 | AL174: St Edmund's Primary School | AM174: Suffolk | AN174: Primary | AO174: Community School | AP174: 2012-07-04 | AQ174: 119451 | AR174: Oswaldtwistle St Paul's Church of England Voluntary Aided Primary School | AS174: Lancashire | AT174: Primary | AU174: Voluntary Aided School | AV174: 2012-05-30 | AW174: 121380 | AX174: High Bentham Community Primary School | AY174: North Yorkshire | AZ174: Primary | BA174: Community School | BB174: 2011-11-17 | BC174: 119451 | BD174: Oswaldtwistle St Paul's Church of England Voluntary Aided Primary School | BE174: Lancashire | BF174: Primary | BG174: Voluntary Aided School | BH174: 2012-05-30
A175: 133671 | B175: Sowerby Village CofE VC Primary School | C175: Calderdale | D175: Primary | E175: Voluntary Controlled School | F175: 2011-06-17 | G175: 135017 | H175: Woodland Community Primary School | I175: Rochdale | J175: Primary | K175: Community School | L175: 2011-03-31 | M175: 112957 | N175: Glossopdale Community College | O175: Derbyshire | P175: Secondary | Q175: Community School | R175: 2010-11-25 | S175: 2220-11-22 | T175: Peartree Spring Junior School | U175: Hertfordshire | V175: Primary | W175: Community School | X175: 2011-09-13 | Y175: 124591 | Z175: St Edmund's Primary School | AA175: Suffolk | AB175: Primary | AC175: Community School | AD175: 2012-07-04 | AE175: 118299 | AF175: Oak Trees Community School | AG175: Kent | AH175: Primary | AI175: Community School | AJ175: 2011-11-23 | AK175: 122587 | AL175: Edgewood Primary and Nursery School | AM175: Nottinghamshire | AN175: Primary | AO175: Community School | AP175: 2012-07-04 | AQ175: 114447 | AR175: Sandown Primary School | AS175: East Sussex | AT175: Primary | AU175: Community School | AV175: 2012-05-30 | AW175: 103820 | AX175: Hawbush Primary School | AY175: Dudley | AZ175: Primary | BA175: Community School | BB175: 2011-11-16 | BC175: 114447 | BD175: Sandown Primary School | BE175: East Sussex | BF175: Primary | BG175: Community School | BH175: 2012-05-30
A176: 132752 | B176: The John Henry Newman CofE (A) Primary School | C176: Oxfordshire | D176: Primary | E176: Voluntary Aided School | F176: 2010-04-28 | G176: 134629 | H176: Hardwick Primary School | I176: Derby | J176: Primary | K176: Community School | L176: 2011-11-10 | M176: 118625 | N176: Maidstone, St Michael's Church of England Junior School | O176: Kent | P176: Primary | Q176: Voluntary Controlled School | R176: 2010-11-30 | S176: 2187-01-09 | T176: St Cuthbert's Catholic Community College for Business and Enterprise | U176: St. Helens | V176: Secondary | W176: Voluntary Aided School | X176: 2011-09-15 | Y176: 122587 | Z176: Edgewood Primary and Nursery School | AA176: Nottinghamshire | AB176: Primary | AC176: Community School | AD176: 2012-07-04 | AE176: 102760 | AF176: Cleves Primary School | AG176: Newham | AH176: Primary | AI176: Community School | AJ176: 2011-11-23 | AK176: 118729 | AL176: St James' Church of England Voluntary Aided Primary School | AM176: Medway | AN176: Primary | AO176: Voluntary Aided School | AP176: 2012-07-04 | AQ176: 103852 | AR176: The CofE School of St Edmund and St John | AS176: Dudley | AT176: Primary | AU176: Voluntary Aided School | AV176: 2012-05-30 | AW176: 112569 | AX176: Cotmanhay Junior School | AY176: Derbyshire | AZ176: Primary | BA176: Community School | BB176: 2011-11-09 | BC176: 103852 | BD176: The CofE School of St Edmund and St John | BE176: Dudley | BF176: Primary | BG176: Voluntary Aided School | BH176: 2012-05-30
A177: 132084 | B177: The Willows Primary School | C177: Essex | D177: Primary | E177: Community School | F177: 2011-03-30 | G177: 134303 | H177: Kingsmoor Primary School | I177: Essex | J177: Primary | K177: Foundation School | L177: 2011-09-13 | M177: 135629 | N177: Oasis Academy Mayfield | O177: Southampton | P177: Secondary | Q177: Academy Sponsor Led | R177: 2010-12-07 | S177: 2240-12-11 | T177: Albany Centre | U177: Suffolk | V177: PRU | W177: Pupil Referral Unit | X177: 2011-09-15 | Y177: 118729 | Z177: St James' Church of England Voluntary Aided Primary School | AA177: Medway | AB177: Primary | AC177: Voluntary Aided School | AD177: 2012-07-04 | AE177: 131519 | AF177: Abingdon Primary School | AG177: Middlesbrough | AH177: Primary | AI177: Community School | AJ177: 2011-11-23 | AK177: 115852 | AL177: Balksbury Junior School | AM177: Hampshire | AN177: Primary | AO177: Community School | AP177: 2012-07-04 | AQ177: 116156 | AR177: Beaumont Junior School | AS177: Hampshire | AT177: Primary | AU177: Community School | AV177: 2012-05-23 | AW177: 115020 | AX177: Shelley Primary School | AY177: Essex | AZ177: Primary | BA177: Community School | BB177: 2011-11-09 | BC177: 116156 | BD177: Beaumont Junior School | BE177: Hampshire | BF177: Primary | BG177: Community School | BH177: 2012-05-23
A178: 132029 | B178: Whitehawk Primary School | C178: Brighton and Hove | D178: Primary | E178: Community School | F178: 2011-09-21 | G178: 134278 | H178: Cobblers Lane Primary School | I178: Wakefield | J178: Primary | K178: Foundation School | L178: 2010-05-13 | M178: 106992 | N178: Whiteways Primary School | O178: Sheffield | P178: Primary | Q178: Community School | R178: 2010-12-08 | S178: 2269-10-18 | T178: Grove Primary School | U178: Worcestershire | V178: Primary | W178: Community School | X178: 2011-09-16 | Y178: 115852 | Z178: Balksbury Junior School | AA178: Hampshire | AB178: Primary | AC178: Community School | AD178: 2012-07-04 | AE178: 130923 | AF178: Denaby Main Primary School | AG178: Doncaster | AH178: Primary | AI178: Community School | AJ178: 2011-11-23 | AK178: 103411 | AL178: St George's CofE Junior and Infant School | AM178: Birmingham | AN178: Primary | AO178: Voluntary Controlled School | AP178: 2012-07-04 | AQ178: 117354 | AR178: Radburn Primary School | AS178: Hertfordshire | AT178: Primary | AU178: Community School | AV178: 2012-05-17 | AW178: 111235 | AX178: Meadow Community Primary School | AY178: Cheshire West and Chester | AZ178: Primary | BA178: Community School | BB178: 2011-11-04 | BC178: 117354 | BD178: Radburn Primary School | BE178: Hertfordshire | BF178: Primary | BG178: Community School | BH178: 2012-05-17
A179: 131375 | B179: Warndon Primary School | C179: Worcestershire | D179: Primary | E179: Community School | F179: 2011-06-22 | G179: 134246 | H179: Richmond Primary School | I179: Oldham | J179: Primary | K179: Community School | L179: 2012-06-14 | M179: 115492 | N179: Harewood Junior School | O179: Gloucestershire | P179: Primary | Q179: Foundation School | R179: 2010-12-09 | S179: 2184-04-20 | T179: Netherton CofE Primary School | U179: Dudley | V179: Primary | W179: Voluntary Controlled School | X179: 2011-09-21 | Y179: 103411 | Z179: St George's CofE Junior and Infant School | AA179: Birmingham | AB179: Primary | AC179: Voluntary Controlled School | AD179: 2012-07-04 | AE179: 108174 | AF179: The Rookeries Carleton Junior and Infant School: With Hearing Impairment Resource | AG179: Wakefield | AH179: Primary | AI179: Foundation School | AJ179: 2011-11-23 | AK179: 125116 | AL179: Ash Grange Primary School | AM179: Surrey | AN179: Primary | AO179: Community School | AP179: 2012-06-28 | AQ179: 100810 | AR179: Rotherhithe Primary School | AS179: Southwark | AT179: Primary | AU179: Community School | AV179: 2012-05-03 | AW179: 114845 | AX179: Thameside Junior School | AY179: Thurrock | AZ179: Primary | BA179: Community School | BB179: 2011-11-04 | BC179: 100810 | BD179: Rotherhithe Primary School | BE179: Southwark | BF179: Primary | BG179: Community School | BH179: 2012-05-03
A180: 131373 | B180: King Offa Primary School | C180: East Sussex | D180: Primary | E180: Community School | F180: 2011-03-03 | G180: 134218 | H180: Carsic Primary School | I180: Nottinghamshire | J180: Primary | K180: Community School | L180: 2012-03-16 | M180: 108845 | N180: St Patrick's Roman Catholic Voluntary Aided Primary School | O180: Sunderland | P180: Primary | Q180: Voluntary Aided School | R180: 2010-12-09 | S180: 2218-12-23 | T180: St Edmund's Catholic School | U180: Portsmouth | V180: Secondary | W180: Voluntary Aided School | X180: 2011-09-21 | Y180: 125116 | Z180: Ash Grange Primary School | AA180: Surrey | AB180: Primary | AC180: Community School | AD180: 2012-06-28 | AE180: 121454 | AF180: Luttons Community Primary School | AG180: North Yorkshire | AH180: Primary | AI180: Community School | AJ180: 2011-11-22 | AK180: 124546 | AL180: Houldsworth Valley Primary School | AM180: Suffolk | AN180: Primary | AO180: Community School | AP180: 2012-06-28 | AQ180: 114770 | AR180: Hamstel Junior School | AS180: Southend-on-Sea | AT180: Primary | AU180: Community School | AV180: 2012-04-26 | AW180: 106619 | AX180: Shafton Primary School | AY180: Barnsley | AZ180: Primary | BA180: Community School | BB180: 2011-11-04 | BC180: 114770 | BD180: Hamstel Junior School | BE180: Southend-on-Sea | BF180: Primary | BG180: Community School | BH180: 2012-04-26
A181: 131265 | B181: Plover Primary School | C181: Doncaster | D181: Primary | E181: Community School | F181: 2011-11-17 | G181: 134213 | H181: Woodside School | I181: Waltham Forest | J181: Primary | K181: Community School | L181: 2012-03-07 | M181: 103402 | N181: St John's Ladywood Church of England Primary School | O181: Birmingham | P181: Primary | Q181: Voluntary Controlled School | R181: 2010-12-09 | S181: 2209-03-30 | T181: Highfields School | U181: Derbyshire | V181: Secondary | W181: Community School | X181: 2011-09-22 | Y181: 124546 | Z181: Houldsworth Valley Primary School | AA181: Suffolk | AB181: Primary | AC181: Community School | AD181: 2012-06-28 | AE181: 125823 | AF181: Portfield Community Primary School | AG181: West Sussex | AH181: Primary | AI181: Community School | AJ181: 2011-11-17 | AK181: 123710 | AL181: Wellsprings Primary School | AM181: Somerset | AN181: Primary | AO181: Community School | AP181: 2012-06-28 | AQ181: 113477 | AR181: Wolborough Church of England (Aided) Nursery and Primary School | AS181: Devon | AT181: Primary | AU181: Voluntary Aided School | AV181: 2012-04-26 | AW181: 115939 | AX181: Stakes Hill Infant School | AY181: Hampshire | AZ181: Primary | BA181: Community School | BB181: 2011-11-03 | BC181: 113477 | BD181: Wolborough Church of England (Aided) Nursery and Primary School | BE181: Devon | BF181: Primary | BG181: Voluntary Aided School | BH181: 2012-04-26
A182: 131236 | B182: James Elliman School | C182: Slough | D182: Primary | E182: Community School | F182: 2010-09-24 | G182: 134178 | H182: Larkswood Primary School | I182: Waltham Forest | J182: Primary | K182: Community School | L182: 2011-10-13 | M182: 114762 | N182: Hamford Primary School | O182: Essex | P182: Primary | Q182: Community School | R182: 2010-12-10 | S182: 2272-03-08 | T182: Grangeside School | U182: Hampshire | V182: Special | W182: Community Special School | X182: 2011-09-23 | Y182: 123710 | Z182: Wellsprings Primary School | AA182: Somerset | AB182: Primary | AC182: Community School | AD182: 2012-06-28 | AE182: 118714 | AF182: Brenchley and Matfield Church of England Voluntary Aided Primary School | AG182: Kent | AH182: Primary | AI182: Voluntary Aided School | AJ182: 2011-11-17 | AK182: 101766 | AL182: Applegarth Junior School | AM182: Croydon | AN182: Primary | AO182: Community School | AP182: 2012-06-28 | AQ182: 120552 | AR182: Quadring Cowley & Brown's Primary School | AS182: Lincolnshire | AT182: Primary | AU182: Voluntary Controlled School | AV182: 2012-04-25 | AW182: 134943 | AX182: Larkman Primary School | AY182: Norfolk | AZ182: Primary | BA182: Community School | BB182: 2011-10-19 | BC182: 120552 | BD182: Quadring Cowley & Brown's Primary School | BE182: Lincolnshire | BF182: Primary | BG182: Voluntary Controlled School | BH182: 2012-04-25
A183: 126479 | B183: Frogwell Primary School | C183: Wiltshire | D183: Primary | E183: Foundation School | F183: 2011-01-20 | G183: 134160 | H183: Malmesbury Primary School | I183: Tower Hamlets | J183: Primary | K183: Community School | L183: 2012-03-06 | M183: 113477 | N183: Wolborough Church of England (Aided) Nursery and Primary School | O183: Devon | P183: Primary | Q183: Voluntary Aided School | R183: 2011-01-12 | S183: 2266-11-06 | T183: The Tuition Centre | U183: Havering | V183: PRU | W183: Pupil Referral Unit | X183: 2011-09-23 | Y183: 101766 | Z183: Applegarth Junior School | AA183: Croydon | AB183: Primary | AC183: Community School | AD183: 2012-06-28 | AE183: 110771 | AF183: Kettlefields Primary School | AG183: Cambridgeshire | AH183: Primary | AI183: Community School | AJ183: 2011-11-17 | AK183: 131627 | AL183: Hillside Primary School | AM183: Bromley | AN183: Primary | AO183: Community School | AP183: 2012-06-28 | AQ183: 113400 | AR183: Bearnes Voluntary Primary School | AS183: Devon | AT183: Primary | AU183: Voluntary Controlled School | AV183: 2012-03-22 | AW183: 108002 | AX183: Middleton St Mary's Church of England Voluntary Controlled Primary School | AY183: Leeds | AZ183: Primary | BA183: Voluntary Controlled School | BB183: 2011-10-19 | BC183: 113400 | BD183: Bearnes Voluntary Primary School | BE183: Devon | BF183: Primary | BG183: Voluntary Controlled School | BH183: 2012-03-22
A184: 125961 | B184: Chesswood Middle School | C184: West Sussex | D184: Primary | E184: Community School | F184: 2011-02-10 | G184: 134133 | H184: Whitesheet CofE VA Primary School | I184: Wiltshire | J184: Primary | K184: Voluntary Aided School | L184: 2011-12-02 | M184: 110324 | N184: Hannah Ball Infant School | O184: Buckinghamshire | P184: Primary | Q184: Foundation School | R184: 2011-01-13 | S184: 2260-05-17 | T184: New Horizons Learning Centre (PRU) | U184: South Gloucestershire | V184: PRU | W184: Pupil Referral Unit | X184: 2011-09-27 | Y184: 131627 | Z184: Hillside Primary School | AA184: Bromley | AB184: Primary | AC184: Community School | AD184: 2012-06-28 | AE184: 106912 | AF184: Maltby Redwood Junior and Infant School | AG184: Rotherham | AH184: Primary | AI184: Community School | AJ184: 2011-11-17 | AK184: 106559 | AL184: Gooseacre Primary School | AM184: Barnsley | AN184: Primary | AO184: Community School | AP184: 2012-06-28 | AQ184: 114766 | AR184: Ravenscroft Primary School | AS184: Essex | AT184: Primary | AU184: Community School | AV184: 2012-03-22 | AW184: 111856 | AX184: Roskear School | AY184: Cornwall | AZ184: Primary | BA184: Community School | BB184: 2011-10-13 | BC184: 114766 | BD184: Ravenscroft Primary School | BE184: Essex | BF184: Primary | BG184: Community School | BH184: 2012-03-22
A185: 125907 | B185: Three Bridges Junior School | C185: West Sussex | D185: Primary | E185: Community School | F185: 2010-11-16 | G185: 134132 | H185: Arnbrook Primary School | I185: Nottinghamshire | J185: Primary | K185: Community School | L185: 2012-03-07 | M185: 101787 | N185: All Saints CofE Junior School | O185: Croydon | P185: Primary | Q185: Voluntary Controlled School | R185: 2011-01-13 | S185: 2272-09-29 | T185: Forest Oak School | U185: Worcestershire | V185: PRU | W185: Pupil Referral Unit | X185: 2011-09-28 | Y185: 106559 | Z185: Gooseacre Primary School | AA185: Barnsley | AB185: Primary | AC185: Community School | AD185: 2012-06-28 | AE185: 115499 | AF185: Dinglewell Infant School | AG185: Gloucestershire | AH185: Primary | AI185: Community School | AJ185: 2011-11-16 | AK185: 100958 | AL185: St Paul with St Luke CofE Primary School | AM185: Tower Hamlets | AN185: Primary | AO185: Voluntary Aided School | AP185: 2012-06-28 | AQ185: 112664 | AR185: Hasland Infant School | AS185: Derbyshire | AT185: Primary | AU185: Community School | AV185: 2012-03-21 | AW185: 118274 | AX185: Halstead Community Primary School | AY185: Kent | AZ185: Primary | BA185: Community School | BB185: 2011-10-13 | BC185: 112664 | BD185: Hasland Infant School | BE185: Derbyshire | BF185: Primary | BG185: Community School | BH185: 2012-03-21
A186: 135529 | B186: Woodcroft Primary | C186: Hampshire | D186: Primary | E186: Community School | F186: 2011-07-07 | G186: 134021 | H186: The Phoenix Primary School | I186: Essex | J186: Primary | K186: Community School | L186: 2012-06-14 | M186: 101768 | N186: All Saints Infant School | O186: Croydon | P186: Primary | Q186: Community School | R186: 2011-01-13 | S186: 2198-04-23 | T186: St Anne's Park Primary School | U186: Bristol City of | V186: Primary | W186: Community School | X186: 2011-09-29 | Y186: 100958 | Z186: St Paul with St Luke CofE Primary School | AA186: Tower Hamlets | AB186: Primary | AC186: Voluntary Aided School | AD186: 2012-06-28 | AE186: 112743 | AF186: Alvaston Junior School | AG186: Derby | AH186: Primary | AI186: Community School | AJ186: 2011-11-16 | AK186: 123029 | AL186: Chalgrove Community Primary School | AM186: Oxfordshire | AN186: Primary | AO186: Community School | AP186: 2012-06-27 | AQ186: 105796 | AR186: Harwood Park Primary School | AS186: Rochdale | AT186: Primary | AU186: Community School | AV186: 2012-03-21 | AW186: 118347 | AX186: Richmond Primary School | AY186: Kent | AZ186: Primary | BA186: Community School | BB186: 2011-10-06 | BC186: 105796 | BD186: Harwood Park Primary School | BE186: Rochdale | BF186: Primary | BG186: Community School | BH186: 2012-03-21
A187: 135505 | B187: St Saviours Catholic Primary School | C187: Cheshire West and Chester | D187: Primary | E187: Voluntary Aided School | F187: 2010-07-07 | G187: 133995 | H187: Four Dwellings Primary School | I187: Birmingham | J187: Primary | K187: Community School | L187: 2012-01-17 | M187: 135551 | N187: Swallow Hill Community College | O187: Leeds | P187: Secondary | Q187: Community School | R187: 2011-01-13 | S187: 2242-05-22 | T187: Grovelands Infant and Nursery School | U187: Surrey | V187: Primary | W187: Community School | X187: 2011-10-04 | Y187: 123029 | Z187: Chalgrove Community Primary School | AA187: Oxfordshire | AB187: Primary | AC187: Community School | AD187: 2012-06-27 | AE187: 125012 | AF187: Meath Green Junior School | AG187: Surrey | AH187: Primary | AI187: Community School | AJ187: 2011-11-10 | AK187: 122308 | AL187: St Bede's Roman Catholic Voluntary Aided Primary School | AM187: Northumberland | AN187: Primary | AO187: Voluntary Aided School | AP187: 2012-06-27 | AQ187: 132829 | AR187: St Nicholas Church of England (Controlled) Primary School | AS187: Kent | AT187: Primary | AU187: Voluntary Controlled School | AV187: 2012-03-15 | AW187: 102579 | AX187: King Athelstan Primary School | AY187: Kingston upon Thames | AZ187: Primary | BA187: Community School | BB187: 2011-10-06 | BC187: 132829 | BD187: St Nicholas Church of England (Controlled) Primary School | BE187: Kent | BF187: Primary | BG187: Voluntary Controlled School | BH187: 2012-03-15
A188: 135455 | B188: Cranberry Primary School | C188: Cheshire East | D188: Primary | E188: Foundation School | F188: 2011-11-29 | G188: 133723 | H188: Radcliffe Primary School | I188: Bury | J188: Primary | K188: Community School | L188: 2012-03-22 | M188: 106728 | N188: Park Primary School | O188: Doncaster | P188: Primary | Q188: Community School | R188: 2011-01-14 | S188: 2217-09-17 | T188: Denmead Junior School | U188: Hampshire | V188: Primary | W188: Community School | X188: 2011-10-05 | Y188: 122308 | Z188: St Bede's Roman Catholic Voluntary Aided Primary School | AA188: Northumberland | AB188: Primary | AC188: Voluntary Aided School | AD188: 2012-06-27 | AE188: 107046 | AF188: Halfway Junior School | AG188: Sheffield | AH188: Primary | AI188: Community School | AJ188: 2011-11-10 | AK188: 120069 | AL188: Eyres Monsell Primary School | AM188: Leicester | AN188: Primary | AO188: Community School | AP188: 2012-06-27 | AQ188: 104309 | AR188: Palmers Cross Primary School | AS188: Wolverhampton | AT188: Primary | AU188: Community School | AV188: 2012-03-15 | AW188: 101534 | AX188: John Keble CofE Primary School | AY188: Brent | AZ188: Primary | BA188: Voluntary Aided School | BB188: 2011-10-05 | BC188: 104309 | BD188: Palmers Cross Primary School | BE188: Wolverhampton | BF188: Primary | BG188: Community School | BH188: 2012-03-15
A189: 135281 | B189: Riverview Primary School | C189: Staffordshire | D189: Primary | E189: Community School | F189: 2011-02-08 | G189: 133671 | H189: Sowerby Village CofE VC Primary School | I189: Calderdale | J189: Primary | K189: Voluntary Controlled School | L189: 2011-06-17 | M189: 124597 | N189: Melton Primary School | O189: Suffolk | P189: Primary | Q189: Community School | R189: 2011-01-18 | S189: 2193-03-17 | T189: Walkley Primary School | U189: Sheffield | V189: Primary | W189: Community School | X189: 2011-10-06 | Y189: 120069 | Z189: Eyres Monsell Primary School | AA189: Leicester | AB189: Primary | AC189: Community School | AD189: 2012-06-27 | AE189: 103969 | AF189: Lodge Primary School | AG189: Sandwell | AH189: Primary | AI189: Community School | AJ189: 2011-11-10 | AK189: 134139 | AL189: North Wingfield Primary and Nursery School | AM189: Derbyshire | AN189: Primary | AO189: Community School | AP189: 2012-06-27 | AQ189: 105815 | AR189: St Margaret's Church of England Primary School | AS189: Rochdale | AT189: Primary | AU189: Voluntary Aided School | AV189: 2012-03-15 | AW189: 135617 | AX189: The Coombes Church of England Primary School | AY189: Wokingham | AZ189: Primary | BA189: Voluntary Controlled School | BB189: 2011-09-29 | BC189: 105815 | BD189: St Margaret's Church of England Primary School | BE189: Rochdale | BF189: Primary | BG189: Voluntary Aided School | BH189: 2012-03-15
A190: 134738 | B190: Bell Wood Community Primary School | C190: Kent | D190: Primary | E190: Community School | F190: 2009-12-09 | G190: 133632 | H190: Saxon Way Primary School | I190: Medway | J190: Primary | K190: Community School | L190: 2012-05-30 | M190: 116207 | N190: Langstone Infant School | O190: Portsmouth | P190: Primary | Q190: Community School | R190: 2011-01-18 | S190: 2274-11-21 | T190: Droitwich Spa High School and Sixth Form College | U190: Worcestershire | V190: Secondary | W190: Academy Converters | X190: 2011-10-06 | Y190: 134139 | Z190: North Wingfield Primary and Nursery School | AA190: Derbyshire | AB190: Primary | AC190: Community School | AD190: 2012-06-27 | AE190: 105920 | AF190: Dukesgate Primary School | AG190: Salford | AH190: Primary | AI190: Community School | AJ190: 2011-11-10 | AK190: 116748 | AL190: Withington Primary School | AM190: Herefordshire | AN190: Primary | AO190: Community School | AP190: 2012-06-27 | AQ190: 106728 | AR190: Park Primary School | AS190: Doncaster | AT190: Primary | AU190: Community School | AV190: 2012-03-14 | AW190: 121915 | AX190: Kingsley Primary School | AY190: Northamptonshire | AZ190: Primary | BA190: Community School | BB190: 2011-09-28 | BC190: 106728 | BD190: Park Primary School | BE190: Doncaster | BF190: Primary | BG190: Community School | BH190: 2012-03-14
A191: 134629 | B191: Hardwick Primary School | C191: Derby | D191: Primary | E191: Community School | F191: 2011-11-10 | G191: 133604 | H191: Strand Community School | I191: North East Lincolnshire | J191: Primary | K191: Community School | L191: 2011-12-14 | M191: 124050 | N191: Belvedere Junior School | O191: Staffordshire | P191: Primary | Q191: Community School | R191: 2011-01-19 | S191: 2201-05-06 | T191: Theale Green Community School | U191: West Berkshire | V191: Secondary | W191: Community School | X191: 2011-10-06 | Y191: 116748 | Z191: Withington Primary School | AA191: Herefordshire | AB191: Primary | AC191: Community School | AD191: 2012-06-27 | AE191: 124650 | AF191: Ravenswood Community Primary School | AG191: Suffolk | AH191: Primary | AI191: Community School | AJ191: 2011-11-09 | AK191: 134251 | AL191: Western House Primary School | AM191: Slough | AN191: Primary | AO191: Community School | AP191: 2012-06-27 | AQ191: 114002 | AR191: Lumley Junior School | AS191: Durham | AT191: Primary | AU191: Community School | AV191: 2012-03-08 | AW191: 119272 | AX191: Trumacar Community Primary School | AY191: Lancashire | AZ191: Primary | BA191: Community School | BB191: 2011-09-28 | BC191: 114002 | BD191: Lumley Junior School | BE191: Durham | BF191: Primary | BG191: Community School | BH191: 2012-03-08
A192: 134515 | B192: Downsview Community Primary School | C192: Kent | D192: Primary | E192: Community School | F192: 2010-11-25 | G192: 132833 | H192: Cherry Tree Primary School, Basildon | I192: Essex | J192: Primary | K192: Community School | L192: 2012-03-20 | M192: 112858 | N192: Stoney Middleton CofE (C) Primary School | O192: Derbyshire | P192: Primary | Q192: Voluntary Controlled School | R192: 2011-01-19 | S192: 2214-11-30 | T192: Jerounds Community Junior School | U192: Essex | V192: Primary | W192: Community School | X192: 2011-10-07 | Y192: 134251 | Z192: Western House Primary School | AA192: Slough | AB192: Primary | AC192: Community School | AD192: 2012-06-27 | AE192: 109893 | AF192: Birch Hill Primary School | AG192: Bracknell Forest | AH192: Primary | AI192: Community School | AJ192: 2011-11-09 | AK192: 107222 | AL192: Thornbury Primary School | AM192: Bradford | AN192: Primary | AO192: Community School | AP192: 2012-06-27 | AQ192: 131771 | AR192: Moor Green Primary | AS192: Birmingham | AT192: Primary | AU192: Community School | AV192: 2012-03-08 | AW192: 122999 | AX192: Hardwick Primary School | AY192: Oxfordshire | AZ192: Primary | BA192: Community School | BB192: 2011-09-23 | BC192: 131771 | BD192: Moor Green Primary | BE192: Birmingham | BF192: Primary | BG192: Community School | BH192: 2012-03-08
A193: 134303 | B193: Kingsmoor Primary School | C193: Essex | D193: Primary | E193: Foundation School | F193: 2011-09-13 | G193: 132084 | H193: The Willows Primary School | I193: Essex | J193: Primary | K193: Community School | L193: 2011-03-30 | M193: 105815 | N193: St Margaret's Church of England Primary School | O193: Rochdale | P193: Primary | Q193: Voluntary Aided School | R193: 2011-01-20 | S193: 2270-01-12 | T193: Coppice Primary School | U193: Oldham | V193: Primary | W193: Community School | X193: 2011-10-11 | Y193: 107222 | Z193: Thornbury Primary School | AA193: Bradford | AB193: Primary | AC193: Community School | AD193: 2012-06-27 | AE193: 111214 | AF193: Callands Primary School | AG193: Warrington | AH193: Primary | AI193: Community School | AJ193: 2011-11-09 | AK193: 130863 | AL193: Infant School Moorthorpe Primary (J and I ) School | AM193: Wakefield | AN193: Primary | AO193: Community School | AP193: 2012-06-27 | AQ193: 110324 | AR193: Hannah Ball Infant School | AS193: Buckinghamshire | AT193: Primary | AU193: Foundation School | AV193: 2012-03-02 | AW193: 124091 | AX193: Castle Primary School | AY193: Staffordshire | AZ193: Primary | BA193: Community School | BB193: 2011-09-22 | BC193: 110324 | BD193: Hannah Ball Infant School | BE193: Buckinghamshire | BF193: Primary | BG193: Foundation School | BH193: 2012-03-02
A194: 134278 | B194: Cobblers Lane Primary School | C194: Wakefield | D194: Primary | E194: Foundation School | F194: 2010-05-13 | G194: 132029 | H194: Whitehawk Primary School | I194: Brighton and Hove | J194: Primary | K194: Community School | L194: 2011-09-21 | M194: 122861 | N194: Valley Comprehensive School | O194: Nottinghamshire | P194: Secondary | Q194: Community School | R194: 2011-01-20 | S194: 2197-12-08 | T194: New Penshaw Primary School | U194: Sunderland | V194: Primary | W194: Community School | X194: 2011-10-11 | Y194: 130863 | Z194: Infant School Moorthorpe Primary (J and I ) School | AA194: Wakefield | AB194: Primary | AC194: Community School | AD194: 2012-06-27 | AE194: 103966 | AF194: Timbertree Primary School | AG194: Sandwell | AH194: Primary | AI194: Community School | AJ194: 2011-11-09 | AK194: 116257 | AL194: Paulsgrove Primary School | AM194: Portsmouth | AN194: Primary | AO194: Community School | AP194: 2012-06-22 | AQ194: 118625 | AR194: Maidstone, St Michael's Church of England Junior School | AS194: Kent | AT194: Primary | AU194: Voluntary Controlled School | AV194: 2012-03-01 | AW194: 135624 | AX194: Three Peaks School | AY194: Staffordshire | AZ194: Primary | BA194: Community School | BB194: 2011-09-21 | BC194: 118625 | BD194: Maidstone, St Michael's Church of England Junior School | BE194: Kent | BF194: Primary | BG194: Voluntary Controlled School | BH194: 2012-03-01
A195: 134251 | B195: Western House Primary School | C195: Slough | D195: Primary | E195: Community School | F195: 2011-02-01 | G195: 131954 | H195: Anston Brook Primary School | I195: Rotherham | J195: Primary | K195: Community School | L195: 2012-03-07 | M195: 114002 | N195: Lumley Junior School | O195: Durham | P195: Primary | Q195: Community School | R195: 2011-01-21 | S195: 2184-09-12 | T195: Holy Trinity CofE Primary School | U195: Sandwell | V195: Primary | W195: Voluntary Controlled School | X195: 2011-10-11 | Y195: 116257 | Z195: Paulsgrove Primary School | AA195: Portsmouth | AB195: Primary | AC195: Community School | AD195: 2012-06-22 | AE195: 121828 | AF195: Higham Ferrers Junior School | AG195: Northamptonshire | AH195: Primary | AI195: Community School | AJ195: 2011-11-03 | AK195: 120546 | AL195: The Saint Thomas' Church of England Primary School, Boston | AM195: Lincolnshire | AN195: Primary | AO195: Voluntary Controlled School | AP195: 2012-06-21 | AQ195: 107959 | AR195: Hugh Gaitskell Primary School | AS195: Leeds | AT195: Primary | AU195: Foundation School | AV195: 2012-03-01 | AW195: 132029 | AX195: Whitehawk Primary School | AY195: Brighton and Hove | AZ195: Primary | BA195: Community School | BB195: 2011-09-21 | BC195: 107959 | BD195: Hugh Gaitskell Primary School | BE195: Leeds | BF195: Primary | BG195: Foundation School | BH195: 2012-03-01
A196: 133604 | B196: Strand Community School | C196: North East Lincolnshire | D196: Primary | E196: Community School | F196: 2011-12-14 | G196: 131793 | H196: John Baskeyfield VC CofE Primary School | I196: Stoke-on-Trent | J196: Primary | K196: Voluntary Controlled School | L196: 2012-05-03 | M196: 105238 | N196: All Saints CofE Primary School | O196: Bolton | P196: Primary | Q196: Voluntary Aided School | R196: 2011-01-25 | S196: 2265-04-17 | T196: Endeavour High School | U196: Kingston upon Hull City of | V196: Secondary | W196: Community School | X196: 2011-10-13 | Y196: 120546 | Z196: The Saint Thomas' Church of England Primary School, Boston | AA196: Lincolnshire | AB196: Primary | AC196: Voluntary Controlled School | AD196: 2012-06-21 | AE196: 121023 | AF196: Greenacre Primary & Nursery School | AG196: Norfolk | AH196: Primary | AI196: Community School | AJ196: 2011-11-03 | AK196: 125201 | AL196: Horsell CofE Aided Junior School | AM196: Surrey | AN196: Primary | AO196: Voluntary Aided School | AP196: 2012-06-21 | AQ196: 131006 | AR196: Westglade Primary School | AS196: Nottingham | AT196: Primary | AU196: Community School | AV196: 2012-02-29 | AW196: 115024 | AX196: Melbourne Park Primary and Nursery School | AY196: Essex | AZ196: Primary | BA196: Community School | BB196: 2011-09-15 | BC196: 131006 | BD196: Westglade Primary School | BE196: Nottingham | BF196: Primary | BG196: Community School | BH196: 2012-02-29
A197: 133342 | B197: Nunsthorpe Community School | C197: North East Lincolnshire | D197: Primary | E197: Community School | F197: 2011-11-23 | G197: 131497 | H197: Henbury Court Primary School | I197: Bristol City of | J197: Primary | K197: Community School | L197: 2012-02-23 | M197: 107581 | N197: St Catherine's Catholic High School | O197: Calderdale | P197: Secondary | Q197: Voluntary Aided School | R197: 2011-01-25 | S197: 2269-10-09 | T197: St Oswald's CofE Primary School | U197: Worcestershire | V197: Primary | W197: Voluntary Controlled School | X197: 2011-10-14 | Y197: 125201 | Z197: Horsell CofE Aided Junior School | AA197: Surrey | AB197: Primary | AC197: Voluntary Aided School | AD197: 2012-06-21 | AE197: 119299 | AF197: Larkholme Primary School | AG197: Lancashire | AH197: Primary | AI197: Community School | AJ197: 2011-11-03 | AK197: 119117 | AL197: Hawthorns Junior School | AM197: Blackburn with Darwen | AN197: Primary | AO197: Community School | AP197: 2012-06-21 | AQ197: 114762 | AR197: Hamford Primary School | AS197: Essex | AT197: Primary | AU197: Community School | AV197: 2012-02-29 | AW197: 109230 | AX197: Combe Down CofE Primary School | AY197: Bath and North East Somerset | AZ197: Primary | BA197: Voluntary Controlled School | BB197: 2011-09-15 | BC197: 114762 | BD197: Hamford Primary School | BE197: Essex | BF197: Primary | BG197: Community School | BH197: 2012-02-29
A198: 133314 | B198: Oakefield Primary and Nursery School | C198: Cheshire East | D198: Primary | E198: Community School | F198: 2011-01-18 | G198: 131423 | H198: Seymour Road Primary School | I198: Manchester | J198: Primary | K198: Community School | L198: 2012-01-19 | M198: 114919 | N198: Ghyllgrove Community Infant School | O198: Essex | P198: Primary | Q198: Community School | R198: 2011-01-26 | S198: 2213-03-02 | T198: Hertford Junior School | U198: Brighton and Hove | V198: Primary | W198: Community School | X198: 2011-10-14 | Y198: 119117 | Z198: Hawthorns Junior School | AA198: Blackburn with Darwen | AB198: Primary | AC198: Community School | AD198: 2012-06-21 | AE198: 110722 | AF198: Brewster Avenue Infant School | AG198: Peterborough | AH198: Primary | AI198: Community School | AJ198: 2011-11-03 | AK198: 120009 | AL198: Rushey Mead Primary School | AM198: Leicester | AN198: Primary | AO198: Community School | AP198: 2012-06-21 | AQ198: 112927 | AR198: St Alban's Catholic Primary School, Chaddesden, Derby | AS198: Derby | AT198: Primary | AU198: Voluntary Aided School | AV198: 2012-02-29 | AW198: 113907 | AX198: Poole High School | AY198: Poole | AZ198: Secondary | BA198: Foundation School | BB198: 2011-12-09 | BC198: 112927 | BD198: St Alban's Catholic Primary School, Chaddesden, Derby | BE198: Derby | BF198: Primary | BG198: Voluntary Aided School | BH198: 2012-02-29
A199: 131942 | B199: Billesley Primary School | C199: Birmingham | D199: Primary | E199: Community School | F199: 2010-02-26 | G199: 131375 | H199: Warndon Primary School | I199: Worcestershire | J199: Primary | K199: Community School | L199: 2011-06-22 | M199: 132252 | N199: Downhills Primary School | O199: Haringey | P199: Primary | Q199: Community School | R199: 2011-01-27 | S199: 2220-10-18 | T199: Oxhey Wood Primary School | U199: Hertfordshire | V199: Primary | W199: Community School | X199: 2011-10-19 | Y199: 120009 | Z199: Rushey Mead Primary School | AA199: Leicester | AB199: Primary | AC199: Community School | AD199: 2012-06-21 | AE199: 117924 | AF199: Great Coates Primary School | AG199: North East Lincolnshire | AH199: Primary | AI199: Community School | AJ199: 2011-11-03 | AK199: 131236 | AL199: James Elliman School | AM199: Slough | AN199: Primary | AO199: Community School | AP199: 2012-06-21 | AQ199: 124597 | AR199: Melton Primary School | AS199: Suffolk | AT199: Primary | AU199: Community School | AV199: 2012-02-24 | AW199: 119725 | AX199: West Craven High Technology College | AY199: Lancashire | AZ199: Secondary | BA199: Community School | BB199: 2011-12-08 | BC199: 124597 | BD199: Melton Primary School | BE199: Suffolk | BF199: Primary | BG199: Community School | BH199: 2012-02-24
A200: 131881 | B200: Noel Park Primary School | C200: Haringey | D200: Primary | E200: Community School | F200: 2011-11-10 | G200: 131345 | H200: Wybers Wood Primary School | I200: North East Lincolnshire | J200: Primary | K200: Community School | L200: 2012-02-08 | M200: 103519 | N200: Moseley School A Language College | O200: Birmingham | P200: Secondary | Q200: Foundation School | R200: 2011-01-27 | S200: 2225-05-26 | T200: Holy Family RC Primary School | U200: Kent | V200: Primary | W200: Voluntary Aided School | X200: 2011-10-19 | Y200: 131236 | Z200: James Elliman School | AA200: Slough | AB200: Primary | AC200: Community School | AD200: 2012-06-21 | AE200: 131754 | AF200: Hawkesley CofE/Methodist Primary School | AG200: Birmingham | AH200: Primary | AI200: Voluntary Aided School | AJ200: 2011-11-03 | AK200: 117821 | AL200: Tilbury Primary School | AM200: Kingston upon Hull City of | AN200: Primary | AO200: Community School | AP200: 2012-06-21 | AQ200: 121930 | AR200: The Arbours Primary School | AS200: Northamptonshire | AT200: Primary | AU200: Community School | AV200: 2012-02-23 | AW200: 109295 | AX200: Abbeywood Community School | AY200: South Gloucestershire | AZ200: Secondary | BA200: Community School | BB200: 2011-12-08 | BC200: 121930 | BD200: The Arbours Primary School | BE200: Northamptonshire | BF200: Primary | BG200: Community School | BH200: 2012-02-23
A201: 131659 | B201: St Matthias and Dr Bell's CofE VA Primary School | C201: Bristol City of | D201: Primary | E201: Voluntary Aided School | F201: 2010-06-16 | G201: 131287 | H201: Drayton CofE Junior School | I201: Norfolk | J201: Primary | K201: Voluntary Controlled School | L201: 2012-05-24 | M201: 114766 | N201: Ravenscroft Primary School | O201: Essex | P201: Primary | Q201: Community School | R201: 2011-01-28 | S201: 2221-04-07 | T201: Grove Road Primary School | U201: Hertfordshire | V201: Primary | W201: Community School | X201: 2011-10-19 | Y201: 117821 | Z201: Tilbury Primary School | AA201: Kingston upon Hull City of | AB201: Primary | AC201: Community School | AD201: 2012-06-21 | AE201: 109118 | AF201: Blaise Primary and Nursery School | AG201: Bristol City of | AH201: Primary | AI201: Community School | AJ201: 2011-10-19 | AK201: 100789 | AL201: Gloucester School | AM201: Southwark | AN201: Primary | AO201: Community School | AP201: 2012-06-21 | AQ201: 112858 | AR201: Stoney Middleton CofE (C) Primary School | AS201: Derbyshire | AT201: Primary | AU201: Voluntary Controlled School | AV201: 2012-02-23 | AW201: 122354 | AX201: Berwick Middle School | AY201: Northumberland | AZ201: Secondary | BA201: Community School | BB201: 2011-12-07 | BC201: 112858 | BD201: Stoney Middleton CofE (C) Primary School | BE201: Derbyshire | BF201: Primary | BG201: Voluntary Controlled School | BH201: 2012-02-23
A202: 131627 | B202: Hillside Primary School | C202: Bromley | D202: Primary | E202: Community School | F202: 2010-05-12 | G202: 131265 | H202: Plover Primary School | I202: Doncaster | J202: Primary | K202: Community School | L202: 2011-11-17 | M202: 114770 | N202: Hamstel Junior School | O202: Southend-on-Sea | P202: Primary | Q202: Community School | R202: 2011-02-04 | S202: 2193-09-18 | T202: Merlin Top Primary School | U202: Bradford | V202: Primary | W202: Community School | X202: 2011-10-19 | Y202: 100789 | Z202: Gloucester School | AA202: Southwark | AB202: Primary | AC202: Community School | AD202: 2012-06-21 | AE202: 115567 | AF202: Offa's Mead Primary School | AG202: Gloucestershire | AH202: Primary | AI202: Community School | AJ202: 2011-10-13 | AK202: 113145 | AL202: Combe Martin Primary School | AM202: Devon | AN202: Primary | AO202: Community School | AP202: 2012-06-20 | AQ202: 110623 | AR202: Hatton Park Primary School | AS202: Cambridgeshire | AT202: Primary | AU202: Community School | AV202: 2012-02-23 | AW202: 135650 | AX202: The Open Academy | AY202: Norfolk | AZ202: Secondary | BA202: Academy Sponsor Led | BB202: 2011-12-07 | BC202: 110623 | BD202: Hatton Park Primary School | BE202: Cambridgeshire | BF202: Primary | BG202: Community School | BH202: 2012-02-23
A203: 131576 | B203: Willow Brook Primary School | C203: Waltham Forest | D203: Primary | E203: Community School | F203: 2010-10-21 | G203: 131002 | H203: Avenue Primary School | I203: Leicester | J203: Primary | K203: Community School | L203: 2012-03-14 | M203: 110623 | N203: Hatton Park Primary School | O203: Cambridgeshire | P203: Primary | Q203: Community School | R203: 2011-02-04 | S203: 2270-04-06 | T203: Buckland Primary School | U203: Surrey | V203: Primary | W203: Community School | X203: 2011-10-20 | Y203: 113145 | Z203: Combe Martin Primary School | AA203: Devon | AB203: Primary | AC203: Community School | AD203: 2012-06-20 | AE203: 110369 | AF203: Bradwell Village School | AG203: Milton Keynes | AH203: Primary | AI203: Community School | AJ203: 2011-10-13 | AK203: 110761 | AL203: Ravensthorpe Primary School | AM203: Peterborough | AN203: Primary | AO203: Community School | AP203: 2012-06-20 | AQ203: 101787 | AR203: All Saints CofE Junior School | AS203: Croydon | AT203: Primary | AU203: Voluntary Controlled School | AV203: 2012-02-23 | AW203: 128340 | AX203: The Marlowe Academy | AY203: Kent | AZ203: Secondary | BA203: Academy Sponsor Led | BB203: 2011-11-18 | BC203: 101787 | BD203: All Saints CofE Junior School | BE203: Croydon | BF203: Primary | BG203: Voluntary Controlled School | BH203: 2012-02-23
A204: 130863 | B204: Infant School Moorthorpe Primary (J and I ) School | C204: Wakefield | D204: Primary | E204: Community School | F204: 2011-06-29 | G204: 130967 | H204: Hemsworth West End Primary School | I204: Wakefield | J204: Primary | K204: Community School | L204: 2012-04-19 | M204: 120552 | N204: Quadring Cowley & Brown's Primary School | O204: Lincolnshire | P204: Primary | Q204: Voluntary Controlled School | R204: 2011-02-09 | S204: 2180-04-02 | T204: Corbets Tey School | U204: Havering | V204: Special | W204: Foundation Special School | X204: 2011-10-20 | Y204: 110761 | Z204: Ravensthorpe Primary School | AA204: Peterborough | AB204: Primary | AC204: Community School | AD204: 2012-06-20 | AE204: 106835 | AF204: Broom Valley Community School | AG204: Rotherham | AH204: Primary | AI204: Community School | AJ204: 2011-10-13 | AK204: 134922 | AL204: Perry Wood Primary and Nursery School | AM204: Worcestershire | AN204: Primary | AO204: Community School | AP204: 2012-06-20 | AQ204: 101768 | AR204: All Saints Infant School | AS204: Croydon | AT204: Primary | AU204: Community School | AV204: 2012-02-23 | AW204: 100743 | AX204: Sedgehill School | AY204: Lewisham | AZ204: Secondary | BA204: Community School | BB204: 2011-11-18 | BC204: 101768 | BD204: All Saints Infant School | BE204: Croydon | BF204: Primary | BG204: Community School | BH204: 2012-02-23
A205: 125201 | B205: Horsell CofE Aided Junior School | C205: Surrey | D205: Primary | E205: Voluntary Aided School | F205: 2010-10-07 | G205: 130950 | H205: Havercroft Junior Infant and Nursery School | I205: Wakefield | J205: Primary | K205: Community School | L205: 2012-03-07 | M205: 112927 | N205: St Alban's Catholic Primary School, Chaddesden, Derby | O205: Derby | P205: Primary | Q205: Voluntary Aided School | R205: 2011-02-09 | S205: 2239-09-03 | T205: Norton Canes Primary School | U205: Staffordshire | V205: Primary | W205: Community School | X205: 2011-11-03 | Y205: 134922 | Z205: Perry Wood Primary and Nursery School | AA205: Worcestershire | AB205: Primary | AC205: Community School | AD205: 2012-06-20 | AE205: 100674 | AF205: Beecroft Garden Primary | AG205: Lewisham | AH205: Primary | AI205: Community School | AJ205: 2011-10-12 | AK205: 121888 | AL205: Corby Kingswood Primary School | AM205: Northamptonshire | AN205: Primary | AO205: Community School | AP205: 2012-06-14 | AQ205: 126401 | AR205: The Trinity Church of England Voluntary Aided Primary School, Devizes | AS205: Wiltshire | AT205: Primary | AU205: Voluntary Aided School | AV205: 2012-02-09 | AW205: 122848 | AX205: The Gedling School | AY205: Nottinghamshire | AZ205: Secondary | BA205: Community School | BB205: 2011-11-17 | BC205: 126401 | BD205: The Trinity Church of England Voluntary Aided Primary School, Devizes | BE205: Wiltshire | BF205: Primary | BG205: Voluntary Aided School | BH205: 2012-02-09
A206: 125116 | B206: Ash Grange Primary School | C206: Surrey | D206: Primary | E206: Community School | F206: 2010-11-04 | G206: 125907 | H206: Three Bridges Junior School | I206: West Sussex | J206: Primary | K206: Community School | L206: 2010-11-16 | M206: 131771 | N206: Moor Green Primary | O206: Birmingham | P206: Primary | Q206: Community School | R206: 2011-02-10 | S206: 2258-07-24 | T206: Brambleside Community Primary School | U206: Northamptonshire | V206: Primary | W206: Community School | X206: 2011-11-04 | Y206: 121888 | Z206: Corby Kingswood Primary School | AA206: Northamptonshire | AB206: Primary | AC206: Community School | AD206: 2012-06-14 | AE206: 131539 | AF206: Woodlands Primary School | AG206: North East Lincolnshire | AH206: Primary | AI206: Community School | AJ206: 2011-10-06 | AK206: 123978 | AL206: Hollywall Primary School | AM206: Stoke-on-Trent | AN206: Primary | AO206: Community School | AP206: 2012-06-14 | AQ206: 114919 | AR206: Ghyllgrove Community Infant School | AS206: Essex | AT206: Primary | AU206: Community School | AV206: 2012-02-09 | AW206: 115774 | AX206: Lakers School | AY206: Gloucestershire | AZ206: Secondary | BA206: Foundation School | BB206: 2011-11-10 | BC206: 114919 | BD206: Ghyllgrove Community Infant School | BE206: Essex | BF206: Primary | BG206: Community School | BH206: 2012-02-09
A207: 125063 | B207: Watchetts Junior School | C207: Surrey | D207: Primary | E207: Community School | F207: 2010-06-24 | G207: 125725 | H207: St Anne's Catholic Primary School | I207: Warwickshire | J207: Primary | K207: Voluntary Aided School | L207: 2012-05-16 | M207: 121930 | N207: The Arbours Primary School | O207: Northamptonshire | P207: Primary | Q207: Community School | R207: 2011-02-10 | S207: 2210-05-27 | T207: Bridgerule Church of England Primary School | U207: Devon | V207: Primary | W207: Voluntary Controlled School | X207: 2011-11-04 | Y207: 123978 | Z207: Hollywall Primary School | AA207: Stoke-on-Trent | AB207: Primary | AC207: Community School | AD207: 2012-06-14 | AE207: 117930 | AF207: Westcott Primary School | AG207: Kingston upon Hull City of | AH207: Primary | AI207: Community School | AJ207: 2011-10-05 | AK207: 118539 | AL207: Pilgrims' Way Primary School and Nursery | AM207: Kent | AN207: Primary | AO207: Community School | AP207: 2012-06-14 | AQ207: 124050 | AR207: Belvedere Junior School | AS207: Staffordshire | AT207: Primary | AU207: Community School | AV207: 40948 | AW207: 109660 | AX207: Robert Bruce Middle School | AY207: Bedford | AZ207: Secondary | BA207: Foundation School | BB207: 40851 | BC207: 124050 | BD207: Belvedere Junior School | BE207: Staffordshire | BF207: Primary | BG207: Community School | BH207: 40948
A208: 125044 | B208: Godalming Junior School | C208: Surrey | D208: Primary | E208: Community School | F208: 2011-09-29 | G208: 125141 | H208: St Martin's CofE Controlled Primary School, Dorking | I208: Surrey | J208: Primary | K208: Voluntary Controlled School | L208: 2012-01-24 | M208: 109714 | N208: Ashton CofE VA Middle School | O208: Central Bedfordshire | P208: Secondary | Q208: Voluntary Aided School | R208: 2011-02-10 | S208: 2202-12-04 | T208: Murrow Primary School | U208: Cambridgeshire | V208: Primary | W208: Community School | X208: 2011-11-04 | Y208: 118539 | Z208: Pilgrims' Way Primary School and Nursery | AA208: Kent | AB208: Primary | AC208: Community School | AD208: 2012-06-14 | AE208: 125529 | AF208: Wood End Primary School | AG208: Warwickshire | AH208: Primary | AI208: Community School | AJ208: 2011-09-28 | AK208: 131942 | AL208: Billesley Primary School | AM208: Birmingham | AN208: Primary | AO208: Community School | AP208: 2012-05-31 | AQ208: 116207 | AR208: Langstone Infant School | AS208: Portsmouth | AT208: Primary | AU208: Community School | AV208: 40948 | AW208: 118105 | AX208: Sir Henry Cooper School | AY208: Kingston upon Hull City of | AZ208: Secondary | BA208: Community School | BB208: 40829 | BC208: 116207 | BD208: Langstone Infant School | BE208: Portsmouth | BF208: Primary | BG208: Community School | BH208: 40948
A209: 125031 | B209: The Pilgrims' Way School | C209: Surrey | D209: Primary | E209: Community School | F209: 2011-01-18 | G209: 125109 | H209: Springfield Primary School | I209: Surrey | J209: Primary | K209: Community School | L209: 2012-05-30 | M209: 104309 | N209: Palmers Cross Primary School | O209: Wolverhampton | P209: Primary | Q209: Community School | R209: 2011-02-11 | S209: 2198-04-10 | T209: Luckwell Primary School | U209: Bristol City of | V209: Primary | W209: Foundation School | X209: 2011-11-04 | Y209: 131942 | Z209: Billesley Primary School | AA209: Birmingham | AB209: Primary | AC209: Community School | AD209: 2012-05-31 | AE209: 135213 | AF209: The Willows Primary School | AG209: West Berkshire | AH209: Primary | AI209: Community School | AJ209: 2011-09-28 | AK209: 114391 | AL209: Chiddingly Primary School | AM209: East Sussex | AN209: Primary | AO209: Community School | AP209: 2012-05-30 | AQ209: 124635 | AR209: Fen Park Community Primary School | AS209: Suffolk | AT209: Primary | AU209: Community School | AV209: 40947 | AW209: 135192 | AX209: Thomas Clarkson Community College | AY209: Cambridgeshire | AZ209: Secondary | BA209: Foundation School | BB209: 40823 | BC209: 124635 | BD209: Fen Park Community Primary School | BE209: Suffolk | BF209: Primary | BG209: Community School | BH209: 40947
A210: 124546 | B210: Houldsworth Valley Primary School | C210: Suffolk | D210: Primary | E210: Community School | F210: 2011-01-28 | G210: 125044 | H210: Godalming Junior School | I210: Surrey | J210: Primary | K210: Community School | L210: 2011-09-29 | M210: 131006 | N210: Westglade Primary School | O210: Nottingham | P210: Primary | Q210: Community School | R210: 2011-02-16 | S210: 2190-09-26 | T210: Buckton Vale Primary School | U210: Tameside | V210: Primary | W210: Community School | X210: 2011-11-08 | Y210: 114391 | Z210: Chiddingly Primary School | AA210: East Sussex | AB210: Primary | AC210: Community School | AD210: 2012-05-30 | AE210: 121104 | AF210: Narborough Church of England Voluntary Controlled Primary School | AG210: Norfolk | AH210: Primary | AI210: Voluntary Controlled School | AJ210: 2011-09-21 | AK210: 113732 | AL210: Queen's Park Junior School | AM210: Bournemouth | AN210: Primary | AO210: Community School | AP210: 2012-05-30 | AQ210: 105238 | AR210: All Saints CofE Primary School | AS210: Bolton | AT210: Primary | AU210: Voluntary Aided School | AV210: 40947 | AW210: 119737 | AX210: Collegiate High School | AY210: Blackpool | AZ210: Secondary | BA210: Foundation School | BB210: 40822 | BC210: 105238 | BD210: All Saints CofE Primary School | BE210: Bolton | BF210: Primary | BG210: Voluntary Aided School | BH210: 40947
A211: 124536 | B211: Pot Kiln Primary School | C211: Suffolk | D211: Primary | E211: Community School | F211: 2011-10-12 | G211: 125002 | H211: St John's Primary School | I211: Surrey | J211: Primary | K211: Community School | L211: 2012-04-24 | M211: 112664 | N211: Hasland Infant School | O211: Derbyshire | P211: Primary | Q211: Community School | R211: 2011-02-17 | S211: 2177-09-20 | T211: Parkway Primary School | U211: Bexley | V211: Primary | W211: Community School | X211: 2011-11-08 | Y211: 113732 | Z211: Queen's Park Junior School | AA211: Bournemouth | AB211: Primary | AC211: Community School | AD211: 2012-05-30 | AE211: 131787 | AF211: Wykeham Primary School | AG211: Havering | AH211: Primary | AI211: Community School | AJ211: 2011-09-15 | AK211: 135281 | AL211: Riverview Primary School | AM211: Staffordshire | AN211: Primary | AO211: Community School | AP211: 2012-05-30 | AQ211: 124733 | AR211: Crawford's Church of England Voluntary Controlled Primary School | AS211: Suffolk | AT211: Primary | AU211: Voluntary Controlled School | AV211: 40942 | AW211: 121220 | AX211: Caister High School | AY211: Norfolk | AZ211: Secondary | BA211: Foundation School | BB211: 40821 | BC211: 124733 | BD211: Crawford's Church of England Voluntary Controlled Primary School | BE211: Suffolk | BF211: Primary | BG211: Voluntary Controlled School | BH211: 40942
A212: 124046 | B212: Tower View Primary School | C212: Staffordshire | D212: Primary | E212: Community School | F212: 2011-11-08 | G212: 124944 | H212: Warlingham Village Primary School | I212: Surrey | J212: Primary | K212: Community School | L212: 2012-03-09 | M212: 100810 | N212: Rotherhithe Primary School | O212: Southwark | P212: Primary | Q212: Community School | R212: 2011-02-17 | S212: 2231-10-25 | T212: Norwich Road Community Primary School | U212: Norfolk | V212: Primary | W212: Community School | X212: 2011-11-09 | Y212: 135281 | Z212: Riverview Primary School | AA212: Staffordshire | AB212: Primary | AC212: Community School | AD212: 2012-05-30 | AE212: 108736 | AF212: St Wilfrid's RC College | AG212: South Tyneside | AH212: Secondary | AI212: Voluntary Aided School | AJ212: 2011-12-09 | AK212: 107289 | AL212: Feversham Primary School | AM212: Bradford | AN212: Primary | AO212: Community School | AP212: 2012-05-29 | AQ212: 106992 | AR212: Whiteways Primary School | AS212: Sheffield | AT212: Primary | AU212: Community School | AV212: 40942 | AW212: 118891 | AX212: Angley School - A Sports College | AY212: Kent | AZ212: Secondary | BA212: Foundation School | BB212: 40808 | BC212: 106992 | BD212: Whiteways Primary School | BE212: Sheffield | BF212: Primary | BG212: Community School | BH212: 40942
A213: 123978 | B213: Hollywall Primary School | C213: Stoke-on-Trent | D213: Primary | E213: Community School | F213: 2011-06-09 | G213: 124750 | H213: Worlingworth Church of England Voluntary Controlled Primary School | I213: Suffolk | J213: Primary | K213: Voluntary Controlled School | L213: 2012-06-22 | M213: 132822 | N213: Ipsley CofE Middle School | O213: Worcestershire | P213: Secondary | Q213: Voluntary Controlled School | R213: 2011-03-03 | S213: 2216-07-21 | T213: Dursley Church of England Primary School | U213: Gloucestershire | V213: Primary | W213: Voluntary Controlled School | X213: 2011-11-09 | Y213: 107289 | Z213: Feversham Primary School | AA213: Bradford | AB213: Primary | AC213: Community School | AD213: 2012-05-29 | AE213: 106648 | AF213: Darfield Foulstone School of Creative Arts | AG213: Barnsley | AH213: Secondary | AI213: Community School | AJ213: 2011-12-08 | AK213: 120902 | AL213: Thetford Queensway Community Junior School | AM213: Norfolk | AN213: Primary | AO213: Community School | AP213: 2012-05-24 | AQ213: 132252 | AR213: Downhills Primary School | AS213: Haringey | AT213: Primary | AU213: Community School | AV213: 40935 | AW213: 122864 | AX213: The Grove School | AY213: Nottinghamshire | AZ213: Secondary | BA213: Community School | BB213: 40801 | BC213: 132252 | BD213: Downhills Primary School | BE213: Haringey | BF213: Primary | BG213: Community School | BH213: 40935
A214: 123398 | B214: Stokesay Primary School | C214: Shropshire | D214: Primary | E214: Community School | F214: 2011-11-23 | G214: 124654 | H214: Clifford Road Primary School | I214: Suffolk | J214: Primary | K214: Community School | L214: 2012-03-02 | M214: 108405 | N214: Charles Thorp Comprehensive School | O214: Gateshead | P214: Secondary | Q214: Community School | R214: 2011-03-03 | S214: 2181-06-12 | T214: Cleveland Junior School | U214: Redbridge | V214: Primary | W214: Community School | X214: 2011-11-09 | Y214: 120902 | Z214: Thetford Queensway Community Junior School | AA214: Norfolk | AB214: Primary | AC214: Community School | AD214: 2012-05-24 | AE214: 102449 | AF214: Abbotsfield School | AG214: Hillingdon | AH214: Secondary | AI214: Foundation School | AJ214: 2011-12-07 | AK214: 112561 | AL214: Marlpool Junior School | AM214: Derbyshire | AN214: Primary | AO214: Community School | AP214: 2012-05-17 | AQ214: 115492 | AR214: Harewood Junior School | AS214: Gloucestershire | AT214: Primary | AU214: Foundation School | AV214: 40934 | AW214: 119751 | AX214: Up Holland High School | AY214: Lancashire | AZ214: Secondary | BA214: Community School | BB214: 40801 | BC214: 115492 | BD214: Harewood Junior School | BE214: Gloucestershire | BF214: Primary | BG214: Foundation School | BH214: 40934
A215: 123393 | B215: Harlescott Junior School | C215: Shropshire | D215: Primary | E215: Community School | F215: 2011-09-27 | G215: 124536 | H215: Pot Kiln Primary School | I215: Suffolk | J215: Primary | K215: Community School | L215: 2011-10-12 | M215: 113400 | N215: Bearnes Voluntary Primary School | O215: Devon | P215: Primary | Q215: Voluntary Controlled School | R215: 2011-03-04 | S215: 2215-06-10 | T215: Mark Hall Specialist Sport College | U215: Essex | V215: Secondary | W215: Foundation School | X215: 2011-11-09 | Y215: 112561 | Z215: Marlpool Junior School | AA215: Derbyshire | AB215: Primary | AC215: Community School | AD215: 2012-05-17 | AE215: 113539 | AF215: Tavistock College | AG215: Devon | AH215: Secondary | AI215: Community School | AJ215: 2011-12-02 | AK215: 123122 | AL215: Wheatley Church of England (C) Primary School | AM215: Oxfordshire | AN215: Primary | AO215: Voluntary Controlled School | AP215: 2012-05-10 | AQ215: 118300 | AR215: Molehill Copse Primary School | AS215: Kent | AT215: Primary | AU215: Community School | AV215: 40928 | AW215: 134126 | AX215: Torbay School | AY215: Torbay | AZ215: Special | BA215: Community Special School | BB215: 40879 | BC215: 118300 | BD215: Molehill Copse Primary School | BE215: Kent | BF215: Primary | BG215: Community School | BH215: 40928
A216: 123213 | B216: St Mary and John Church of England Primary School | C216: Oxfordshire | D216: Primary | E216: Voluntary Aided School | F216: 2010-11-25 | G216: 124252 | H216: St Peter's CofE (C) Primary School | I216: Staffordshire | J216: Primary | K216: Voluntary Controlled School | L216: 2012-05-18 | M216: 101632 | N216: Gray's Farm Primary School | O216: Bromley | P216: Primary | Q216: Community School | R216: 2011-03-04 | S216: 2270-01-19 | T216: The Victory Primary School | U216: Portsmouth | V216: Primary | W216: Community School | X216: 2011-11-11 | Y216: 123122 | Z216: Wheatley Church of England (C) Primary School | AA216: Oxfordshire | AB216: Primary | AC216: Voluntary Controlled School | AD216: 2012-05-10 | AE216: 118099 | AF216: Winterton Comprehensive School with Specialist Status in Engineering | AG216: North Lincolnshire | AH216: Secondary | AI216: Community School | AJ216: 2011-11-24 | AK216: 122444 | AL216: William Booth Primary and Nursery School | AM216: Nottingham | AN216: Primary | AO216: Community School | AP216: 2012-05-10 | AQ216: 117936 | AR216: Kingsway Primary School | AS216: East Riding of Yorkshire | AT216: Primary | AU216: Community School | AV216: 40921 | AW216: 101853 | AX216: Beckmead School | AY216: Croydon | AZ216: Special | BA216: Community Special School | BB216: 40807 | BC216: 117936 | BD216: Kingsway Primary School | BE216: East Riding of Yorkshire | BF216: Primary | BG216: Community School | BH216: 40921
A217: 122736 | B217: Glenbrook Primary and Nursery School | C217: Nottingham | D217: Primary | E217: Community School | F217: 2011-11-17 | G217: 124232 | H217: Hugo Meynell CofE (VC) Primary School | I217: Staffordshire | J217: Primary | K217: Voluntary Controlled School | L217: 2012-02-09 | M217: 117354 | N217: Radburn Primary School | O217: Hertfordshire | P217: Primary | Q217: Community School | R217: 2011-03-08 | S217: 2192-01-05 | T217: Holgate School Sports College | U217: Barnsley | V217: Secondary | W217: Voluntary Controlled School | X217: 2011-11-11 | Y217: 122444 | Z217: William Booth Primary and Nursery School | AA217: Nottingham | AB217: Primary | AC217: Community School | AD217: 2012-05-10 | AE217: 104965 | AF217: St Wilfrid's Catholic High School | AG217: Sefton | AH217: Secondary | AI217: Voluntary Aided School | AJ217: 2011-11-24 | AK217: 106225 | AL217: Leigh Primary School | AM217: Tameside | AN217: Primary | AO217: Community School | AP217: 2012-05-10 | AQ217: 108845 | AR217: St Patrick's Roman Catholic Voluntary Aided Primary School | AS217: Sunderland | AT217: Primary | AU217: Voluntary Aided School | AV217: 40920 | AW217: 114693 | AX217: The Lindfield School | AY217: East Sussex | AZ217: Special | BA217: Community Special School | BB217: 40801 | BC217: 108845 | BD217: St Patrick's Roman Catholic Voluntary Aided Primary School | BE217: Sunderland | BF217: Primary | BG217: Voluntary Aided School | BH217: 40920
... 521 more rows

Sheet Table 1
B2: ="Table 1: Number of maintained schools inspections " & IF('Table 1'!C4=Dates!$E$3, "between " & Dates!$E$3, IF('Table 1'!C4 = Dates!E4, "in " & Dates!E4, IF('Table 1'!C4=Dates!E5, "in " & Dates!E5, IF('Table 1'!C4=Dates!E6, "in " & Dates!E6, IF('Table 1'!C4=Dates!E7, "in " & Dates!E7))))) & ", by inspection type (final) " & CHAR(185) & " " & CHAR(178) -> Table 1: Number of maintained schools inspections between 1 September 2011 and 31 August 2012, by inspection type (final) ¹ ²
B4: Select period: | C4: 1 September 2011 and 31 August 2012
B6: Number of schools
B7: Inspection activity (section 5) | D7: All phases | E7: Nursery | F7: Primary | G7: Secondary | H7: Special | I7: Pupil referral unit
B8: Section 5 inspection | D8: =IF($C$4=Dates!$E$3,DataPack!B3,IF($C$4=Dates!$E$4,DataPack!I3,IF($C$4=Dates!$E$5,DataPack!P3))) -> 5951 | E8: =IF($C$4=Dates!$E$3, DataPack!C3, IF($C$4=Dates!$E$4,DataPack!J3, IF($C$4=Dates!$E$5, DataPack!Q3, IF($C$4=Dates!$E$6, DataPack!X3)))) -> 141 | F8: =IF($C$4=Dates!$E$3, DataPack!D3, IF($C$4=Dates!$E$4,DataPack!K3, IF($C$4=Dates!$E$5, DataPack!R3, IF($C$4=Dates!$E$6, DataPack!Y3)))) -> 4489 | G8: =IF($C$4=Dates!$E$3, DataPack!E3, IF($C$4=Dates!$E$4,DataPack!L3, IF($C$4=Dates!$E$5, DataPack!S3, IF($C$4=Dates!$E$6, DataPack!Z3)))) -> 896 | H8: =IF($C$4=Dates!$E$3, DataPack!F3, IF($C$4=Dates!$E$4,DataPack!M3, IF($C$4=Dates!$E$5, DataPack!T3, IF($C$4=Dates!$E$6, DataPack!AA3)))) -> 275 | I8: =IF($C$4=Dates!$E$3, DataPack!G3, IF($C$4=Dates!$E$4,DataPack!N3, IF($C$4=Dates!$E$5, DataPack!U3, IF($C$4=Dates!$E$6, DataPack!AB3)))) -> 150
B9: Section 8 deemed section 5 inspection | D9: =IF($C$4=Dates!$E$3, DataPack!B4, IF($C$4=Dates!$E$4,DataPack!I4, IF($C$4=Dates!$E$5, DataPack!P4, IF($C$4=Dates!$E$6, DataPack!W4)))) -> 188 | E9: =IF($C$4=Dates!$E$3, DataPack!C4, IF($C$4=Dates!$E$4,DataPack!J4, IF($C$4=Dates!$E$5, DataPack!Q4, IF($C$4=Dates!$E$6, DataPack!X4)))) -> 2 | F9: =IF($C$4=Dates!$E$3, DataPack!D4, IF($C$4=Dates!$E$4,DataPack!K4, IF($C$4=Dates!$E$5, DataPack!R4, IF($C$4=Dates!$E$6, DataPack!Y4)))) -> 147 | G9: =IF($C$4=Dates!$E$3, DataPack!E4, IF($C$4=Dates!$E$4,DataPack!L4, IF($C$4=Dates!$E$5, DataPack!S4, IF($C$4=Dates!$E$6, DataPack!Z4)))) -> 30 | H9: =IF($C$4=Dates!$E$3, DataPack!F4, IF($C$4=Dates!$E$4,DataPack!M4, IF($C$4=Dates!$E$5, DataPack!T4, IF($C$4=Dates!$E$6, DataPack!AA4)))) -> 7 | I9: =IF($C$4=Dates!$E$3, DataPack!G4, IF($C$4=Dates!$E$4,DataPack!N4, IF($C$4=Dates!$E$5, DataPack!U4, IF($C$4=Dates!$E$6, DataPack!AB4)))) -> 2
B11: Inspection activity (section 8) | D11: All phases | E11: Nursery | F11: Primary | G11: Secondary | H11: Special | I11: Pupil referral unit
B12: Special measures monitoring inspection | D12: =IF($C$4=Dates!$E$3, DataPack!B5, IF($C$4=Dates!$E$4,DataPack!I5, IF($C$4=Dates!$E$5, DataPack!P5, IF($C$4=Dates!$E$6, DataPack!W5)))) -> 594 | E12: =IF($C$4=Dates!$E$3, DataPack!C5, IF($C$4=Dates!$E$4,DataPack!J5, IF($C$4=Dates!$E$5, DataPack!Q5, IF($C$4=Dates!$E$6, DataPack!X5)))) -> 3 | F12: =IF($C$4=Dates!$E$3, DataPack!D5, IF($C$4=Dates!$E$4,DataPack!K5, IF($C$4=Dates!$E$5, DataPack!R5, IF($C$4=Dates!$E$6, DataPack!Y5)))) -> 461 | G12: =IF($C$4=Dates!$E$3, DataPack!E5, IF($C$4=Dates!$E$4,DataPack!L5, IF($C$4=Dates!$E$5, DataPack!S5, IF($C$4=Dates!$E$6, DataPack!Z5)))) -> 94 | H12: =IF($C$4=Dates!$E$3, DataPack!F5, IF($C$4=Dates!$E$4,DataPack!M5, IF($C$4=Dates!$E$5, DataPack!T5, IF($C$4=Dates!$E$6, DataPack!AA5)))) -> 27 | I12: =IF($C$4=Dates!$E$3, DataPack!G5, IF($C$4=Dates!$E$4,DataPack!N5, IF($C$4=Dates!$E$5, DataPack!U5, IF($C$4=Dates!$E$6, DataPack!AB5)))) -> 9
B13: Notice to improve monitoring inspection | D13: =IF($C$4=Dates!$E$3, DataPack!B6, IF($C$4=Dates!$E$4,DataPack!I6, IF($C$4=Dates!$E$5, DataPack!P6, IF($C$4=Dates!$E$6, DataPack!W6)))) -> 139 | E13: =IF($C$4=Dates!$E$3, DataPack!C6, IF($C$4=Dates!$E$4,DataPack!J6, IF($C$4=Dates!$E$5, DataPack!Q6, IF($C$4=Dates!$E$6, DataPack!X6)))) -> 0 | F13: =IF($C$4=Dates!$E$3, DataPack!D6, IF($C$4=Dates!$E$4,DataPack!K6, IF($C$4=Dates!$E$5, DataPack!R6, IF($C$4=Dates!$E$6, DataPack!Y6)))) -> 102 | G13: =IF($C$4=Dates!$E$3, DataPack!E6, IF($C$4=Dates!$E$4,DataPack!L6, IF($C$4=Dates!$E$5, DataPack!S6, IF($C$4=Dates!$E$6, DataPack!Z6)))) -> 28 | H13: =IF($C$4=Dates!$E$3, DataPack!F6, IF($C$4=Dates!$E$4,DataPack!M6, IF($C$4=Dates!$E$5, DataPack!T6, IF($C$4=Dates!$E$6, DataPack!AA6)))) -> 5 | I13: =IF($C$4=Dates!$E$3, DataPack!G6, IF($C$4=Dates!$E$4,DataPack!N6, IF($C$4=Dates!$E$5, DataPack!U6, IF($C$4=Dates!$E$6, DataPack!AB6)))) -> 4
B14: Grade 3 monitoring inspection | D14: =IF($C$4=Dates!$E$3, DataPack!B7, IF($C$4=Dates!$E$4,DataPack!I7, IF($C$4=Dates!$E$5, DataPack!P7, IF($C$4=Dates!$E$6, DataPack!W7)))) -> 384 | E14: =IF($C$4=Dates!$E$3, DataPack!C7, IF($C$4=Dates!$E$4,DataPack!J7, IF($C$4=Dates!$E$5, DataPack!Q7, IF($C$4=Dates!$E$6, DataPack!X7)))) -> 0 | F14: =IF($C$4=Dates!$E$3, DataPack!D7, IF($C$4=Dates!$E$4,DataPack!K7, IF($C$4=Dates!$E$5, DataPack!R7, IF($C$4=Dates!$E$6, DataPack!Y7)))) -> 272 | G14: =IF($C$4=Dates!$E$3, DataPack!E7, IF($C$4=Dates!$E$4,DataPack!L7, IF($C$4=Dates!$E$5, DataPack!S7, IF($C$4=Dates!$E$6, DataPack!Z7)))) -> 94 | H14: =IF($C$4=Dates!$E$3, DataPack!F7, IF($C$4=Dates!$E$4,DataPack!M7, IF($C$4=Dates!$E$5, DataPack!T7, IF($C$4=Dates!$E$6, DataPack!AA7)))) -> 10 | I14: =IF($C$4=Dates!$E$3, DataPack!G7, IF($C$4=Dates!$E$4,DataPack!N7, IF($C$4=Dates!$E$5, DataPack!U7, IF($C$4=Dates!$E$6, DataPack!AB7)))) -> 8
B15: Academy monitoring inspection | D15: =IF($C$4=Dates!$E$3, DataPack!B8, IF($C$4=Dates!$E$4,DataPack!I8, IF($C$4=Dates!$E$5, DataPack!P8, IF($C$4=Dates!$E$6, DataPack!W8)))) -> 73 | E15: =IF($C$4=Dates!$E$3, DataPack!C8, IF($C$4=Dates!$E$4,DataPack!J8, IF($C$4=Dates!$E$5, DataPack!Q8, IF($C$4=Dates!$E$6, DataPack!X8)))) -> 0 | F15: =IF($C$4=Dates!$E$3, DataPack!D8, IF($C$4=Dates!$E$4,DataPack!K8, IF($C$4=Dates!$E$5, DataPack!R8, IF($C$4=Dates!$E$6, DataPack!Y8)))) -> 0 | G15: =IF($C$4=Dates!$E$3, DataPack!E8, IF($C$4=Dates!$E$4,DataPack!L8, IF($C$4=Dates!$E$5, DataPack!S8, IF($C$4=Dates!$E$6, DataPack!Z8)))) -> 73 | H15: =IF($C$4=Dates!$E$3, DataPack!F8, IF($C$4=Dates!$E$4,DataPack!M8, IF($C$4=Dates!$E$5, DataPack!T8, IF($C$4=Dates!$E$6, DataPack!AA8)))) -> 0 | I15: =IF($C$4=Dates!$E$3, DataPack!G8, IF($C$4=Dates!$E$4,DataPack!N8, IF($C$4=Dates!$E$5, DataPack!U8, IF($C$4=Dates!$E$6, DataPack!AB8)))) -> 0
B16: Section 8 No formal designation visit | D16: =IF($C$4=Dates!$E$3, DataPack!B9, IF($C$4=Dates!$E$4,DataPack!I9, IF($C$4=Dates!$E$5, DataPack!P9, IF($C$4=Dates!$E$6, DataPack!W9)))) -> 1 | E16: =IF($C$4=Dates!$E$3, DataPack!C9, IF($C$4=Dates!$E$4,DataPack!J9, IF($C$4=Dates!$E$5, DataPack!Q9, IF($C$4=Dates!$E$6, DataPack!X9)))) -> 0 | F16: =IF($C$4=Dates!$E$3, DataPack!D9, IF($C$4=Dates!$E$4,DataPack!K9, IF($C$4=Dates!$E$5, DataPack!R9, IF($C$4=Dates!$E$6, DataPack!Y9)))) -> 0 | G16: =IF($C$4=Dates!$E$3, DataPack!E9, IF($C$4=Dates!$E$4,DataPack!L9, IF($C$4=Dates!$E$5, DataPack!S9, IF($C$4=Dates!$E$6, DataPack!Z9)))) -> 1 | H16: =IF($C$4=Dates!$E$3, DataPack!F9, IF($C$4=Dates!$E$4,DataPack!M9, IF($C$4=Dates!$E$5, DataPack!T9, IF($C$4=Dates!$E$6, DataPack!AA9)))) -> 0 | I16: =IF($C$4=Dates!$E$3, DataPack!G9, IF($C$4=Dates!$E$4,DataPack!N9, IF($C$4=Dates!$E$5, DataPack!U9, IF($C$4=Dates!$E$6, DataPack!AB9)))) -> 0
B18: Inspection activity (welfare-only inspection of boarding / residential provision) | D18: All phases | E18: Nursery | F18: Primary | G18: Secondary | H18: Special | I18: Pupil referral unit
B19: Emergency inspection | D19: =IF($C$4=Dates!$E$3, DataPack!B10, IF($C$4=Dates!$E$4,DataPack!I10, IF($C$4=Dates!$E$5, DataPack!P10, IF($C$4=Dates!$E$6, DataPack!W10)))) -> 0 | E19: =IF($C$4=Dates!$E$3, DataPack!C10, IF($C$4=Dates!$E$4,DataPack!J10, IF($C$4=Dates!$E$5, DataPack!Q10, IF($C$4=Dates!$E$6, DataPack!X10)))) -> 0 | F19: =IF($C$4=Dates!$E$3, DataPack!D10, IF($C$4=Dates!$E$4,DataPack!K10, IF($C$4=Dates!$E$5, DataPack!R10, IF($C$4=Dates!$E$6, DataPack!Y10)))) -> 0 | G19: =IF($C$4=Dates!$E$3, DataPack!E10, IF($C$4=Dates!$E$4,DataPack!L10, IF($C$4=Dates!$E$5, DataPack!S10, IF($C$4=Dates!$E$6, DataPack!Z10)))) -> 0 | H19: =IF($C$4=Dates!$E$3, DataPack!F10, IF($C$4=Dates!$E$4,DataPack!M10, IF($C$4=Dates!$E$5, DataPack!T10, IF($C$4=Dates!$E$6, DataPack!AA10)))) -> 0 | I19: =IF($C$4=Dates!$E$3, DataPack!G10, IF($C$4=Dates!$E$4,DataPack!N10, IF($C$4=Dates!$E$5, DataPack!U10, IF($C$4=Dates!$E$6, DataPack!AB10)))) -> 0
B20: Progress monitoring inspection | D20: =IF($C$4=Dates!$E$3, DataPack!B11, IF($C$4=Dates!$E$4,DataPack!I11, IF($C$4=Dates!$E$5, DataPack!P11, IF($C$4=Dates!$E$6, DataPack!W11)))) -> 2 | E20: =IF($C$4=Dates!$E$3, DataPack!C11, IF($C$4=Dates!$E$4,DataPack!J11, IF($C$4=Dates!$E$5, DataPack!Q11, IF($C$4=Dates!$E$6, DataPack!X11)))) -> 0 | F20: =IF($C$4=Dates!$E$3, DataPack!D11, IF($C$4=Dates!$E$4,DataPack!K11, IF($C$4=Dates!$E$5, DataPack!R11, IF($C$4=Dates!$E$6, DataPack!Y11)))) -> 0 | G20: =IF($C$4=Dates!$E$3, DataPack!E11, IF($C$4=Dates!$E$4,DataPack!L11, IF($C$4=Dates!$E$5, DataPack!S11, IF($C$4=Dates!$E$6, DataPack!Z11)))) -> 0 | H20: =IF($C$4=Dates!$E$3, DataPack!F11, IF($C$4=Dates!$E$4,DataPack!M11, IF($C$4=Dates!$E$5, DataPack!T11, IF($C$4=Dates!$E$6, DataPack!AA11)))) -> 2 | I20: =IF($C$4=Dates!$E$3, DataPack!G11, IF($C$4=Dates!$E$4,DataPack!N11, IF($C$4=Dates!$E$5, DataPack!U11, IF($C$4=Dates!$E$6, DataPack!AB11)))) -> 0
I21: Source: Ofsted inspections
B22: 1. Primary, secondary and special academy converters are included with primary, secondary and special phases respectively.
B23: 2. Secondary includes sponsor-led academies and city technology colleges.
B24: 3. The total number of full inspections includes 18 integrated inspections.
B25: 4. The total number of special measures monitoring inspections includes one integrated inspection.
B26: =IF(Table1="1 April 2012 and 30 June 2012","5. These statistics exclude around 30 schools which were inspected during the quarter but where the inspection report had not been published by 31 July","") -> 

Sheet Table 2
B2: ="Table 2: Inspection outcomes of maintained schools inspected " & IF('Table 2'!B4=Dates!$E$3, "between " & Dates!$E$3, IF('Table 2'!B4 = Dates!E4, "in " & Dates!E4, IF('Table 2'!B4=Dates!E5, "in " & Dates!E5, IF('Table 2'!B4=Dates!E6, "in " & Dates!E6, IF('Table 2'!B4=Dates!E7, "in " & Dates!E7))))) & " (final) " & CHAR(185)& " " & CHAR(178) -> Table 2: Inspection outcomes of maintained schools inspected between 1 September 2011 and 31 August 2012 (final) ¹ ²
B4: 1 September 2011 and 31 August 2012
D6: Total number inspected | E6: Outstanding | G6: Good | I6: Satisfactory | K6: Inadequate
E7: Number | F7: % | G7: Number | H7: % | I7: Number | J7: % | K7: Number | L7: %
B9: Overall Effectiveness | D9: =IF($B$4=Dates!$E$3,DataPack!B15,IF($B$4=Dates!$E$4,DataPack!L15,IF($B$4=Dates!$E$5,DataPack!V15,IF($B$4=Dates!$E$6,DataPack!AF15,IF($B$4=Dates!$E$7,DataPack!U15))))) -> 6139 | E9: =IF($B$4=Dates!$E$3,DataPack!C15,IF($B$4=Dates!$E$4,DataPack!M15,IF($B$4=Dates!$E$5,DataPack!W15,IF($B$4=Dates!$E$6,DataPack!AG15,IF($B$4=Dates!$E$7,DataPack!V15))))) -> 719 | F9: =IF($B$4=Dates!$E$3,DataPack!D15,IF($B$4=Dates!$E$4,DataPack!N15,IF($B$4=Dates!$E$5,DataPack!X15,IF($B$4=Dates!$E$6,DataPack!AH15,IF($B$4=Dates!$E$7,DataPack!W15))))) -> 12 | G9: =IF($B$4=Dates!$E$3,DataPack!E15,IF($B$4=Dates!$E$4,DataPack!O15,IF($B$4=Dates!$E$5,DataPack!Y15,IF($B$4=Dates!$E$6,DataPack!AI15,IF($B$4=Dates!$E$7,DataPack!X15))))) -> 3036 | H9: =IF($B$4=Dates!$E$3,DataPack!F15,IF($B$4=Dates!$E$4,DataPack!P15,IF($B$4=Dates!$E$5,DataPack!Z15,IF($B$4=Dates!$E$6,DataPack!AJ15,IF($B$4=Dates!$E$7,DataPack!Y15))))) -> 49 | I9: =IF($B$4=Dates!$E$3,DataPack!G15,IF($B$4=Dates!$E$4,DataPack!Q15,IF($B$4=Dates!$E$5,DataPack!AA15,IF($B$4=Dates!$E$6,DataPack!AK15,IF($B$4=Dates!$E$7,DataPack!Z15))))) -> 1877 | J9: =IF($B$4=Dates!$E$3,DataPack!H15,IF($B$4=Dates!$E$4,DataPack!R15,IF($B$4=Dates!$E$5,DataPack!AB15,IF($B$4=Dates!$E$6,DataPack!AL15,IF($B$4=Dates!$E$7,DataPack!AA15))))) -> 31 | K9: =IF($B$4=Dates!$E$3,DataPack!I15,IF($B$4=Dates!$E$4,DataPack!S15,IF($B$4=Dates!$E$5,DataPack!AC15,IF($B$4=Dates!$E$6,DataPack!AM15,IF($B$4=Dates!$E$7,DataPack!AB15))))) -> 507 | L9: =IF($B$4=Dates!$E$3,DataPack!J15,IF($B$4=Dates!$E$4,DataPack!T15,IF($B$4=Dates!$E$5,DataPack!AD15,IF($B$4=Dates!$E$6,DataPack!AN15,IF($B$4=Dates!$E$7,DataPack!AC15))))) -> 8
B10: Achievement of pupils at the school | D10: =IF($B$4=Dates!$E$3,DataPack!B16,IF($B$4=Dates!$E$4,DataPack!L16,IF($B$4=Dates!$E$5,DataPack!V16,IF($B$4=Dates!$E$6,DataPack!AF16,IF($B$4=Dates!$E$7,DataPack!U16))))) -> 6139 | E10: =IF($B$4=Dates!$E$3,DataPack!C16,IF($B$4=Dates!$E$4,DataPack!M16,IF($B$4=Dates!$E$5,DataPack!W16,IF($B$4=Dates!$E$6,DataPack!AG16,IF($B$4=Dates!$E$7,DataPack!V16))))) -> 695 | F10: =IF($B$4=Dates!$E$3,DataPack!D16,IF($B$4=Dates!$E$4,DataPack!N16,IF($B$4=Dates!$E$5,DataPack!X16,IF($B$4=Dates!$E$6,DataPack!AH16,IF($B$4=Dates!$E$7,DataPack!W16))))) -> 11 | G10: =IF($B$4=Dates!$E$3,DataPack!E16,IF($B$4=Dates!$E$4,DataPack!O16,IF($B$4=Dates!$E$5,DataPack!Y16,IF($B$4=Dates!$E$6,DataPack!AI16,IF($B$4=Dates!$E$7,DataPack!X16))))) -> 3068 | H10: =IF($B$4=Dates!$E$3,DataPack!F16,IF($B$4=Dates!$E$4,DataPack!P16,IF($B$4=Dates!$E$5,DataPack!Z16,IF($B$4=Dates!$E$6,DataPack!AJ16,IF($B$4=Dates!$E$7,DataPack!Y16))))) -> 50 | I10: =IF($B$4=Dates!$E$3,DataPack!G16,IF($B$4=Dates!$E$4,DataPack!Q16,IF($B$4=Dates!$E$5,DataPack!AA16,IF($B$4=Dates!$E$6,DataPack!AK16,IF($B$4=Dates!$E$7,DataPack!Z16))))) -> 1923 | J10: =IF($B$4=Dates!$E$3,DataPack!H16,IF($B$4=Dates!$E$4,DataPack!R16,IF($B$4=Dates!$E$5,DataPack!AB16,IF($B$4=Dates!$E$6,DataPack!AL16,IF($B$4=Dates!$E$7,DataPack!AA16))))) -> 31 | K10: =IF($B$4=Dates!$E$3,DataPack!I16,IF($B$4=Dates!$E$4,DataPack!S16,IF($B$4=Dates!$E$5,DataPack!AC16,IF($B$4=Dates!$E$6,DataPack!AM16,IF($B$4=Dates!$E$7,DataPack!AB16))))) -> 453 | L10: =IF($B$4=Dates!$E$3,DataPack!J16,IF($B$4=Dates!$E$4,DataPack!T16,IF($B$4=Dates!$E$5,DataPack!AD16,IF($B$4=Dates!$E$6,DataPack!AN16,IF($B$4=Dates!$E$7,DataPack!AC16))))) -> 7
B11: Behaviour and safety of pupils | D11: =IF($B$4=Dates!$E$3,DataPack!B17,IF($B$4=Dates!$E$4,DataPack!L17,IF($B$4=Dates!$E$5,DataPack!V17,IF($B$4=Dates!$E$6,DataPack!AF17,IF($B$4=Dates!$E$7,DataPack!U17))))) -> 6139 | E11: =IF($B$4=Dates!$E$3,DataPack!C17,IF($B$4=Dates!$E$4,DataPack!M17,IF($B$4=Dates!$E$5,DataPack!W17,IF($B$4=Dates!$E$6,DataPack!AG17,IF($B$4=Dates!$E$7,DataPack!V17))))) -> 1409 | F11: =IF($B$4=Dates!$E$3,DataPack!D17,IF($B$4=Dates!$E$4,DataPack!N17,IF($B$4=Dates!$E$5,DataPack!X17,IF($B$4=Dates!$E$6,DataPack!AH17,IF($B$4=Dates!$E$7,DataPack!W17))))) -> 23 | G11: =IF($B$4=Dates!$E$3,DataPack!E17,IF($B$4=Dates!$E$4,DataPack!O17,IF($B$4=Dates!$E$5,DataPack!Y17,IF($B$4=Dates!$E$6,DataPack!AI17,IF($B$4=Dates!$E$7,DataPack!X17))))) -> 3670 | H11: =IF($B$4=Dates!$E$3,DataPack!F17,IF($B$4=Dates!$E$4,DataPack!P17,IF($B$4=Dates!$E$5,DataPack!Z17,IF($B$4=Dates!$E$6,DataPack!AJ17,IF($B$4=Dates!$E$7,DataPack!Y17))))) -> 60 | I11: =IF($B$4=Dates!$E$3,DataPack!G17,IF($B$4=Dates!$E$4,DataPack!Q17,IF($B$4=Dates!$E$5,DataPack!AA17,IF($B$4=Dates!$E$6,DataPack!AK17,IF($B$4=Dates!$E$7,DataPack!Z17))))) -> 957 | J11: =IF($B$4=Dates!$E$3,DataPack!H17,IF($B$4=Dates!$E$4,DataPack!R17,IF($B$4=Dates!$E$5,DataPack!AB17,IF($B$4=Dates!$E$6,DataPack!AL17,IF($B$4=Dates!$E$7,DataPack!AA17))))) -> 16 | K11: =IF($B$4=Dates!$E$3,DataPack!I17,IF($B$4=Dates!$E$4,DataPack!S17,IF($B$4=Dates!$E$5,DataPack!AC17,IF($B$4=Dates!$E$6,DataPack!AM17,IF($B$4=Dates!$E$7,DataPack!AB17))))) -> 103 | L11: =IF($B$4=Dates!$E$3,DataPack!J17,IF($B$4=Dates!$E$4,DataPack!T17,IF($B$4=Dates!$E$5,DataPack!AD17,IF($B$4=Dates!$E$6,DataPack!AN17,IF($B$4=Dates!$E$7,DataPack!AC17))))) -> 2
B12: Quality of teaching | D12: =IF($B$4=Dates!$E$3,DataPack!B18,IF($B$4=Dates!$E$4,DataPack!L18,IF($B$4=Dates!$E$5,DataPack!V18,IF($B$4=Dates!$E$6,DataPack!AF18,IF($B$4=Dates!$E$7,DataPack!U18))))) -> 6139 | E12: =IF($B$4=Dates!$E$3,DataPack!C18,IF($B$4=Dates!$E$4,DataPack!M18,IF($B$4=Dates!$E$5,DataPack!W18,IF($B$4=Dates!$E$6,DataPack!AG18,IF($B$4=Dates!$E$7,DataPack!V18))))) -> 572 | F12: =IF($B$4=Dates!$E$3,DataPack!D18,IF($B$4=Dates!$E$4,DataPack!N18,IF($B$4=Dates!$E$5,DataPack!X18,IF($B$4=Dates!$E$6,DataPack!AH18,IF($B$4=Dates!$E$7,DataPack!W18))))) -> 9 | G12: =IF($B$4=Dates!$E$3,DataPack!E18,IF($B$4=Dates!$E$4,DataPack!O18,IF($B$4=Dates!$E$5,DataPack!Y18,IF($B$4=Dates!$E$6,DataPack!AI18,IF($B$4=Dates!$E$7,DataPack!X18))))) -> 3252 | H12: =IF($B$4=Dates!$E$3,DataPack!F18,IF($B$4=Dates!$E$4,DataPack!P18,IF($B$4=Dates!$E$5,DataPack!Z18,IF($B$4=Dates!$E$6,DataPack!AJ18,IF($B$4=Dates!$E$7,DataPack!Y18))))) -> 53 | I12: =IF($B$4=Dates!$E$3,DataPack!G18,IF($B$4=Dates!$E$4,DataPack!Q18,IF($B$4=Dates!$E$5,DataPack!AA18,IF($B$4=Dates!$E$6,DataPack!AK18,IF($B$4=Dates!$E$7,DataPack!Z18))))) -> 1979 | J12: =IF($B$4=Dates!$E$3,DataPack!H18,IF($B$4=Dates!$E$4,DataPack!R18,IF($B$4=Dates!$E$5,DataPack!AB18,IF($B$4=Dates!$E$6,DataPack!AL18,IF($B$4=Dates!$E$7,DataPack!AA18))))) -> 32 | K12: =IF($B$4=Dates!$E$3,DataPack!I18,IF($B$4=Dates!$E$4,DataPack!S18,IF($B$4=Dates!$E$5,DataPack!AC18,IF($B$4=Dates!$E$6,DataPack!AM18,IF($B$4=Dates!$E$7,DataPack!AB18))))) -> 336 | L12: =IF($B$4=Dates!$E$3,DataPack!J18,IF($B$4=Dates!$E$4,DataPack!T18,IF($B$4=Dates!$E$5,DataPack!AD18,IF($B$4=Dates!$E$6,DataPack!AN18,IF($B$4=Dates!$E$7,DataPack!AC18))))) -> 5
B13: Leadership and management | D13: =IF($B$4=Dates!$E$3,DataPack!B19,IF($B$4=Dates!$E$4,DataPack!L19,IF($B$4=Dates!$E$5,DataPack!V19,IF($B$4=Dates!$E$6,DataPack!AF19,IF($B$4=Dates!$E$7,DataPack!U19))))) -> 6139 | E13: =IF($B$4=Dates!$E$3,DataPack!C19,IF($B$4=Dates!$E$4,DataPack!M19,IF($B$4=Dates!$E$5,DataPack!W19,IF($B$4=Dates!$E$6,DataPack!AG19,IF($B$4=Dates!$E$7,DataPack!V19))))) -> 852 | F13: =IF($B$4=Dates!$E$3,DataPack!D19,IF($B$4=Dates!$E$4,DataPack!N19,IF($B$4=Dates!$E$5,DataPack!X19,IF($B$4=Dates!$E$6,DataPack!AH19,IF($B$4=Dates!$E$7,DataPack!W19))))) -> 14 | G13: =IF($B$4=Dates!$E$3,DataPack!E19,IF($B$4=Dates!$E$4,DataPack!O19,IF($B$4=Dates!$E$5,DataPack!Y19,IF($B$4=Dates!$E$6,DataPack!AI19,IF($B$4=Dates!$E$7,DataPack!X19))))) -> 3297 | H13: =IF($B$4=Dates!$E$3,DataPack!F19,IF($B$4=Dates!$E$4,DataPack!P19,IF($B$4=Dates!$E$5,DataPack!Z19,IF($B$4=Dates!$E$6,DataPack!AJ19,IF($B$4=Dates!$E$7,DataPack!Y19))))) -> 54 | I13: =IF($B$4=Dates!$E$3,DataPack!G19,IF($B$4=Dates!$E$4,DataPack!Q19,IF($B$4=Dates!$E$5,DataPack!AA19,IF($B$4=Dates!$E$6,DataPack!AK19,IF($B$4=Dates!$E$7,DataPack!Z19))))) -> 1641 | J13: =IF($B$4=Dates!$E$3,DataPack!H19,IF($B$4=Dates!$E$4,DataPack!R19,IF($B$4=Dates!$E$5,DataPack!AB19,IF($B$4=Dates!$E$6,DataPack!AL19,IF($B$4=Dates!$E$7,DataPack!AA19))))) -> 27 | K13: =IF($B$4=Dates!$E$3,DataPack!I19,IF($B$4=Dates!$E$4,DataPack!S19,IF($B$4=Dates!$E$5,DataPack!AC19,IF($B$4=Dates!$E$6,DataPack!AM19,IF($B$4=Dates!$E$7,DataPack!AB19))))) -> 349 | L13: =IF($B$4=Dates!$E$3,DataPack!J19,IF($B$4=Dates!$E$4,DataPack!T19,IF($B$4=Dates!$E$5,DataPack!AD19,IF($B$4=Dates!$E$6,DataPack!AN19,IF($B$4=Dates!$E$7,DataPack!AC19))))) -> 6
B14: Overall effectiveness of the residential or boarding provision 2 | D14: =IF($B$4=Dates!$E$3,DataPack!B20,IF($B$4=Dates!$E$4,DataPack!L20,IF($B$4=Dates!$E$5,DataPack!V20,IF($B$4=Dates!$E$6,DataPack!AF20,IF($B$4=Dates!$E$7,DataPack!U20))))) -> 18 | E14: =IF($B$4=Dates!$E$3,DataPack!C20,IF($B$4=Dates!$E$4,DataPack!M20,IF($B$4=Dates!$E$5,DataPack!W20,IF($B$4=Dates!$E$6,DataPack!AG20,IF($B$4=Dates!$E$7,DataPack!V20))))) -> 9 | F14: =IF($B$4=Dates!$E$3,DataPack!D20,IF($B$4=Dates!$E$4,DataPack!N20,IF($B$4=Dates!$E$5,DataPack!X20,IF($B$4=Dates!$E$6,DataPack!AH20,IF($B$4=Dates!$E$7,DataPack!W20))))) -> 50 | G14: =IF($B$4=Dates!$E$3,DataPack!E20,IF($B$4=Dates!$E$4,DataPack!O20,IF($B$4=Dates!$E$5,DataPack!Y20,IF($B$4=Dates!$E$6,DataPack!AI20,IF($B$4=Dates!$E$7,DataPack!X20))))) -> 4 | H14: =IF($B$4=Dates!$E$3,DataPack!F20,IF($B$4=Dates!$E$4,DataPack!P20,IF($B$4=Dates!$E$5,DataPack!Z20,IF($B$4=Dates!$E$6,DataPack!AJ20,IF($B$4=Dates!$E$7,DataPack!Y20))))) -> 22.22222222 | I14: =IF($B$4=Dates!$E$3,DataPack!G20,IF($B$4=Dates!$E$4,DataPack!Q20,IF($B$4=Dates!$E$5,DataPack!AA20,IF($B$4=Dates!$E$6,DataPack!AK20,IF($B$4=Dates!$E$7,DataPack!Z20))))) -> 3 | J14: =IF($B$4=Dates!$E$3,DataPack!H20,IF($B$4=Dates!$E$4,DataPack!R20,IF($B$4=Dates!$E$5,DataPack!AB20,IF($B$4=Dates!$E$6,DataPack!AL20,IF($B$4=Dates!$E$7,DataPack!AA20))))) -> 16.66666667 | K14: =IF($B$4=Dates!$E$3,DataPack!I20,IF($B$4=Dates!$E$4,DataPack!S20,IF($B$4=Dates!$E$5,DataPack!AC20,IF($B$4=Dates!$E$6,DataPack!AM20,IF($B$4=Dates!$E$7,DataPack!AB20))))) -> 2 | L14: =IF($B$4=Dates!$E$3,DataPack!J20,IF($B$4=Dates!$E$4,DataPack!T20,IF($B$4=Dates!$E$5,DataPack!AD20,IF($B$4=Dates!$E$6,DataPack!AN20,IF($B$4=Dates!$E$7,DataPack!AC20))))) -> 11.11111111
B15: Outcomes for residential or boarding pupils 2 | D15: =IF($B$4=Dates!$E$3,DataPack!B21,IF($B$4=Dates!$E$4,DataPack!L21,IF($B$4=Dates!$E$5,DataPack!V21,IF($B$4=Dates!$E$6,DataPack!AF21,IF($B$4=Dates!$E$7,DataPack!U21))))) -> 18 | E15: =IF($B$4=Dates!$E$3,DataPack!C21,IF($B$4=Dates!$E$4,DataPack!M21,IF($B$4=Dates!$E$5,DataPack!W21,IF($B$4=Dates!$E$6,DataPack!AG21,IF($B$4=Dates!$E$7,DataPack!V21))))) -> 11 | F15: =IF($B$4=Dates!$E$3,DataPack!D21,IF($B$4=Dates!$E$4,DataPack!N21,IF($B$4=Dates!$E$5,DataPack!X21,IF($B$4=Dates!$E$6,DataPack!AH21,IF($B$4=Dates!$E$7,DataPack!W21))))) -> 61.11111111 | G15: =IF($B$4=Dates!$E$3,DataPack!E21,IF($B$4=Dates!$E$4,DataPack!O21,IF($B$4=Dates!$E$5,DataPack!Y21,IF($B$4=Dates!$E$6,DataPack!AI21,IF($B$4=Dates!$E$7,DataPack!X21))))) -> 7 | H15: =IF($B$4=Dates!$E$3,DataPack!F21,IF($B$4=Dates!$E$4,DataPack!P21,IF($B$4=Dates!$E$5,DataPack!Z21,IF($B$4=Dates!$E$6,DataPack!AJ21,IF($B$4=Dates!$E$7,DataPack!Y21))))) -> 38.88888889 | I15: =IF($B$4=Dates!$E$3,DataPack!G21,IF($B$4=Dates!$E$4,DataPack!Q21,IF($B$4=Dates!$E$5,DataPack!AA21,IF($B$4=Dates!$E$6,DataPack!AK21,IF($B$4=Dates!$E$7,DataPack!Z21))))) -> 0 | J15: =IF($B$4=Dates!$E$3,DataPack!H21,IF($B$4=Dates!$E$4,DataPack!R21,IF($B$4=Dates!$E$5,DataPack!AB21,IF($B$4=Dates!$E$6,DataPack!AL21,IF($B$4=Dates!$E$7,DataPack!AA21))))) -> 0 | K15: =IF($B$4=Dates!$E$3,DataPack!I21,IF($B$4=Dates!$E$4,DataPack!S21,IF($B$4=Dates!$E$5,DataPack!AC21,IF($B$4=Dates!$E$6,DataPack!AM21,IF($B$4=Dates!$E$7,DataPack!AB21))))) -> 0 | L15: =IF($B$4=Dates!$E$3,DataPack!J21,IF($B$4=Dates!$E$4,DataPack!T21,IF($B$4=Dates!$E$5,DataPack!AD21,IF($B$4=Dates!$E$6,DataPack!AN21,IF($B$4=Dates!$E$7,DataPack!AC21))))) -> 0
B16: The quality of residential or boarding provision and care 2 | D16: =IF($B$4=Dates!$E$3,DataPack!B22,IF($B$4=Dates!$E$4,DataPack!L22,IF($B$4=Dates!$E$5,DataPack!V22,IF($B$4=Dates!$E$6,DataPack!AF22,IF($B$4=Dates!$E$7,DataPack!U22))))) -> 18 | E16: =IF($B$4=Dates!$E$3,DataPack!C22,IF($B$4=Dates!$E$4,DataPack!M22,IF($B$4=Dates!$E$5,DataPack!W22,IF($B$4=Dates!$E$6,DataPack!AG22,IF($B$4=Dates!$E$7,DataPack!V22))))) -> 9 | F16: =IF($B$4=Dates!$E$3,DataPack!D22,IF($B$4=Dates!$E$4,DataPack!N22,IF($B$4=Dates!$E$5,DataPack!X22,IF($B$4=Dates!$E$6,DataPack!AH22,IF($B$4=Dates!$E$7,DataPack!W22))))) -> 50 | G16: =IF($B$4=Dates!$E$3,DataPack!E22,IF($B$4=Dates!$E$4,DataPack!O22,IF($B$4=Dates!$E$5,DataPack!Y22,IF($B$4=Dates!$E$6,DataPack!AI22,IF($B$4=Dates!$E$7,DataPack!X22))))) -> 7 | H16: =IF($B$4=Dates!$E$3,DataPack!F22,IF($B$4=Dates!$E$4,DataPack!P22,IF($B$4=Dates!$E$5,DataPack!Z22,IF($B$4=Dates!$E$6,DataPack!AJ22,IF($B$4=Dates!$E$7,DataPack!Y22))))) -> 38.88888889 | I16: =IF($B$4=Dates!$E$3,DataPack!G22,IF($B$4=Dates!$E$4,DataPack!Q22,IF($B$4=Dates!$E$5,DataPack!AA22,IF($B$4=Dates!$E$6,DataPack!AK22,IF($B$4=Dates!$E$7,DataPack!Z22))))) -> 2 | J16: =IF($B$4=Dates!$E$3,DataPack!H22,IF($B$4=Dates!$E$4,DataPack!R22,IF($B$4=Dates!$E$5,DataPack!AB22,IF($B$4=Dates!$E$6,DataPack!AL22,IF($B$4=Dates!$E$7,DataPack!AA22))))) -> 11.11111111 | K16: =IF($B$4=Dates!$E$3,DataPack!I22,IF($B$4=Dates!$E$4,DataPack!S22,IF($B$4=Dates!$E$5,DataPack!AC22,IF($B$4=Dates!$E$6,DataPack!AM22,IF($B$4=Dates!$E$7,DataPack!AB22))))) -> 0 | L16: =IF($B$4=Dates!$E$3,DataPack!J22,IF($B$4=Dates!$E$4,DataPack!T22,IF($B$4=Dates!$E$5,DataPack!AD22,IF($B$4=Dates!$E$6,DataPack!AN22,IF($B$4=Dates!$E$7,DataPack!AC22))))) -> 0
B17: Residential and boarding pupil's safety 2 | D17: =IF($B$4=Dates!$E$3,DataPack!B23,IF($B$4=Dates!$E$4,DataPack!L23,IF($B$4=Dates!$E$5,DataPack!V23,IF($B$4=Dates!$E$6,DataPack!AF23,IF($B$4=Dates!$E$7,DataPack!U23))))) -> 18 | E17: =IF($B$4=Dates!$E$3,DataPack!C23,IF($B$4=Dates!$E$4,DataPack!M23,IF($B$4=Dates!$E$5,DataPack!W23,IF($B$4=Dates!$E$6,DataPack!AG23,IF($B$4=Dates!$E$7,DataPack!V23))))) -> 10 | F17: =IF($B$4=Dates!$E$3,DataPack!D23,IF($B$4=Dates!$E$4,DataPack!N23,IF($B$4=Dates!$E$5,DataPack!X23,IF($B$4=Dates!$E$6,DataPack!AH23,IF($B$4=Dates!$E$7,DataPack!W23))))) -> 55.55555556 | G17: =IF($B$4=Dates!$E$3,DataPack!E23,IF($B$4=Dates!$E$4,DataPack!O23,IF($B$4=Dates!$E$5,DataPack!Y23,IF($B$4=Dates!$E$6,DataPack!AI23,IF($B$4=Dates!$E$7,DataPack!X23))))) -> 3 | H17: =IF($B$4=Dates!$E$3,DataPack!F23,IF($B$4=Dates!$E$4,DataPack!P23,IF($B$4=Dates!$E$5,DataPack!Z23,IF($B$4=Dates!$E$6,DataPack!AJ23,IF($B$4=Dates!$E$7,DataPack!Y23))))) -> 16.66666667 | I17: =IF($B$4=Dates!$E$3,DataPack!G23,IF($B$4=Dates!$E$4,DataPack!Q23,IF($B$4=Dates!$E$5,DataPack!AA23,IF($B$4=Dates!$E$6,DataPack!AK23,IF($B$4=Dates!$E$7,DataPack!Z23))))) -> 4 | J17: =IF($B$4=Dates!$E$3,DataPack!H23,IF($B$4=Dates!$E$4,DataPack!R23,IF($B$4=Dates!$E$5,DataPack!AB23,IF($B$4=Dates!$E$6,DataPack!AL23,IF($B$4=Dates!$E$7,DataPack!AA23))))) -> 22.22222222 | K17: =IF($B$4=Dates!$E$3,DataPack!I23,IF($B$4=Dates!$E$4,DataPack!S23,IF($B$4=Dates!$E$5,DataPack!AC23,IF($B$4=Dates!$E$6,DataPack!AM23,IF($B$4=Dates!$E$7,DataPack!AB23))))) -> 1 | L17: =IF($B$4=Dates!$E$3,DataPack!J23,IF($B$4=Dates!$E$4,DataPack!T23,IF($B$4=Dates!$E$5,DataPack!AD23,IF($B$4=Dates!$E$6,DataPack!AN23,IF($B$4=Dates!$E$7,DataPack!AC23))))) -> 5.555555556
B18: Leadership and management of the residential or boarding provision 2 | D18: =IF($B$4=Dates!$E$3,DataPack!B24,IF($B$4=Dates!$E$4,DataPack!L24,IF($B$4=Dates!$E$5,DataPack!V24,IF($B$4=Dates!$E$6,DataPack!AF24,IF($B$4=Dates!$E$7,DataPack!U24))))) -> 18 | E18: =IF($B$4=Dates!$E$3,DataPack!C24,IF($B$4=Dates!$E$4,DataPack!M24,IF($B$4=Dates!$E$5,DataPack!W24,IF($B$4=Dates!$E$6,DataPack!AG24,IF($B$4=Dates!$E$7,DataPack!V24))))) -> 8 | F18: =IF($B$4=Dates!$E$3,DataPack!D24,IF($B$4=Dates!$E$4,DataPack!N24,IF($B$4=Dates!$E$5,DataPack!X24,IF($B$4=Dates!$E$6,DataPack!AH24,IF($B$4=Dates!$E$7,DataPack!W24))))) -> 44.44444444 | G18: =IF($B$4=Dates!$E$3,DataPack!E24,IF($B$4=Dates!$E$4,DataPack!O24,IF($B$4=Dates!$E$5,DataPack!Y24,IF($B$4=Dates!$E$6,DataPack!AI24,IF($B$4=Dates!$E$7,DataPack!X24))))) -> 5 | H18: =IF($B$4=Dates!$E$3,DataPack!F24,IF($B$4=Dates!$E$4,DataPack!P24,IF($B$4=Dates!$E$5,DataPack!Z24,IF($B$4=Dates!$E$6,DataPack!AJ24,IF($B$4=Dates!$E$7,DataPack!Y24))))) -> 27.77777778 | I18: =IF($B$4=Dates!$E$3,DataPack!G24,IF($B$4=Dates!$E$4,DataPack!Q24,IF($B$4=Dates!$E$5,DataPack!AA24,IF($B$4=Dates!$E$6,DataPack!AK24,IF($B$4=Dates!$E$7,DataPack!Z24))))) -> 3 | J18: =IF($B$4=Dates!$E$3,DataPack!H24,IF($B$4=Dates!$E$4,DataPack!R24,IF($B$4=Dates!$E$5,DataPack!AB24,IF($B$4=Dates!$E$6,DataPack!AL24,IF($B$4=Dates!$E$7,DataPack!AA24))))) -> 16.66666667 | K18: =IF($B$4=Dates!$E$3,DataPack!I24,IF($B$4=Dates!$E$4,DataPack!S24,IF($B$4=Dates!$E$5,DataPack!AC24,IF($B$4=Dates!$E$6,DataPack!AM24,IF($B$4=Dates!$E$7,DataPack!AB24))))) -> 2 | L18: =IF($B$4=Dates!$E$3,DataPack!J24,IF($B$4=Dates!$E$4,DataPack!T24,IF($B$4=Dates!$E$5,DataPack!AD24,IF($B$4=Dates!$E$6,DataPack!AN24,IF($B$4=Dates!$E$7,DataPack!AC24))))) -> 11.11111111
L19: Source: Ofsted inspections
B20: 1. Percentages are rounded and may not add to 100.
B21: 2. The judgements for pupils' attainment and pupils' attendance are high, above average, average and low.
B22: 2. Not all special schools are given an attainment grade due to insufficient evidence.
B23: 2. Where numbers are small, percentages should be treated with caution.
B24: =IF(Table2="1 April 2012 and 30 June 2012","3. These statistics exclude around 30 schools which were inspected during the quarter but where the inspection report had not been published by 31 July","") -> 

Sheet Table 2a
B2: ="Table 2a: Inspection outcomes of nursery schools inspected " & IF('Table 2a'!B6=Dates!$E$3, "between " & Dates!$E$3, IF('Table 2a'!B6 = Dates!E4, "in " & Dates!E4, IF('Table 2a'!B6=Dates!E5, "in " & Dates!E5, IF('Table 2a'!B6=Dates!E6, "in " & Dates!E6, IF('Table 2a'!B6=Dates!E7, "in " & Dates!E7))))) & " (final) "& CHAR(185) -> Table 2a: Inspection outcomes of nursery schools inspected between 1 September 2011 and 31 August 2012 (final) ¹
B4: Select period:
B6: 1 September 2011 and 31 August 2012 | D6: Total number inspected | E6: Outstanding | G6: Good | I6: Satisfactory | K6: Inadequate
E7: Number | F7: % | G7: Number | H7: % | I7: Number | J7: % | K7: Number | L7: %
B9: Overall Effectiveness | D9: =IF($B$6=Dates!$E$3,DataPack!B27,IF($B$6=Dates!$E$4,DataPack!L27,IF($B$6=Dates!$E$5,DataPack!V27,IF($B$6=Dates!$E$6,DataPack!AF27,IF($B$6=Dates!$E$7,DataPack!U27))))) -> 143 | E9: =IF($B$6=Dates!$E$3,DataPack!C27,IF($B$6=Dates!$E$4,DataPack!M27,IF($B$6=Dates!$E$5,DataPack!W27,IF($B$6=Dates!$E$6,DataPack!AG27,IF($B$6=Dates!$E$7,DataPack!V27))))) -> 79 | F9: =IF($B$6=Dates!$E$3,DataPack!D27,IF($B$6=Dates!$E$4,DataPack!N27,IF($B$6=Dates!$E$5,DataPack!X27,IF($B$6=Dates!$E$6,DataPack!AH27,IF($B$6=Dates!$E$7,DataPack!W27))))) -> 55 | G9: =IF($B$6=Dates!$E$3,DataPack!E27,IF($B$6=Dates!$E$4,DataPack!O27,IF($B$6=Dates!$E$5,DataPack!Y27,IF($B$6=Dates!$E$6,DataPack!AI27,IF($B$6=Dates!$E$7,DataPack!X27))))) -> 58 | H9: =IF($B$6=Dates!$E$3,DataPack!F27,IF($B$6=Dates!$E$4,DataPack!P27,IF($B$6=Dates!$E$5,DataPack!Z27,IF($B$6=Dates!$E$6,DataPack!AJ27,IF($B$6=Dates!$E$7,DataPack!Y27))))) -> 41 | I9: =IF($B$6=Dates!$E$3,DataPack!G27,IF($B$6=Dates!$E$4,DataPack!Q27,IF($B$6=Dates!$E$5,DataPack!AA27,IF($B$6=Dates!$E$6,DataPack!AK27,IF($B$6=Dates!$E$7,DataPack!Z27))))) -> 5 | J9: =IF($B$6=Dates!$E$3,DataPack!H27,IF($B$6=Dates!$E$4,DataPack!R27,IF($B$6=Dates!$E$5,DataPack!AB27,IF($B$6=Dates!$E$6,DataPack!AL27,IF($B$6=Dates!$E$7,DataPack!AA27))))) -> 3 | K9: =IF($B$6=Dates!$E$3,DataPack!I27,IF($B$6=Dates!$E$4,DataPack!S27,IF($B$6=Dates!$E$5,DataPack!AC27,IF($B$6=Dates!$E$6,DataPack!AM27,IF($B$6=Dates!$E$7,DataPack!AB27))))) -> 1 | L9: =IF($B$6=Dates!$E$3,DataPack!J27,IF($B$6=Dates!$E$4,DataPack!T27,IF($B$6=Dates!$E$5,DataPack!AD27,IF($B$6=Dates!$E$6,DataPack!AN27,IF($B$6=Dates!$E$7,DataPack!AC27))))) -> 1
B10: Achievement of pupils | D10: =IF($B$6=Dates!$E$3,DataPack!B28,IF($B$6=Dates!$E$4,DataPack!L28,IF($B$6=Dates!$E$5,DataPack!V28,IF($B$6=Dates!$E$6,DataPack!AF28,IF($B$6=Dates!$E$7,DataPack!U28))))) -> 143 | E10: =IF($B$6=Dates!$E$3,DataPack!C28,IF($B$6=Dates!$E$4,DataPack!M28,IF($B$6=Dates!$E$5,DataPack!W28,IF($B$6=Dates!$E$6,DataPack!AG28,IF($B$6=Dates!$E$7,DataPack!V28))))) -> 75 | F10: =IF($B$6=Dates!$E$3,DataPack!D28,IF($B$6=Dates!$E$4,DataPack!N28,IF($B$6=Dates!$E$5,DataPack!X28,IF($B$6=Dates!$E$6,DataPack!AH28,IF($B$6=Dates!$E$7,DataPack!W28))))) -> 52 | G10: =IF($B$6=Dates!$E$3,DataPack!E28,IF($B$6=Dates!$E$4,DataPack!O28,IF($B$6=Dates!$E$5,DataPack!Y28,IF($B$6=Dates!$E$6,DataPack!AI28,IF($B$6=Dates!$E$7,DataPack!X28))))) -> 62 | H10: =IF($B$6=Dates!$E$3,DataPack!F28,IF($B$6=Dates!$E$4,DataPack!P28,IF($B$6=Dates!$E$5,DataPack!Z28,IF($B$6=Dates!$E$6,DataPack!AJ28,IF($B$6=Dates!$E$7,DataPack!Y28))))) -> 43 | I10: =IF($B$6=Dates!$E$3,DataPack!G28,IF($B$6=Dates!$E$4,DataPack!Q28,IF($B$6=Dates!$E$5,DataPack!AA28,IF($B$6=Dates!$E$6,DataPack!AK28,IF($B$6=Dates!$E$7,DataPack!Z28))))) -> 6 | J10: =IF($B$6=Dates!$E$3,DataPack!H28,IF($B$6=Dates!$E$4,DataPack!R28,IF($B$6=Dates!$E$5,DataPack!AB28,IF($B$6=Dates!$E$6,DataPack!AL28,IF($B$6=Dates!$E$7,DataPack!AA28))))) -> 4 | K10: =IF($B$6=Dates!$E$3,DataPack!I28,IF($B$6=Dates!$E$4,DataPack!S28,IF($B$6=Dates!$E$5,DataPack!AC28,IF($B$6=Dates!$E$6,DataPack!AM28,IF($B$6=Dates!$E$7,DataPack!AB28))))) -> 0 | L10: =IF($B$6=Dates!$E$3,DataPack!J28,IF($B$6=Dates!$E$4,DataPack!T28,IF($B$6=Dates!$E$5,DataPack!AD28,IF($B$6=Dates!$E$6,DataPack!AN28,IF($B$6=Dates!$E$7,DataPack!AC28))))) -> 0
B11: Behaviour and safety of pupils | D11: =IF($B$6=Dates!$E$3,DataPack!B29,IF($B$6=Dates!$E$4,DataPack!L29,IF($B$6=Dates!$E$5,DataPack!V29,IF($B$6=Dates!$E$6,DataPack!AF29,IF($B$6=Dates!$E$7,DataPack!U29))))) -> 143 | E11: =IF($B$6=Dates!$E$3,DataPack!C29,IF($B$6=Dates!$E$4,DataPack!M29,IF($B$6=Dates!$E$5,DataPack!W29,IF($B$6=Dates!$E$6,DataPack!AG29,IF($B$6=Dates!$E$7,DataPack!V29))))) -> 101 | F11: =IF($B$6=Dates!$E$3,DataPack!D29,IF($B$6=Dates!$E$4,DataPack!N29,IF($B$6=Dates!$E$5,DataPack!X29,IF($B$6=Dates!$E$6,DataPack!AH29,IF($B$6=Dates!$E$7,DataPack!W29))))) -> 71 | G11: =IF($B$6=Dates!$E$3,DataPack!E29,IF($B$6=Dates!$E$4,DataPack!O29,IF($B$6=Dates!$E$5,DataPack!Y29,IF($B$6=Dates!$E$6,DataPack!AI29,IF($B$6=Dates!$E$7,DataPack!X29))))) -> 41 | H11: =IF($B$6=Dates!$E$3,DataPack!F29,IF($B$6=Dates!$E$4,DataPack!P29,IF($B$6=Dates!$E$5,DataPack!Z29,IF($B$6=Dates!$E$6,DataPack!AJ29,IF($B$6=Dates!$E$7,DataPack!Y29))))) -> 29 | I11: =IF($B$6=Dates!$E$3,DataPack!G29,IF($B$6=Dates!$E$4,DataPack!Q29,IF($B$6=Dates!$E$5,DataPack!AA29,IF($B$6=Dates!$E$6,DataPack!AK29,IF($B$6=Dates!$E$7,DataPack!Z29))))) -> 1 | J11: =IF($B$6=Dates!$E$3,DataPack!H29,IF($B$6=Dates!$E$4,DataPack!R29,IF($B$6=Dates!$E$5,DataPack!AB29,IF($B$6=Dates!$E$6,DataPack!AL29,IF($B$6=Dates!$E$7,DataPack!AA29))))) -> 1 | K11: =IF($B$6=Dates!$E$3,DataPack!I29,IF($B$6=Dates!$E$4,DataPack!S29,IF($B$6=Dates!$E$5,DataPack!AC29,IF($B$6=Dates!$E$6,DataPack!AM29,IF($B$6=Dates!$E$7,DataPack!AB29))))) -> 0 | L11: =IF($B$6=Dates!$E$3,DataPack!J29,IF($B$6=Dates!$E$4,DataPack!T29,IF($B$6=Dates!$E$5,DataPack!AD29,IF($B$6=Dates!$E$6,DataPack!AN29,IF($B$6=Dates!$E$7,DataPack!AC29))))) -> 0
B12: Quality of teaching | D12: =IF($B$6=Dates!$E$3,DataPack!B30,IF($B$6=Dates!$E$4,DataPack!L30,IF($B$6=Dates!$E$5,DataPack!V30,IF($B$6=Dates!$E$6,DataPack!AF30,IF($B$6=Dates!$E$7,DataPack!U30))))) -> 143 | E12: =IF($B$6=Dates!$E$3,DataPack!C30,IF($B$6=Dates!$E$4,DataPack!M30,IF($B$6=Dates!$E$5,DataPack!W30,IF($B$6=Dates!$E$6,DataPack!AG30,IF($B$6=Dates!$E$7,DataPack!V30))))) -> 78 | F12: =IF($B$6=Dates!$E$3,DataPack!D30,IF($B$6=Dates!$E$4,DataPack!N30,IF($B$6=Dates!$E$5,DataPack!X30,IF($B$6=Dates!$E$6,DataPack!AH30,IF($B$6=Dates!$E$7,DataPack!W30))))) -> 55 | G12: =IF($B$6=Dates!$E$3,DataPack!E30,IF($B$6=Dates!$E$4,DataPack!O30,IF($B$6=Dates!$E$5,DataPack!Y30,IF($B$6=Dates!$E$6,DataPack!AI30,IF($B$6=Dates!$E$7,DataPack!X30))))) -> 59 | H12: =IF($B$6=Dates!$E$3,DataPack!F30,IF($B$6=Dates!$E$4,DataPack!P30,IF($B$6=Dates!$E$5,DataPack!Z30,IF($B$6=Dates!$E$6,DataPack!AJ30,IF($B$6=Dates!$E$7,DataPack!Y30))))) -> 41 | I12: =IF($B$6=Dates!$E$3,DataPack!G30,IF($B$6=Dates!$E$4,DataPack!Q30,IF($B$6=Dates!$E$5,DataPack!AA30,IF($B$6=Dates!$E$6,DataPack!AK30,IF($B$6=Dates!$E$7,DataPack!Z30))))) -> 6 | J12: =IF($B$6=Dates!$E$3,DataPack!H30,IF($B$6=Dates!$E$4,DataPack!R30,IF($B$6=Dates!$E$5,DataPack!AB30,IF($B$6=Dates!$E$6,DataPack!AL30,IF($B$6=Dates!$E$7,DataPack!AA30))))) -> 4 | K12: =IF($B$6=Dates!$E$3,DataPack!I30,IF($B$6=Dates!$E$4,DataPack!S30,IF($B$6=Dates!$E$5,DataPack!AC30,IF($B$6=Dates!$E$6,DataPack!AM30,IF($B$6=Dates!$E$7,DataPack!AB30))))) -> 0 | L12: =IF($B$6=Dates!$E$3,DataPack!J30,IF($B$6=Dates!$E$4,DataPack!T30,IF($B$6=Dates!$E$5,DataPack!AD30,IF($B$6=Dates!$E$6,DataPack!AN30,IF($B$6=Dates!$E$7,DataPack!AC30))))) -> 0
B13: Leadership and management | D13: =IF($B$6=Dates!$E$3,DataPack!B31,IF($B$6=Dates!$E$4,DataPack!L31,IF($B$6=Dates!$E$5,DataPack!V31,IF($B$6=Dates!$E$6,DataPack!AF31,IF($B$6=Dates!$E$7,DataPack!U31))))) -> 143 | E13: =IF($B$6=Dates!$E$3,DataPack!C31,IF($B$6=Dates!$E$4,DataPack!M31,IF($B$6=Dates!$E$5,DataPack!W31,IF($B$6=Dates!$E$6,DataPack!AG31,IF($B$6=Dates!$E$7,DataPack!V31))))) -> 80 | F13: =IF($B$6=Dates!$E$3,DataPack!D31,IF($B$6=Dates!$E$4,DataPack!N31,IF($B$6=Dates!$E$5,DataPack!X31,IF($B$6=Dates!$E$6,DataPack!AH31,IF($B$6=Dates!$E$7,DataPack!W31))))) -> 56 | G13: =IF($B$6=Dates!$E$3,DataPack!E31,IF($B$6=Dates!$E$4,DataPack!O31,IF($B$6=Dates!$E$5,DataPack!Y31,IF($B$6=Dates!$E$6,DataPack!AI31,IF($B$6=Dates!$E$7,DataPack!X31))))) -> 57 | H13: =IF($B$6=Dates!$E$3,DataPack!F31,IF($B$6=Dates!$E$4,DataPack!P31,IF($B$6=Dates!$E$5,DataPack!Z31,IF($B$6=Dates!$E$6,DataPack!AJ31,IF($B$6=Dates!$E$7,DataPack!Y31))))) -> 40 | I13: =IF($B$6=Dates!$E$3,DataPack!G31,IF($B$6=Dates!$E$4,DataPack!Q31,IF($B$6=Dates!$E$5,DataPack!AA31,IF($B$6=Dates!$E$6,DataPack!AK31,IF($B$6=Dates!$E$7,DataPack!Z31))))) -> 5 | J13: =IF($B$6=Dates!$E$3,DataPack!H31,IF($B$6=Dates!$E$4,DataPack!R31,IF($B$6=Dates!$E$5,DataPack!AB31,IF($B$6=Dates!$E$6,DataPack!AL31,IF($B$6=Dates!$E$7,DataPack!AA31))))) -> 3 | K13: =IF($B$6=Dates!$E$3,DataPack!I31,IF($B$6=Dates!$E$4,DataPack!S31,IF($B$6=Dates!$E$5,DataPack!AC31,IF($B$6=Dates!$E$6,DataPack!AM31,IF($B$6=Dates!$E$7,DataPack!AB31))))) -> 1 | L13: =IF($B$6=Dates!$E$3,DataPack!J31,IF($B$6=Dates!$E$4,DataPack!T31,IF($B$6=Dates!$E$5,DataPack!AD31,IF($B$6=Dates!$E$6,DataPack!AN31,IF($B$6=Dates!$E$7,DataPack!AC31))))) -> 1
B14: Overall effectiveness of the residential or boarding provision | D14: =IF($B$6=Dates!$E$3,DataPack!B32,IF($B$6=Dates!$E$4,DataPack!L32,IF($B$6=Dates!$E$5,DataPack!V32,IF($B$6=Dates!$E$6,DataPack!AF32,IF($B$6=Dates!$E$7,DataPack!U32))))) -> 0 | E14: =IF($B$6=Dates!$E$3,DataPack!C32,IF($B$6=Dates!$E$4,DataPack!M32,IF($B$6=Dates!$E$5,DataPack!W32,IF($B$6=Dates!$E$6,DataPack!AG32,IF($B$6=Dates!$E$7,DataPack!V32))))) -> 0 | F14: =IF($B$6=Dates!$E$3,DataPack!D32,IF($B$6=Dates!$E$4,DataPack!N32,IF($B$6=Dates!$E$5,DataPack!X32,IF($B$6=Dates!$E$6,DataPack!AH32,IF($B$6=Dates!$E$7,DataPack!W32))))) -> 0 | G14: =IF($B$6=Dates!$E$3,DataPack!E32,IF($B$6=Dates!$E$4,DataPack!O32,IF($B$6=Dates!$E$5,DataPack!Y32,IF($B$6=Dates!$E$6,DataPack!AI32,IF($B$6=Dates!$E$7,DataPack!X32))))) -> 0 | H14: =IF($B$6=Dates!$E$3,DataPack!F32,IF($B$6=Dates!$E$4,DataPack!P32,IF($B$6=Dates!$E$5,DataPack!Z32,IF($B$6=Dates!$E$6,DataPack!AJ32,IF($B$6=Dates!$E$7,DataPack!Y32))))) -> 0 | I14: =IF($B$6=Dates!$E$3,DataPack!G32,IF($B$6=Dates!$E$4,DataPack!Q32,IF($B$6=Dates!$E$5,DataPack!AA32,IF($B$6=Dates!$E$6,DataPack!AK32,IF($B$6=Dates!$E$7,DataPack!Z32))))) -> 0 | J14: =IF($B$6=Dates!$E$3,DataPack!H32,IF($B$6=Dates!$E$4,DataPack!R32,IF($B$6=Dates!$E$5,DataPack!AB32,IF($B$6=Dates!$E$6,DataPack!AL32,IF($B$6=Dates!$E$7,DataPack!AA32))))) -> 0 | K14: =IF($B$6=Dates!$E$3,DataPack!I32,IF($B$6=Dates!$E$4,DataPack!S32,IF($B$6=Dates!$E$5,DataPack!AC32,IF($B$6=Dates!$E$6,DataPack!AM32,IF($B$6=Dates!$E$7,DataPack!AB32))))) -> 0 | L14: =IF($B$6=Dates!$E$3,DataPack!J32,IF($B$6=Dates!$E$4,DataPack!T32,IF($B$6=Dates!$E$5,DataPack!AD32,IF($B$6=Dates!$E$6,DataPack!AN32,IF($B$6=Dates!$E$7,DataPack!AC32))))) -> 0
B15: Outcomes for residential or boarding pupils | D15: =IF($B$6=Dates!$E$3,DataPack!B33,IF($B$6=Dates!$E$4,DataPack!L33,IF($B$6=Dates!$E$5,DataPack!V33,IF($B$6=Dates!$E$6,DataPack!AF33,IF($B$6=Dates!$E$7,DataPack!U33))))) -> 0 | E15: =IF($B$6=Dates!$E$3,DataPack!C33,IF($B$6=Dates!$E$4,DataPack!M33,IF($B$6=Dates!$E$5,DataPack!W33,IF($B$6=Dates!$E$6,DataPack!AG33,IF($B$6=Dates!$E$7,DataPack!V33))))) -> 0 | F15: =IF($B$6=Dates!$E$3,DataPack!D33,IF($B$6=Dates!$E$4,DataPack!N33,IF($B$6=Dates!$E$5,DataPack!X33,IF($B$6=Dates!$E$6,DataPack!AH33,IF($B$6=Dates!$E$7,DataPack!W33))))) -> 0 | G15: =IF($B$6=Dates!$E$3,DataPack!E33,IF($B$6=Dates!$E$4,DataPack!O33,IF($B$6=Dates!$E$5,DataPack!Y33,IF($B$6=Dates!$E$6,DataPack!AI33,IF($B$6=Dates!$E$7,DataPack!X33))))) -> 0 | H15: =IF($B$6=Dates!$E$3,DataPack!F33,IF($B$6=Dates!$E$4,DataPack!P33,IF($B$6=Dates!$E$5,DataPack!Z33,IF($B$6=Dates!$E$6,DataPack!AJ33,IF($B$6=Dates!$E$7,DataPack!Y33))))) -> 0 | I15: =IF($B$6=Dates!$E$3,DataPack!G33,IF($B$6=Dates!$E$4,DataPack!Q33,IF($B$6=Dates!$E$5,DataPack!AA33,IF($B$6=Dates!$E$6,DataPack!AK33,IF($B$6=Dates!$E$7,DataPack!Z33))))) -> 0 | J15: =IF($B$6=Dates!$E$3,DataPack!H33,IF($B$6=Dates!$E$4,DataPack!R33,IF($B$6=Dates!$E$5,DataPack!AB33,IF($B$6=Dates!$E$6,DataPack!AL33,IF($B$6=Dates!$E$7,DataPack!AA33))))) -> 0 | K15: =IF($B$6=Dates!$E$3,DataPack!I33,IF($B$6=Dates!$E$4,DataPack!S33,IF($B$6=Dates!$E$5,DataPack!AC33,IF($B$6=Dates!$E$6,DataPack!AM33,IF($B$6=Dates!$E$7,DataPack!AB33))))) -> 0 | L15: =IF($B$6=Dates!$E$3,DataPack!J33,IF($B$6=Dates!$E$4,DataPack!T33,IF($B$6=Dates!$E$5,DataPack!AD33,IF($B$6=Dates!$E$6,DataPack!AN33,IF($B$6=Dates!$E$7,DataPack!AC33))))) -> 0
B16: The quality of residential or boarding provision and care | D16: =IF($B$6=Dates!$E$3,DataPack!B34,IF($B$6=Dates!$E$4,DataPack!L34,IF($B$6=Dates!$E$5,DataPack!V34,IF($B$6=Dates!$E$6,DataPack!AF34,IF($B$6=Dates!$E$7,DataPack!U34))))) -> 0 | E16: =IF($B$6=Dates!$E$3,DataPack!C34,IF($B$6=Dates!$E$4,DataPack!M34,IF($B$6=Dates!$E$5,DataPack!W34,IF($B$6=Dates!$E$6,DataPack!AG34,IF($B$6=Dates!$E$7,DataPack!V34))))) -> 0 | F16: =IF($B$6=Dates!$E$3,DataPack!D34,IF($B$6=Dates!$E$4,DataPack!N34,IF($B$6=Dates!$E$5,DataPack!X34,IF($B$6=Dates!$E$6,DataPack!AH34,IF($B$6=Dates!$E$7,DataPack!W34))))) -> 0 | G16: =IF($B$6=Dates!$E$3,DataPack!E34,IF($B$6=Dates!$E$4,DataPack!O34,IF($B$6=Dates!$E$5,DataPack!Y34,IF($B$6=Dates!$E$6,DataPack!AI34,IF($B$6=Dates!$E$7,DataPack!X34))))) -> 0 | H16: =IF($B$6=Dates!$E$3,DataPack!F34,IF($B$6=Dates!$E$4,DataPack!P34,IF($B$6=Dates!$E$5,DataPack!Z34,IF($B$6=Dates!$E$6,DataPack!AJ34,IF($B$6=Dates!$E$7,DataPack!Y34))))) -> 0 | I16: =IF($B$6=Dates!$E$3,DataPack!G34,IF($B$6=Dates!$E$4,DataPack!Q34,IF($B$6=Dates!$E$5,DataPack!AA34,IF($B$6=Dates!$E$6,DataPack!AK34,IF($B$6=Dates!$E$7,DataPack!Z34))))) -> 0 | J16: =IF($B$6=Dates!$E$3,DataPack!H34,IF($B$6=Dates!$E$4,DataPack!R34,IF($B$6=Dates!$E$5,DataPack!AB34,IF($B$6=Dates!$E$6,DataPack!AL34,IF($B$6=Dates!$E$7,DataPack!AA34))))) -> 0 | K16: =IF($B$6=Dates!$E$3,DataPack!I34,IF($B$6=Dates!$E$4,DataPack!S34,IF($B$6=Dates!$E$5,DataPack!AC34,IF($B$6=Dates!$E$6,DataPack!AM34,IF($B$6=Dates!$E$7,DataPack!AB34))))) -> 0 | L16: =IF($B$6=Dates!$E$3,DataPack!J34,IF($B$6=Dates!$E$4,DataPack!T34,IF($B$6=Dates!$E$5,DataPack!AD34,IF($B$6=Dates!$E$6,DataPack!AN34,IF($B$6=Dates!$E$7,DataPack!AC34))))) -> 0
B17: Residential and boarding pupil's safety | D17: =IF($B$6=Dates!$E$3,DataPack!B35,IF($B$6=Dates!$E$4,DataPack!L35,IF($B$6=Dates!$E$5,DataPack!V35,IF($B$6=Dates!$E$6,DataPack!AF35,IF($B$6=Dates!$E$7,DataPack!U35))))) -> 0 | E17: =IF($B$6=Dates!$E$3,DataPack!C35,IF($B$6=Dates!$E$4,DataPack!M35,IF($B$6=Dates!$E$5,DataPack!W35,IF($B$6=Dates!$E$6,DataPack!AG35,IF($B$6=Dates!$E$7,DataPack!V35))))) -> 0 | F17: =IF($B$6=Dates!$E$3,DataPack!D35,IF($B$6=Dates!$E$4,DataPack!N35,IF($B$6=Dates!$E$5,DataPack!X35,IF($B$6=Dates!$E$6,DataPack!AH35,IF($B$6=Dates!$E$7,DataPack!W35))))) -> 0 | G17: =IF($B$6=Dates!$E$3,DataPack!E35,IF($B$6=Dates!$E$4,DataPack!O35,IF($B$6=Dates!$E$5,DataPack!Y35,IF($B$6=Dates!$E$6,DataPack!AI35,IF($B$6=Dates!$E$7,DataPack!X35))))) -> 0 | H17: =IF($B$6=Dates!$E$3,DataPack!F35,IF($B$6=Dates!$E$4,DataPack!P35,IF($B$6=Dates!$E$5,DataPack!Z35,IF($B$6=Dates!$E$6,DataPack!AJ35,IF($B$6=Dates!$E$7,DataPack!Y35))))) -> 0 | I17: =IF($B$6=Dates!$E$3,DataPack!G35,IF($B$6=Dates!$E$4,DataPack!Q35,IF($B$6=Dates!$E$5,DataPack!AA35,IF($B$6=Dates!$E$6,DataPack!AK35,IF($B$6=Dates!$E$7,DataPack!Z35))))) -> 0 | J17: =IF($B$6=Dates!$E$3,DataPack!H35,IF($B$6=Dates!$E$4,DataPack!R35,IF($B$6=Dates!$E$5,DataPack!AB35,IF($B$6=Dates!$E$6,DataPack!AL35,IF($B$6=Dates!$E$7,DataPack!AA35))))) -> 0 | K17: =IF($B$6=Dates!$E$3,DataPack!I35,IF($B$6=Dates!$E$4,DataPack!S35,IF($B$6=Dates!$E$5,DataPack!AC35,IF($B$6=Dates!$E$6,DataPack!AM35,IF($B$6=Dates!$E$7,DataPack!AB35))))) -> 0 | L17: =IF($B$6=Dates!$E$3,DataPack!J35,IF($B$6=Dates!$E$4,DataPack!T35,IF($B$6=Dates!$E$5,DataPack!AD35,IF($B$6=Dates!$E$6,DataPack!AN35,IF($B$6=Dates!$E$7,DataPack!AC35))))) -> 0
B18: Leadership and management of the residential or boarding provision | D18: =IF($B$6=Dates!$E$3,DataPack!B36,IF($B$6=Dates!$E$4,DataPack!L36,IF($B$6=Dates!$E$5,DataPack!V36,IF($B$6=Dates!$E$6,DataPack!AF36,IF($B$6=Dates!$E$7,DataPack!U36))))) -> 0 | E18: =IF($B$6=Dates!$E$3,DataPack!C36,IF($B$6=Dates!$E$4,DataPack!M36,IF($B$6=Dates!$E$5,DataPack!W36,IF($B$6=Dates!$E$6,DataPack!AG36,IF($B$6=Dates!$E$7,DataPack!V36))))) -> 0 | F18: =IF($B$6=Dates!$E$3,DataPack!D36,IF($B$6=Dates!$E$4,DataPack!N36,IF($B$6=Dates!$E$5,DataPack!X36,IF($B$6=Dates!$E$6,DataPack!AH36,IF($B$6=Dates!$E$7,DataPack!W36))))) -> 0 | G18: =IF($B$6=Dates!$E$3,DataPack!E36,IF($B$6=Dates!$E$4,DataPack!O36,IF($B$6=Dates!$E$5,DataPack!Y36,IF($B$6=Dates!$E$6,DataPack!AI36,IF($B$6=Dates!$E$7,DataPack!X36))))) -> 0 | H18: =IF($B$6=Dates!$E$3,DataPack!F36,IF($B$6=Dates!$E$4,DataPack!P36,IF($B$6=Dates!$E$5,DataPack!Z36,IF($B$6=Dates!$E$6,DataPack!AJ36,IF($B$6=Dates!$E$7,DataPack!Y36))))) -> 0 | I18: =IF($B$6=Dates!$E$3,DataPack!G36,IF($B$6=Dates!$E$4,DataPack!Q36,IF($B$6=Dates!$E$5,DataPack!AA36,IF($B$6=Dates!$E$6,DataPack!AK36,IF($B$6=Dates!$E$7,DataPack!Z36))))) -> 0 | J18: =IF($B$6=Dates!$E$3,DataPack!H36,IF($B$6=Dates!$E$4,DataPack!R36,IF($B$6=Dates!$E$5,DataPack!AB36,IF($B$6=Dates!$E$6,DataPack!AL36,IF($B$6=Dates!$E$7,DataPack!AA36))))) -> 0 | K18: =IF($B$6=Dates!$E$3,DataPack!I36,IF($B$6=Dates!$E$4,DataPack!S36,IF($B$6=Dates!$E$5,DataPack!AC36,IF($B$6=Dates!$E$6,DataPack!AM36,IF($B$6=Dates!$E$7,DataPack!AB36))))) -> 0 | L18: =IF($B$6=Dates!$E$3,DataPack!J36,IF($B$6=Dates!$E$4,DataPack!T36,IF($B$6=Dates!$E$5,DataPack!AD36,IF($B$6=Dates!$E$6,DataPack!AN36,IF($B$6=Dates!$E$7,DataPack!AC36))))) -> 0
L19: Source: Ofsted inspections
B20: 1. The judgements for pupils' attainment and pupils' attendance are high, above average, average and low.
B21: 1. Where numbers are small, percentages should be treated with caution

Sheet Table 2b
B2: ="Table 2b: Inspection outcomes of primary schools inspected " & IF('Table 2b'!B6=Dates!$E$3, "between " & Dates!$E$3, IF('Table 2b'!B6 = Dates!E4, "in " & Dates!E4, IF('Table 2b'!B6=Dates!E5, "in " & Dates!E5, IF('Table 2b'!B6=Dates!E6, "in " & Dates!E6, IF('Table 2b'!B6=Dates!E7, "in " & Dates!E7))))) & " (final) " & CHAR(185) & " " & CHAR(178) -> Table 2b: Inspection outcomes of primary schools inspected between 1 September 2011 and 31 August 2012 (final) ¹ ²
B4: Select period:
B6: 1 September 2011 and 31 August 2012 | D6: Total number inspected | E6: Outstanding | G6: Good | I6: Satisfactory | K6: Inadequate
E7: Number | F7: % | G7: Number | H7: % | I7: Number | J7: % | K7: Number | L7: %
B9: Overall Effectiveness | D9: =IF($B$6=Dates!$E$3,DataPack!B39,IF($B$6=Dates!$E$4,DataPack!L39,IF($B$6=Dates!$E$5,DataPack!V39,IF($B$6=Dates!$E$6,DataPack!AF39,IF($B$6=Dates!$E$7,DataPack!U39))))) -> 4636 | E9: =IF($B$6=Dates!$E$3,DataPack!C39,IF($B$6=Dates!$E$4,DataPack!M39,IF($B$6=Dates!$E$5,DataPack!W39,IF($B$6=Dates!$E$6,DataPack!AG39,IF($B$6=Dates!$E$7,DataPack!V39))))) -> 428 | F9: =IF($B$6=Dates!$E$3,DataPack!D39,IF($B$6=Dates!$E$4,DataPack!N39,IF($B$6=Dates!$E$5,DataPack!X39,IF($B$6=Dates!$E$6,DataPack!AH39,IF($B$6=Dates!$E$7,DataPack!W39))))) -> 9 | G9: =IF($B$6=Dates!$E$3,DataPack!E39,IF($B$6=Dates!$E$4,DataPack!O39,IF($B$6=Dates!$E$5,DataPack!Y39,IF($B$6=Dates!$E$6,DataPack!AI39,IF($B$6=Dates!$E$7,DataPack!X39))))) -> 2367 | H9: =IF($B$6=Dates!$E$3,DataPack!F39,IF($B$6=Dates!$E$4,DataPack!P39,IF($B$6=Dates!$E$5,DataPack!Z39,IF($B$6=Dates!$E$6,DataPack!AJ39,IF($B$6=Dates!$E$7,DataPack!Y39))))) -> 51 | I9: =IF($B$6=Dates!$E$3,DataPack!G39,IF($B$6=Dates!$E$4,DataPack!Q39,IF($B$6=Dates!$E$5,DataPack!AA39,IF($B$6=Dates!$E$6,DataPack!AK39,IF($B$6=Dates!$E$7,DataPack!Z39))))) -> 1469 | J9: =IF($B$6=Dates!$E$3,DataPack!H39,IF($B$6=Dates!$E$4,DataPack!R39,IF($B$6=Dates!$E$5,DataPack!AB39,IF($B$6=Dates!$E$6,DataPack!AL39,IF($B$6=Dates!$E$7,DataPack!AA39))))) -> 32 | K9: =IF($B$6=Dates!$E$3,DataPack!I39,IF($B$6=Dates!$E$4,DataPack!S39,IF($B$6=Dates!$E$5,DataPack!AC39,IF($B$6=Dates!$E$6,DataPack!AM39,IF($B$6=Dates!$E$7,DataPack!AB39))))) -> 372 | L9: =IF($B$6=Dates!$E$3,DataPack!J39,IF($B$6=Dates!$E$4,DataPack!T39,IF($B$6=Dates!$E$5,DataPack!AD39,IF($B$6=Dates!$E$6,DataPack!AN39,IF($B$6=Dates!$E$7,DataPack!AC39))))) -> 8
B10: Achievement of pupils | D10: =IF($B$6=Dates!$E$3,DataPack!B40,IF($B$6=Dates!$E$4,DataPack!L40,IF($B$6=Dates!$E$5,DataPack!V40,IF($B$6=Dates!$E$6,DataPack!AF40,IF($B$6=Dates!$E$7,DataPack!U40))))) -> 4636 | E10: =IF($B$6=Dates!$E$3,DataPack!C40,IF($B$6=Dates!$E$4,DataPack!M40,IF($B$6=Dates!$E$5,DataPack!W40,IF($B$6=Dates!$E$6,DataPack!AG40,IF($B$6=Dates!$E$7,DataPack!V40))))) -> 420 | F10: =IF($B$6=Dates!$E$3,DataPack!D40,IF($B$6=Dates!$E$4,DataPack!N40,IF($B$6=Dates!$E$5,DataPack!X40,IF($B$6=Dates!$E$6,DataPack!AH40,IF($B$6=Dates!$E$7,DataPack!W40))))) -> 9 | G10: =IF($B$6=Dates!$E$3,DataPack!E40,IF($B$6=Dates!$E$4,DataPack!O40,IF($B$6=Dates!$E$5,DataPack!Y40,IF($B$6=Dates!$E$6,DataPack!AI40,IF($B$6=Dates!$E$7,DataPack!X40))))) -> 2380 | H10: =IF($B$6=Dates!$E$3,DataPack!F40,IF($B$6=Dates!$E$4,DataPack!P40,IF($B$6=Dates!$E$5,DataPack!Z40,IF($B$6=Dates!$E$6,DataPack!AJ40,IF($B$6=Dates!$E$7,DataPack!Y40))))) -> 51 | I10: =IF($B$6=Dates!$E$3,DataPack!G40,IF($B$6=Dates!$E$4,DataPack!Q40,IF($B$6=Dates!$E$5,DataPack!AA40,IF($B$6=Dates!$E$6,DataPack!AK40,IF($B$6=Dates!$E$7,DataPack!Z40))))) -> 1504 | J10: =IF($B$6=Dates!$E$3,DataPack!H40,IF($B$6=Dates!$E$4,DataPack!R40,IF($B$6=Dates!$E$5,DataPack!AB40,IF($B$6=Dates!$E$6,DataPack!AL40,IF($B$6=Dates!$E$7,DataPack!AA40))))) -> 32 | K10: =IF($B$6=Dates!$E$3,DataPack!I40,IF($B$6=Dates!$E$4,DataPack!S40,IF($B$6=Dates!$E$5,DataPack!AC40,IF($B$6=Dates!$E$6,DataPack!AM40,IF($B$6=Dates!$E$7,DataPack!AB40))))) -> 332 | L10: =IF($B$6=Dates!$E$3,DataPack!J40,IF($B$6=Dates!$E$4,DataPack!T40,IF($B$6=Dates!$E$5,DataPack!AD40,IF($B$6=Dates!$E$6,DataPack!AN40,IF($B$6=Dates!$E$7,DataPack!AC40))))) -> 7
B11: Behaviour and safety of pupils | D11: =IF($B$6=Dates!$E$3,DataPack!B41,IF($B$6=Dates!$E$4,DataPack!L41,IF($B$6=Dates!$E$5,DataPack!V41,IF($B$6=Dates!$E$6,DataPack!AF41,IF($B$6=Dates!$E$7,DataPack!U41))))) -> 4636 | E11: =IF($B$6=Dates!$E$3,DataPack!C41,IF($B$6=Dates!$E$4,DataPack!M41,IF($B$6=Dates!$E$5,DataPack!W41,IF($B$6=Dates!$E$6,DataPack!AG41,IF($B$6=Dates!$E$7,DataPack!V41))))) -> 999 | F11: =IF($B$6=Dates!$E$3,DataPack!D41,IF($B$6=Dates!$E$4,DataPack!N41,IF($B$6=Dates!$E$5,DataPack!X41,IF($B$6=Dates!$E$6,DataPack!AH41,IF($B$6=Dates!$E$7,DataPack!W41))))) -> 22 | G11: =IF($B$6=Dates!$E$3,DataPack!E41,IF($B$6=Dates!$E$4,DataPack!O41,IF($B$6=Dates!$E$5,DataPack!Y41,IF($B$6=Dates!$E$6,DataPack!AI41,IF($B$6=Dates!$E$7,DataPack!X41))))) -> 2917 | H11: =IF($B$6=Dates!$E$3,DataPack!F41,IF($B$6=Dates!$E$4,DataPack!P41,IF($B$6=Dates!$E$5,DataPack!Z41,IF($B$6=Dates!$E$6,DataPack!AJ41,IF($B$6=Dates!$E$7,DataPack!Y41))))) -> 63 | I11: =IF($B$6=Dates!$E$3,DataPack!G41,IF($B$6=Dates!$E$4,DataPack!Q41,IF($B$6=Dates!$E$5,DataPack!AA41,IF($B$6=Dates!$E$6,DataPack!AK41,IF($B$6=Dates!$E$7,DataPack!Z41))))) -> 675 | J11: =IF($B$6=Dates!$E$3,DataPack!H41,IF($B$6=Dates!$E$4,DataPack!R41,IF($B$6=Dates!$E$5,DataPack!AB41,IF($B$6=Dates!$E$6,DataPack!AL41,IF($B$6=Dates!$E$7,DataPack!AA41))))) -> 15 | K11: =IF($B$6=Dates!$E$3,DataPack!I41,IF($B$6=Dates!$E$4,DataPack!S41,IF($B$6=Dates!$E$5,DataPack!AC41,IF($B$6=Dates!$E$6,DataPack!AM41,IF($B$6=Dates!$E$7,DataPack!AB41))))) -> 45 | L11: =IF($B$6=Dates!$E$3,DataPack!J41,IF($B$6=Dates!$E$4,DataPack!T41,IF($B$6=Dates!$E$5,DataPack!AD41,IF($B$6=Dates!$E$6,DataPack!AN41,IF($B$6=Dates!$E$7,DataPack!AC41))))) -> 1
B12: Quality of teaching | D12: =IF($B$6=Dates!$E$3,DataPack!B42,IF($B$6=Dates!$E$4,DataPack!L42,IF($B$6=Dates!$E$5,DataPack!V42,IF($B$6=Dates!$E$6,DataPack!AF42,IF($B$6=Dates!$E$7,DataPack!U42))))) -> 4636 | E12: =IF($B$6=Dates!$E$3,DataPack!C42,IF($B$6=Dates!$E$4,DataPack!M42,IF($B$6=Dates!$E$5,DataPack!W42,IF($B$6=Dates!$E$6,DataPack!AG42,IF($B$6=Dates!$E$7,DataPack!V42))))) -> 333 | F12: =IF($B$6=Dates!$E$3,DataPack!D42,IF($B$6=Dates!$E$4,DataPack!N42,IF($B$6=Dates!$E$5,DataPack!X42,IF($B$6=Dates!$E$6,DataPack!AH42,IF($B$6=Dates!$E$7,DataPack!W42))))) -> 7 | G12: =IF($B$6=Dates!$E$3,DataPack!E42,IF($B$6=Dates!$E$4,DataPack!O42,IF($B$6=Dates!$E$5,DataPack!Y42,IF($B$6=Dates!$E$6,DataPack!AI42,IF($B$6=Dates!$E$7,DataPack!X42))))) -> 2512 | H12: =IF($B$6=Dates!$E$3,DataPack!F42,IF($B$6=Dates!$E$4,DataPack!P42,IF($B$6=Dates!$E$5,DataPack!Z42,IF($B$6=Dates!$E$6,DataPack!AJ42,IF($B$6=Dates!$E$7,DataPack!Y42))))) -> 54 | I12: =IF($B$6=Dates!$E$3,DataPack!G42,IF($B$6=Dates!$E$4,DataPack!Q42,IF($B$6=Dates!$E$5,DataPack!AA42,IF($B$6=Dates!$E$6,DataPack!AK42,IF($B$6=Dates!$E$7,DataPack!Z42))))) -> 1535 | J12: =IF($B$6=Dates!$E$3,DataPack!H42,IF($B$6=Dates!$E$4,DataPack!R42,IF($B$6=Dates!$E$5,DataPack!AB42,IF($B$6=Dates!$E$6,DataPack!AL42,IF($B$6=Dates!$E$7,DataPack!AA42))))) -> 33 | K12: =IF($B$6=Dates!$E$3,DataPack!I42,IF($B$6=Dates!$E$4,DataPack!S42,IF($B$6=Dates!$E$5,DataPack!AC42,IF($B$6=Dates!$E$6,DataPack!AM42,IF($B$6=Dates!$E$7,DataPack!AB42))))) -> 256 | L12: =IF($B$6=Dates!$E$3,DataPack!J42,IF($B$6=Dates!$E$4,DataPack!T42,IF($B$6=Dates!$E$5,DataPack!AD42,IF($B$6=Dates!$E$6,DataPack!AN42,IF($B$6=Dates!$E$7,DataPack!AC42))))) -> 6
B13: Leadership and management | D13: =IF($B$6=Dates!$E$3,DataPack!B43,IF($B$6=Dates!$E$4,DataPack!L43,IF($B$6=Dates!$E$5,DataPack!V43,IF($B$6=Dates!$E$6,DataPack!AF43,IF($B$6=Dates!$E$7,DataPack!U43))))) -> 4636 | E13: =IF($B$6=Dates!$E$3,DataPack!C43,IF($B$6=Dates!$E$4,DataPack!M43,IF($B$6=Dates!$E$5,DataPack!W43,IF($B$6=Dates!$E$6,DataPack!AG43,IF($B$6=Dates!$E$7,DataPack!V43))))) -> 503 | F13: =IF($B$6=Dates!$E$3,DataPack!D43,IF($B$6=Dates!$E$4,DataPack!N43,IF($B$6=Dates!$E$5,DataPack!X43,IF($B$6=Dates!$E$6,DataPack!AH43,IF($B$6=Dates!$E$7,DataPack!W43))))) -> 11 | G13: =IF($B$6=Dates!$E$3,DataPack!E43,IF($B$6=Dates!$E$4,DataPack!O43,IF($B$6=Dates!$E$5,DataPack!Y43,IF($B$6=Dates!$E$6,DataPack!AI43,IF($B$6=Dates!$E$7,DataPack!X43))))) -> 2557 | H13: =IF($B$6=Dates!$E$3,DataPack!F43,IF($B$6=Dates!$E$4,DataPack!P43,IF($B$6=Dates!$E$5,DataPack!Z43,IF($B$6=Dates!$E$6,DataPack!AJ43,IF($B$6=Dates!$E$7,DataPack!Y43))))) -> 55 | I13: =IF($B$6=Dates!$E$3,DataPack!G43,IF($B$6=Dates!$E$4,DataPack!Q43,IF($B$6=Dates!$E$5,DataPack!AA43,IF($B$6=Dates!$E$6,DataPack!AK43,IF($B$6=Dates!$E$7,DataPack!Z43))))) -> 1304 | J13: =IF($B$6=Dates!$E$3,DataPack!H43,IF($B$6=Dates!$E$4,DataPack!R43,IF($B$6=Dates!$E$5,DataPack!AB43,IF($B$6=Dates!$E$6,DataPack!AL43,IF($B$6=Dates!$E$7,DataPack!AA43))))) -> 28 | K13: =IF($B$6=Dates!$E$3,DataPack!I43,IF($B$6=Dates!$E$4,DataPack!S43,IF($B$6=Dates!$E$5,DataPack!AC43,IF($B$6=Dates!$E$6,DataPack!AM43,IF($B$6=Dates!$E$7,DataPack!AB43))))) -> 272 | L13: =IF($B$6=Dates!$E$3,DataPack!J43,IF($B$6=Dates!$E$4,DataPack!T43,IF($B$6=Dates!$E$5,DataPack!AD43,IF($B$6=Dates!$E$6,DataPack!AN43,IF($B$6=Dates!$E$7,DataPack!AC43))))) -> 6
B14: Overall effectiveness of the residential or boarding provision | D14: =IF($B$6=Dates!$E$3,DataPack!B44,IF($B$6=Dates!$E$4,DataPack!L44,IF($B$6=Dates!$E$5,DataPack!V44,IF($B$6=Dates!$E$6,DataPack!AF44,IF($B$6=Dates!$E$7,DataPack!U44))))) -> 0 | E14: =IF($B$6=Dates!$E$3,DataPack!C44,IF($B$6=Dates!$E$4,DataPack!M44,IF($B$6=Dates!$E$5,DataPack!W44,IF($B$6=Dates!$E$6,DataPack!AG44,IF($B$6=Dates!$E$7,DataPack!V44))))) -> 0 | F14: =IF($B$6=Dates!$E$3,DataPack!D44,IF($B$6=Dates!$E$4,DataPack!N44,IF($B$6=Dates!$E$5,DataPack!X44,IF($B$6=Dates!$E$6,DataPack!AH44,IF($B$6=Dates!$E$7,DataPack!W44))))) -> 0 | G14: =IF($B$6=Dates!$E$3,DataPack!E44,IF($B$6=Dates!$E$4,DataPack!O44,IF($B$6=Dates!$E$5,DataPack!Y44,IF($B$6=Dates!$E$6,DataPack!AI44,IF($B$6=Dates!$E$7,DataPack!X44))))) -> 0 | H14: =IF($B$6=Dates!$E$3,DataPack!F44,IF($B$6=Dates!$E$4,DataPack!P44,IF($B$6=Dates!$E$5,DataPack!Z44,IF($B$6=Dates!$E$6,DataPack!AJ44,IF($B$6=Dates!$E$7,DataPack!Y44))))) -> 0 | I14: =IF($B$6=Dates!$E$3,DataPack!G44,IF($B$6=Dates!$E$4,DataPack!Q44,IF($B$6=Dates!$E$5,DataPack!AA44,IF($B$6=Dates!$E$6,DataPack!AK44,IF($B$6=Dates!$E$7,DataPack!Z44))))) -> 0 | J14: =IF($B$6=Dates!$E$3,DataPack!H44,IF($B$6=Dates!$E$4,DataPack!R44,IF($B$6=Dates!$E$5,DataPack!AB44,IF($B$6=Dates!$E$6,DataPack!AL44,IF($B$6=Dates!$E$7,DataPack!AA44))))) -> 0 | K14: =IF($B$6=Dates!$E$3,DataPack!I44,IF($B$6=Dates!$E$4,DataPack!S44,IF($B$6=Dates!$E$5,DataPack!AC44,IF($B$6=Dates!$E$6,DataPack!AM44,IF($B$6=Dates!$E$7,DataPack!AB44))))) -> 0 | L14: =IF($B$6=Dates!$E$3,DataPack!J44,IF($B$6=Dates!$E$4,DataPack!T44,IF($B$6=Dates!$E$5,DataPack!AD44,IF($B$6=Dates!$E$6,DataPack!AN44,IF($B$6=Dates!$E$7,DataPack!AC44))))) -> 0
B15: Outcomes for residential or boarding pupils | D15: =IF($B$6=Dates!$E$3,DataPack!B45,IF($B$6=Dates!$E$4,DataPack!L45,IF($B$6=Dates!$E$5,DataPack!V45,IF($B$6=Dates!$E$6,DataPack!AF45,IF($B$6=Dates!$E$7,DataPack!U45))))) -> 0 | E15: =IF($B$6=Dates!$E$3,DataPack!C45,IF($B$6=Dates!$E$4,DataPack!M45,IF($B$6=Dates!$E$5,DataPack!W45,IF($B$6=Dates!$E$6,DataPack!AG45,IF($B$6=Dates!$E$7,DataPack!V45))))) -> 0 | F15: =IF($B$6=Dates!$E$3,DataPack!D45,IF($B$6=Dates!$E$4,DataPack!N45,IF($B$6=Dates!$E$5,DataPack!X45,IF($B$6=Dates!$E$6,DataPack!AH45,IF($B$6=Dates!$E$7,DataPack!W45))))) -> 0 | G15: =IF($B$6=Dates!$E$3,DataPack!E45,IF($B$6=Dates!$E$4,DataPack!O45,IF($B$6=Dates!$E$5,DataPack!Y45,IF($B$6=Dates!$E$6,DataPack!AI45,IF($B$6=Dates!$E$7,DataPack!X45))))) -> 0 | H15: =IF($B$6=Dates!$E$3,DataPack!F45,IF($B$6=Dates!$E$4,DataPack!P45,IF($B$6=Dates!$E$5,DataPack!Z45,IF($B$6=Dates!$E$6,DataPack!AJ45,IF($B$6=Dates!$E$7,DataPack!Y45))))) -> 0 | I15: =IF($B$6=Dates!$E$3,DataPack!G45,IF($B$6=Dates!$E$4,DataPack!Q45,IF($B$6=Dates!$E$5,DataPack!AA45,IF($B$6=Dates!$E$6,DataPack!AK45,IF($B$6=Dates!$E$7,DataPack!Z45))))) -> 0 | J15: =IF($B$6=Dates!$E$3,DataPack!H45,IF($B$6=Dates!$E$4,DataPack!R45,IF($B$6=Dates!$E$5,DataPack!AB45,IF($B$6=Dates!$E$6,DataPack!AL45,IF($B$6=Dates!$E$7,DataPack!AA45))))) -> 0 | K15: =IF($B$6=Dates!$E$3,DataPack!I45,IF($B$6=Dates!$E$4,DataPack!S45,IF($B$6=Dates!$E$5,DataPack!AC45,IF($B$6=Dates!$E$6,DataPack!AM45,IF($B$6=Dates!$E$7,DataPack!AB45))))) -> 0 | L15: =IF($B$6=Dates!$E$3,DataPack!J45,IF($B$6=Dates!$E$4,DataPack!T45,IF($B$6=Dates!$E$5,DataPack!AD45,IF($B$6=Dates!$E$6,DataPack!AN45,IF($B$6=Dates!$E$7,DataPack!AC45))))) -> 0
B16: The quality of residential or boarding provision and care | D16: =IF($B$6=Dates!$E$3,DataPack!B46,IF($B$6=Dates!$E$4,DataPack!L46,IF($B$6=Dates!$E$5,DataPack!V46,IF($B$6=Dates!$E$6,DataPack!AF46,IF($B$6=Dates!$E$7,DataPack!U46))))) -> 0 | E16: =IF($B$6=Dates!$E$3,DataPack!C46,IF($B$6=Dates!$E$4,DataPack!M46,IF($B$6=Dates!$E$5,DataPack!W46,IF($B$6=Dates!$E$6,DataPack!AG46,IF($B$6=Dates!$E$7,DataPack!V46))))) -> 0 | F16: =IF($B$6=Dates!$E$3,DataPack!D46,IF($B$6=Dates!$E$4,DataPack!N46,IF($B$6=Dates!$E$5,DataPack!X46,IF($B$6=Dates!$E$6,DataPack!AH46,IF($B$6=Dates!$E$7,DataPack!W46))))) -> 0 | G16: =IF($B$6=Dates!$E$3,DataPack!E46,IF($B$6=Dates!$E$4,DataPack!O46,IF($B$6=Dates!$E$5,DataPack!Y46,IF($B$6=Dates!$E$6,DataPack!AI46,IF($B$6=Dates!$E$7,DataPack!X46))))) -> 0 | H16: =IF($B$6=Dates!$E$3,DataPack!F46,IF($B$6=Dates!$E$4,DataPack!P46,IF($B$6=Dates!$E$5,DataPack!Z46,IF($B$6=Dates!$E$6,DataPack!AJ46,IF($B$6=Dates!$E$7,DataPack!Y46))))) -> 0 | I16: =IF($B$6=Dates!$E$3,DataPack!G46,IF($B$6=Dates!$E$4,DataPack!Q46,IF($B$6=Dates!$E$5,DataPack!AA46,IF($B$6=Dates!$E$6,DataPack!AK46,IF($B$6=Dates!$E$7,DataPack!Z46))))) -> 0 | J16: =IF($B$6=Dates!$E$3,DataPack!H46,IF($B$6=Dates!$E$4,DataPack!R46,IF($B$6=Dates!$E$5,DataPack!AB46,IF($B$6=Dates!$E$6,DataPack!AL46,IF($B$6=Dates!$E$7,DataPack!AA46))))) -> 0 | K16: =IF($B$6=Dates!$E$3,DataPack!I46,IF($B$6=Dates!$E$4,DataPack!S46,IF($B$6=Dates!$E$5,DataPack!AC46,IF($B$6=Dates!$E$6,DataPack!AM46,IF($B$6=Dates!$E$7,DataPack!AB46))))) -> 0 | L16: =IF($B$6=Dates!$E$3,DataPack!J46,IF($B$6=Dates!$E$4,DataPack!T46,IF($B$6=Dates!$E$5,DataPack!AD46,IF($B$6=Dates!$E$6,DataPack!AN46,IF($B$6=Dates!$E$7,DataPack!AC46))))) -> 0
B17: Residential and boarding pupil's safety | D17: =IF($B$6=Dates!$E$3,DataPack!B47,IF($B$6=Dates!$E$4,DataPack!L47,IF($B$6=Dates!$E$5,DataPack!V47,IF($B$6=Dates!$E$6,DataPack!AF47,IF($B$6=Dates!$E$7,DataPack!U47))))) -> 0 | E17: =IF($B$6=Dates!$E$3,DataPack!C47,IF($B$6=Dates!$E$4,DataPack!M47,IF($B$6=Dates!$E$5,DataPack!W47,IF($B$6=Dates!$E$6,DataPack!AG47,IF($B$6=Dates!$E$7,DataPack!V47))))) -> 0 | F17: =IF($B$6=Dates!$E$3,DataPack!D47,IF($B$6=Dates!$E$4,DataPack!N47,IF($B$6=Dates!$E$5,DataPack!X47,IF($B$6=Dates!$E$6,DataPack!AH47,IF($B$6=Dates!$E$7,DataPack!W47))))) -> 0 | G17: =IF($B$6=Dates!$E$3,DataPack!E47,IF($B$6=Dates!$E$4,DataPack!O47,IF($B$6=Dates!$E$5,DataPack!Y47,IF($B$6=Dates!$E$6,DataPack!AI47,IF($B$6=Dates!$E$7,DataPack!X47))))) -> 0 | H17: =IF($B$6=Dates!$E$3,DataPack!F47,IF($B$6=Dates!$E$4,DataPack!P47,IF($B$6=Dates!$E$5,DataPack!Z47,IF($B$6=Dates!$E$6,DataPack!AJ47,IF($B$6=Dates!$E$7,DataPack!Y47))))) -> 0 | I17: =IF($B$6=Dates!$E$3,DataPack!G47,IF($B$6=Dates!$E$4,DataPack!Q47,IF($B$6=Dates!$E$5,DataPack!AA47,IF($B$6=Dates!$E$6,DataPack!AK47,IF($B$6=Dates!$E$7,DataPack!Z47))))) -> 0 | J17: =IF($B$6=Dates!$E$3,DataPack!H47,IF($B$6=Dates!$E$4,DataPack!R47,IF($B$6=Dates!$E$5,DataPack!AB47,IF($B$6=Dates!$E$6,DataPack!AL47,IF($B$6=Dates!$E$7,DataPack!AA47))))) -> 0 | K17: =IF($B$6=Dates!$E$3,DataPack!I47,IF($B$6=Dates!$E$4,DataPack!S47,IF($B$6=Dates!$E$5,DataPack!AC47,IF($B$6=Dates!$E$6,DataPack!AM47,IF($B$6=Dates!$E$7,DataPack!AB47))))) -> 0 | L17: =IF($B$6=Dates!$E$3,DataPack!J47,IF($B$6=Dates!$E$4,DataPack!T47,IF($B$6=Dates!$E$5,DataPack!AD47,IF($B$6=Dates!$E$6,DataPack!AN47,IF($B$6=Dates!$E$7,DataPack!AC47))))) -> 0
B18: Leadership and management of the residential or boarding provision | D18: =IF($B$6=Dates!$E$3,DataPack!B48,IF($B$6=Dates!$E$4,DataPack!L48,IF($B$6=Dates!$E$5,DataPack!V48,IF($B$6=Dates!$E$6,DataPack!AF48,IF($B$6=Dates!$E$7,DataPack!U48))))) -> 0 | E18: =IF($B$6=Dates!$E$3,DataPack!C48,IF($B$6=Dates!$E$4,DataPack!M48,IF($B$6=Dates!$E$5,DataPack!W48,IF($B$6=Dates!$E$6,DataPack!AG48,IF($B$6=Dates!$E$7,DataPack!V48))))) -> 0 | F18: =IF($B$6=Dates!$E$3,DataPack!D48,IF($B$6=Dates!$E$4,DataPack!N48,IF($B$6=Dates!$E$5,DataPack!X48,IF($B$6=Dates!$E$6,DataPack!AH48,IF($B$6=Dates!$E$7,DataPack!W48))))) -> 0 | G18: =IF($B$6=Dates!$E$3,DataPack!E48,IF($B$6=Dates!$E$4,DataPack!O48,IF($B$6=Dates!$E$5,DataPack!Y48,IF($B$6=Dates!$E$6,DataPack!AI48,IF($B$6=Dates!$E$7,DataPack!X48))))) -> 0 | H18: =IF($B$6=Dates!$E$3,DataPack!F48,IF($B$6=Dates!$E$4,DataPack!P48,IF($B$6=Dates!$E$5,DataPack!Z48,IF($B$6=Dates!$E$6,DataPack!AJ48,IF($B$6=Dates!$E$7,DataPack!Y48))))) -> 0 | I18: =IF($B$6=Dates!$E$3,DataPack!G48,IF($B$6=Dates!$E$4,DataPack!Q48,IF($B$6=Dates!$E$5,DataPack!AA48,IF($B$6=Dates!$E$6,DataPack!AK48,IF($B$6=Dates!$E$7,DataPack!Z48))))) -> 0 | J18: =IF($B$6=Dates!$E$3,DataPack!H48,IF($B$6=Dates!$E$4,DataPack!R48,IF($B$6=Dates!$E$5,DataPack!AB48,IF($B$6=Dates!$E$6,DataPack!AL48,IF($B$6=Dates!$E$7,DataPack!AA48))))) -> 0 | K18: =IF($B$6=Dates!$E$3,DataPack!I48,IF($B$6=Dates!$E$4,DataPack!S48,IF($B$6=Dates!$E$5,DataPack!AC48,IF($B$6=Dates!$E$6,DataPack!AM48,IF($B$6=Dates!$E$7,DataPack!AB48))))) -> 0 | L18: =IF($B$6=Dates!$E$3,DataPack!J48,IF($B$6=Dates!$E$4,DataPack!T48,IF($B$6=Dates!$E$5,DataPack!AD48,IF($B$6=Dates!$E$6,DataPack!AN48,IF($B$6=Dates!$E$7,DataPack!AC48))))) -> 0
L19: Source: Ofsted inspections
B20: 1. Percentages are rounded and may not add to 100.
B21: 2. Primary schools include primary academy converters.
B22: 3. The judgements for pupils' attainment and pupils' attendance are high, above average, average and low.

Sheet Table 2c
B2: ="Table 2c: Inspection outcomes of secondary schools inspected " & IF('Table 2c'!B6=Dates!$E$3, "between " & Dates!$E$3, IF('Table 2c'!B6 = Dates!E4, "in " & Dates!E4, IF('Table 2c'!B6=Dates!E5, "in " & Dates!E5, IF('Table 2c'!B6=Dates!E6, "in " & Dates!E6, IF('Table 2c'!B6=Dates!E7, "in " & Dates!E7))))) & " (final) " & CHAR(185) & " " & CHAR(178) & " " & CHAR(179) -> Table 2c: Inspection outcomes of secondary schools inspected between 1 September 2011 and 31 August 2012 (final) ¹ ² ³
B4: Select period:
B6: 1 September 2011 and 31 August 2012 | D6: Total number inspected | E6: Outstanding | G6: Good | I6: Satisfactory | K6: Inadequate
E7: Number | F7: % | G7: Number | H7: % | I7: Number | J7: % | K7: Number | L7: %
B9: Overall Effectiveness | D9: =IF($B$6=Dates!$E$3,DataPack!B51,IF($B$6=Dates!$E$4,DataPack!L51,IF($B$6=Dates!$E$5,DataPack!V51,IF($B$6=Dates!$E$6,DataPack!AF51,IF($B$6=Dates!$E$7,DataPack!U51))))) -> 926 | E9: =IF($B$6=Dates!$E$3,DataPack!C51,IF($B$6=Dates!$E$4,DataPack!M51,IF($B$6=Dates!$E$5,DataPack!W51,IF($B$6=Dates!$E$6,DataPack!AG51,IF($B$6=Dates!$E$7,DataPack!V51))))) -> 126 | F9: =IF($B$6=Dates!$E$3,DataPack!D51,IF($B$6=Dates!$E$4,DataPack!N51,IF($B$6=Dates!$E$5,DataPack!X51,IF($B$6=Dates!$E$6,DataPack!AH51,IF($B$6=Dates!$E$7,DataPack!W51))))) -> 14 | G9: =IF($B$6=Dates!$E$3,DataPack!E51,IF($B$6=Dates!$E$4,DataPack!O51,IF($B$6=Dates!$E$5,DataPack!Y51,IF($B$6=Dates!$E$6,DataPack!AI51,IF($B$6=Dates!$E$7,DataPack!X51))))) -> 382 | H9: =IF($B$6=Dates!$E$3,DataPack!F51,IF($B$6=Dates!$E$4,DataPack!P51,IF($B$6=Dates!$E$5,DataPack!Z51,IF($B$6=Dates!$E$6,DataPack!AJ51,IF($B$6=Dates!$E$7,DataPack!Y51))))) -> 41 | I9: =IF($B$6=Dates!$E$3,DataPack!G51,IF($B$6=Dates!$E$4,DataPack!Q51,IF($B$6=Dates!$E$5,DataPack!AA51,IF($B$6=Dates!$E$6,DataPack!AK51,IF($B$6=Dates!$E$7,DataPack!Z51))))) -> 313 | J9: =IF($B$6=Dates!$E$3,DataPack!H51,IF($B$6=Dates!$E$4,DataPack!R51,IF($B$6=Dates!$E$5,DataPack!AB51,IF($B$6=Dates!$E$6,DataPack!AL51,IF($B$6=Dates!$E$7,DataPack!AA51))))) -> 34 | K9: =IF($B$6=Dates!$E$3,DataPack!I51,IF($B$6=Dates!$E$4,DataPack!S51,IF($B$6=Dates!$E$5,DataPack!AC51,IF($B$6=Dates!$E$6,DataPack!AM51,IF($B$6=Dates!$E$7,DataPack!AB51))))) -> 105 | L9: =IF($B$6=Dates!$E$3,DataPack!J51,IF($B$6=Dates!$E$4,DataPack!T51,IF($B$6=Dates!$E$5,DataPack!AD51,IF($B$6=Dates!$E$6,DataPack!AN51,IF($B$6=Dates!$E$7,DataPack!AC51))))) -> 11
B10: Achievement of pupils | D10: =IF($B$6=Dates!$E$3,DataPack!B52,IF($B$6=Dates!$E$4,DataPack!L52,IF($B$6=Dates!$E$5,DataPack!V52,IF($B$6=Dates!$E$6,DataPack!AF52,IF($B$6=Dates!$E$7,DataPack!U52))))) -> 926 | E10: =IF($B$6=Dates!$E$3,DataPack!C52,IF($B$6=Dates!$E$4,DataPack!M52,IF($B$6=Dates!$E$5,DataPack!W52,IF($B$6=Dates!$E$6,DataPack!AG52,IF($B$6=Dates!$E$7,DataPack!V52))))) -> 128 | F10: =IF($B$6=Dates!$E$3,DataPack!D52,IF($B$6=Dates!$E$4,DataPack!N52,IF($B$6=Dates!$E$5,DataPack!X52,IF($B$6=Dates!$E$6,DataPack!AH52,IF($B$6=Dates!$E$7,DataPack!W52))))) -> 14 | G10: =IF($B$6=Dates!$E$3,DataPack!E52,IF($B$6=Dates!$E$4,DataPack!O52,IF($B$6=Dates!$E$5,DataPack!Y52,IF($B$6=Dates!$E$6,DataPack!AI52,IF($B$6=Dates!$E$7,DataPack!X52))))) -> 381 | H10: =IF($B$6=Dates!$E$3,DataPack!F52,IF($B$6=Dates!$E$4,DataPack!P52,IF($B$6=Dates!$E$5,DataPack!Z52,IF($B$6=Dates!$E$6,DataPack!AJ52,IF($B$6=Dates!$E$7,DataPack!Y52))))) -> 41 | I10: =IF($B$6=Dates!$E$3,DataPack!G52,IF($B$6=Dates!$E$4,DataPack!Q52,IF($B$6=Dates!$E$5,DataPack!AA52,IF($B$6=Dates!$E$6,DataPack!AK52,IF($B$6=Dates!$E$7,DataPack!Z52))))) -> 321 | J10: =IF($B$6=Dates!$E$3,DataPack!H52,IF($B$6=Dates!$E$4,DataPack!R52,IF($B$6=Dates!$E$5,DataPack!AB52,IF($B$6=Dates!$E$6,DataPack!AL52,IF($B$6=Dates!$E$7,DataPack!AA52))))) -> 35 | K10: =IF($B$6=Dates!$E$3,DataPack!I52,IF($B$6=Dates!$E$4,DataPack!S52,IF($B$6=Dates!$E$5,DataPack!AC52,IF($B$6=Dates!$E$6,DataPack!AM52,IF($B$6=Dates!$E$7,DataPack!AB52))))) -> 96 | L10: =IF($B$6=Dates!$E$3,DataPack!J52,IF($B$6=Dates!$E$4,DataPack!T52,IF($B$6=Dates!$E$5,DataPack!AD52,IF($B$6=Dates!$E$6,DataPack!AN52,IF($B$6=Dates!$E$7,DataPack!AC52))))) -> 10
B11: Behaviour and safety of pupils | D11: =IF($B$6=Dates!$E$3,DataPack!B53,IF($B$6=Dates!$E$4,DataPack!L53,IF($B$6=Dates!$E$5,DataPack!V53,IF($B$6=Dates!$E$6,DataPack!AF53,IF($B$6=Dates!$E$7,DataPack!U53))))) -> 926 | E11: =IF($B$6=Dates!$E$3,DataPack!C53,IF($B$6=Dates!$E$4,DataPack!M53,IF($B$6=Dates!$E$5,DataPack!W53,IF($B$6=Dates!$E$6,DataPack!AG53,IF($B$6=Dates!$E$7,DataPack!V53))))) -> 163 | F11: =IF($B$6=Dates!$E$3,DataPack!D53,IF($B$6=Dates!$E$4,DataPack!N53,IF($B$6=Dates!$E$5,DataPack!X53,IF($B$6=Dates!$E$6,DataPack!AH53,IF($B$6=Dates!$E$7,DataPack!W53))))) -> 18 | G11: =IF($B$6=Dates!$E$3,DataPack!E53,IF($B$6=Dates!$E$4,DataPack!O53,IF($B$6=Dates!$E$5,DataPack!Y53,IF($B$6=Dates!$E$6,DataPack!AI53,IF($B$6=Dates!$E$7,DataPack!X53))))) -> 500 | H11: =IF($B$6=Dates!$E$3,DataPack!F53,IF($B$6=Dates!$E$4,DataPack!P53,IF($B$6=Dates!$E$5,DataPack!Z53,IF($B$6=Dates!$E$6,DataPack!AJ53,IF($B$6=Dates!$E$7,DataPack!Y53))))) -> 54 | I11: =IF($B$6=Dates!$E$3,DataPack!G53,IF($B$6=Dates!$E$4,DataPack!Q53,IF($B$6=Dates!$E$5,DataPack!AA53,IF($B$6=Dates!$E$6,DataPack!AK53,IF($B$6=Dates!$E$7,DataPack!Z53))))) -> 222 | J11: =IF($B$6=Dates!$E$3,DataPack!H53,IF($B$6=Dates!$E$4,DataPack!R53,IF($B$6=Dates!$E$5,DataPack!AB53,IF($B$6=Dates!$E$6,DataPack!AL53,IF($B$6=Dates!$E$7,DataPack!AA53))))) -> 24 | K11: =IF($B$6=Dates!$E$3,DataPack!I53,IF($B$6=Dates!$E$4,DataPack!S53,IF($B$6=Dates!$E$5,DataPack!AC53,IF($B$6=Dates!$E$6,DataPack!AM53,IF($B$6=Dates!$E$7,DataPack!AB53))))) -> 41 | L11: =IF($B$6=Dates!$E$3,DataPack!J53,IF($B$6=Dates!$E$4,DataPack!T53,IF($B$6=Dates!$E$5,DataPack!AD53,IF($B$6=Dates!$E$6,DataPack!AN53,IF($B$6=Dates!$E$7,DataPack!AC53))))) -> 4
B12: Quality of teaching | D12: =IF($B$6=Dates!$E$3,DataPack!B54,IF($B$6=Dates!$E$4,DataPack!L54,IF($B$6=Dates!$E$5,DataPack!V54,IF($B$6=Dates!$E$6,DataPack!AF54,IF($B$6=Dates!$E$7,DataPack!U54))))) -> 926 | E12: =IF($B$6=Dates!$E$3,DataPack!C54,IF($B$6=Dates!$E$4,DataPack!M54,IF($B$6=Dates!$E$5,DataPack!W54,IF($B$6=Dates!$E$6,DataPack!AG54,IF($B$6=Dates!$E$7,DataPack!V54))))) -> 88 | F12: =IF($B$6=Dates!$E$3,DataPack!D54,IF($B$6=Dates!$E$4,DataPack!N54,IF($B$6=Dates!$E$5,DataPack!X54,IF($B$6=Dates!$E$6,DataPack!AH54,IF($B$6=Dates!$E$7,DataPack!W54))))) -> 10 | G12: =IF($B$6=Dates!$E$3,DataPack!E54,IF($B$6=Dates!$E$4,DataPack!O54,IF($B$6=Dates!$E$5,DataPack!Y54,IF($B$6=Dates!$E$6,DataPack!AI54,IF($B$6=Dates!$E$7,DataPack!X54))))) -> 437 | H12: =IF($B$6=Dates!$E$3,DataPack!F54,IF($B$6=Dates!$E$4,DataPack!P54,IF($B$6=Dates!$E$5,DataPack!Z54,IF($B$6=Dates!$E$6,DataPack!AJ54,IF($B$6=Dates!$E$7,DataPack!Y54))))) -> 47 | I12: =IF($B$6=Dates!$E$3,DataPack!G54,IF($B$6=Dates!$E$4,DataPack!Q54,IF($B$6=Dates!$E$5,DataPack!AA54,IF($B$6=Dates!$E$6,DataPack!AK54,IF($B$6=Dates!$E$7,DataPack!Z54))))) -> 343 | J12: =IF($B$6=Dates!$E$3,DataPack!H54,IF($B$6=Dates!$E$4,DataPack!R54,IF($B$6=Dates!$E$5,DataPack!AB54,IF($B$6=Dates!$E$6,DataPack!AL54,IF($B$6=Dates!$E$7,DataPack!AA54))))) -> 37 | K12: =IF($B$6=Dates!$E$3,DataPack!I54,IF($B$6=Dates!$E$4,DataPack!S54,IF($B$6=Dates!$E$5,DataPack!AC54,IF($B$6=Dates!$E$6,DataPack!AM54,IF($B$6=Dates!$E$7,DataPack!AB54))))) -> 58 | L12: =IF($B$6=Dates!$E$3,DataPack!J54,IF($B$6=Dates!$E$4,DataPack!T54,IF($B$6=Dates!$E$5,DataPack!AD54,IF($B$6=Dates!$E$6,DataPack!AN54,IF($B$6=Dates!$E$7,DataPack!AC54))))) -> 6
B13: Leadership and management | D13: =IF($B$6=Dates!$E$3,DataPack!B55,IF($B$6=Dates!$E$4,DataPack!L55,IF($B$6=Dates!$E$5,DataPack!V55,IF($B$6=Dates!$E$6,DataPack!AF55,IF($B$6=Dates!$E$7,DataPack!U55))))) -> 926 | E13: =IF($B$6=Dates!$E$3,DataPack!C55,IF($B$6=Dates!$E$4,DataPack!M55,IF($B$6=Dates!$E$5,DataPack!W55,IF($B$6=Dates!$E$6,DataPack!AG55,IF($B$6=Dates!$E$7,DataPack!V55))))) -> 172 | F13: =IF($B$6=Dates!$E$3,DataPack!D55,IF($B$6=Dates!$E$4,DataPack!N55,IF($B$6=Dates!$E$5,DataPack!X55,IF($B$6=Dates!$E$6,DataPack!AH55,IF($B$6=Dates!$E$7,DataPack!W55))))) -> 19 | G13: =IF($B$6=Dates!$E$3,DataPack!E55,IF($B$6=Dates!$E$4,DataPack!O55,IF($B$6=Dates!$E$5,DataPack!Y55,IF($B$6=Dates!$E$6,DataPack!AI55,IF($B$6=Dates!$E$7,DataPack!X55))))) -> 449 | H13: =IF($B$6=Dates!$E$3,DataPack!F55,IF($B$6=Dates!$E$4,DataPack!P55,IF($B$6=Dates!$E$5,DataPack!Z55,IF($B$6=Dates!$E$6,DataPack!AJ55,IF($B$6=Dates!$E$7,DataPack!Y55))))) -> 48 | I13: =IF($B$6=Dates!$E$3,DataPack!G55,IF($B$6=Dates!$E$4,DataPack!Q55,IF($B$6=Dates!$E$5,DataPack!AA55,IF($B$6=Dates!$E$6,DataPack!AK55,IF($B$6=Dates!$E$7,DataPack!Z55))))) -> 251 | J13: =IF($B$6=Dates!$E$3,DataPack!H55,IF($B$6=Dates!$E$4,DataPack!R55,IF($B$6=Dates!$E$5,DataPack!AB55,IF($B$6=Dates!$E$6,DataPack!AL55,IF($B$6=Dates!$E$7,DataPack!AA55))))) -> 27 | K13: =IF($B$6=Dates!$E$3,DataPack!I55,IF($B$6=Dates!$E$4,DataPack!S55,IF($B$6=Dates!$E$5,DataPack!AC55,IF($B$6=Dates!$E$6,DataPack!AM55,IF($B$6=Dates!$E$7,DataPack!AB55))))) -> 54 | L13: =IF($B$6=Dates!$E$3,DataPack!J55,IF($B$6=Dates!$E$4,DataPack!T55,IF($B$6=Dates!$E$5,DataPack!AD55,IF($B$6=Dates!$E$6,DataPack!AN55,IF($B$6=Dates!$E$7,DataPack!AC55))))) -> 6
B14: Overall effectiveness of the residential or boarding provision | D14: =IF($B$6=Dates!$E$3,DataPack!B56,IF($B$6=Dates!$E$4,DataPack!L56,IF($B$6=Dates!$E$5,DataPack!V56,IF($B$6=Dates!$E$6,DataPack!AF56,IF($B$6=Dates!$E$7,DataPack!U56))))) -> 2 | E14: =IF($B$6=Dates!$E$3,DataPack!C56,IF($B$6=Dates!$E$4,DataPack!M56,IF($B$6=Dates!$E$5,DataPack!W56,IF($B$6=Dates!$E$6,DataPack!AG56,IF($B$6=Dates!$E$7,DataPack!V56))))) -> 1 | F14: =IF($B$6=Dates!$E$3,DataPack!D56,IF($B$6=Dates!$E$4,DataPack!N56,IF($B$6=Dates!$E$5,DataPack!X56,IF($B$6=Dates!$E$6,DataPack!AH56,IF($B$6=Dates!$E$7,DataPack!W56))))) -> 50 | G14: =IF($B$6=Dates!$E$3,DataPack!E56,IF($B$6=Dates!$E$4,DataPack!O56,IF($B$6=Dates!$E$5,DataPack!Y56,IF($B$6=Dates!$E$6,DataPack!AI56,IF($B$6=Dates!$E$7,DataPack!X56))))) -> 1 | H14: =IF($B$6=Dates!$E$3,DataPack!F56,IF($B$6=Dates!$E$4,DataPack!P56,IF($B$6=Dates!$E$5,DataPack!Z56,IF($B$6=Dates!$E$6,DataPack!AJ56,IF($B$6=Dates!$E$7,DataPack!Y56))))) -> 50 | I14: =IF($B$6=Dates!$E$3,DataPack!G56,IF($B$6=Dates!$E$4,DataPack!Q56,IF($B$6=Dates!$E$5,DataPack!AA56,IF($B$6=Dates!$E$6,DataPack!AK56,IF($B$6=Dates!$E$7,DataPack!Z56))))) -> 0 | J14: =IF($B$6=Dates!$E$3,DataPack!H56,IF($B$6=Dates!$E$4,DataPack!R56,IF($B$6=Dates!$E$5,DataPack!AB56,IF($B$6=Dates!$E$6,DataPack!AL56,IF($B$6=Dates!$E$7,DataPack!AA56))))) -> 0 | K14: =IF($B$6=Dates!$E$3,DataPack!I56,IF($B$6=Dates!$E$4,DataPack!S56,IF($B$6=Dates!$E$5,DataPack!AC56,IF($B$6=Dates!$E$6,DataPack!AM56,IF($B$6=Dates!$E$7,DataPack!AB56))))) -> 0 | L14: =IF($B$6=Dates!$E$3,DataPack!J56,IF($B$6=Dates!$E$4,DataPack!T56,IF($B$6=Dates!$E$5,DataPack!AD56,IF($B$6=Dates!$E$6,DataPack!AN56,IF($B$6=Dates!$E$7,DataPack!AC56))))) -> 0
B15: Outcomes for residential or boarding pupils | D15: =IF($B$6=Dates!$E$3,DataPack!B57,IF($B$6=Dates!$E$4,DataPack!L57,IF($B$6=Dates!$E$5,DataPack!V57,IF($B$6=Dates!$E$6,DataPack!AF57,IF($B$6=Dates!$E$7,DataPack!U57))))) -> 2 | E15: =IF($B$6=Dates!$E$3,DataPack!C57,IF($B$6=Dates!$E$4,DataPack!M57,IF($B$6=Dates!$E$5,DataPack!W57,IF($B$6=Dates!$E$6,DataPack!AG57,IF($B$6=Dates!$E$7,DataPack!V57))))) -> 1 | F15: =IF($B$6=Dates!$E$3,DataPack!D57,IF($B$6=Dates!$E$4,DataPack!N57,IF($B$6=Dates!$E$5,DataPack!X57,IF($B$6=Dates!$E$6,DataPack!AH57,IF($B$6=Dates!$E$7,DataPack!W57))))) -> 50 | G15: =IF($B$6=Dates!$E$3,DataPack!E57,IF($B$6=Dates!$E$4,DataPack!O57,IF($B$6=Dates!$E$5,DataPack!Y57,IF($B$6=Dates!$E$6,DataPack!AI57,IF($B$6=Dates!$E$7,DataPack!X57))))) -> 1 | H15: =IF($B$6=Dates!$E$3,DataPack!F57,IF($B$6=Dates!$E$4,DataPack!P57,IF($B$6=Dates!$E$5,DataPack!Z57,IF($B$6=Dates!$E$6,DataPack!AJ57,IF($B$6=Dates!$E$7,DataPack!Y57))))) -> 50 | I15: =IF($B$6=Dates!$E$3,DataPack!G57,IF($B$6=Dates!$E$4,DataPack!Q57,IF($B$6=Dates!$E$5,DataPack!AA57,IF($B$6=Dates!$E$6,DataPack!AK57,IF($B$6=Dates!$E$7,DataPack!Z57))))) -> 0 | J15: =IF($B$6=Dates!$E$3,DataPack!H57,IF($B$6=Dates!$E$4,DataPack!R57,IF($B$6=Dates!$E$5,DataPack!AB57,IF($B$6=Dates!$E$6,DataPack!AL57,IF($B$6=Dates!$E$7,DataPack!AA57))))) -> 0 | K15: =IF($B$6=Dates!$E$3,DataPack!I57,IF($B$6=Dates!$E$4,DataPack!S57,IF($B$6=Dates!$E$5,DataPack!AC57,IF($B$6=Dates!$E$6,DataPack!AM57,IF($B$6=Dates!$E$7,DataPack!AB57))))) -> 0 | L15: =IF($B$6=Dates!$E$3,DataPack!J57,IF($B$6=Dates!$E$4,DataPack!T57,IF($B$6=Dates!$E$5,DataPack!AD57,IF($B$6=Dates!$E$6,DataPack!AN57,IF($B$6=Dates!$E$7,DataPack!AC57))))) -> 0
B16: The quality of residential or boarding provision and care | D16: =IF($B$6=Dates!$E$3,DataPack!B58,IF($B$6=Dates!$E$4,DataPack!L58,IF($B$6=Dates!$E$5,DataPack!V58,IF($B$6=Dates!$E$6,DataPack!AF58,IF($B$6=Dates!$E$7,DataPack!U58))))) -> 2 | E16: =IF($B$6=Dates!$E$3,DataPack!C58,IF($B$6=Dates!$E$4,DataPack!M58,IF($B$6=Dates!$E$5,DataPack!W58,IF($B$6=Dates!$E$6,DataPack!AG58,IF($B$6=Dates!$E$7,DataPack!V58))))) -> 1 | F16: =IF($B$6=Dates!$E$3,DataPack!D58,IF($B$6=Dates!$E$4,DataPack!N58,IF($B$6=Dates!$E$5,DataPack!X58,IF($B$6=Dates!$E$6,DataPack!AH58,IF($B$6=Dates!$E$7,DataPack!W58))))) -> 50 | G16: =IF($B$6=Dates!$E$3,DataPack!E58,IF($B$6=Dates!$E$4,DataPack!O58,IF($B$6=Dates!$E$5,DataPack!Y58,IF($B$6=Dates!$E$6,DataPack!AI58,IF($B$6=Dates!$E$7,DataPack!X58))))) -> 1 | H16: =IF($B$6=Dates!$E$3,DataPack!F58,IF($B$6=Dates!$E$4,DataPack!P58,IF($B$6=Dates!$E$5,DataPack!Z58,IF($B$6=Dates!$E$6,DataPack!AJ58,IF($B$6=Dates!$E$7,DataPack!Y58))))) -> 50 | I16: =IF($B$6=Dates!$E$3,DataPack!G58,IF($B$6=Dates!$E$4,DataPack!Q58,IF($B$6=Dates!$E$5,DataPack!AA58,IF($B$6=Dates!$E$6,DataPack!AK58,IF($B$6=Dates!$E$7,DataPack!Z58))))) -> 0 | J16: =IF($B$6=Dates!$E$3,DataPack!H58,IF($B$6=Dates!$E$4,DataPack!R58,IF($B$6=Dates!$E$5,DataPack!AB58,IF($B$6=Dates!$E$6,DataPack!AL58,IF($B$6=Dates!$E$7,DataPack!AA58))))) -> 0 | K16: =IF($B$6=Dates!$E$3,DataPack!I58,IF($B$6=Dates!$E$4,DataPack!S58,IF($B$6=Dates!$E$5,DataPack!AC58,IF($B$6=Dates!$E$6,DataPack!AM58,IF($B$6=Dates!$E$7,DataPack!AB58))))) -> 0 | L16: =IF($B$6=Dates!$E$3,DataPack!J58,IF($B$6=Dates!$E$4,DataPack!T58,IF($B$6=Dates!$E$5,DataPack!AD58,IF($B$6=Dates!$E$6,DataPack!AN58,IF($B$6=Dates!$E$7,DataPack!AC58))))) -> 0
B17: Residential and boarding pupil's safety | D17: =IF($B$6=Dates!$E$3,DataPack!B59,IF($B$6=Dates!$E$4,DataPack!L59,IF($B$6=Dates!$E$5,DataPack!V59,IF($B$6=Dates!$E$6,DataPack!AF59,IF($B$6=Dates!$E$7,DataPack!U59))))) -> 2 | E17: =IF($B$6=Dates!$E$3,DataPack!C59,IF($B$6=Dates!$E$4,DataPack!M59,IF($B$6=Dates!$E$5,DataPack!W59,IF($B$6=Dates!$E$6,DataPack!AG59,IF($B$6=Dates!$E$7,DataPack!V59))))) -> 1 | F17: =IF($B$6=Dates!$E$3,DataPack!D59,IF($B$6=Dates!$E$4,DataPack!N59,IF($B$6=Dates!$E$5,DataPack!X59,IF($B$6=Dates!$E$6,DataPack!AH59,IF($B$6=Dates!$E$7,DataPack!W59))))) -> 50 | G17: =IF($B$6=Dates!$E$3,DataPack!E59,IF($B$6=Dates!$E$4,DataPack!O59,IF($B$6=Dates!$E$5,DataPack!Y59,IF($B$6=Dates!$E$6,DataPack!AI59,IF($B$6=Dates!$E$7,DataPack!X59))))) -> 1 | H17: =IF($B$6=Dates!$E$3,DataPack!F59,IF($B$6=Dates!$E$4,DataPack!P59,IF($B$6=Dates!$E$5,DataPack!Z59,IF($B$6=Dates!$E$6,DataPack!AJ59,IF($B$6=Dates!$E$7,DataPack!Y59))))) -> 50 | I17: =IF($B$6=Dates!$E$3,DataPack!G59,IF($B$6=Dates!$E$4,DataPack!Q59,IF($B$6=Dates!$E$5,DataPack!AA59,IF($B$6=Dates!$E$6,DataPack!AK59,IF($B$6=Dates!$E$7,DataPack!Z59))))) -> 0 | J17: =IF($B$6=Dates!$E$3,DataPack!H59,IF($B$6=Dates!$E$4,DataPack!R59,IF($B$6=Dates!$E$5,DataPack!AB59,IF($B$6=Dates!$E$6,DataPack!AL59,IF($B$6=Dates!$E$7,DataPack!AA59))))) -> 0 | K17: =IF($B$6=Dates!$E$3,DataPack!I59,IF($B$6=Dates!$E$4,DataPack!S59,IF($B$6=Dates!$E$5,DataPack!AC59,IF($B$6=Dates!$E$6,DataPack!AM59,IF($B$6=Dates!$E$7,DataPack!AB59))))) -> 0 | L17: =IF($B$6=Dates!$E$3,DataPack!J59,IF($B$6=Dates!$E$4,DataPack!T59,IF($B$6=Dates!$E$5,DataPack!AD59,IF($B$6=Dates!$E$6,DataPack!AN59,IF($B$6=Dates!$E$7,DataPack!AC59))))) -> 0
B18: Leadership and management of the residential or boarding provision | D18: =IF($B$6=Dates!$E$3,DataPack!B60,IF($B$6=Dates!$E$4,DataPack!L60,IF($B$6=Dates!$E$5,DataPack!V60,IF($B$6=Dates!$E$6,DataPack!AF60,IF($B$6=Dates!$E$7,DataPack!U60))))) -> 2 | E18: =IF($B$6=Dates!$E$3,DataPack!C60,IF($B$6=Dates!$E$4,DataPack!M60,IF($B$6=Dates!$E$5,DataPack!W60,IF($B$6=Dates!$E$6,DataPack!AG60,IF($B$6=Dates!$E$7,DataPack!V60))))) -> 1 | F18: =IF($B$6=Dates!$E$3,DataPack!D60,IF($B$6=Dates!$E$4,DataPack!N60,IF($B$6=Dates!$E$5,DataPack!X60,IF($B$6=Dates!$E$6,DataPack!AH60,IF($B$6=Dates!$E$7,DataPack!W60))))) -> 50 | G18: =IF($B$6=Dates!$E$3,DataPack!E60,IF($B$6=Dates!$E$4,DataPack!O60,IF($B$6=Dates!$E$5,DataPack!Y60,IF($B$6=Dates!$E$6,DataPack!AI60,IF($B$6=Dates!$E$7,DataPack!X60))))) -> 1 | H18: =IF($B$6=Dates!$E$3,DataPack!F60,IF($B$6=Dates!$E$4,DataPack!P60,IF($B$6=Dates!$E$5,DataPack!Z60,IF($B$6=Dates!$E$6,DataPack!AJ60,IF($B$6=Dates!$E$7,DataPack!Y60))))) -> 50 | I18: =IF($B$6=Dates!$E$3,DataPack!G60,IF($B$6=Dates!$E$4,DataPack!Q60,IF($B$6=Dates!$E$5,DataPack!AA60,IF($B$6=Dates!$E$6,DataPack!AK60,IF($B$6=Dates!$E$7,DataPack!Z60))))) -> 0 | J18: =IF($B$6=Dates!$E$3,DataPack!H60,IF($B$6=Dates!$E$4,DataPack!R60,IF($B$6=Dates!$E$5,DataPack!AB60,IF($B$6=Dates!$E$6,DataPack!AL60,IF($B$6=Dates!$E$7,DataPack!AA60))))) -> 0 | K18: =IF($B$6=Dates!$E$3,DataPack!I60,IF($B$6=Dates!$E$4,DataPack!S60,IF($B$6=Dates!$E$5,DataPack!AC60,IF($B$6=Dates!$E$6,DataPack!AM60,IF($B$6=Dates!$E$7,DataPack!AB60))))) -> 0 | L18: =IF($B$6=Dates!$E$3,DataPack!J60,IF($B$6=Dates!$E$4,DataPack!T60,IF($B$6=Dates!$E$5,DataPack!AD60,IF($B$6=Dates!$E$6,DataPack!AN60,IF($B$6=Dates!$E$7,DataPack!AC60))))) -> 0
L19: Source: Ofsted inspections
B20: 1. Percentages are rounded and may not add to 100.
B21: 2. Secondary schools include secondary academy converters, sponsor-led academies and city technology colleges.
B22: 3. The judgements for pupils' attainment and pupils' attendance are high, above average, average and low.
B23: 3. Where numbers are small, percentages should be treated with caution.

Sheet Table 2d
B2: ="Table 2d: Inspection outcomes of special schools inspected " & IF('Table 2d'!B6=Dates!$E$3, "between " & Dates!$E$3, IF('Table 2d'!B6 = Dates!E4, "in " & Dates!E4, IF('Table 2d'!B6=Dates!E5, "in " & Dates!E5, IF('Table 2d'!B6=Dates!E6, "in " & Dates!E6, IF('Table 2d'!B6=Dates!E7, "in " & Dates!E7))))) & " (final) " & CHAR(185) & " " & CHAR(178) -> Table 2d: Inspection outcomes of special schools inspected between 1 September 2011 and 31 August 2012 (final) ¹ ²
B4: Select period:
B6: 1 September 2011 and 31 August 2012 | D6: Total number inspected | E6: Outstanding | G6: Good | I6: Satisfactory | K6: Inadequate
E7: Number | F7: % | G7: Number | H7: % | I7: Number | J7: % | K7: Number | L7: %
B9: Overall Effectiveness | D9: =IF($B$6=Dates!$E$3,DataPack!B63,IF($B$6=Dates!$E$4,DataPack!L63,IF($B$6=Dates!$E$5,DataPack!V63,IF($B$6=Dates!$E$6,DataPack!AF63,IF($B$6=Dates!$E$7,DataPack!U63))))) -> 282 | E9: =IF($B$6=Dates!$E$3,DataPack!C63,IF($B$6=Dates!$E$4,DataPack!M63,IF($B$6=Dates!$E$5,DataPack!W63,IF($B$6=Dates!$E$6,DataPack!AG63,IF($B$6=Dates!$E$7,DataPack!V63))))) -> 78 | F9: =IF($B$6=Dates!$E$3,DataPack!D63,IF($B$6=Dates!$E$4,DataPack!N63,IF($B$6=Dates!$E$5,DataPack!X63,IF($B$6=Dates!$E$6,DataPack!AH63,IF($B$6=Dates!$E$7,DataPack!W63))))) -> 28 | G9: =IF($B$6=Dates!$E$3,DataPack!E63,IF($B$6=Dates!$E$4,DataPack!O63,IF($B$6=Dates!$E$5,DataPack!Y63,IF($B$6=Dates!$E$6,DataPack!AI63,IF($B$6=Dates!$E$7,DataPack!X63))))) -> 141 | H9: =IF($B$6=Dates!$E$3,DataPack!F63,IF($B$6=Dates!$E$4,DataPack!P63,IF($B$6=Dates!$E$5,DataPack!Z63,IF($B$6=Dates!$E$6,DataPack!AJ63,IF($B$6=Dates!$E$7,DataPack!Y63))))) -> 50 | I9: =IF($B$6=Dates!$E$3,DataPack!G63,IF($B$6=Dates!$E$4,DataPack!Q63,IF($B$6=Dates!$E$5,DataPack!AA63,IF($B$6=Dates!$E$6,DataPack!AK63,IF($B$6=Dates!$E$7,DataPack!Z63))))) -> 47 | J9: =IF($B$6=Dates!$E$3,DataPack!H63,IF($B$6=Dates!$E$4,DataPack!R63,IF($B$6=Dates!$E$5,DataPack!AB63,IF($B$6=Dates!$E$6,DataPack!AL63,IF($B$6=Dates!$E$7,DataPack!AA63))))) -> 17 | K9: =IF($B$6=Dates!$E$3,DataPack!I63,IF($B$6=Dates!$E$4,DataPack!S63,IF($B$6=Dates!$E$5,DataPack!AC63,IF($B$6=Dates!$E$6,DataPack!AM63,IF($B$6=Dates!$E$7,DataPack!AB63))))) -> 16 | L9: =IF($B$6=Dates!$E$3,DataPack!J63,IF($B$6=Dates!$E$4,DataPack!T63,IF($B$6=Dates!$E$5,DataPack!AD63,IF($B$6=Dates!$E$6,DataPack!AN63,IF($B$6=Dates!$E$7,DataPack!AC63))))) -> 6
B10: Achievement of pupils | D10: =IF($B$6=Dates!$E$3,DataPack!B64,IF($B$6=Dates!$E$4,DataPack!L64,IF($B$6=Dates!$E$5,DataPack!V64,IF($B$6=Dates!$E$6,DataPack!AF64,IF($B$6=Dates!$E$7,DataPack!U64))))) -> 282 | E10: =IF($B$6=Dates!$E$3,DataPack!C64,IF($B$6=Dates!$E$4,DataPack!M64,IF($B$6=Dates!$E$5,DataPack!W64,IF($B$6=Dates!$E$6,DataPack!AG64,IF($B$6=Dates!$E$7,DataPack!V64))))) -> 67 | F10: =IF($B$6=Dates!$E$3,DataPack!D64,IF($B$6=Dates!$E$4,DataPack!N64,IF($B$6=Dates!$E$5,DataPack!X64,IF($B$6=Dates!$E$6,DataPack!AH64,IF($B$6=Dates!$E$7,DataPack!W64))))) -> 24 | G10: =IF($B$6=Dates!$E$3,DataPack!E64,IF($B$6=Dates!$E$4,DataPack!O64,IF($B$6=Dates!$E$5,DataPack!Y64,IF($B$6=Dates!$E$6,DataPack!AI64,IF($B$6=Dates!$E$7,DataPack!X64))))) -> 154 | H10: =IF($B$6=Dates!$E$3,DataPack!F64,IF($B$6=Dates!$E$4,DataPack!P64,IF($B$6=Dates!$E$5,DataPack!Z64,IF($B$6=Dates!$E$6,DataPack!AJ64,IF($B$6=Dates!$E$7,DataPack!Y64))))) -> 55 | I10: =IF($B$6=Dates!$E$3,DataPack!G64,IF($B$6=Dates!$E$4,DataPack!Q64,IF($B$6=Dates!$E$5,DataPack!AA64,IF($B$6=Dates!$E$6,DataPack!AK64,IF($B$6=Dates!$E$7,DataPack!Z64))))) -> 46 | J10: =IF($B$6=Dates!$E$3,DataPack!H64,IF($B$6=Dates!$E$4,DataPack!R64,IF($B$6=Dates!$E$5,DataPack!AB64,IF($B$6=Dates!$E$6,DataPack!AL64,IF($B$6=Dates!$E$7,DataPack!AA64))))) -> 16 | K10: =IF($B$6=Dates!$E$3,DataPack!I64,IF($B$6=Dates!$E$4,DataPack!S64,IF($B$6=Dates!$E$5,DataPack!AC64,IF($B$6=Dates!$E$6,DataPack!AM64,IF($B$6=Dates!$E$7,DataPack!AB64))))) -> 15 | L10: =IF($B$6=Dates!$E$3,DataPack!J64,IF($B$6=Dates!$E$4,DataPack!T64,IF($B$6=Dates!$E$5,DataPack!AD64,IF($B$6=Dates!$E$6,DataPack!AN64,IF($B$6=Dates!$E$7,DataPack!AC64))))) -> 5
B11: Behaviour and safety of pupils | D11: =IF($B$6=Dates!$E$3,DataPack!B65,IF($B$6=Dates!$E$4,DataPack!L65,IF($B$6=Dates!$E$5,DataPack!V65,IF($B$6=Dates!$E$6,DataPack!AF65,IF($B$6=Dates!$E$7,DataPack!U65))))) -> 282 | E11: =IF($B$6=Dates!$E$3,DataPack!C65,IF($B$6=Dates!$E$4,DataPack!M65,IF($B$6=Dates!$E$5,DataPack!W65,IF($B$6=Dates!$E$6,DataPack!AG65,IF($B$6=Dates!$E$7,DataPack!V65))))) -> 121 | F11: =IF($B$6=Dates!$E$3,DataPack!D65,IF($B$6=Dates!$E$4,DataPack!N65,IF($B$6=Dates!$E$5,DataPack!X65,IF($B$6=Dates!$E$6,DataPack!AH65,IF($B$6=Dates!$E$7,DataPack!W65))))) -> 43 | G11: =IF($B$6=Dates!$E$3,DataPack!E65,IF($B$6=Dates!$E$4,DataPack!O65,IF($B$6=Dates!$E$5,DataPack!Y65,IF($B$6=Dates!$E$6,DataPack!AI65,IF($B$6=Dates!$E$7,DataPack!X65))))) -> 125 | H11: =IF($B$6=Dates!$E$3,DataPack!F65,IF($B$6=Dates!$E$4,DataPack!P65,IF($B$6=Dates!$E$5,DataPack!Z65,IF($B$6=Dates!$E$6,DataPack!AJ65,IF($B$6=Dates!$E$7,DataPack!Y65))))) -> 44 | I11: =IF($B$6=Dates!$E$3,DataPack!G65,IF($B$6=Dates!$E$4,DataPack!Q65,IF($B$6=Dates!$E$5,DataPack!AA65,IF($B$6=Dates!$E$6,DataPack!AK65,IF($B$6=Dates!$E$7,DataPack!Z65))))) -> 28 | J11: =IF($B$6=Dates!$E$3,DataPack!H65,IF($B$6=Dates!$E$4,DataPack!R65,IF($B$6=Dates!$E$5,DataPack!AB65,IF($B$6=Dates!$E$6,DataPack!AL65,IF($B$6=Dates!$E$7,DataPack!AA65))))) -> 10 | K11: =IF($B$6=Dates!$E$3,DataPack!I65,IF($B$6=Dates!$E$4,DataPack!S65,IF($B$6=Dates!$E$5,DataPack!AC65,IF($B$6=Dates!$E$6,DataPack!AM65,IF($B$6=Dates!$E$7,DataPack!AB65))))) -> 8 | L11: =IF($B$6=Dates!$E$3,DataPack!J65,IF($B$6=Dates!$E$4,DataPack!T65,IF($B$6=Dates!$E$5,DataPack!AD65,IF($B$6=Dates!$E$6,DataPack!AN65,IF($B$6=Dates!$E$7,DataPack!AC65))))) -> 3
B12: Quality of teaching | D12: =IF($B$6=Dates!$E$3,DataPack!B66,IF($B$6=Dates!$E$4,DataPack!L66,IF($B$6=Dates!$E$5,DataPack!V66,IF($B$6=Dates!$E$6,DataPack!AF66,IF($B$6=Dates!$E$7,DataPack!U66))))) -> 282 | E12: =IF($B$6=Dates!$E$3,DataPack!C66,IF($B$6=Dates!$E$4,DataPack!M66,IF($B$6=Dates!$E$5,DataPack!W66,IF($B$6=Dates!$E$6,DataPack!AG66,IF($B$6=Dates!$E$7,DataPack!V66))))) -> 68 | F12: =IF($B$6=Dates!$E$3,DataPack!D66,IF($B$6=Dates!$E$4,DataPack!N66,IF($B$6=Dates!$E$5,DataPack!X66,IF($B$6=Dates!$E$6,DataPack!AH66,IF($B$6=Dates!$E$7,DataPack!W66))))) -> 24 | G12: =IF($B$6=Dates!$E$3,DataPack!E66,IF($B$6=Dates!$E$4,DataPack!O66,IF($B$6=Dates!$E$5,DataPack!Y66,IF($B$6=Dates!$E$6,DataPack!AI66,IF($B$6=Dates!$E$7,DataPack!X66))))) -> 154 | H12: =IF($B$6=Dates!$E$3,DataPack!F66,IF($B$6=Dates!$E$4,DataPack!P66,IF($B$6=Dates!$E$5,DataPack!Z66,IF($B$6=Dates!$E$6,DataPack!AJ66,IF($B$6=Dates!$E$7,DataPack!Y66))))) -> 55 | I12: =IF($B$6=Dates!$E$3,DataPack!G66,IF($B$6=Dates!$E$4,DataPack!Q66,IF($B$6=Dates!$E$5,DataPack!AA66,IF($B$6=Dates!$E$6,DataPack!AK66,IF($B$6=Dates!$E$7,DataPack!Z66))))) -> 46 | J12: =IF($B$6=Dates!$E$3,DataPack!H66,IF($B$6=Dates!$E$4,DataPack!R66,IF($B$6=Dates!$E$5,DataPack!AB66,IF($B$6=Dates!$E$6,DataPack!AL66,IF($B$6=Dates!$E$7,DataPack!AA66))))) -> 16 | K12: =IF($B$6=Dates!$E$3,DataPack!I66,IF($B$6=Dates!$E$4,DataPack!S66,IF($B$6=Dates!$E$5,DataPack!AC66,IF($B$6=Dates!$E$6,DataPack!AM66,IF($B$6=Dates!$E$7,DataPack!AB66))))) -> 14 | L12: =IF($B$6=Dates!$E$3,DataPack!J66,IF($B$6=Dates!$E$4,DataPack!T66,IF($B$6=Dates!$E$5,DataPack!AD66,IF($B$6=Dates!$E$6,DataPack!AN66,IF($B$6=Dates!$E$7,DataPack!AC66))))) -> 5
B13: Leadership and management | D13: =IF($B$6=Dates!$E$3,DataPack!B67,IF($B$6=Dates!$E$4,DataPack!L67,IF($B$6=Dates!$E$5,DataPack!V67,IF($B$6=Dates!$E$6,DataPack!AF67,IF($B$6=Dates!$E$7,DataPack!U67))))) -> 282 | E13: =IF($B$6=Dates!$E$3,DataPack!C67,IF($B$6=Dates!$E$4,DataPack!M67,IF($B$6=Dates!$E$5,DataPack!W67,IF($B$6=Dates!$E$6,DataPack!AG67,IF($B$6=Dates!$E$7,DataPack!V67))))) -> 85 | F13: =IF($B$6=Dates!$E$3,DataPack!D67,IF($B$6=Dates!$E$4,DataPack!N67,IF($B$6=Dates!$E$5,DataPack!X67,IF($B$6=Dates!$E$6,DataPack!AH67,IF($B$6=Dates!$E$7,DataPack!W67))))) -> 30 | G13: =IF($B$6=Dates!$E$3,DataPack!E67,IF($B$6=Dates!$E$4,DataPack!O67,IF($B$6=Dates!$E$5,DataPack!Y67,IF($B$6=Dates!$E$6,DataPack!AI67,IF($B$6=Dates!$E$7,DataPack!X67))))) -> 143 | H13: =IF($B$6=Dates!$E$3,DataPack!F67,IF($B$6=Dates!$E$4,DataPack!P67,IF($B$6=Dates!$E$5,DataPack!Z67,IF($B$6=Dates!$E$6,DataPack!AJ67,IF($B$6=Dates!$E$7,DataPack!Y67))))) -> 51 | I13: =IF($B$6=Dates!$E$3,DataPack!G67,IF($B$6=Dates!$E$4,DataPack!Q67,IF($B$6=Dates!$E$5,DataPack!AA67,IF($B$6=Dates!$E$6,DataPack!AK67,IF($B$6=Dates!$E$7,DataPack!Z67))))) -> 43 | J13: =IF($B$6=Dates!$E$3,DataPack!H67,IF($B$6=Dates!$E$4,DataPack!R67,IF($B$6=Dates!$E$5,DataPack!AB67,IF($B$6=Dates!$E$6,DataPack!AL67,IF($B$6=Dates!$E$7,DataPack!AA67))))) -> 15 | K13: =IF($B$6=Dates!$E$3,DataPack!I67,IF($B$6=Dates!$E$4,DataPack!S67,IF($B$6=Dates!$E$5,DataPack!AC67,IF($B$6=Dates!$E$6,DataPack!AM67,IF($B$6=Dates!$E$7,DataPack!AB67))))) -> 11 | L13: =IF($B$6=Dates!$E$3,DataPack!J67,IF($B$6=Dates!$E$4,DataPack!T67,IF($B$6=Dates!$E$5,DataPack!AD67,IF($B$6=Dates!$E$6,DataPack!AN67,IF($B$6=Dates!$E$7,DataPack!AC67))))) -> 4
B14: Overall effectiveness of the residential or boarding provision | D14: =IF($B$6=Dates!$E$3,DataPack!B68,IF($B$6=Dates!$E$4,DataPack!L68,IF($B$6=Dates!$E$5,DataPack!V68,IF($B$6=Dates!$E$6,DataPack!AF68,IF($B$6=Dates!$E$7,DataPack!U68))))) -> 16 | E14: =IF($B$6=Dates!$E$3,DataPack!C68,IF($B$6=Dates!$E$4,DataPack!M68,IF($B$6=Dates!$E$5,DataPack!W68,IF($B$6=Dates!$E$6,DataPack!AG68,IF($B$6=Dates!$E$7,DataPack!V68))))) -> 8 | F14: =IF($B$6=Dates!$E$3,DataPack!D68,IF($B$6=Dates!$E$4,DataPack!N68,IF($B$6=Dates!$E$5,DataPack!X68,IF($B$6=Dates!$E$6,DataPack!AH68,IF($B$6=Dates!$E$7,DataPack!W68))))) -> 50 | G14: =IF($B$6=Dates!$E$3,DataPack!E68,IF($B$6=Dates!$E$4,DataPack!O68,IF($B$6=Dates!$E$5,DataPack!Y68,IF($B$6=Dates!$E$6,DataPack!AI68,IF($B$6=Dates!$E$7,DataPack!X68))))) -> 3 | H14: =IF($B$6=Dates!$E$3,DataPack!F68,IF($B$6=Dates!$E$4,DataPack!P68,IF($B$6=Dates!$E$5,DataPack!Z68,IF($B$6=Dates!$E$6,DataPack!AJ68,IF($B$6=Dates!$E$7,DataPack!Y68))))) -> 18.75 | I14: =IF($B$6=Dates!$E$3,DataPack!G68,IF($B$6=Dates!$E$4,DataPack!Q68,IF($B$6=Dates!$E$5,DataPack!AA68,IF($B$6=Dates!$E$6,DataPack!AK68,IF($B$6=Dates!$E$7,DataPack!Z68))))) -> 3 | J14: =IF($B$6=Dates!$E$3,DataPack!H68,IF($B$6=Dates!$E$4,DataPack!R68,IF($B$6=Dates!$E$5,DataPack!AB68,IF($B$6=Dates!$E$6,DataPack!AL68,IF($B$6=Dates!$E$7,DataPack!AA68))))) -> 18.75 | K14: =IF($B$6=Dates!$E$3,DataPack!I68,IF($B$6=Dates!$E$4,DataPack!S68,IF($B$6=Dates!$E$5,DataPack!AC68,IF($B$6=Dates!$E$6,DataPack!AM68,IF($B$6=Dates!$E$7,DataPack!AB68))))) -> 2 | L14: =IF($B$6=Dates!$E$3,DataPack!J68,IF($B$6=Dates!$E$4,DataPack!T68,IF($B$6=Dates!$E$5,DataPack!AD68,IF($B$6=Dates!$E$6,DataPack!AN68,IF($B$6=Dates!$E$7,DataPack!AC68))))) -> 12.5
B15: Outcomes for residential or boarding pupils | D15: =IF($B$6=Dates!$E$3,DataPack!B69,IF($B$6=Dates!$E$4,DataPack!L69,IF($B$6=Dates!$E$5,DataPack!V69,IF($B$6=Dates!$E$6,DataPack!AF69,IF($B$6=Dates!$E$7,DataPack!U69))))) -> 16 | E15: =IF($B$6=Dates!$E$3,DataPack!C69,IF($B$6=Dates!$E$4,DataPack!M69,IF($B$6=Dates!$E$5,DataPack!W69,IF($B$6=Dates!$E$6,DataPack!AG69,IF($B$6=Dates!$E$7,DataPack!V69))))) -> 10 | F15: =IF($B$6=Dates!$E$3,DataPack!D69,IF($B$6=Dates!$E$4,DataPack!N69,IF($B$6=Dates!$E$5,DataPack!X69,IF($B$6=Dates!$E$6,DataPack!AH69,IF($B$6=Dates!$E$7,DataPack!W69))))) -> 62.5 | G15: =IF($B$6=Dates!$E$3,DataPack!E69,IF($B$6=Dates!$E$4,DataPack!O69,IF($B$6=Dates!$E$5,DataPack!Y69,IF($B$6=Dates!$E$6,DataPack!AI69,IF($B$6=Dates!$E$7,DataPack!X69))))) -> 6 | H15: =IF($B$6=Dates!$E$3,DataPack!F69,IF($B$6=Dates!$E$4,DataPack!P69,IF($B$6=Dates!$E$5,DataPack!Z69,IF($B$6=Dates!$E$6,DataPack!AJ69,IF($B$6=Dates!$E$7,DataPack!Y69))))) -> 37.5 | I15: =IF($B$6=Dates!$E$3,DataPack!G69,IF($B$6=Dates!$E$4,DataPack!Q69,IF($B$6=Dates!$E$5,DataPack!AA69,IF($B$6=Dates!$E$6,DataPack!AK69,IF($B$6=Dates!$E$7,DataPack!Z69))))) -> 0 | J15: =IF($B$6=Dates!$E$3,DataPack!H69,IF($B$6=Dates!$E$4,DataPack!R69,IF($B$6=Dates!$E$5,DataPack!AB69,IF($B$6=Dates!$E$6,DataPack!AL69,IF($B$6=Dates!$E$7,DataPack!AA69))))) -> 0 | K15: =IF($B$6=Dates!$E$3,DataPack!I69,IF($B$6=Dates!$E$4,DataPack!S69,IF($B$6=Dates!$E$5,DataPack!AC69,IF($B$6=Dates!$E$6,DataPack!AM69,IF($B$6=Dates!$E$7,DataPack!AB69))))) -> 0 | L15: =IF($B$6=Dates!$E$3,DataPack!J69,IF($B$6=Dates!$E$4,DataPack!T69,IF($B$6=Dates!$E$5,DataPack!AD69,IF($B$6=Dates!$E$6,DataPack!AN69,IF($B$6=Dates!$E$7,DataPack!AC69))))) -> 0
B16: The quality of residential or boarding provision and care | D16: =IF($B$6=Dates!$E$3,DataPack!B70,IF($B$6=Dates!$E$4,DataPack!L70,IF($B$6=Dates!$E$5,DataPack!V70,IF($B$6=Dates!$E$6,DataPack!AF70,IF($B$6=Dates!$E$7,DataPack!U70))))) -> 16 | E16: =IF($B$6=Dates!$E$3,DataPack!C70,IF($B$6=Dates!$E$4,DataPack!M70,IF($B$6=Dates!$E$5,DataPack!W70,IF($B$6=Dates!$E$6,DataPack!AG70,IF($B$6=Dates!$E$7,DataPack!V70))))) -> 8 | F16: =IF($B$6=Dates!$E$3,DataPack!D70,IF($B$6=Dates!$E$4,DataPack!N70,IF($B$6=Dates!$E$5,DataPack!X70,IF($B$6=Dates!$E$6,DataPack!AH70,IF($B$6=Dates!$E$7,DataPack!W70))))) -> 50 | G16: =IF($B$6=Dates!$E$3,DataPack!E70,IF($B$6=Dates!$E$4,DataPack!O70,IF($B$6=Dates!$E$5,DataPack!Y70,IF($B$6=Dates!$E$6,DataPack!AI70,IF($B$6=Dates!$E$7,DataPack!X70))))) -> 6 | H16: =IF($B$6=Dates!$E$3,DataPack!F70,IF($B$6=Dates!$E$4,DataPack!P70,IF($B$6=Dates!$E$5,DataPack!Z70,IF($B$6=Dates!$E$6,DataPack!AJ70,IF($B$6=Dates!$E$7,DataPack!Y70))))) -> 37.5 | I16: =IF($B$6=Dates!$E$3,DataPack!G70,IF($B$6=Dates!$E$4,DataPack!Q70,IF($B$6=Dates!$E$5,DataPack!AA70,IF($B$6=Dates!$E$6,DataPack!AK70,IF($B$6=Dates!$E$7,DataPack!Z70))))) -> 2 | J16: =IF($B$6=Dates!$E$3,DataPack!H70,IF($B$6=Dates!$E$4,DataPack!R70,IF($B$6=Dates!$E$5,DataPack!AB70,IF($B$6=Dates!$E$6,DataPack!AL70,IF($B$6=Dates!$E$7,DataPack!AA70))))) -> 12.5 | K16: =IF($B$6=Dates!$E$3,DataPack!I70,IF($B$6=Dates!$E$4,DataPack!S70,IF($B$6=Dates!$E$5,DataPack!AC70,IF($B$6=Dates!$E$6,DataPack!AM70,IF($B$6=Dates!$E$7,DataPack!AB70))))) -> 0 | L16: =IF($B$6=Dates!$E$3,DataPack!J70,IF($B$6=Dates!$E$4,DataPack!T70,IF($B$6=Dates!$E$5,DataPack!AD70,IF($B$6=Dates!$E$6,DataPack!AN70,IF($B$6=Dates!$E$7,DataPack!AC70))))) -> 0
B17: Residential and boarding pupil's safety | D17: =IF($B$6=Dates!$E$3,DataPack!B71,IF($B$6=Dates!$E$4,DataPack!L71,IF($B$6=Dates!$E$5,DataPack!V71,IF($B$6=Dates!$E$6,DataPack!AF71,IF($B$6=Dates!$E$7,DataPack!U71))))) -> 16 | E17: =IF($B$6=Dates!$E$3,DataPack!C71,IF($B$6=Dates!$E$4,DataPack!M71,IF($B$6=Dates!$E$5,DataPack!W71,IF($B$6=Dates!$E$6,DataPack!AG71,IF($B$6=Dates!$E$7,DataPack!V71))))) -> 9 | F17: =IF($B$6=Dates!$E$3,DataPack!D71,IF($B$6=Dates!$E$4,DataPack!N71,IF($B$6=Dates!$E$5,DataPack!X71,IF($B$6=Dates!$E$6,DataPack!AH71,IF($B$6=Dates!$E$7,DataPack!W71))))) -> 56.25 | G17: =IF($B$6=Dates!$E$3,DataPack!E71,IF($B$6=Dates!$E$4,DataPack!O71,IF($B$6=Dates!$E$5,DataPack!Y71,IF($B$6=Dates!$E$6,DataPack!AI71,IF($B$6=Dates!$E$7,DataPack!X71))))) -> 2 | H17: =IF($B$6=Dates!$E$3,DataPack!F71,IF($B$6=Dates!$E$4,DataPack!P71,IF($B$6=Dates!$E$5,DataPack!Z71,IF($B$6=Dates!$E$6,DataPack!AJ71,IF($B$6=Dates!$E$7,DataPack!Y71))))) -> 12.5 | I17: =IF($B$6=Dates!$E$3,DataPack!G71,IF($B$6=Dates!$E$4,DataPack!Q71,IF($B$6=Dates!$E$5,DataPack!AA71,IF($B$6=Dates!$E$6,DataPack!AK71,IF($B$6=Dates!$E$7,DataPack!Z71))))) -> 4 | J17: =IF($B$6=Dates!$E$3,DataPack!H71,IF($B$6=Dates!$E$4,DataPack!R71,IF($B$6=Dates!$E$5,DataPack!AB71,IF($B$6=Dates!$E$6,DataPack!AL71,IF($B$6=Dates!$E$7,DataPack!AA71))))) -> 25 | K17: =IF($B$6=Dates!$E$3,DataPack!I71,IF($B$6=Dates!$E$4,DataPack!S71,IF($B$6=Dates!$E$5,DataPack!AC71,IF($B$6=Dates!$E$6,DataPack!AM71,IF($B$6=Dates!$E$7,DataPack!AB71))))) -> 1 | L17: =IF($B$6=Dates!$E$3,DataPack!J71,IF($B$6=Dates!$E$4,DataPack!T71,IF($B$6=Dates!$E$5,DataPack!AD71,IF($B$6=Dates!$E$6,DataPack!AN71,IF($B$6=Dates!$E$7,DataPack!AC71))))) -> 6.25
B18: Leadership and management of the residential or boarding provision | D18: =IF($B$6=Dates!$E$3,DataPack!B72,IF($B$6=Dates!$E$4,DataPack!L72,IF($B$6=Dates!$E$5,DataPack!V72,IF($B$6=Dates!$E$6,DataPack!AF72,IF($B$6=Dates!$E$7,DataPack!U72))))) -> 16 | E18: =IF($B$6=Dates!$E$3,DataPack!C72,IF($B$6=Dates!$E$4,DataPack!M72,IF($B$6=Dates!$E$5,DataPack!W72,IF($B$6=Dates!$E$6,DataPack!AG72,IF($B$6=Dates!$E$7,DataPack!V72))))) -> 7 | F18: =IF($B$6=Dates!$E$3,DataPack!D72,IF($B$6=Dates!$E$4,DataPack!N72,IF($B$6=Dates!$E$5,DataPack!X72,IF($B$6=Dates!$E$6,DataPack!AH72,IF($B$6=Dates!$E$7,DataPack!W72))))) -> 43.75 | G18: =IF($B$6=Dates!$E$3,DataPack!E72,IF($B$6=Dates!$E$4,DataPack!O72,IF($B$6=Dates!$E$5,DataPack!Y72,IF($B$6=Dates!$E$6,DataPack!AI72,IF($B$6=Dates!$E$7,DataPack!X72))))) -> 4 | H18: =IF($B$6=Dates!$E$3,DataPack!F72,IF($B$6=Dates!$E$4,DataPack!P72,IF($B$6=Dates!$E$5,DataPack!Z72,IF($B$6=Dates!$E$6,DataPack!AJ72,IF($B$6=Dates!$E$7,DataPack!Y72))))) -> 25 | I18: =IF($B$6=Dates!$E$3,DataPack!G72,IF($B$6=Dates!$E$4,DataPack!Q72,IF($B$6=Dates!$E$5,DataPack!AA72,IF($B$6=Dates!$E$6,DataPack!AK72,IF($B$6=Dates!$E$7,DataPack!Z72))))) -> 3 | J18: =IF($B$6=Dates!$E$3,DataPack!H72,IF($B$6=Dates!$E$4,DataPack!R72,IF($B$6=Dates!$E$5,DataPack!AB72,IF($B$6=Dates!$E$6,DataPack!AL72,IF($B$6=Dates!$E$7,DataPack!AA72))))) -> 18.75 | K18: =IF($B$6=Dates!$E$3,DataPack!I72,IF($B$6=Dates!$E$4,DataPack!S72,IF($B$6=Dates!$E$5,DataPack!AC72,IF($B$6=Dates!$E$6,DataPack!AM72,IF($B$6=Dates!$E$7,DataPack!AB72))))) -> 2 | L18: =IF($B$6=Dates!$E$3,DataPack!J72,IF($B$6=Dates!$E$4,DataPack!T72,IF($B$6=Dates!$E$5,DataPack!AD72,IF($B$6=Dates!$E$6,DataPack!AN72,IF($B$6=Dates!$E$7,DataPack!AC72))))) -> 12.5
L19: Source: Ofsted inspections
B20: 1. Pupils' attainment judgement may not be made for all special schools.
B21: 1. Special schools include special academy converters and non-maintained special schools.
B22: 3. The judgements for pupils' attainment and pupils' attendance are high, above average, average and low.
B23: 4. Not all special schools are given an attainment grade due to insufficient evidence.
B24: 2. Where numbers are small, percentages should be treated with caution.

Sheet Table 2e
B2: ="Table 2e: Inspection outcomes of pupil referral units inspected " & IF('Table 2e'!B6=Dates!$E$3, "between " & Dates!$E$3, IF('Table 2e'!B6 = Dates!E4, "in " & Dates!E4, IF('Table 2e'!B6=Dates!E5, "in " & Dates!E5, IF('Table 2e'!B6=Dates!E6, "in " & Dates!E6, IF('Table 2e'!B6=Dates!E7, "in " & Dates!E7))))) & " (final) " & CHAR(185) -> Table 2e: Inspection outcomes of pupil referral units inspected between 1 September 2011 and 31 August 2012 (final) ¹
B4: Select period:
B6: 1 September 2011 and 31 August 2012 | D6: Total number inspected | E6: Outstanding | G6: Good | I6: Satisfactory | K6: Inadequate
E7: Number | F7: % | G7: Number | H7: % | I7: Number | J7: % | K7: Number | L7: %
B9: Overall Effectiveness | D9: =IF($B$6=Dates!$E$3,DataPack!B75,IF($B$6=Dates!$E$4,DataPack!L75,IF($B$6=Dates!$E$5,DataPack!V75,IF($B$6=Dates!$E$6,DataPack!AF75,IF($B$6=Dates!$E$7,DataPack!U75))))) -> 152 | E9: =IF($B$6=Dates!$E$3,DataPack!C75,IF($B$6=Dates!$E$4,DataPack!M75,IF($B$6=Dates!$E$5,DataPack!W75,IF($B$6=Dates!$E$6,DataPack!AG75,IF($B$6=Dates!$E$7,DataPack!V75))))) -> 8 | F9: =IF($B$6=Dates!$E$3,DataPack!D75,IF($B$6=Dates!$E$4,DataPack!N75,IF($B$6=Dates!$E$5,DataPack!X75,IF($B$6=Dates!$E$6,DataPack!AH75,IF($B$6=Dates!$E$7,DataPack!W75))))) -> 5 | G9: =IF($B$6=Dates!$E$3,DataPack!E75,IF($B$6=Dates!$E$4,DataPack!O75,IF($B$6=Dates!$E$5,DataPack!Y75,IF($B$6=Dates!$E$6,DataPack!AI75,IF($B$6=Dates!$E$7,DataPack!X75))))) -> 88 | H9: =IF($B$6=Dates!$E$3,DataPack!F75,IF($B$6=Dates!$E$4,DataPack!P75,IF($B$6=Dates!$E$5,DataPack!Z75,IF($B$6=Dates!$E$6,DataPack!AJ75,IF($B$6=Dates!$E$7,DataPack!Y75))))) -> 58 | I9: =IF($B$6=Dates!$E$3,DataPack!G75,IF($B$6=Dates!$E$4,DataPack!Q75,IF($B$6=Dates!$E$5,DataPack!AA75,IF($B$6=Dates!$E$6,DataPack!AK75,IF($B$6=Dates!$E$7,DataPack!Z75))))) -> 43 | J9: =IF($B$6=Dates!$E$3,DataPack!H75,IF($B$6=Dates!$E$4,DataPack!R75,IF($B$6=Dates!$E$5,DataPack!AB75,IF($B$6=Dates!$E$6,DataPack!AL75,IF($B$6=Dates!$E$7,DataPack!AA75))))) -> 28 | K9: =IF($B$6=Dates!$E$3,DataPack!I75,IF($B$6=Dates!$E$4,DataPack!S75,IF($B$6=Dates!$E$5,DataPack!AC75,IF($B$6=Dates!$E$6,DataPack!AM75,IF($B$6=Dates!$E$7,DataPack!AB75))))) -> 13 | L9: =IF($B$6=Dates!$E$3,DataPack!J75,IF($B$6=Dates!$E$4,DataPack!T75,IF($B$6=Dates!$E$5,DataPack!AD75,IF($B$6=Dates!$E$6,DataPack!AN75,IF($B$6=Dates!$E$7,DataPack!AC75))))) -> 9
B10: Achievement of pupils | D10: =IF($B$6=Dates!$E$3,DataPack!B76,IF($B$6=Dates!$E$4,DataPack!L76,IF($B$6=Dates!$E$5,DataPack!V76,IF($B$6=Dates!$E$6,DataPack!AF76,IF($B$6=Dates!$E$7,DataPack!U76))))) -> 152 | E10: =IF($B$6=Dates!$E$3,DataPack!C76,IF($B$6=Dates!$E$4,DataPack!M76,IF($B$6=Dates!$E$5,DataPack!W76,IF($B$6=Dates!$E$6,DataPack!AG76,IF($B$6=Dates!$E$7,DataPack!V76))))) -> 5 | F10: =IF($B$6=Dates!$E$3,DataPack!D76,IF($B$6=Dates!$E$4,DataPack!N76,IF($B$6=Dates!$E$5,DataPack!X76,IF($B$6=Dates!$E$6,DataPack!AH76,IF($B$6=Dates!$E$7,DataPack!W76))))) -> 3 | G10: =IF($B$6=Dates!$E$3,DataPack!E76,IF($B$6=Dates!$E$4,DataPack!O76,IF($B$6=Dates!$E$5,DataPack!Y76,IF($B$6=Dates!$E$6,DataPack!AI76,IF($B$6=Dates!$E$7,DataPack!X76))))) -> 91 | H10: =IF($B$6=Dates!$E$3,DataPack!F76,IF($B$6=Dates!$E$4,DataPack!P76,IF($B$6=Dates!$E$5,DataPack!Z76,IF($B$6=Dates!$E$6,DataPack!AJ76,IF($B$6=Dates!$E$7,DataPack!Y76))))) -> 60 | I10: =IF($B$6=Dates!$E$3,DataPack!G76,IF($B$6=Dates!$E$4,DataPack!Q76,IF($B$6=Dates!$E$5,DataPack!AA76,IF($B$6=Dates!$E$6,DataPack!AK76,IF($B$6=Dates!$E$7,DataPack!Z76))))) -> 46 | J10: =IF($B$6=Dates!$E$3,DataPack!H76,IF($B$6=Dates!$E$4,DataPack!R76,IF($B$6=Dates!$E$5,DataPack!AB76,IF($B$6=Dates!$E$6,DataPack!AL76,IF($B$6=Dates!$E$7,DataPack!AA76))))) -> 30 | K10: =IF($B$6=Dates!$E$3,DataPack!I76,IF($B$6=Dates!$E$4,DataPack!S76,IF($B$6=Dates!$E$5,DataPack!AC76,IF($B$6=Dates!$E$6,DataPack!AM76,IF($B$6=Dates!$E$7,DataPack!AB76))))) -> 10 | L10: =IF($B$6=Dates!$E$3,DataPack!J76,IF($B$6=Dates!$E$4,DataPack!T76,IF($B$6=Dates!$E$5,DataPack!AD76,IF($B$6=Dates!$E$6,DataPack!AN76,IF($B$6=Dates!$E$7,DataPack!AC76))))) -> 7
B11: Behaviour and safety of pupils | D11: =IF($B$6=Dates!$E$3,DataPack!B77,IF($B$6=Dates!$E$4,DataPack!L77,IF($B$6=Dates!$E$5,DataPack!V77,IF($B$6=Dates!$E$6,DataPack!AF77,IF($B$6=Dates!$E$7,DataPack!U77))))) -> 152 | E11: =IF($B$6=Dates!$E$3,DataPack!C77,IF($B$6=Dates!$E$4,DataPack!M77,IF($B$6=Dates!$E$5,DataPack!W77,IF($B$6=Dates!$E$6,DataPack!AG77,IF($B$6=Dates!$E$7,DataPack!V77))))) -> 25 | F11: =IF($B$6=Dates!$E$3,DataPack!D77,IF($B$6=Dates!$E$4,DataPack!N77,IF($B$6=Dates!$E$5,DataPack!X77,IF($B$6=Dates!$E$6,DataPack!AH77,IF($B$6=Dates!$E$7,DataPack!W77))))) -> 16 | G11: =IF($B$6=Dates!$E$3,DataPack!E77,IF($B$6=Dates!$E$4,DataPack!O77,IF($B$6=Dates!$E$5,DataPack!Y77,IF($B$6=Dates!$E$6,DataPack!AI77,IF($B$6=Dates!$E$7,DataPack!X77))))) -> 87 | H11: =IF($B$6=Dates!$E$3,DataPack!F77,IF($B$6=Dates!$E$4,DataPack!P77,IF($B$6=Dates!$E$5,DataPack!Z77,IF($B$6=Dates!$E$6,DataPack!AJ77,IF($B$6=Dates!$E$7,DataPack!Y77))))) -> 57 | I11: =IF($B$6=Dates!$E$3,DataPack!G77,IF($B$6=Dates!$E$4,DataPack!Q77,IF($B$6=Dates!$E$5,DataPack!AA77,IF($B$6=Dates!$E$6,DataPack!AK77,IF($B$6=Dates!$E$7,DataPack!Z77))))) -> 31 | J11: =IF($B$6=Dates!$E$3,DataPack!H77,IF($B$6=Dates!$E$4,DataPack!R77,IF($B$6=Dates!$E$5,DataPack!AB77,IF($B$6=Dates!$E$6,DataPack!AL77,IF($B$6=Dates!$E$7,DataPack!AA77))))) -> 20 | K11: =IF($B$6=Dates!$E$3,DataPack!I77,IF($B$6=Dates!$E$4,DataPack!S77,IF($B$6=Dates!$E$5,DataPack!AC77,IF($B$6=Dates!$E$6,DataPack!AM77,IF($B$6=Dates!$E$7,DataPack!AB77))))) -> 9 | L11: =IF($B$6=Dates!$E$3,DataPack!J77,IF($B$6=Dates!$E$4,DataPack!T77,IF($B$6=Dates!$E$5,DataPack!AD77,IF($B$6=Dates!$E$6,DataPack!AN77,IF($B$6=Dates!$E$7,DataPack!AC77))))) -> 6
B12: Quality of teaching | D12: =IF($B$6=Dates!$E$3,DataPack!B78,IF($B$6=Dates!$E$4,DataPack!L78,IF($B$6=Dates!$E$5,DataPack!V78,IF($B$6=Dates!$E$6,DataPack!AF78,IF($B$6=Dates!$E$7,DataPack!U78))))) -> 152 | E12: =IF($B$6=Dates!$E$3,DataPack!C78,IF($B$6=Dates!$E$4,DataPack!M78,IF($B$6=Dates!$E$5,DataPack!W78,IF($B$6=Dates!$E$6,DataPack!AG78,IF($B$6=Dates!$E$7,DataPack!V78))))) -> 5 | F12: =IF($B$6=Dates!$E$3,DataPack!D78,IF($B$6=Dates!$E$4,DataPack!N78,IF($B$6=Dates!$E$5,DataPack!X78,IF($B$6=Dates!$E$6,DataPack!AH78,IF($B$6=Dates!$E$7,DataPack!W78))))) -> 3 | G12: =IF($B$6=Dates!$E$3,DataPack!E78,IF($B$6=Dates!$E$4,DataPack!O78,IF($B$6=Dates!$E$5,DataPack!Y78,IF($B$6=Dates!$E$6,DataPack!AI78,IF($B$6=Dates!$E$7,DataPack!X78))))) -> 90 | H12: =IF($B$6=Dates!$E$3,DataPack!F78,IF($B$6=Dates!$E$4,DataPack!P78,IF($B$6=Dates!$E$5,DataPack!Z78,IF($B$6=Dates!$E$6,DataPack!AJ78,IF($B$6=Dates!$E$7,DataPack!Y78))))) -> 59 | I12: =IF($B$6=Dates!$E$3,DataPack!G78,IF($B$6=Dates!$E$4,DataPack!Q78,IF($B$6=Dates!$E$5,DataPack!AA78,IF($B$6=Dates!$E$6,DataPack!AK78,IF($B$6=Dates!$E$7,DataPack!Z78))))) -> 49 | J12: =IF($B$6=Dates!$E$3,DataPack!H78,IF($B$6=Dates!$E$4,DataPack!R78,IF($B$6=Dates!$E$5,DataPack!AB78,IF($B$6=Dates!$E$6,DataPack!AL78,IF($B$6=Dates!$E$7,DataPack!AA78))))) -> 32 | K12: =IF($B$6=Dates!$E$3,DataPack!I78,IF($B$6=Dates!$E$4,DataPack!S78,IF($B$6=Dates!$E$5,DataPack!AC78,IF($B$6=Dates!$E$6,DataPack!AM78,IF($B$6=Dates!$E$7,DataPack!AB78))))) -> 8 | L12: =IF($B$6=Dates!$E$3,DataPack!J78,IF($B$6=Dates!$E$4,DataPack!T78,IF($B$6=Dates!$E$5,DataPack!AD78,IF($B$6=Dates!$E$6,DataPack!AN78,IF($B$6=Dates!$E$7,DataPack!AC78))))) -> 5
B13: Leadership and management | D13: =IF($B$6=Dates!$E$3,DataPack!B79,IF($B$6=Dates!$E$4,DataPack!L79,IF($B$6=Dates!$E$5,DataPack!V79,IF($B$6=Dates!$E$6,DataPack!AF79,IF($B$6=Dates!$E$7,DataPack!U79))))) -> 152 | E13: =IF($B$6=Dates!$E$3,DataPack!C79,IF($B$6=Dates!$E$4,DataPack!M79,IF($B$6=Dates!$E$5,DataPack!W79,IF($B$6=Dates!$E$6,DataPack!AG79,IF($B$6=Dates!$E$7,DataPack!V79))))) -> 12 | F13: =IF($B$6=Dates!$E$3,DataPack!D79,IF($B$6=Dates!$E$4,DataPack!N79,IF($B$6=Dates!$E$5,DataPack!X79,IF($B$6=Dates!$E$6,DataPack!AH79,IF($B$6=Dates!$E$7,DataPack!W79))))) -> 8 | G13: =IF($B$6=Dates!$E$3,DataPack!E79,IF($B$6=Dates!$E$4,DataPack!O79,IF($B$6=Dates!$E$5,DataPack!Y79,IF($B$6=Dates!$E$6,DataPack!AI79,IF($B$6=Dates!$E$7,DataPack!X79))))) -> 91 | H13: =IF($B$6=Dates!$E$3,DataPack!F79,IF($B$6=Dates!$E$4,DataPack!P79,IF($B$6=Dates!$E$5,DataPack!Z79,IF($B$6=Dates!$E$6,DataPack!AJ79,IF($B$6=Dates!$E$7,DataPack!Y79))))) -> 60 | I13: =IF($B$6=Dates!$E$3,DataPack!G79,IF($B$6=Dates!$E$4,DataPack!Q79,IF($B$6=Dates!$E$5,DataPack!AA79,IF($B$6=Dates!$E$6,DataPack!AK79,IF($B$6=Dates!$E$7,DataPack!Z79))))) -> 38 | J13: =IF($B$6=Dates!$E$3,DataPack!H79,IF($B$6=Dates!$E$4,DataPack!R79,IF($B$6=Dates!$E$5,DataPack!AB79,IF($B$6=Dates!$E$6,DataPack!AL79,IF($B$6=Dates!$E$7,DataPack!AA79))))) -> 25 | K13: =IF($B$6=Dates!$E$3,DataPack!I79,IF($B$6=Dates!$E$4,DataPack!S79,IF($B$6=Dates!$E$5,DataPack!AC79,IF($B$6=Dates!$E$6,DataPack!AM79,IF($B$6=Dates!$E$7,DataPack!AB79))))) -> 11 | L13: =IF($B$6=Dates!$E$3,DataPack!J79,IF($B$6=Dates!$E$4,DataPack!T79,IF($B$6=Dates!$E$5,DataPack!AD79,IF($B$6=Dates!$E$6,DataPack!AN79,IF($B$6=Dates!$E$7,DataPack!AC79))))) -> 7
B14: Overall effectiveness of the residential or boarding provision | D14: =IF($B$6=Dates!$E$3,DataPack!B80,IF($B$6=Dates!$E$4,DataPack!L80,IF($B$6=Dates!$E$5,DataPack!V80,IF($B$6=Dates!$E$6,DataPack!AF80,IF($B$6=Dates!$E$7,DataPack!U80))))) -> 0 | E14: =IF($B$6=Dates!$E$3,DataPack!C80,IF($B$6=Dates!$E$4,DataPack!M80,IF($B$6=Dates!$E$5,DataPack!W80,IF($B$6=Dates!$E$6,DataPack!AG80,IF($B$6=Dates!$E$7,DataPack!V80))))) -> 0 | F14: =IF($B$6=Dates!$E$3,DataPack!D80,IF($B$6=Dates!$E$4,DataPack!N80,IF($B$6=Dates!$E$5,DataPack!X80,IF($B$6=Dates!$E$6,DataPack!AH80,IF($B$6=Dates!$E$7,DataPack!W80))))) -> 0 | G14: =IF($B$6=Dates!$E$3,DataPack!E80,IF($B$6=Dates!$E$4,DataPack!O80,IF($B$6=Dates!$E$5,DataPack!Y80,IF($B$6=Dates!$E$6,DataPack!AI80,IF($B$6=Dates!$E$7,DataPack!X80))))) -> 0 | H14: =IF($B$6=Dates!$E$3,DataPack!F80,IF($B$6=Dates!$E$4,DataPack!P80,IF($B$6=Dates!$E$5,DataPack!Z80,IF($B$6=Dates!$E$6,DataPack!AJ80,IF($B$6=Dates!$E$7,DataPack!Y80))))) -> 0 | I14: =IF($B$6=Dates!$E$3,DataPack!G80,IF($B$6=Dates!$E$4,DataPack!Q80,IF($B$6=Dates!$E$5,DataPack!AA80,IF($B$6=Dates!$E$6,DataPack!AK80,IF($B$6=Dates!$E$7,DataPack!Z80))))) -> 0 | J14: =IF($B$6=Dates!$E$3,DataPack!H80,IF($B$6=Dates!$E$4,DataPack!R80,IF($B$6=Dates!$E$5,DataPack!AB80,IF($B$6=Dates!$E$6,DataPack!AL80,IF($B$6=Dates!$E$7,DataPack!AA80))))) -> 0 | K14: =IF($B$6=Dates!$E$3,DataPack!I80,IF($B$6=Dates!$E$4,DataPack!S80,IF($B$6=Dates!$E$5,DataPack!AC80,IF($B$6=Dates!$E$6,DataPack!AM80,IF($B$6=Dates!$E$7,DataPack!AB80))))) -> 0 | L14: =IF($B$6=Dates!$E$3,DataPack!J80,IF($B$6=Dates!$E$4,DataPack!T80,IF($B$6=Dates!$E$5,DataPack!AD80,IF($B$6=Dates!$E$6,DataPack!AN80,IF($B$6=Dates!$E$7,DataPack!AC80))))) -> 0
B15: Outcomes for residential or boarding pupils | D15: =IF($B$6=Dates!$E$3,DataPack!B81,IF($B$6=Dates!$E$4,DataPack!L81,IF($B$6=Dates!$E$5,DataPack!V81,IF($B$6=Dates!$E$6,DataPack!AF81,IF($B$6=Dates!$E$7,DataPack!U81))))) -> 0 | E15: =IF($B$6=Dates!$E$3,DataPack!C81,IF($B$6=Dates!$E$4,DataPack!M81,IF($B$6=Dates!$E$5,DataPack!W81,IF($B$6=Dates!$E$6,DataPack!AG81,IF($B$6=Dates!$E$7,DataPack!V81))))) -> 0 | F15: =IF($B$6=Dates!$E$3,DataPack!D81,IF($B$6=Dates!$E$4,DataPack!N81,IF($B$6=Dates!$E$5,DataPack!X81,IF($B$6=Dates!$E$6,DataPack!AH81,IF($B$6=Dates!$E$7,DataPack!W81))))) -> 0 | G15: =IF($B$6=Dates!$E$3,DataPack!E81,IF($B$6=Dates!$E$4,DataPack!O81,IF($B$6=Dates!$E$5,DataPack!Y81,IF($B$6=Dates!$E$6,DataPack!AI81,IF($B$6=Dates!$E$7,DataPack!X81))))) -> 0 | H15: =IF($B$6=Dates!$E$3,DataPack!F81,IF($B$6=Dates!$E$4,DataPack!P81,IF($B$6=Dates!$E$5,DataPack!Z81,IF($B$6=Dates!$E$6,DataPack!AJ81,IF($B$6=Dates!$E$7,DataPack!Y81))))) -> 0 | I15: =IF($B$6=Dates!$E$3,DataPack!G81,IF($B$6=Dates!$E$4,DataPack!Q81,IF($B$6=Dates!$E$5,DataPack!AA81,IF($B$6=Dates!$E$6,DataPack!AK81,IF($B$6=Dates!$E$7,DataPack!Z81))))) -> 0 | J15: =IF($B$6=Dates!$E$3,DataPack!H81,IF($B$6=Dates!$E$4,DataPack!R81,IF($B$6=Dates!$E$5,DataPack!AB81,IF($B$6=Dates!$E$6,DataPack!AL81,IF($B$6=Dates!$E$7,DataPack!AA81))))) -> 0 | K15: =IF($B$6=Dates!$E$3,DataPack!I81,IF($B$6=Dates!$E$4,DataPack!S81,IF($B$6=Dates!$E$5,DataPack!AC81,IF($B$6=Dates!$E$6,DataPack!AM81,IF($B$6=Dates!$E$7,DataPack!AB81))))) -> 0 | L15: =IF($B$6=Dates!$E$3,DataPack!J81,IF($B$6=Dates!$E$4,DataPack!T81,IF($B$6=Dates!$E$5,DataPack!AD81,IF($B$6=Dates!$E$6,DataPack!AN81,IF($B$6=Dates!$E$7,DataPack!AC81))))) -> 0
B16: The quality of residential or boarding provision and care | D16: =IF($B$6=Dates!$E$3,DataPack!B82,IF($B$6=Dates!$E$4,DataPack!L82,IF($B$6=Dates!$E$5,DataPack!V82,IF($B$6=Dates!$E$6,DataPack!AF82,IF($B$6=Dates!$E$7,DataPack!U82))))) -> 0 | E16: =IF($B$6=Dates!$E$3,DataPack!C82,IF($B$6=Dates!$E$4,DataPack!M82,IF($B$6=Dates!$E$5,DataPack!W82,IF($B$6=Dates!$E$6,DataPack!AG82,IF($B$6=Dates!$E$7,DataPack!V82))))) -> 0 | F16: =IF($B$6=Dates!$E$3,DataPack!D82,IF($B$6=Dates!$E$4,DataPack!N82,IF($B$6=Dates!$E$5,DataPack!X82,IF($B$6=Dates!$E$6,DataPack!AH82,IF($B$6=Dates!$E$7,DataPack!W82))))) -> 0 | G16: =IF($B$6=Dates!$E$3,DataPack!E82,IF($B$6=Dates!$E$4,DataPack!O82,IF($B$6=Dates!$E$5,DataPack!Y82,IF($B$6=Dates!$E$6,DataPack!AI82,IF($B$6=Dates!$E$7,DataPack!X82))))) -> 0 | H16: =IF($B$6=Dates!$E$3,DataPack!F82,IF($B$6=Dates!$E$4,DataPack!P82,IF($B$6=Dates!$E$5,DataPack!Z82,IF($B$6=Dates!$E$6,DataPack!AJ82,IF($B$6=Dates!$E$7,DataPack!Y82))))) -> 0 | I16: =IF($B$6=Dates!$E$3,DataPack!G82,IF($B$6=Dates!$E$4,DataPack!Q82,IF($B$6=Dates!$E$5,DataPack!AA82,IF($B$6=Dates!$E$6,DataPack!AK82,IF($B$6=Dates!$E$7,DataPack!Z82))))) -> 0 | J16: =IF($B$6=Dates!$E$3,DataPack!H82,IF($B$6=Dates!$E$4,DataPack!R82,IF($B$6=Dates!$E$5,DataPack!AB82,IF($B$6=Dates!$E$6,DataPack!AL82,IF($B$6=Dates!$E$7,DataPack!AA82))))) -> 0 | K16: =IF($B$6=Dates!$E$3,DataPack!I82,IF($B$6=Dates!$E$4,DataPack!S82,IF($B$6=Dates!$E$5,DataPack!AC82,IF($B$6=Dates!$E$6,DataPack!AM82,IF($B$6=Dates!$E$7,DataPack!AB82))))) -> 0 | L16: =IF($B$6=Dates!$E$3,DataPack!J82,IF($B$6=Dates!$E$4,DataPack!T82,IF($B$6=Dates!$E$5,DataPack!AD82,IF($B$6=Dates!$E$6,DataPack!AN82,IF($B$6=Dates!$E$7,DataPack!AC82))))) -> 0
B17: Residential and boarding pupil's safety | D17: =IF($B$6=Dates!$E$3,DataPack!B83,IF($B$6=Dates!$E$4,DataPack!L83,IF($B$6=Dates!$E$5,DataPack!V83,IF($B$6=Dates!$E$6,DataPack!AF83,IF($B$6=Dates!$E$7,DataPack!U83))))) -> 0 | E17: =IF($B$6=Dates!$E$3,DataPack!C83,IF($B$6=Dates!$E$4,DataPack!M83,IF($B$6=Dates!$E$5,DataPack!W83,IF($B$6=Dates!$E$6,DataPack!AG83,IF($B$6=Dates!$E$7,DataPack!V83))))) -> 0 | F17: =IF($B$6=Dates!$E$3,DataPack!D83,IF($B$6=Dates!$E$4,DataPack!N83,IF($B$6=Dates!$E$5,DataPack!X83,IF($B$6=Dates!$E$6,DataPack!AH83,IF($B$6=Dates!$E$7,DataPack!W83))))) -> 0 | G17: =IF($B$6=Dates!$E$3,DataPack!E83,IF($B$6=Dates!$E$4,DataPack!O83,IF($B$6=Dates!$E$5,DataPack!Y83,IF($B$6=Dates!$E$6,DataPack!AI83,IF($B$6=Dates!$E$7,DataPack!X83))))) -> 0 | H17: =IF($B$6=Dates!$E$3,DataPack!F83,IF($B$6=Dates!$E$4,DataPack!P83,IF($B$6=Dates!$E$5,DataPack!Z83,IF($B$6=Dates!$E$6,DataPack!AJ83,IF($B$6=Dates!$E$7,DataPack!Y83))))) -> 0 | I17: =IF($B$6=Dates!$E$3,DataPack!G83,IF($B$6=Dates!$E$4,DataPack!Q83,IF($B$6=Dates!$E$5,DataPack!AA83,IF($B$6=Dates!$E$6,DataPack!AK83,IF($B$6=Dates!$E$7,DataPack!Z83))))) -> 0 | J17: =IF($B$6=Dates!$E$3,DataPack!H83,IF($B$6=Dates!$E$4,DataPack!R83,IF($B$6=Dates!$E$5,DataPack!AB83,IF($B$6=Dates!$E$6,DataPack!AL83,IF($B$6=Dates!$E$7,DataPack!AA83))))) -> 0 | K17: =IF($B$6=Dates!$E$3,DataPack!I83,IF($B$6=Dates!$E$4,DataPack!S83,IF($B$6=Dates!$E$5,DataPack!AC83,IF($B$6=Dates!$E$6,DataPack!AM83,IF($B$6=Dates!$E$7,DataPack!AB83))))) -> 0 | L17: =IF($B$6=Dates!$E$3,DataPack!J83,IF($B$6=Dates!$E$4,DataPack!T83,IF($B$6=Dates!$E$5,DataPack!AD83,IF($B$6=Dates!$E$6,DataPack!AN83,IF($B$6=Dates!$E$7,DataPack!AC83))))) -> 0
B18: Leadership and management of the residential or boarding provision | D18: =IF($B$6=Dates!$E$3,DataPack!B84,IF($B$6=Dates!$E$4,DataPack!L84,IF($B$6=Dates!$E$5,DataPack!V84,IF($B$6=Dates!$E$6,DataPack!AF84,IF($B$6=Dates!$E$7,DataPack!U84))))) -> 0 | E18: =IF($B$6=Dates!$E$3,DataPack!C84,IF($B$6=Dates!$E$4,DataPack!M84,IF($B$6=Dates!$E$5,DataPack!W84,IF($B$6=Dates!$E$6,DataPack!AG84,IF($B$6=Dates!$E$7,DataPack!V84))))) -> 0 | F18: =IF($B$6=Dates!$E$3,DataPack!D84,IF($B$6=Dates!$E$4,DataPack!N84,IF($B$6=Dates!$E$5,DataPack!X84,IF($B$6=Dates!$E$6,DataPack!AH84,IF($B$6=Dates!$E$7,DataPack!W84))))) -> 0 | G18: =IF($B$6=Dates!$E$3,DataPack!E84,IF($B$6=Dates!$E$4,DataPack!O84,IF($B$6=Dates!$E$5,DataPack!Y84,IF($B$6=Dates!$E$6,DataPack!AI84,IF($B$6=Dates!$E$7,DataPack!X84))))) -> 0 | H18: =IF($B$6=Dates!$E$3,DataPack!F84,IF($B$6=Dates!$E$4,DataPack!P84,IF($B$6=Dates!$E$5,DataPack!Z84,IF($B$6=Dates!$E$6,DataPack!AJ84,IF($B$6=Dates!$E$7,DataPack!Y84))))) -> 0 | I18: =IF($B$6=Dates!$E$3,DataPack!G84,IF($B$6=Dates!$E$4,DataPack!Q84,IF($B$6=Dates!$E$5,DataPack!AA84,IF($B$6=Dates!$E$6,DataPack!AK84,IF($B$6=Dates!$E$7,DataPack!Z84))))) -> 0 | J18: =IF($B$6=Dates!$E$3,DataPack!H84,IF($B$6=Dates!$E$4,DataPack!R84,IF($B$6=Dates!$E$5,DataPack!AB84,IF($B$6=Dates!$E$6,DataPack!AL84,IF($B$6=Dates!$E$7,DataPack!AA84))))) -> 0 | K18: =IF($B$6=Dates!$E$3,DataPack!I84,IF($B$6=Dates!$E$4,DataPack!S84,IF($B$6=Dates!$E$5,DataPack!AC84,IF($B$6=Dates!$E$6,DataPack!AM84,IF($B$6=Dates!$E$7,DataPack!AB84))))) -> 0 | L18: =IF($B$6=Dates!$E$3,DataPack!J84,IF($B$6=Dates!$E$4,DataPack!T84,IF($B$6=Dates!$E$5,DataPack!AD84,IF($B$6=Dates!$E$6,DataPack!AN84,IF($B$6=Dates!$E$7,DataPack!AC84))))) -> 0
L19: Source: Ofsted inspections
B20: 1. The judgements for pupils' attainment and pupils' attendance are high, above average, average and low.
B21: 1. Where numbers are small, percentages should be treated with caution.

Sheet Table 3
B2: Table 3: Inspection outcomes for selected judgements of maintained schools at their most recent inspection at 31 August 2012 (provisional) 1 2 3
F4: All phases | H4: Nursery | J4: Primary | L4: Secondary | N4: Special | P4: Pupil referral unit
E5: Outcome | F5: Number | G5: % | H5: Number | I5: % | J5: Number | K5: % | L5: Number | M5: % | N5: Number | O5: % | P5: Number | Q5: %
B7: Overall effectiveness 4 5 | E7: Outstanding | F7: =IF(B4<>Dates!$G$5,DataPack!C87,) -> 4442 | G7: =IF(C4<>Dates!$G$5,DataPack!D87,) -> 21 | H7: =IF(D4<>Dates!$G$5,DataPack!E87,) -> 229 | I7: =IF(E4<>Dates!$G$5,DataPack!F87,) -> 55 | J7: =IF(F4<>Dates!$G$5,DataPack!G87,) -> 2964 | K7: =IF(G4<>Dates!$G$5,DataPack!H87,) -> 18 | L7: =IF(H4<>Dates!$G$5,DataPack!I87,) -> 798 | M7: =IF(I4<>Dates!$G$5,DataPack!J87,) -> 26 | N7: =IF(J4<>Dates!$G$5,DataPack!K87,) -> 385 | O7: =IF(K4<>Dates!$G$5,DataPack!L87,) -> 37 | P7: =IF(L4<>Dates!$G$5,DataPack!M87,) -> 66 | Q7: =IF(M4<>Dates!$G$5,DataPack!N87,) -> 17
E8: Good | F8: =IF(B5<>Dates!$G$5,DataPack!C88,) -> 10534 | G8: =IF(C5<>Dates!$G$5,DataPack!D88,) -> 49 | H8: =IF(D5<>Dates!$G$5,DataPack!E88,) -> 171 | I8: =IF(E5<>Dates!$G$5,DataPack!F88,) -> 41 | J8: =IF(F5<>Dates!$G$5,DataPack!G88,) -> 8478 | K8: =IF(G5<>Dates!$G$5,DataPack!H88,) -> 51 | L8: =IF(H5<>Dates!$G$5,DataPack!I88,) -> 1237 | M8: =IF(I5<>Dates!$G$5,DataPack!J88,) -> 40 | N8: =IF(J5<>Dates!$G$5,DataPack!K88,) -> 456 | O8: =IF(K5<>Dates!$G$5,DataPack!L88,) -> 44 | P8: =IF(L5<>Dates!$G$5,DataPack!M88,) -> 192 | Q8: =IF(M5<>Dates!$G$5,DataPack!N88,) -> 51
E9: Satisfactory | F9: =IF(B6<>Dates!$G$5,DataPack!C89,) -> 6024 | G9: =IF(C6<>Dates!$G$5,DataPack!D89,) -> 28 | H9: =IF(D6<>Dates!$G$5,DataPack!E89,) -> 19 | I9: =IF(E6<>Dates!$G$5,DataPack!F89,) -> 5 | J9: =IF(F6<>Dates!$G$5,DataPack!G89,) -> 4795 | K9: =IF(G6<>Dates!$G$5,DataPack!H89,) -> 29 | L9: =IF(H6<>Dates!$G$5,DataPack!I89,) -> 933 | M9: =IF(I6<>Dates!$G$5,DataPack!J89,) -> 30 | N9: =IF(J6<>Dates!$G$5,DataPack!K89,) -> 171 | O9: =IF(K6<>Dates!$G$5,DataPack!L89,) -> 17 | P9: =IF(L6<>Dates!$G$5,DataPack!M89,) -> 106 | Q9: =IF(M6<>Dates!$G$5,DataPack!N89,) -> 28
E10: Inadequate | F10: =IF(B7<>Dates!$G$5,DataPack!C90,) -> 548 | G10: =IF(C7<>Dates!$G$5,DataPack!D90,) -> 3 | H10: =IF(D7<>Dates!$G$5,DataPack!E90,) -> 1 | I10: =IF(E7<>Dates!$G$5,DataPack!F90,) -> 0 | J10: =IF(F7<>Dates!$G$5,DataPack!G90,) -> 406 | K10: =IF(G7<>Dates!$G$5,DataPack!H90,) -> 2 | L10: =IF(H7<>Dates!$G$5,DataPack!I90,) -> 107 | M10: =IF(I7<>Dates!$G$5,DataPack!J90,) -> 3 | N10: =IF(J7<>Dates!$G$5,DataPack!K90,) -> 19 | O10: =IF(K7<>Dates!$G$5,DataPack!L90,) -> 2 | P10: =IF(L7<>Dates!$G$5,DataPack!M90,) -> 15 | Q10: =IF(M7<>Dates!$G$5,DataPack!N90,) -> 4
E11: Total | F11: =IF(B8<>Dates!$G$5,DataPack!C91,) -> 21548 | G11: =IF(C8<>Dates!$G$5,DataPack!D91,) -> 100 | H11: =IF(D8<>Dates!$G$5,DataPack!E91,) -> 420 | I11: =IF(E8<>Dates!$G$5,DataPack!F91,) -> 100 | J11: =IF(F8<>Dates!$G$5,DataPack!G91,) -> 16643 | K11: =IF(G8<>Dates!$G$5,DataPack!H91,) -> 100 | L11: =IF(H8<>Dates!$G$5,DataPack!I91,) -> 3075 | M11: =IF(I8<>Dates!$G$5,DataPack!J91,) -> 100 | N11: =IF(J8<>Dates!$G$5,DataPack!K91,) -> 1031 | O11: =IF(K8<>Dates!$G$5,DataPack!L91,) -> 100 | P11: =IF(L8<>Dates!$G$5,DataPack!M91,) -> 379 | Q11: =IF(M8<>Dates!$G$5,DataPack!N91,) -> 100
F12: =IF(B9<>Dates!$G$5,DataPack!C92,) ->  | G12: =IF(C9<>Dates!$G$5,DataPack!D92,) ->  | H12: =IF(D9<>Dates!$G$5,DataPack!E92,) ->  | I12: =IF(E9<>Dates!$G$5,DataPack!F92,) ->  | J12: =IF(F9<>Dates!$G$5,DataPack!G92,) ->  | K12: =IF(G9<>Dates!$G$5,DataPack!H92,) ->  | L12: =IF(H9<>Dates!$G$5,DataPack!I92,) ->  | M12: =IF(I9<>Dates!$G$5,DataPack!J92,) ->  | N12: =IF(J9<>Dates!$G$5,DataPack!K92,) ->  | O12: =IF(K9<>Dates!$G$5,DataPack!L92,) ->  | P12: =IF(L9<>Dates!$G$5,DataPack!M92,) ->  | Q12: =IF(M9<>Dates!$G$5,DataPack!N92,) -> 
B13: Achievement of pupils 4 5 6 | E13: Outstanding | F13: =IF(B10<>Dates!$G$5,DataPack!C93,) -> 1887 | G13: =IF(C10<>Dates!$G$5,DataPack!D93,) -> 11 | H13: =IF(D10<>Dates!$G$5,DataPack!E93,) -> 192 | I13: =IF(E10<>Dates!$G$5,DataPack!F93,) -> 46 | J13: =IF(F10<>Dates!$G$5,DataPack!G93,) -> 1121 | K13: =IF(G10<>Dates!$G$5,DataPack!H93,) -> 9 | L13: =IF(H10<>Dates!$G$5,DataPack!I93,) -> 345 | M13: =IF(I10<>Dates!$G$5,DataPack!J93,) -> 14 | N13: =IF(J10<>Dates!$G$5,DataPack!K93,) -> 217 | O13: =IF(K10<>Dates!$G$5,DataPack!L93,) -> 23 | P13: =IF(L10<>Dates!$G$5,DataPack!M93,) -> 12 | Q13: =IF(M10<>Dates!$G$5,DataPack!N93,) -> 3
E14: Good | F14: =IF(B11<>Dates!$G$5,DataPack!C94,) -> 8618 | G14: =IF(C11<>Dates!$G$5,DataPack!D94,) -> 51 | H14: =IF(D11<>Dates!$G$5,DataPack!E94,) -> 210 | I14: =IF(E11<>Dates!$G$5,DataPack!F94,) -> 50 | J14: =IF(F11<>Dates!$G$5,DataPack!G94,) -> 6552 | K14: =IF(G11<>Dates!$G$5,DataPack!H94,) -> 51 | L14: =IF(H11<>Dates!$G$5,DataPack!I94,) -> 1082 | M14: =IF(I11<>Dates!$G$5,DataPack!J94,) -> 44 | N14: =IF(J11<>Dates!$G$5,DataPack!K94,) -> 540 | O14: =IF(K11<>Dates!$G$5,DataPack!L94,) -> 58 | P14: =IF(L11<>Dates!$G$5,DataPack!M94,) -> 234 | Q14: =IF(M11<>Dates!$G$5,DataPack!N94,) -> 64
E15: Satisfactory | F15: =IF(B12<>Dates!$G$5,DataPack!C95,) -> 6017 | G15: =IF(C12<>Dates!$G$5,DataPack!D95,) -> 35 | H15: =IF(D12<>Dates!$G$5,DataPack!E95,) -> 18 | I15: =IF(E12<>Dates!$G$5,DataPack!F95,) -> 4 | J15: =IF(F12<>Dates!$G$5,DataPack!G95,) -> 4803 | K15: =IF(G12<>Dates!$G$5,DataPack!H95,) -> 37 | L15: =IF(H12<>Dates!$G$5,DataPack!I95,) -> 922 | M15: =IF(I12<>Dates!$G$5,DataPack!J95,) -> 38 | N15: =IF(J12<>Dates!$G$5,DataPack!K95,) -> 165 | O15: =IF(K12<>Dates!$G$5,DataPack!L95,) -> 18 | P15: =IF(L12<>Dates!$G$5,DataPack!M95,) -> 109 | Q15: =IF(M12<>Dates!$G$5,DataPack!N95,) -> 30
E16: Inadequate | F16: =IF(B13<>Dates!$G$5,DataPack!C96,) -> 485 | G16: =IF(C13<>Dates!$G$5,DataPack!D96,) -> 3 | H16: =IF(D13<>Dates!$G$5,DataPack!E96,) -> 0 | I16: =IF(E13<>Dates!$G$5,DataPack!F96,) -> 0 | J16: =IF(F13<>Dates!$G$5,DataPack!G96,) -> 360 | K16: =IF(G13<>Dates!$G$5,DataPack!H96,) -> 3 | L16: =IF(H13<>Dates!$G$5,DataPack!I96,) -> 97 | M16: =IF(I13<>Dates!$G$5,DataPack!J96,) -> 4 | N16: =IF(J13<>Dates!$G$5,DataPack!K96,) -> 16 | O16: =IF(K13<>Dates!$G$5,DataPack!L96,) -> 2 | P16: =IF(L13<>Dates!$G$5,DataPack!M96,) -> 12 | Q16: =IF(M13<>Dates!$G$5,DataPack!N96,) -> 3
E17: Total | F17: =IF(B14<>Dates!$G$5,DataPack!C97,) -> 17007 | G17: =IF(C14<>Dates!$G$5,DataPack!D97,) -> 100 | H17: =IF(D14<>Dates!$G$5,DataPack!E97,) -> 420 | I17: =IF(E14<>Dates!$G$5,DataPack!F97,) -> 100 | J17: =IF(F14<>Dates!$G$5,DataPack!G97,) -> 12836 | K17: =IF(G14<>Dates!$G$5,DataPack!H97,) -> 100 | L17: =IF(H14<>Dates!$G$5,DataPack!I97,) -> 2446 | M17: =IF(I14<>Dates!$G$5,DataPack!J97,) -> 100 | N17: =IF(J14<>Dates!$G$5,DataPack!K97,) -> 938 | O17: =IF(K14<>Dates!$G$5,DataPack!L97,) -> 100 | P17: =IF(L14<>Dates!$G$5,DataPack!M97,) -> 367 | Q17: =IF(M14<>Dates!$G$5,DataPack!N97,) -> 100
B19: How well do learners achieve? 6 7 | E19: Outstanding | F19: =IF(B16<>Dates!$G$5,DataPack!C99,) -> 2187 | G19: =IF(C16<>Dates!$G$5,DataPack!D99,) -> 48 | H19: =IF(D16<>Dates!$G$5,DataPack!E99,) -> 0 | I19: =IF(E16<>Dates!$G$5,DataPack!F99,) -> 0 | J19: =IF(F16<>Dates!$G$5,DataPack!G99,) -> 1703 | K19: =IF(G16<>Dates!$G$5,DataPack!H99,) -> 45 | L19: =IF(H16<>Dates!$G$5,DataPack!I99,) -> 387 | M19: =IF(I16<>Dates!$G$5,DataPack!J99,) -> 62 | N19: =IF(J16<>Dates!$G$5,DataPack!K99,) -> 86 | O19: =IF(K16<>Dates!$G$5,DataPack!L99,) -> 92 | P19: =IF(L16<>Dates!$G$5,DataPack!M99,) -> 11 | Q19: =IF(M16<>Dates!$G$5,DataPack!N99,) -> 92
E20: Good | F20: =IF(B17<>Dates!$G$5,DataPack!C100,) -> 2341 | G20: =IF(C17<>Dates!$G$5,DataPack!D100,) -> 52 | H20: =IF(D17<>Dates!$G$5,DataPack!E100,) -> 0 | I20: =IF(E17<>Dates!$G$5,DataPack!F100,) -> 0 | J20: =IF(F17<>Dates!$G$5,DataPack!G100,) -> 2101 | K20: =IF(G17<>Dates!$G$5,DataPack!H100,) -> 55 | L20: =IF(H17<>Dates!$G$5,DataPack!I100,) -> 235 | M20: =IF(I17<>Dates!$G$5,DataPack!J100,) -> 37 | N20: =IF(J17<>Dates!$G$5,DataPack!K100,) -> 5 | O20: =IF(K17<>Dates!$G$5,DataPack!L100,) -> 5 | P20: =IF(L17<>Dates!$G$5,DataPack!M100,) -> 0 | Q20: =IF(M17<>Dates!$G$5,DataPack!N100,) -> 0
E21: Satisfactory | F21: =IF(B18<>Dates!$G$5,DataPack!C101,) -> 13 | G21: =IF(C18<>Dates!$G$5,DataPack!D101,) -> 0 | H21: =IF(D18<>Dates!$G$5,DataPack!E101,) -> 0 | I21: =IF(E18<>Dates!$G$5,DataPack!F101,) -> 0 | J21: =IF(F18<>Dates!$G$5,DataPack!G101,) -> 3 | K21: =IF(G18<>Dates!$G$5,DataPack!H101,) -> 0 | L21: =IF(H18<>Dates!$G$5,DataPack!I101,) -> 7 | M21: =IF(I18<>Dates!$G$5,DataPack!J101,) -> 1 | N21: =IF(J18<>Dates!$G$5,DataPack!K101,) -> 2 | O21: =IF(K18<>Dates!$G$5,DataPack!L101,) -> 2 | P21: =IF(L18<>Dates!$G$5,DataPack!M101,) -> 1 | Q21: =IF(M18<>Dates!$G$5,DataPack!N101,) -> 8
E22: Inadequate | F22: =IF(B19<>Dates!$G$5,DataPack!C102,) -> 0 | G22: =IF(C19<>Dates!$G$5,DataPack!D102,) -> 0 | H22: =IF(D19<>Dates!$G$5,DataPack!E102,) -> 0 | I22: =IF(E19<>Dates!$G$5,DataPack!F102,) -> 0 | J22: =IF(F19<>Dates!$G$5,DataPack!G102,) -> 0 | K22: =IF(G19<>Dates!$G$5,DataPack!H102,) -> 0 | L22: =IF(H19<>Dates!$G$5,DataPack!I102,) -> 0 | M22: =IF(I19<>Dates!$G$5,DataPack!J102,) -> 0 | N22: =IF(J19<>Dates!$G$5,DataPack!K102,) -> 0 | O22: =IF(K19<>Dates!$G$5,DataPack!L102,) -> 0 | P22: =IF(L19<>Dates!$G$5,DataPack!M102,) -> 0 | Q22: =IF(M19<>Dates!$G$5,DataPack!N102,) -> 0
E23: Total | F23: =IF(B20<>Dates!$G$5,DataPack!C103,) -> 4541 | G23: =IF(C20<>Dates!$G$5,DataPack!D103,) -> 100 | H23: =IF(D20<>Dates!$G$5,DataPack!E103,) -> 0 | I23: =IF(E20<>Dates!$G$5,DataPack!F103,) -> 0 | J23: =IF(F20<>Dates!$G$5,DataPack!G103,) -> 3807 | K23: =IF(G20<>Dates!$G$5,DataPack!H103,) -> 100 | L23: =IF(H20<>Dates!$G$5,DataPack!I103,) -> 629 | M23: =IF(I20<>Dates!$G$5,DataPack!J103,) -> 100 | N23: =IF(J20<>Dates!$G$5,DataPack!K103,) -> 93 | O23: =IF(K20<>Dates!$G$5,DataPack!L103,) -> 100 | P23: =IF(L20<>Dates!$G$5,DataPack!M103,) -> 12 | Q23: =IF(M20<>Dates!$G$5,DataPack!N103,) -> 100
B25: Aggregate achievement 5 6 | E25: Outstanding | F25: =IF(B22<>Dates!$G$5,DataPack!C105,) -> 4074 | G25: =IF(C22<>Dates!$G$5,DataPack!D105,) -> 19 | H25: =IF(D22<>Dates!$G$5,DataPack!E105,) -> 192 | I25: =IF(E22<>Dates!$G$5,DataPack!F105,) -> 46 | J25: =IF(F22<>Dates!$G$5,DataPack!G105,) -> 2824 | K25: =IF(G22<>Dates!$G$5,DataPack!H105,) -> 17 | L25: =IF(H22<>Dates!$G$5,DataPack!I105,) -> 732 | M25: =IF(I22<>Dates!$G$5,DataPack!J105,) -> 24 | N25: =IF(J22<>Dates!$G$5,DataPack!K105,) -> 303 | O25: =IF(K22<>Dates!$G$5,DataPack!L105,) -> 29 | P25: =IF(L22<>Dates!$G$5,DataPack!M105,) -> 23 | Q25: =IF(M22<>Dates!$G$5,DataPack!N105,) -> 6
E26: Good | F26: =IF(B23<>Dates!$G$5,DataPack!C106,) -> 10959 | G26: =IF(C23<>Dates!$G$5,DataPack!D106,) -> 51 | H26: =IF(D23<>Dates!$G$5,DataPack!E106,) -> 210 | I26: =IF(E23<>Dates!$G$5,DataPack!F106,) -> 50 | J26: =IF(F23<>Dates!$G$5,DataPack!G106,) -> 8653 | K26: =IF(G23<>Dates!$G$5,DataPack!H106,) -> 52 | L26: =IF(H23<>Dates!$G$5,DataPack!I106,) -> 1317 | M26: =IF(I23<>Dates!$G$5,DataPack!J106,) -> 43 | N26: =IF(J23<>Dates!$G$5,DataPack!K106,) -> 545 | O26: =IF(K23<>Dates!$G$5,DataPack!L106,) -> 53 | P26: =IF(L23<>Dates!$G$5,DataPack!M106,) -> 234 | Q26: =IF(M23<>Dates!$G$5,DataPack!N106,) -> 62
E27: Satisfactory | F27: =IF(B24<>Dates!$G$5,DataPack!C107,) -> 6030 | G27: =IF(C24<>Dates!$G$5,DataPack!D107,) -> 28 | H27: =IF(D24<>Dates!$G$5,DataPack!E107,) -> 18 | I27: =IF(E24<>Dates!$G$5,DataPack!F107,) -> 4 | J27: =IF(F24<>Dates!$G$5,DataPack!G107,) -> 4806 | K27: =IF(G24<>Dates!$G$5,DataPack!H107,) -> 29 | L27: =IF(H24<>Dates!$G$5,DataPack!I107,) -> 929 | M27: =IF(I24<>Dates!$G$5,DataPack!J107,) -> 30 | N27: =IF(J24<>Dates!$G$5,DataPack!K107,) -> 167 | O27: =IF(K24<>Dates!$G$5,DataPack!L107,) -> 16 | P27: =IF(L24<>Dates!$G$5,DataPack!M107,) -> 110 | Q27: =IF(M24<>Dates!$G$5,DataPack!N107,) -> 29
E28: Inadequate | F28: =IF(B25<>Dates!$G$5,DataPack!C108,) -> 485 | G28: =IF(C25<>Dates!$G$5,DataPack!D108,) -> 2 | H28: =IF(D25<>Dates!$G$5,DataPack!E108,) -> 0 | I28: =IF(E25<>Dates!$G$5,DataPack!F108,) -> 0 | J28: =IF(F25<>Dates!$G$5,DataPack!G108,) -> 360 | K28: =IF(G25<>Dates!$G$5,DataPack!H108,) -> 2 | L28: =IF(H25<>Dates!$G$5,DataPack!I108,) -> 97 | M28: =IF(I25<>Dates!$G$5,DataPack!J108,) -> 3 | N28: =IF(J25<>Dates!$G$5,DataPack!K108,) -> 16 | O28: =IF(K25<>Dates!$G$5,DataPack!L108,) -> 2 | P28: =IF(L25<>Dates!$G$5,DataPack!M108,) -> 12 | Q28: =IF(M25<>Dates!$G$5,DataPack!N108,) -> 3
E29: Total | F29: =IF(B26<>Dates!$G$5,DataPack!C109,) -> 21548 | G29: =IF(C26<>Dates!$G$5,DataPack!D109,) -> 100 | H29: =IF(D26<>Dates!$G$5,DataPack!E109,) -> 420 | I29: =IF(E26<>Dates!$G$5,DataPack!F109,) -> 100 | J29: =IF(F26<>Dates!$G$5,DataPack!G109,) -> 16643 | K29: =IF(G26<>Dates!$G$5,DataPack!H109,) -> 100 | L29: =IF(H26<>Dates!$G$5,DataPack!I109,) -> 3075 | M29: =IF(I26<>Dates!$G$5,DataPack!J109,) -> 100 | N29: =IF(J26<>Dates!$G$5,DataPack!K109,) -> 1031 | O29: =IF(K26<>Dates!$G$5,DataPack!L109,) -> 100 | P29: =IF(L26<>Dates!$G$5,DataPack!M109,) -> 379 | Q29: =IF(M26<>Dates!$G$5,DataPack!N109,) -> 100
F30: =IF(B27<>Dates!$G$5,DataPack!C110,) ->  | G30: =IF(C27<>Dates!$G$5,DataPack!D110,) ->  | H30: =IF(D27<>Dates!$G$5,DataPack!E110,) ->  | I30: =IF(E27<>Dates!$G$5,DataPack!F110,) ->  | J30: =IF(F27<>Dates!$G$5,DataPack!G110,) ->  | K30: =IF(G27<>Dates!$G$5,DataPack!H110,) ->  | L30: =IF(H27<>Dates!$G$5,DataPack!I110,) ->  | M30: =IF(I27<>Dates!$G$5,DataPack!J110,) ->  | N30: =IF(J27<>Dates!$G$5,DataPack!K110,) ->  | O30: =IF(K27<>Dates!$G$5,DataPack!L110,) ->  | P30: =IF(L27<>Dates!$G$5,DataPack!M110,) ->  | Q30: =IF(M27<>Dates!$G$5,DataPack!N110,) -> 
B31: Quality of teaching 4 5 | E31: Outstanding | F31: =IF(B28<>Dates!$G$5,DataPack!C111,) -> 3400 | G31: =IF(C28<>Dates!$G$5,DataPack!D111,) -> 16 | H31: =IF(D28<>Dates!$G$5,DataPack!E111,) -> 216 | I31: =IF(E28<>Dates!$G$5,DataPack!F111,) -> 51 | J31: =IF(F28<>Dates!$G$5,DataPack!G111,) -> 2408 | K31: =IF(G28<>Dates!$G$5,DataPack!H111,) -> 14 | L31: =IF(H28<>Dates!$G$5,DataPack!I111,) -> 434 | M31: =IF(I28<>Dates!$G$5,DataPack!J111,) -> 14 | N31: =IF(J28<>Dates!$G$5,DataPack!K111,) -> 297 | O31: =IF(K28<>Dates!$G$5,DataPack!L111,) -> 29 | P31: =IF(L28<>Dates!$G$5,DataPack!M111,) -> 45 | Q31: =IF(M28<>Dates!$G$5,DataPack!N111,) -> 12
E32: Good | F32: =IF(B29<>Dates!$G$5,DataPack!C112,) -> 11956 | G32: =IF(C29<>Dates!$G$5,DataPack!D112,) -> 55 | H32: =IF(D29<>Dates!$G$5,DataPack!E112,) -> 185 | I32: =IF(E29<>Dates!$G$5,DataPack!F112,) -> 44 | J32: =IF(F29<>Dates!$G$5,DataPack!G112,) -> 9348 | K32: =IF(G29<>Dates!$G$5,DataPack!H112,) -> 56 | L32: =IF(H29<>Dates!$G$5,DataPack!I112,) -> 1644 | M32: =IF(I29<>Dates!$G$5,DataPack!J112,) -> 53 | N32: =IF(J29<>Dates!$G$5,DataPack!K112,) -> 548 | O32: =IF(K29<>Dates!$G$5,DataPack!L112,) -> 53 | P32: =IF(L29<>Dates!$G$5,DataPack!M112,) -> 231 | Q32: =IF(M29<>Dates!$G$5,DataPack!N112,) -> 61
E33: Satisfactory | F33: =IF(B30<>Dates!$G$5,DataPack!C113,) -> 5828 | G33: =IF(C30<>Dates!$G$5,DataPack!D113,) -> 27 | H33: =IF(D30<>Dates!$G$5,DataPack!E113,) -> 19 | I33: =IF(E30<>Dates!$G$5,DataPack!F113,) -> 5 | J33: =IF(F30<>Dates!$G$5,DataPack!G113,) -> 4605 | K33: =IF(G30<>Dates!$G$5,DataPack!H113,) -> 28 | L33: =IF(H30<>Dates!$G$5,DataPack!I113,) -> 939 | M33: =IF(I30<>Dates!$G$5,DataPack!J113,) -> 31 | N33: =IF(J30<>Dates!$G$5,DataPack!K113,) -> 171 | O33: =IF(K30<>Dates!$G$5,DataPack!L113,) -> 17 | P33: =IF(L30<>Dates!$G$5,DataPack!M113,) -> 94 | Q33: =IF(M30<>Dates!$G$5,DataPack!N113,) -> 25
E34: Inadequate | F34: =IF(B31<>Dates!$G$5,DataPack!C114,) -> 364 | G34: =IF(C31<>Dates!$G$5,DataPack!D114,) -> 2 | H34: =IF(D31<>Dates!$G$5,DataPack!E114,) -> 0 | I34: =IF(E31<>Dates!$G$5,DataPack!F114,) -> 0 | J34: =IF(F31<>Dates!$G$5,DataPack!G114,) -> 282 | K34: =IF(G31<>Dates!$G$5,DataPack!H114,) -> 2 | L34: =IF(H31<>Dates!$G$5,DataPack!I114,) -> 58 | M34: =IF(I31<>Dates!$G$5,DataPack!J114,) -> 2 | N34: =IF(J31<>Dates!$G$5,DataPack!K114,) -> 15 | O34: =IF(K31<>Dates!$G$5,DataPack!L114,) -> 1 | P34: =IF(L31<>Dates!$G$5,DataPack!M114,) -> 9 | Q34: =IF(M31<>Dates!$G$5,DataPack!N114,) -> 2
E35: Total | F35: =IF(B32<>Dates!$G$5,DataPack!C115,) -> 21548 | G35: =IF(C32<>Dates!$G$5,DataPack!D115,) -> 100 | H35: =IF(D32<>Dates!$G$5,DataPack!E115,) -> 420 | I35: =IF(E32<>Dates!$G$5,DataPack!F115,) -> 100 | J35: =IF(F32<>Dates!$G$5,DataPack!G115,) -> 16643 | K35: =IF(G32<>Dates!$G$5,DataPack!H115,) -> 100 | L35: =IF(H32<>Dates!$G$5,DataPack!I115,) -> 3075 | M35: =IF(I32<>Dates!$G$5,DataPack!J115,) -> 100 | N35: =IF(J32<>Dates!$G$5,DataPack!K115,) -> 1031 | O35: =IF(K32<>Dates!$G$5,DataPack!L115,) -> 100 | P35: =IF(L32<>Dates!$G$5,DataPack!M115,) -> 379 | Q35: =IF(M32<>Dates!$G$5,DataPack!N115,) -> 100
F36: =IF(B33<>Dates!$G$5,DataPack!C116,) ->  | G36: =IF(C33<>Dates!$G$5,DataPack!D116,) ->  | H36: =IF(D33<>Dates!$G$5,DataPack!E116,) ->  | I36: =IF(E33<>Dates!$G$5,DataPack!F116,) ->  | J36: =IF(F33<>Dates!$G$5,DataPack!G116,) ->  | K36: =IF(G33<>Dates!$G$5,DataPack!H116,) ->  | L36: =IF(H33<>Dates!$G$5,DataPack!I116,) ->  | M36: =IF(I33<>Dates!$G$5,DataPack!J116,) ->  | N36: =IF(J33<>Dates!$G$5,DataPack!K116,) ->  | O36: =IF(K33<>Dates!$G$5,DataPack!L116,) ->  | P36: =IF(L33<>Dates!$G$5,DataPack!M116,) ->  | Q36: =IF(M33<>Dates!$G$5,DataPack!N116,) -> 
B37: Behaviour and safety of pupils 4 5 8 | E37: Outstanding | F37: =IF(B34<>Dates!$G$5,DataPack!C117,) -> 7412 | G37: =IF(C34<>Dates!$G$5,DataPack!D117,) -> 34 | H37: =IF(D34<>Dates!$G$5,DataPack!E117,) -> 291 | I37: =IF(E34<>Dates!$G$5,DataPack!F117,) -> 69 | J37: =IF(F34<>Dates!$G$5,DataPack!G117,) -> 5687 | K37: =IF(G34<>Dates!$G$5,DataPack!H117,) -> 34 | L37: =IF(H34<>Dates!$G$5,DataPack!I117,) -> 839 | M37: =IF(I34<>Dates!$G$5,DataPack!J117,) -> 27 | N37: =IF(J34<>Dates!$G$5,DataPack!K117,) -> 510 | O37: =IF(K34<>Dates!$G$5,DataPack!L117,) -> 49 | P37: =IF(L34<>Dates!$G$5,DataPack!M117,) -> 85 | Q37: =IF(M34<>Dates!$G$5,DataPack!N117,) -> 22
E38: Good | F38: =IF(B35<>Dates!$G$5,DataPack!C118,) -> 12116 | G38: =IF(C35<>Dates!$G$5,DataPack!D118,) -> 56 | H38: =IF(D35<>Dates!$G$5,DataPack!E118,) -> 127 | I38: =IF(E35<>Dates!$G$5,DataPack!F118,) -> 30 | J38: =IF(F35<>Dates!$G$5,DataPack!G118,) -> 9639 | K38: =IF(G35<>Dates!$G$5,DataPack!H118,) -> 58 | L38: =IF(H35<>Dates!$G$5,DataPack!I118,) -> 1690 | M38: =IF(I35<>Dates!$G$5,DataPack!J118,) -> 55 | N38: =IF(J35<>Dates!$G$5,DataPack!K118,) -> 439 | O38: =IF(K35<>Dates!$G$5,DataPack!L118,) -> 43 | P38: =IF(L35<>Dates!$G$5,DataPack!M118,) -> 221 | Q38: =IF(M35<>Dates!$G$5,DataPack!N118,) -> 58
E39: Satisfactory | F39: =IF(B36<>Dates!$G$5,DataPack!C119,) -> 1897 | G39: =IF(C36<>Dates!$G$5,DataPack!D119,) -> 9 | H39: =IF(D36<>Dates!$G$5,DataPack!E119,) -> 2 | I39: =IF(E36<>Dates!$G$5,DataPack!F119,) -> 0 | J39: =IF(F36<>Dates!$G$5,DataPack!G119,) -> 1257 | K39: =IF(G36<>Dates!$G$5,DataPack!H119,) -> 8 | L39: =IF(H36<>Dates!$G$5,DataPack!I119,) -> 501 | M39: =IF(I36<>Dates!$G$5,DataPack!J119,) -> 16 | N39: =IF(J36<>Dates!$G$5,DataPack!K119,) -> 74 | O39: =IF(K36<>Dates!$G$5,DataPack!L119,) -> 7 | P39: =IF(L36<>Dates!$G$5,DataPack!M119,) -> 63 | Q39: =IF(M36<>Dates!$G$5,DataPack!N119,) -> 17
E40: Inadequate | F40: =IF(B37<>Dates!$G$5,DataPack!C120,) -> 111 | G40: =IF(C37<>Dates!$G$5,DataPack!D120,) -> 1 | H40: =IF(D37<>Dates!$G$5,DataPack!E120,) -> 0 | I40: =IF(E37<>Dates!$G$5,DataPack!F120,) -> 0 | J40: =IF(F37<>Dates!$G$5,DataPack!G120,) -> 50 | K40: =IF(G37<>Dates!$G$5,DataPack!H120,) -> 0 | L40: =IF(H37<>Dates!$G$5,DataPack!I120,) -> 43 | M40: =IF(I37<>Dates!$G$5,DataPack!J120,) -> 1 | N40: =IF(J37<>Dates!$G$5,DataPack!K120,) -> 8 | O40: =IF(K37<>Dates!$G$5,DataPack!L120,) -> 1 | P40: =IF(L37<>Dates!$G$5,DataPack!M120,) -> 10 | Q40: =IF(M37<>Dates!$G$5,DataPack!N120,) -> 3
E41: Total | F41: =IF(B38<>Dates!$G$5,DataPack!C121,) -> 21536 | G41: =IF(C38<>Dates!$G$5,DataPack!D121,) -> 100 | H41: =IF(D38<>Dates!$G$5,DataPack!E121,) -> 420 | I41: =IF(E38<>Dates!$G$5,DataPack!F121,) -> 100 | J41: =IF(F38<>Dates!$G$5,DataPack!G121,) -> 16633 | K41: =IF(G38<>Dates!$G$5,DataPack!H121,) -> 100 | L41: =IF(H38<>Dates!$G$5,DataPack!I121,) -> 3073 | M41: =IF(I38<>Dates!$G$5,DataPack!J121,) -> 100 | N41: =IF(J38<>Dates!$G$5,DataPack!K121,) -> 1031 | O41: =IF(K38<>Dates!$G$5,DataPack!L121,) -> 100 | P41: =IF(L38<>Dates!$G$5,DataPack!M121,) -> 379 | Q41: =IF(M38<>Dates!$G$5,DataPack!N121,) -> 100
F42: =IF(B39<>Dates!$G$5,DataPack!C122,) ->  | G42: =IF(C39<>Dates!$G$5,DataPack!D122,) ->  | H42: =IF(D39<>Dates!$G$5,DataPack!E122,) ->  | I42: =IF(E39<>Dates!$G$5,DataPack!F122,) ->  | J42: =IF(F39<>Dates!$G$5,DataPack!G122,) ->  | K42: =IF(G39<>Dates!$G$5,DataPack!H122,) ->  | L42: =IF(H39<>Dates!$G$5,DataPack!I122,) ->  | M42: =IF(I39<>Dates!$G$5,DataPack!J122,) ->  | N42: =IF(J39<>Dates!$G$5,DataPack!K122,) ->  | O42: =IF(K39<>Dates!$G$5,DataPack!L122,) ->  | P42: =IF(L39<>Dates!$G$5,DataPack!M122,) ->  | Q42: =IF(M39<>Dates!$G$5,DataPack!N122,) -> 
B43: Leadership and management 4 5 | E43: Outstanding | F43: =IF(B40<>Dates!$G$5,DataPack!C123,) -> 4971 | G43: =IF(C40<>Dates!$G$5,DataPack!D123,) -> 23 | H43: =IF(D40<>Dates!$G$5,DataPack!E123,) -> 236 | I43: =IF(E40<>Dates!$G$5,DataPack!F123,) -> 56 | J43: =IF(F40<>Dates!$G$5,DataPack!G123,) -> 3310 | K43: =IF(G40<>Dates!$G$5,DataPack!H123,) -> 20 | L43: =IF(H40<>Dates!$G$5,DataPack!I123,) -> 931 | M43: =IF(I40<>Dates!$G$5,DataPack!J123,) -> 30 | N43: =IF(J40<>Dates!$G$5,DataPack!K123,) -> 416 | O43: =IF(K40<>Dates!$G$5,DataPack!L123,) -> 40 | P43: =IF(L40<>Dates!$G$5,DataPack!M123,) -> 78 | Q43: =IF(M40<>Dates!$G$5,DataPack!N123,) -> 21
E44: Good | F44: =IF(B41<>Dates!$G$5,DataPack!C124,) -> 11422 | G44: =IF(C41<>Dates!$G$5,DataPack!D124,) -> 53 | H44: =IF(D41<>Dates!$G$5,DataPack!E124,) -> 165 | I44: =IF(E41<>Dates!$G$5,DataPack!F124,) -> 39 | J44: =IF(F41<>Dates!$G$5,DataPack!G124,) -> 9091 | K44: =IF(G41<>Dates!$G$5,DataPack!H124,) -> 55 | L44: =IF(H41<>Dates!$G$5,DataPack!I124,) -> 1493 | M44: =IF(I41<>Dates!$G$5,DataPack!J124,) -> 49 | N44: =IF(J41<>Dates!$G$5,DataPack!K124,) -> 463 | O44: =IF(K41<>Dates!$G$5,DataPack!L124,) -> 45 | P44: =IF(L41<>Dates!$G$5,DataPack!M124,) -> 210 | Q44: =IF(M41<>Dates!$G$5,DataPack!N124,) -> 55
E45: Satisfactory | F45: =IF(B42<>Dates!$G$5,DataPack!C125,) -> 4770 | G45: =IF(C42<>Dates!$G$5,DataPack!D125,) -> 22 | H45: =IF(D42<>Dates!$G$5,DataPack!E125,) -> 18 | I45: =IF(E42<>Dates!$G$5,DataPack!F125,) -> 4 | J45: =IF(F42<>Dates!$G$5,DataPack!G125,) -> 3937 | K45: =IF(G42<>Dates!$G$5,DataPack!H125,) -> 24 | L45: =IF(H42<>Dates!$G$5,DataPack!I125,) -> 598 | M45: =IF(I42<>Dates!$G$5,DataPack!J125,) -> 19 | N45: =IF(J42<>Dates!$G$5,DataPack!K125,) -> 139 | O45: =IF(K42<>Dates!$G$5,DataPack!L125,) -> 13 | P45: =IF(L42<>Dates!$G$5,DataPack!M125,) -> 78 | Q45: =IF(M42<>Dates!$G$5,DataPack!N125,) -> 21
E46: Inadequate | F46: =IF(B43<>Dates!$G$5,DataPack!C126,) -> 385 | G46: =IF(C43<>Dates!$G$5,DataPack!D126,) -> 2 | H46: =IF(D43<>Dates!$G$5,DataPack!E126,) -> 1 | I46: =IF(E43<>Dates!$G$5,DataPack!F126,) -> 0 | J46: =IF(F43<>Dates!$G$5,DataPack!G126,) -> 305 | K46: =IF(G43<>Dates!$G$5,DataPack!H126,) -> 2 | L46: =IF(H43<>Dates!$G$5,DataPack!I126,) -> 53 | M46: =IF(I43<>Dates!$G$5,DataPack!J126,) -> 2 | N46: =IF(J43<>Dates!$G$5,DataPack!K126,) -> 13 | O46: =IF(K43<>Dates!$G$5,DataPack!L126,) -> 1 | P46: =IF(L43<>Dates!$G$5,DataPack!M126,) -> 13 | Q46: =IF(M43<>Dates!$G$5,DataPack!N126,) -> 3
E47: Total | F47: =IF(B44<>Dates!$G$5,DataPack!C127,) -> 21548 | G47: =IF(C44<>Dates!$G$5,DataPack!D127,) -> 100 | H47: =IF(D44<>Dates!$G$5,DataPack!E127,) -> 420 | I47: =IF(E44<>Dates!$G$5,DataPack!F127,) -> 100 | J47: =IF(F44<>Dates!$G$5,DataPack!G127,) -> 16643 | K47: =IF(G44<>Dates!$G$5,DataPack!H127,) -> 100 | L47: =IF(H44<>Dates!$G$5,DataPack!I127,) -> 3075 | M47: =IF(I44<>Dates!$G$5,DataPack!J127,) -> 100 | N47: =IF(J44<>Dates!$G$5,DataPack!K127,) -> 1031 | O47: =IF(K44<>Dates!$G$5,DataPack!L127,) -> 100 | P47: =IF(L44<>Dates!$G$5,DataPack!M127,) -> 379 | Q47: =IF(M44<>Dates!$G$5,DataPack!N127,) -> 100
P49: Source: Ofsted inspections
B50: 1. Percentages are rounded and may not add to 100.
B51: 2. Data based on Edubase at 3 September 2012.
B52: 3. Data includes the most recent judgements for predecessor schools of academy converters that have not been inspected as an academy converter.
B53: 4. Judgement descriptors are based on that of the January 2012 section 5 inspection framework.
B54: 5. Inspections include pilot inspection outcomes occurring in the 2010/11 academic year.
B55: 6. Pupils' achievement and the extent to which they enjoy their learning judgement was introduced on 1 September 2009. Prior to this a different judgement, 'How well do learners achieve?', was made. While these judgements are not directly comparable, they have been aggregated in the table to present the state of the nation.
B56: 7. As a result of a proportionate inspection process, inspections of weaker schools are brought forward. These weaker schools will no longer have the 2005 achievement judgement and will instead have the 2009 judgement: 'Pupils' achievement and the extent to which they enjoy their learning'. 'How well do learners achieve?' judgement is therefore more positive.
B58: 8. In May and June of the 2006/07 academic year Ofsted completed a number of Phase 2 Reduced Tariff inspections which had no comparable behaviour judgement.

Sheet Table 4 (hidden)
B2: ="Table 4: Most recent overall effectiveness outcome of maintained schools that closed "&IF('Table 4'!$C$4=Dates!$E$3,"between "&Dates!$E$3,IF('Table 4'!$C$4=Dates!E4,"in "&Dates!E4,IF('Table 4'!$C$4=Dates!E5,"in "&Dates!E5,IF('Table 4'!$C$4=Dates!E6,"in "&Dates!E6,IF('Table 4'!$C$4=Dates!E7,"in "&Dates!E7)))))&" (final) " & CHAR(185) &" " & CHAR(178) & " " & CHAR(179) -> Table 4: Most recent overall effectiveness outcome of maintained schools that closed between 1 September 2011 and 31 August 2012 (final) ¹ ² ³
B4: Select period: | C4: 1 September 2011 and 31 August 2012
G5: All closed schools inspected | H5: Nursery | I5: Primary | J5: Secondary | K5: Special | L5: Pupil referral unit
H6: Number | I6: Number | J6: Number | K6: Number | L6: Number
B8: Overall effectiveness | E8: Outstanding | G8: =IF($C$4=Dates!$E$3, DataPack!C131,IF($C$4=Dates!D3, DataPack!V131, IF($C$4=Dates!$E$4, DataPack!I131, IF($C$4=Dates!$E$5, DataPack!O131,IF($C$4=Dates!$E$6, DataPack!U131))))) -> 7 | H8: =IF($C$4=Dates!$E$3, DataPack!D131,IF($C$4=Dates!$E$3, DataPack!W131, IF($C$4=Dates!$E$4, DataPack!J131, IF($C$4=Dates!$E$5, DataPack!P131,IF($C$4=Dates!$E$6, DataPack!V131))))) -> 1 | I8: =IF($C$4=Dates!$E$3, DataPack!E131,IF($C$4=Dates!$E$3, DataPack!X131, IF($C$4=Dates!$E$4, DataPack!K131, IF($C$4=Dates!$E$5, DataPack!Q131,IF($C$4=Dates!$E$6, DataPack!W131))))) -> 4 | J8: =IF($C$4=Dates!$E$3, DataPack!F131,IF($C$4=Dates!$E$3, DataPack!Y131, IF($C$4=Dates!$E$4, DataPack!L131, IF($C$4=Dates!$E$5, DataPack!R131,IF($C$4=Dates!$E$6, DataPack!X131))))) -> 0 | K8: =IF($C$4=Dates!$E$3, DataPack!G131,IF($C$4=Dates!$E$3, DataPack!Z131, IF($C$4=Dates!$E$4, DataPack!M131, IF($C$4=Dates!$E$5, DataPack!S131,IF($C$4=Dates!$E$6, DataPack!Y131))))) -> 1 | L8: =IF($C$4=Dates!$E$3, DataPack!H131,IF($C$4=Dates!$E$3, DataPack!AA131, IF($C$4=Dates!$E$4, DataPack!N131, IF($C$4=Dates!$E$5, DataPack!T131,IF($C$4=Dates!$E$6, DataPack!Z131))))) -> 1
E9: Good | G9: =IF($C$4=Dates!$E$3, DataPack!C132,IF($C$4=Dates!D4, DataPack!V132, IF($C$4=Dates!$E$4, DataPack!I132, IF($C$4=Dates!$E$5, DataPack!O132,IF($C$4=Dates!$E$6, DataPack!U132))))) -> 48 | H9: =IF($C$4=Dates!$E$3, DataPack!D132,IF($C$4=Dates!$E$3, DataPack!W132, IF($C$4=Dates!$E$4, DataPack!J132, IF($C$4=Dates!$E$5, DataPack!P132,IF($C$4=Dates!$E$6, DataPack!V132))))) -> 3 | I9: =IF($C$4=Dates!$E$3, DataPack!E132,IF($C$4=Dates!$E$3, DataPack!X132, IF($C$4=Dates!$E$4, DataPack!K132, IF($C$4=Dates!$E$5, DataPack!Q132,IF($C$4=Dates!$E$6, DataPack!W132))))) -> 22 | J9: =IF($C$4=Dates!$E$3, DataPack!F132,IF($C$4=Dates!$E$3, DataPack!Y132, IF($C$4=Dates!$E$4, DataPack!L132, IF($C$4=Dates!$E$5, DataPack!R132,IF($C$4=Dates!$E$6, DataPack!X132))))) -> 9 | K9: =IF($C$4=Dates!$E$3, DataPack!G132,IF($C$4=Dates!$E$3, DataPack!Z132, IF($C$4=Dates!$E$4, DataPack!M132, IF($C$4=Dates!$E$5, DataPack!S132,IF($C$4=Dates!$E$6, DataPack!Y132))))) -> 2 | L9: =IF($C$4=Dates!$E$3, DataPack!H132,IF($C$4=Dates!$E$3, DataPack!AA132, IF($C$4=Dates!$E$4, DataPack!N132, IF($C$4=Dates!$E$5, DataPack!T132,IF($C$4=Dates!$E$6, DataPack!Z132))))) -> 12
E10: Satisfactory | G10: =IF($C$4=Dates!$E$3, DataPack!C133,IF($C$4=Dates!D5, DataPack!V133, IF($C$4=Dates!$E$4, DataPack!I133, IF($C$4=Dates!$E$5, DataPack!O133,IF($C$4=Dates!$E$6, DataPack!U133))))) -> 120 | H10: =IF($C$4=Dates!$E$3, DataPack!D133,IF($C$4=Dates!$E$3, DataPack!W133, IF($C$4=Dates!$E$4, DataPack!J133, IF($C$4=Dates!$E$5, DataPack!P133,IF($C$4=Dates!$E$6, DataPack!V133))))) -> 0 | I10: =IF($C$4=Dates!$E$3, DataPack!E133,IF($C$4=Dates!$E$3, DataPack!X133, IF($C$4=Dates!$E$4, DataPack!K133, IF($C$4=Dates!$E$5, DataPack!Q133,IF($C$4=Dates!$E$6, DataPack!W133))))) -> 68 | J10: =IF($C$4=Dates!$E$3, DataPack!F133,IF($C$4=Dates!$E$3, DataPack!Y133, IF($C$4=Dates!$E$4, DataPack!L133, IF($C$4=Dates!$E$5, DataPack!R133,IF($C$4=Dates!$E$6, DataPack!X133))))) -> 44 | K10: =IF($C$4=Dates!$E$3, DataPack!G133,IF($C$4=Dates!$E$3, DataPack!Z133, IF($C$4=Dates!$E$4, DataPack!M133, IF($C$4=Dates!$E$5, DataPack!S133,IF($C$4=Dates!$E$6, DataPack!Y133))))) -> 1 | L10: =IF($C$4=Dates!$E$3, DataPack!H133,IF($C$4=Dates!$E$3, DataPack!AA133, IF($C$4=Dates!$E$4, DataPack!N133, IF($C$4=Dates!$E$5, DataPack!T133,IF($C$4=Dates!$E$6, DataPack!Z133))))) -> 7
E11: Inadequate | G11: =IF($C$4=Dates!$E$3, DataPack!C134,IF($C$4=Dates!D6, DataPack!V134, IF($C$4=Dates!$E$4, DataPack!I134, IF($C$4=Dates!$E$5, DataPack!O134,IF($C$4=Dates!$E$6, DataPack!U134))))) -> 48 | H11: =IF($C$4=Dates!$E$3, DataPack!D134,IF($C$4=Dates!$E$3, DataPack!W134, IF($C$4=Dates!$E$4, DataPack!J134, IF($C$4=Dates!$E$5, DataPack!P134,IF($C$4=Dates!$E$6, DataPack!V134))))) -> 0 | I11: =IF($C$4=Dates!$E$3, DataPack!E134,IF($C$4=Dates!$E$3, DataPack!X134, IF($C$4=Dates!$E$4, DataPack!K134, IF($C$4=Dates!$E$5, DataPack!Q134,IF($C$4=Dates!$E$6, DataPack!W134))))) -> 29 | J11: =IF($C$4=Dates!$E$3, DataPack!F134,IF($C$4=Dates!$E$3, DataPack!Y134, IF($C$4=Dates!$E$4, DataPack!L134, IF($C$4=Dates!$E$5, DataPack!R134,IF($C$4=Dates!$E$6, DataPack!X134))))) -> 15 | K11: =IF($C$4=Dates!$E$3, DataPack!G134,IF($C$4=Dates!$E$3, DataPack!Z134, IF($C$4=Dates!$E$4, DataPack!M134, IF($C$4=Dates!$E$5, DataPack!S134,IF($C$4=Dates!$E$6, DataPack!Y134))))) -> 3 | L11: =IF($C$4=Dates!$E$3, DataPack!H134,IF($C$4=Dates!$E$3, DataPack!AA134, IF($C$4=Dates!$E$4, DataPack!N134, IF($C$4=Dates!$E$5, DataPack!T134,IF($C$4=Dates!$E$6, DataPack!Z134))))) -> 1
E12: Total | G12: =IF($C$4=Dates!$E$3, DataPack!C135,IF($C$4=Dates!D7, DataPack!V135, IF($C$4=Dates!$E$4, DataPack!I135, IF($C$4=Dates!$E$5, DataPack!O135,IF($C$4=Dates!$E$6, DataPack!U135))))) -> 223 | H12: =IF($C$4=Dates!$E$3, DataPack!D135,IF($C$4=Dates!$E$3, DataPack!W135, IF($C$4=Dates!$E$4, DataPack!J135, IF($C$4=Dates!$E$5, DataPack!P135,IF($C$4=Dates!$E$6, DataPack!V135))))) -> 4 | I12: =IF($C$4=Dates!$E$3, DataPack!E135,IF($C$4=Dates!$E$3, DataPack!X135, IF($C$4=Dates!$E$4, DataPack!K135, IF($C$4=Dates!$E$5, DataPack!Q135,IF($C$4=Dates!$E$6, DataPack!W135))))) -> 123 | J12: =IF($C$4=Dates!$E$3, DataPack!F135,IF($C$4=Dates!$E$3, DataPack!Y135, IF($C$4=Dates!$E$4, DataPack!L135, IF($C$4=Dates!$E$5, DataPack!R135,IF($C$4=Dates!$E$6, DataPack!X135))))) -> 68 | K12: =IF($C$4=Dates!$E$3, DataPack!G135,IF($C$4=Dates!$E$3, DataPack!Z135, IF($C$4=Dates!$E$4, DataPack!M135, IF($C$4=Dates!$E$5, DataPack!S135,IF($C$4=Dates!$E$6, DataPack!Y135))))) -> 7 | L12: =IF($C$4=Dates!$E$3, DataPack!H135,IF($C$4=Dates!$E$3, DataPack!AA135, IF($C$4=Dates!$E$4, DataPack!N135, IF($C$4=Dates!$E$5, DataPack!T135,IF($C$4=Dates!$E$6, DataPack!Z135))))) -> 21
L14: Source: Ofsted inspections
B15: 1. School closing information based on Edubase at 3 September 2012
B16: 2. Excludes schools that have converted to academies.
B17: 3. One school closed as a result of amalgamation, nine closed to become sponsor-led academies.

Sheet Table 4
B2: ="Table 5: Number of maintained schools placed into, coming out of and closing while in a category of concern "&IF('Table 4'!$C$4=Dates!E3,"between "&Dates!E3,IF('Table 4'!$C$4=Dates!E3,"in "&Dates!E3,IF('Table 4'!$C$4=Dates!E4,"in "&Dates!E4,IF('Table 4'!$C$4=Dates!E5,"in "&Dates!E5,IF('Table 4'!$C$4=Dates!E6,"in "&Dates!E6,IF('Table 4'!$C$4=Dates!E7,"in "&Dates!E7))))))&" (provisional) " & CHAR(185) -> Table 5: Number of maintained schools placed into, coming out of and closing while in a category of concern between 1 September 2011 and 31 August 2012 (provisional) ¹
B4: Select period: | C4: 1 September 2011 and 31 August 2012
B6: ="Maintained schools placed in, removed from and closing while in special measures " & IF($C$4 = Dates!E3, "between " & $C$4, "in " & $C$4) -> Maintained schools placed in, removed from and closing while in special measures between 1 September 2011 and 31 August 2012
B8: Phase of Education | D8: ="Total subject to special measures at "& IF($C$4=Dates!E3, Dates!F4, IF($C$4=Dates!E4, Dates!F4,IF($C$4=Dates!E5, Dates!F5,IF($C$4=Dates!E6, Dates!F6)))) & " " &CHAR(178) -> Total subject to special measures at 1 September 2011 ² | E8: Number made subject to special measures 4 | F8: ="Number removed from special measures" -> Number removed from special measures | G8: Number closed while subject to special measures 5 | H8: ="Total subject to special measures at "& IF($C$4=Dates!E3, Dates!G6, IF($C$4=Dates!E4, Dates!G4,IF($C$4=Dates!E5, Dates!G5,IF($C$4=Dates!E6, Dates!G6)))) -> Total subject to special measures at 31 August 2012
B9: Nursery | D9: =IF($C$4=Dates!$E$3,DataPack!B140,IF($C$4=Dates!$E$4,DataPack!H140,IF($C$4=Dates!$E$5,DataPack!N140,IF($C$4=Dates!$E$6,DataPack!T140)))) -> 2 | E9: =IF($C$4=Dates!$E$3,DataPack!C140,IF($C$4=Dates!$E$4,DataPack!I140,IF($C$4=Dates!$E$5,DataPack!O140,IF($C$4=Dates!$E$6,DataPack!U140)))) -> 1 | F9: =IF($C$4=Dates!$E$3,DataPack!D140,IF($C$4=Dates!$E$4,DataPack!J140,IF($C$4=Dates!$E$5,DataPack!P140,IF($C$4=Dates!$E$6,DataPack!V140)))) -> 2 | G9: =IF($C$4=Dates!$E$3,DataPack!E140,IF($C$4=Dates!$E$4,DataPack!K140,IF($C$4=Dates!$E$5,DataPack!Q140,IF($C$4=Dates!$E$6,DataPack!W140)))) -> 0 | H9: =IF($C$4=Dates!$E$3,DataPack!F140,IF($C$4=Dates!$E$4,DataPack!L140,IF($C$4=Dates!$E$5,DataPack!R140,IF($C$4=Dates!$E$6,DataPack!X140)))) -> 1
B10: Primary | D10: =IF($C$4=Dates!$E$3,DataPack!B141,IF($C$4=Dates!$E$4,DataPack!H141,IF($C$4=Dates!$E$5,DataPack!N141,IF($C$4=Dates!$E$6,DataPack!T141)))) -> 205 | E10: =IF($C$4=Dates!$E$3,DataPack!C141,IF($C$4=Dates!$E$4,DataPack!I141,IF($C$4=Dates!$E$5,DataPack!O141,IF($C$4=Dates!$E$6,DataPack!U141)))) -> 224 | F10: =IF($C$4=Dates!$E$3,DataPack!D141,IF($C$4=Dates!$E$4,DataPack!J141,IF($C$4=Dates!$E$5,DataPack!P141,IF($C$4=Dates!$E$6,DataPack!V141)))) -> 163 | G10: =IF($C$4=Dates!$E$3,DataPack!E141,IF($C$4=Dates!$E$4,DataPack!K141,IF($C$4=Dates!$E$5,DataPack!Q141,IF($C$4=Dates!$E$6,DataPack!W141)))) -> 18 | H10: =IF($C$4=Dates!$E$3,DataPack!F141,IF($C$4=Dates!$E$4,DataPack!L141,IF($C$4=Dates!$E$5,DataPack!R141,IF($C$4=Dates!$E$6,DataPack!X141)))) -> 259
B11: Secondary | D11: =IF($C$4=Dates!$E$3,DataPack!B142,IF($C$4=Dates!$E$4,DataPack!H142,IF($C$4=Dates!$E$5,DataPack!N142,IF($C$4=Dates!$E$6,DataPack!T142)))) -> 39 | E11: =IF($C$4=Dates!$E$3,DataPack!C142,IF($C$4=Dates!$E$4,DataPack!I142,IF($C$4=Dates!$E$5,DataPack!O142,IF($C$4=Dates!$E$6,DataPack!U142)))) -> 48 | F11: =IF($C$4=Dates!$E$3,DataPack!D142,IF($C$4=Dates!$E$4,DataPack!J142,IF($C$4=Dates!$E$5,DataPack!P142,IF($C$4=Dates!$E$6,DataPack!V142)))) -> 32 | G11: =IF($C$4=Dates!$E$3,DataPack!E142,IF($C$4=Dates!$E$4,DataPack!K142,IF($C$4=Dates!$E$5,DataPack!Q142,IF($C$4=Dates!$E$6,DataPack!W142)))) -> 10 | H11: =IF($C$4=Dates!$E$3,DataPack!F142,IF($C$4=Dates!$E$4,DataPack!L142,IF($C$4=Dates!$E$5,DataPack!R142,IF($C$4=Dates!$E$6,DataPack!X142)))) -> 50
B12: Special | D12: =IF($C$4=Dates!$E$3,DataPack!B143,IF($C$4=Dates!$E$4,DataPack!H143,IF($C$4=Dates!$E$5,DataPack!N143,IF($C$4=Dates!$E$6,DataPack!T143)))) -> 10 | E12: =IF($C$4=Dates!$E$3,DataPack!C143,IF($C$4=Dates!$E$4,DataPack!I143,IF($C$4=Dates!$E$5,DataPack!O143,IF($C$4=Dates!$E$6,DataPack!U143)))) -> 11 | F12: =IF($C$4=Dates!$E$3,DataPack!D143,IF($C$4=Dates!$E$4,DataPack!J143,IF($C$4=Dates!$E$5,DataPack!P143,IF($C$4=Dates!$E$6,DataPack!V143)))) -> 6 | G12: =IF($C$4=Dates!$E$3,DataPack!E143,IF($C$4=Dates!$E$4,DataPack!K143,IF($C$4=Dates!$E$5,DataPack!Q143,IF($C$4=Dates!$E$6,DataPack!W143)))) -> 3 | H12: =IF($C$4=Dates!$E$3,DataPack!F143,IF($C$4=Dates!$E$4,DataPack!L143,IF($C$4=Dates!$E$5,DataPack!R143,IF($C$4=Dates!$E$6,DataPack!X143)))) -> 12
B13: Pupil Referral Unit | D13: =IF($C$4=Dates!$E$3,DataPack!B144,IF($C$4=Dates!$E$4,DataPack!H144,IF($C$4=Dates!$E$5,DataPack!N144,IF($C$4=Dates!$E$6,DataPack!T144)))) -> 5 | E13: =IF($C$4=Dates!$E$3,DataPack!C144,IF($C$4=Dates!$E$4,DataPack!I144,IF($C$4=Dates!$E$5,DataPack!O144,IF($C$4=Dates!$E$6,DataPack!U144)))) -> 8 | F13: =IF($C$4=Dates!$E$3,DataPack!D144,IF($C$4=Dates!$E$4,DataPack!J144,IF($C$4=Dates!$E$5,DataPack!P144,IF($C$4=Dates!$E$6,DataPack!V144)))) -> 2 | G13: =IF($C$4=Dates!$E$3,DataPack!E144,IF($C$4=Dates!$E$4,DataPack!K144,IF($C$4=Dates!$E$5,DataPack!Q144,IF($C$4=Dates!$E$6,DataPack!W144)))) -> 1 | H13: =IF($C$4=Dates!$E$3,DataPack!F144,IF($C$4=Dates!$E$4,DataPack!L144,IF($C$4=Dates!$E$5,DataPack!R144,IF($C$4=Dates!$E$6,DataPack!X144)))) -> 10
B14: Total | D14: =IF($C$4=Dates!$E$3,DataPack!B145,IF($C$4=Dates!$E$4,DataPack!H145,IF($C$4=Dates!$E$5,DataPack!N145,IF($C$4=Dates!$E$6,DataPack!T145)))) -> 261 | E14: =IF($C$4=Dates!$E$3,DataPack!C145,IF($C$4=Dates!$E$4,DataPack!I145,IF($C$4=Dates!$E$5,DataPack!O145,IF($C$4=Dates!$E$6,DataPack!U145)))) -> 292 | F14: =IF($C$4=Dates!$E$3,DataPack!D145,IF($C$4=Dates!$E$4,DataPack!J145,IF($C$4=Dates!$E$5,DataPack!P145,IF($C$4=Dates!$E$6,DataPack!V145)))) -> 205 | G14: =IF($C$4=Dates!$E$3,DataPack!E145,IF($C$4=Dates!$E$4,DataPack!K145,IF($C$4=Dates!$E$5,DataPack!Q145,IF($C$4=Dates!$E$6,DataPack!W145)))) -> 32 | H14: =IF($C$4=Dates!$E$3,DataPack!F145,IF($C$4=Dates!$E$4,DataPack!L145,IF($C$4=Dates!$E$5,DataPack!R145,IF($C$4=Dates!$E$6,DataPack!X145)))) -> 332
B16: ="Maintained schools placed in, removed from and closing while in notice to improve " & IF($C$4 = Dates!E3, "between " & $C$4, "in " & $C$4) -> Maintained schools placed in, removed from and closing while in notice to improve between 1 September 2011 and 31 August 2012
B18: Phase of Education | D18: ="Total requiring significant improvement "& IF($C$4=Dates!E3, Dates!F4, IF($C$4=Dates!E4, Dates!F4,IF($C$4=Dates!E5, Dates!F5,IF($C$4=Dates!E6, Dates!F6)))) & " " & CHAR(179) -> Total requiring significant improvement 1 September 2011 ³ | E18: Number given a notice to improve 4 | F18: ="Number removed from notice to improve" -> Number removed from notice to improve | G18: Number closed while subject to notice to improve 5 | H18: ="Total requiring significant improvement at "& IF($C$4=Dates!E3, Dates!G6, IF($C$4=Dates!E4, Dates!G4,IF($C$4=Dates!E5, Dates!G5,IF($C$4=Dates!E6, Dates!G6)))) -> Total requiring significant improvement at 31 August 2012
B19: Nursery | D19: =IF($C$4=Dates!$E$3,DataPack!B149,IF($C$4=Dates!$E$4,DataPack!H149,IF($C$4=Dates!$E$5,DataPack!N149,IF($C$4=Dates!$E$6,DataPack!T149)))) -> 0 | E19: =IF($C$4=Dates!$E$3,DataPack!C149,IF($C$4=Dates!$E$4,DataPack!I149,IF($C$4=Dates!$E$5,DataPack!O149,IF($C$4=Dates!$E$6,DataPack!U149)))) -> 0 | F19: =IF($C$4=Dates!$E$3,DataPack!D149,IF($C$4=Dates!$E$4,DataPack!J149,IF($C$4=Dates!$E$5,DataPack!P149,IF($C$4=Dates!$E$6,DataPack!V149)))) -> 0 | G19: =IF($C$4=Dates!$E$3,DataPack!E149,IF($C$4=Dates!$E$4,DataPack!K149,IF($C$4=Dates!$E$5,DataPack!Q149,IF($C$4=Dates!$E$6,DataPack!W149)))) -> 0 | H19: =IF($C$4=Dates!$E$3,DataPack!F149,IF($C$4=Dates!$E$4,DataPack!L149,IF($C$4=Dates!$E$5,DataPack!R149,IF($C$4=Dates!$E$6,DataPack!X149)))) -> 0
B20: Primary | D20: =IF($C$4=Dates!$E$3,DataPack!B150,IF($C$4=Dates!$E$4,DataPack!H150,IF($C$4=Dates!$E$5,DataPack!N150,IF($C$4=Dates!$E$6,DataPack!T150)))) -> 112 | E20: =IF($C$4=Dates!$E$3,DataPack!C150,IF($C$4=Dates!$E$4,DataPack!I150,IF($C$4=Dates!$E$5,DataPack!O150,IF($C$4=Dates!$E$6,DataPack!U150)))) -> 142 | F20: =IF($C$4=Dates!$E$3,DataPack!D150,IF($C$4=Dates!$E$4,DataPack!J150,IF($C$4=Dates!$E$5,DataPack!P150,IF($C$4=Dates!$E$6,DataPack!V150)))) -> 99 | G20: =IF($C$4=Dates!$E$3,DataPack!E150,IF($C$4=Dates!$E$4,DataPack!K150,IF($C$4=Dates!$E$5,DataPack!Q150,IF($C$4=Dates!$E$6,DataPack!W150)))) -> 11 | H20: =IF($C$4=Dates!$E$3,DataPack!F150,IF($C$4=Dates!$E$4,DataPack!L150,IF($C$4=Dates!$E$5,DataPack!R150,IF($C$4=Dates!$E$6,DataPack!X150)))) -> 147
B21: Secondary | D21: =IF($C$4=Dates!$E$3,DataPack!B151,IF($C$4=Dates!$E$4,DataPack!H151,IF($C$4=Dates!$E$5,DataPack!N151,IF($C$4=Dates!$E$6,DataPack!T151)))) -> 42 | E21: =IF($C$4=Dates!$E$3,DataPack!C151,IF($C$4=Dates!$E$4,DataPack!I151,IF($C$4=Dates!$E$5,DataPack!O151,IF($C$4=Dates!$E$6,DataPack!U151)))) -> 55 | F21: =IF($C$4=Dates!$E$3,DataPack!D151,IF($C$4=Dates!$E$4,DataPack!J151,IF($C$4=Dates!$E$5,DataPack!P151,IF($C$4=Dates!$E$6,DataPack!V151)))) -> 37 | G21: =IF($C$4=Dates!$E$3,DataPack!E151,IF($C$4=Dates!$E$4,DataPack!K151,IF($C$4=Dates!$E$5,DataPack!Q151,IF($C$4=Dates!$E$6,DataPack!W151)))) -> 5 | H21: =IF($C$4=Dates!$E$3,DataPack!F151,IF($C$4=Dates!$E$4,DataPack!L151,IF($C$4=Dates!$E$5,DataPack!R151,IF($C$4=Dates!$E$6,DataPack!X151)))) -> 57
B22: Special | D22: =IF($C$4=Dates!$E$3,DataPack!B152,IF($C$4=Dates!$E$4,DataPack!H152,IF($C$4=Dates!$E$5,DataPack!N152,IF($C$4=Dates!$E$6,DataPack!T152)))) -> 7 | E22: =IF($C$4=Dates!$E$3,DataPack!C152,IF($C$4=Dates!$E$4,DataPack!I152,IF($C$4=Dates!$E$5,DataPack!O152,IF($C$4=Dates!$E$6,DataPack!U152)))) -> 5 | F22: =IF($C$4=Dates!$E$3,DataPack!D152,IF($C$4=Dates!$E$4,DataPack!J152,IF($C$4=Dates!$E$5,DataPack!P152,IF($C$4=Dates!$E$6,DataPack!V152)))) -> 5 | G22: =IF($C$4=Dates!$E$3,DataPack!E152,IF($C$4=Dates!$E$4,DataPack!K152,IF($C$4=Dates!$E$5,DataPack!Q152,IF($C$4=Dates!$E$6,DataPack!W152)))) -> 0 | H22: =IF($C$4=Dates!$E$3,DataPack!F152,IF($C$4=Dates!$E$4,DataPack!L152,IF($C$4=Dates!$E$5,DataPack!R152,IF($C$4=Dates!$E$6,DataPack!X152)))) -> 7
B23: Pupil Referral Unit | D23: =IF($C$4=Dates!$E$3,DataPack!B153,IF($C$4=Dates!$E$4,DataPack!H153,IF($C$4=Dates!$E$5,DataPack!N153,IF($C$4=Dates!$E$6,DataPack!T153)))) -> 4 | E23: =IF($C$4=Dates!$E$3,DataPack!C153,IF($C$4=Dates!$E$4,DataPack!I153,IF($C$4=Dates!$E$5,DataPack!O153,IF($C$4=Dates!$E$6,DataPack!U153)))) -> 5 | F23: =IF($C$4=Dates!$E$3,DataPack!D153,IF($C$4=Dates!$E$4,DataPack!J153,IF($C$4=Dates!$E$5,DataPack!P153,IF($C$4=Dates!$E$6,DataPack!V153)))) -> 4 | G23: =IF($C$4=Dates!$E$3,DataPack!E153,IF($C$4=Dates!$E$4,DataPack!K153,IF($C$4=Dates!$E$5,DataPack!Q153,IF($C$4=Dates!$E$6,DataPack!W153)))) -> 0 | H23: =IF($C$4=Dates!$E$3,DataPack!F153,IF($C$4=Dates!$E$4,DataPack!L153,IF($C$4=Dates!$E$5,DataPack!R153,IF($C$4=Dates!$E$6,DataPack!X153)))) -> 5
B24: Total | D24: =IF($C$4=Dates!$E$3,DataPack!B154,IF($C$4=Dates!$E$4,DataPack!H154,IF($C$4=Dates!$E$5,DataPack!N154,IF($C$4=Dates!$E$6,DataPack!T154)))) -> 165 | E24: =IF($C$4=Dates!$E$3,DataPack!C154,IF($C$4=Dates!$E$4,DataPack!I154,IF($C$4=Dates!$E$5,DataPack!O154,IF($C$4=Dates!$E$6,DataPack!U154)))) -> 207 | F24: =IF($C$4=Dates!$E$3,DataPack!D154,IF($C$4=Dates!$E$4,DataPack!J154,IF($C$4=Dates!$E$5,DataPack!P154,IF($C$4=Dates!$E$6,DataPack!V154)))) -> 145 | G24: =IF($C$4=Dates!$E$3,DataPack!E154,IF($C$4=Dates!$E$4,DataPack!K154,IF($C$4=Dates!$E$5,DataPack!Q154,IF($C$4=Dates!$E$6,DataPack!W154)))) -> 16 | H24: =IF($C$4=Dates!$E$3,DataPack!F154,IF($C$4=Dates!$E$4,DataPack!L154,IF($C$4=Dates!$E$5,DataPack!R154,IF($C$4=Dates!$E$6,DataPack!X154)))) -> 216
H25: Source: Ofsted inspections
B26: 1. One secondary school that was previously in notice to improve was found to require special measures after reinspection this quarter.
B28: 2. Schools subject to special measures are those that, when inspected, were failing to give their pupils an acceptable standard of education and in which the persons responsible for leading, managing or governing the school were not demonstrating the capacity to secure the necessary improvement in the school.
B30: 3. Schools requiring significant improvement are those that, when inspected, although not requiring special measures, were performing significantly less well than they might in all the circumstances reasonably be expected to perform. Ofsted issues such schools with a notice to improve.
B32: 4. Data excludes four schools (three primary and one secondary) that remained in notice to improve after re-inspection and four schools (three primary and one secondary) that remained in special measures after re-inspection..
B34: 5. Information on closed schools based on Edubase at 3 September 2012.
B36: =IF(C4="1 April 2012 and 30 June 2012","6. These statistics exclude around 30 schools which were inspected during the quarter but where the inspection report had not been published by 31 July"," ") -> 

Sheet Table 4a
B2: ="Table 5a: Maintained schools in special measures at " & IF($C$4=Dates!G4, Dates!G4, IF($C$4=Dates!G5, Dates!G5, IF($C$4=Dates!G6, Dates!G6))) & " (final)" -> Table 5a: Maintained schools in special measures at 31 August 2012 (final) | C2: ="Table 3: Number of maintained schools inspection outcomes for select judgements at their most recent inspection as at " & IF('Table 3'!#REF!=Dates!H4, Dates!H4, IF('Table 3'!#REF!=Dates!H5, Dates!H5, IF('Table 3'!#REF!=Dates!H6, Dates!H6))) & " (provisional)" ->  | D2: ="Table 3: Number of maintained schools inspection outcomes for select judgements at their most recent inspection as at " & IF('Table 3'!#REF!=Dates!L4, Dates!L4, IF('Table 3'!#REF!=Dates!L5, Dates!L5, IF('Table 3'!#REF!=Dates!L6, Dates!L6))) & " (provisional)" ->  | E2: ="Table 3: Number of maintained schools inspection outcomes for select judgements at their most recent inspection as at " & IF('Table 3'!#REF!=Dates!M4, Dates!M4, IF('Table 3'!#REF!=Dates!M5, Dates!M5, IF('Table 3'!#REF!=Dates!M6, Dates!M6))) & " (provisional)" ->  | G2: ="Table 3: Number of maintained schools inspection outcomes for select judgements at their most recent inspection as at " & IF('Table 3'!#REF!=Dates!N4, Dates!N4, IF('Table 3'!#REF!=Dates!N5, Dates!N5, IF('Table 3'!#REF!=Dates!N6, Dates!N6))) & " (provisional)" -> 
B4: Select schools at: | C4: 31 August 2012
B6: URN | C6: School name | D6: Local authority | E6: Phase of education | F6: Type of education | G6: Date placed in category
